Workbook

Sheet Thermisch optimum
J5: COGENoptitherm | L5: versie : | M5: 2020-08-13
F6: Rekenblad voor de goede dimensionering van een WKK-installatie volgens het Besluit van de Brusselse Hoofdstedelijke Regering van 17 december 2015 betreffende de promotie van groene elektriciteit en het Besluit van de Brusselse Hoofdstedelijke Regering van 26 november 2020 tot vaststelling van de exploitatievoorwaarden voor warmtekrachtkopeling installatie
J7: Voor het bepalen van het thermisch vermogensbereik om te komen tot een "goede dimensionering » waarmee er aanspraak kan gemaakt worden op de vermenigvuldigingsfactor voor GSC (collectieve huisvesting)
J8: Voor het bepalen van de "goede dimmenionering" van het opgenomen vermogen voor de milieuvergunning (uitgezonderd collectieve huisvesting)
J9: Een realisatie van de WKK specialist van de dienst Facilitator Duurzame Gebouwen van het Brussels Hoofdstedelijk Gewest
I11: … naam van het project …
F13: facilitator@leefmilieu.irisnet.be | M13: www.leefmilieubrussel.be
J15: In te vullen
J16: Tussentijds resultaat | L16: RESULTAAT
J17: Uiteindelijk resultaat
B18: Seizoen rendement van de ketels : | G18: 0.8 | L18: Opgelet: niet vergeten de berekening "Uitvoeren"
B20: Vermindering van de warmtevraag door toekomstige REG maatregelen : | G20: 0.3
A23: 6 | B23: Keuze van het wekelijks warmtevraag profiel :
J24: Maandelijkse brandstof
B25: Gemeten profiel (eventueel) | F25: Type profiel | J25: verbruik :
D26: kW warmte | H26: kW warmte
B27: Maandag | C27: 00:00:00 | F27: Maandag | G27: 00:00:00 | H27: =Gegevens!F31 -> 74.17582418 | I27: Jaar :
C28: 00:15:00 | G28: 00:15:00 | H28: =Gegevens!F32 -> 74.17582418
C29: 00:30:00 | G29: 00:30:00 | H29: =Gegevens!F33 -> 74.17582418 | J29: kWu COW
C30: 00:45:00 | G30: 00:45:00 | H30: =Gegevens!F34 -> 74.17582418 | I30: Januari : | J30: 150000
C31: 01:00:00 | G31: 01:00:00 | H31: =Gegevens!F35 -> 80.91908092 | I31: Februari : | J31: 150000
C32: 01:15:00 | G32: 01:15:00 | H32: =Gegevens!F36 -> 80.91908092 | I32: Maart : | J32: 150000
C33: 01:30:00 | G33: 01:30:00 | H33: =Gegevens!F37 -> 80.91908092 | I33: April : | J33: 100000
C34: 01:45:00 | G34: 01:45:00 | H34: =Gegevens!F38 -> 80.91908092 | I34: Mei : | J34: 100000
C35: 02:00:00 | G35: 02:00:00 | H35: =Gegevens!F39 -> 84.29070929 | I35: Juni : | J35: 80000
C36: 02:15:00 | G36: 02:15:00 | H36: =Gegevens!F40 -> 84.29070929 | I36: Juli : | J36: 80000
C37: 02:30:00 | G37: 02:30:00 | H37: =Gegevens!F41 -> 84.29070929 | I37: Augustus : | J37: 90000
C38: 02:45:00 | G38: 02:45:00 | H38: =Gegevens!F42 -> 84.29070929 | I38: September : | J38: 120000
C39: 03:00:00 | G39: 03:00:00 | H39: =Gegevens!F43 -> 94.40559441 | I39: Oktober : | J39: 150000
C40: 03:15:00 | G40: 03:15:00 | H40: =Gegevens!F44 -> 94.40559441 | I40: November : | J40: 150000
C41: 03:30:00 | G41: 03:30:00 | H41: =Gegevens!F45 -> 94.40559441 | I41: December : | J41: 150000 | L41: Maximale warmteproductie door WKK (op vollast en zonder buffer) : | S41: ='1 uur Profiel'!G4 -> 482.7774937 | T41: kWh th.
C42: 03:45:00 | G42: 03:45:00 | H42: =Gegevens!F46 -> 94.40559441 | J42: =SUM(J30:J41) -> 1470000
C43: 04:00:00 | G43: 04:00:00 | H43: =Gegevens!F47 -> 138.2367632 | L43: Thermisch vermogen voor de maximale productie : | S43: ='1 uur Profiel'!G8 -> 241.3887469 | T43: kW th.
C44: 04:15:00 | G44: 04:15:00 | H44: =Gegevens!F48 -> 138.2367632
C45: 04:30:00 | G45: 04:30:00 | H45: =Gegevens!F49 -> 138.2367632 | L45: Minimale warmteproductie voor een "goede dimensionering" : | S45: =90%*S41 -> 434.4997443 | T45: kWh th.
C46: 04:45:00 | G46: 04:45:00 | H46: =Gegevens!F50 -> 138.2367632
C47: 05:00:00 | G47: 05:00:00 | H47: =Gegevens!F51 -> 165.2097902 | L47: Thermisch vermogensbereik "goede dimensionering" voor GSC : | R47: Pmin = | S47: ='1 uur Profiel'!G14 -> 241.3887469 | T47: kW th.
C48: 05:15:00 | G48: 05:15:00 | H48: =Gegevens!F52 -> 165.2097902
C49: 05:30:00 | G49: 05:30:00 | H49: =Gegevens!F53 -> 165.2097902 | R49: Pmax = | S49: ='1 uur Profiel'!G11 -> 241.3887469 | T49: kW th.
C50: 05:45:00 | G50: 05:45:00 | H50: =Gegevens!F54 -> 165.2097902
C51: 06:00:00 | G51: 06:00:00 | H51: =Gegevens!F55 -> 168.5814186 | L51: Bereik opgenomen vermogen voor een "goede dimensionering" voor milieuvergunning : | R51: Pmin = | S51: =S47/O53 -> 431.0513337 | T51: kW
C52: 06:15:00 | G52: 06:15:00 | H52: =Gegevens!F56 -> 168.5814186
C53: 06:30:00 | G53: 06:30:00 | H53: =Gegevens!F57 -> 168.5814186 | N53: Rendement (standaard) : | O53: 0.56 | R53: Pmax = | S53: =S49/O53 -> 431.0513337 | T53: kW
C54: 06:45:00 | G54: 06:45:00 | H54: =Gegevens!F58 -> 168.5814186 | N54: (eventueel aan te passen)
C55: 07:00:00 | G55: 07:00:00 | H55: =Gegevens!F59 -> 168.5814186
C56: 07:15:00 | G56: 07:15:00 | H56: =Gegevens!F60 -> 168.5814186
C57: 07:30:00 | G57: 07:30:00 | H57: =Gegevens!F61 -> 168.5814186
C58: 07:45:00 | G58: 07:45:00 | H58: =Gegevens!F62 -> 168.5814186
C59: 08:00:00 | G59: 08:00:00 | H59: =Gegevens!F63 -> 171.953047
C60: 08:15:00 | G60: 08:15:00 | H60: =Gegevens!F64 -> 171.953047
C61: 08:30:00 | G61: 08:30:00 | H61: =Gegevens!F65 -> 171.953047
C62: 08:45:00 | G62: 08:45:00 | H62: =Gegevens!F66 -> 171.953047
C63: 09:00:00 | G63: 09:00:00 | H63: =Gegevens!F67 -> 168.5814186
C64: 09:15:00 | G64: 09:15:00 | H64: =Gegevens!F68 -> 168.5814186
C65: 09:30:00 | G65: 09:30:00 | H65: =Gegevens!F69 -> 168.5814186
C66: 09:45:00 | G66: 09:45:00 | H66: =Gegevens!F70 -> 168.5814186
C67: 10:00:00 | G67: 10:00:00 | H67: =Gegevens!F71 -> 161.8381618
C68: 10:15:00 | G68: 10:15:00 | H68: =Gegevens!F72 -> 161.8381618
C69: 10:30:00 | G69: 10:30:00 | H69: =Gegevens!F73 -> 161.8381618
C70: 10:45:00 | G70: 10:45:00 | H70: =Gegevens!F74 -> 161.8381618
C71: 11:00:00 | G71: 11:00:00 | H71: =Gegevens!F75 -> 151.7232767
C72: 11:15:00 | G72: 11:15:00 | H72: =Gegevens!F76 -> 151.7232767
C73: 11:30:00 | G73: 11:30:00 | H73: =Gegevens!F77 -> 151.7232767
C74: 11:45:00 | G74: 11:45:00 | H74: =Gegevens!F78 -> 151.7232767
C75: 12:00:00 | G75: 12:00:00 | H75: =Gegevens!F79 -> 148.3516484
C76: 12:15:00 | G76: 12:15:00 | H76: =Gegevens!F80 -> 148.3516484
C77: 12:30:00 | G77: 12:30:00 | H77: =Gegevens!F81 -> 148.3516484
C78: 12:45:00 | G78: 12:45:00 | H78: =Gegevens!F82 -> 148.3516484
C79: 13:00:00 | G79: 13:00:00 | H79: =Gegevens!F83 -> 144.98002
C80: 13:15:00 | G80: 13:15:00 | H80: =Gegevens!F84 -> 144.98002
C81: 13:30:00 | G81: 13:30:00 | H81: =Gegevens!F85 -> 144.98002
C82: 13:45:00 | G82: 13:45:00 | H82: =Gegevens!F86 -> 144.98002
C83: 14:00:00 | G83: 14:00:00 | H83: =Gegevens!F87 -> 141.6083916
C84: 14:15:00 | G84: 14:15:00 | H84: =Gegevens!F88 -> 141.6083916
C85: 14:30:00 | G85: 14:30:00 | H85: =Gegevens!F89 -> 141.6083916
C86: 14:45:00 | G86: 14:45:00 | H86: =Gegevens!F90 -> 141.6083916
C87: 15:00:00 | G87: 15:00:00 | H87: =Gegevens!F91 -> 141.6083916
C88: 15:15:00 | G88: 15:15:00 | H88: =Gegevens!F92 -> 141.6083916
C89: 15:30:00 | G89: 15:30:00 | H89: =Gegevens!F93 -> 141.6083916
C90: 15:45:00 | G90: 15:45:00 | H90: =Gegevens!F94 -> 141.6083916
C91: 16:00:00 | G91: 16:00:00 | H91: =Gegevens!F95 -> 144.98002
C92: 16:15:00 | G92: 16:15:00 | H92: =Gegevens!F96 -> 144.98002
C93: 16:30:00 | G93: 16:30:00 | H93: =Gegevens!F97 -> 144.98002
C94: 16:45:00 | G94: 16:45:00 | H94: =Gegevens!F98 -> 144.98002
C95: 17:00:00 | G95: 17:00:00 | H95: =Gegevens!F99 -> 155.0949051
C96: 17:15:00 | G96: 17:15:00 | H96: =Gegevens!F100 -> 155.0949051
C97: 17:30:00 | G97: 17:30:00 | H97: =Gegevens!F101 -> 155.0949051
C98: 17:45:00 | G98: 17:45:00 | H98: =Gegevens!F102 -> 155.0949051
C99: 18:00:00 | G99: 18:00:00 | H99: =Gegevens!F103 -> 161.8381618
C100: 18:15:00 | G100: 18:15:00 | H100: =Gegevens!F104 -> 161.8381618
C101: 18:30:00 | G101: 18:30:00 | H101: =Gegevens!F105 -> 161.8381618
C102: 18:45:00 | G102: 18:45:00 | H102: =Gegevens!F106 -> 161.8381618
C103: 19:00:00 | G103: 19:00:00 | H103: =Gegevens!F107 -> 161.8381618
C104: 19:15:00 | G104: 19:15:00 | H104: =Gegevens!F108 -> 161.8381618
C105: 19:30:00 | G105: 19:30:00 | H105: =Gegevens!F109 -> 161.8381618
C106: 19:45:00 | G106: 19:45:00 | H106: =Gegevens!F110 -> 161.8381618
C107: 20:00:00 | G107: 20:00:00 | H107: =Gegevens!F111 -> 165.2097902
C108: 20:15:00 | G108: 20:15:00 | H108: =Gegevens!F112 -> 165.2097902
C109: 20:30:00 | G109: 20:30:00 | H109: =Gegevens!F113 -> 165.2097902
C110: 20:45:00 | G110: 20:45:00 | H110: =Gegevens!F114 -> 165.2097902
C111: 21:00:00 | G111: 21:00:00 | H111: =Gegevens!F115 -> 161.8381618
C112: 21:15:00 | G112: 21:15:00 | H112: =Gegevens!F116 -> 161.8381618
C113: 21:30:00 | G113: 21:30:00 | H113: =Gegevens!F117 -> 161.8381618
C114: 21:45:00 | G114: 21:45:00 | H114: =Gegevens!F118 -> 161.8381618
C115: 22:00:00 | G115: 22:00:00 | H115: =Gegevens!F119 -> 144.98002
C116: 22:15:00 | G116: 22:15:00 | H116: =Gegevens!F120 -> 144.98002
C117: 22:30:00 | G117: 22:30:00 | H117: =Gegevens!F121 -> 144.98002
C118: 22:45:00 | G118: 22:45:00 | H118: =Gegevens!F122 -> 144.98002
C119: 23:00:00 | G119: 23:00:00 | H119: =Gegevens!F123 -> 74.17582418
C120: 23:15:00 | G120: 23:15:00 | H120: =Gegevens!F124 -> 74.17582418
C121: 23:30:00 | G121: 23:30:00 | H121: =Gegevens!F125 -> 74.17582418
C122: 23:45:00 | G122: 23:45:00 | H122: =Gegevens!F126 -> 74.17582418
B123: Dinsdag | C123: 1 | F123: Dinsdag | G123: 1 | H123: =Gegevens!F127 -> 74.17582418
C124: 1.010416667 | G124: 1.010416667 | H124: =Gegevens!F128 -> 74.17582418
C125: 1.020833333 | G125: 1.020833333 | H125: =Gegevens!F129 -> 74.17582418
C126: 1.03125 | G126: 1.03125 | H126: =Gegevens!F130 -> 74.17582418
C127: 1.041666667 | G127: 1.041666667 | H127: =Gegevens!F131 -> 80.91908092
C128: 1.052083333 | G128: 1.052083333 | H128: =Gegevens!F132 -> 80.91908092
C129: 1.0625 | G129: 1.0625 | H129: =Gegevens!F133 -> 80.91908092
C130: 1.072916667 | G130: 1.072916667 | H130: =Gegevens!F134 -> 80.91908092
C131: 1.083333333 | G131: 1.083333333 | H131: =Gegevens!F135 -> 84.29070929
C132: 1.09375 | G132: 1.09375 | H132: =Gegevens!F136 -> 84.29070929
C133: 1.104166667 | G133: 1.104166667 | H133: =Gegevens!F137 -> 84.29070929
C134: 1.114583333 | G134: 1.114583333 | H134: =Gegevens!F138 -> 84.29070929
C135: 1.125 | G135: 1.125 | H135: =Gegevens!F139 -> 94.40559441
C136: 1.135416667 | G136: 1.135416667 | H136: =Gegevens!F140 -> 94.40559441
C137: 1.145833333 | G137: 1.145833333 | H137: =Gegevens!F141 -> 94.40559441
C138: 1.15625 | G138: 1.15625 | H138: =Gegevens!F142 -> 94.40559441
C139: 1.166666667 | G139: 1.166666667 | H139: =Gegevens!F143 -> 138.2367632
C140: 1.177083333 | G140: 1.177083333 | H140: =Gegevens!F144 -> 138.2367632
C141: 1.1875 | G141: 1.1875 | H141: =Gegevens!F145 -> 138.2367632
C142: 1.197916667 | G142: 1.197916667 | H142: =Gegevens!F146 -> 138.2367632
C143: 1.208333333 | G143: 1.208333333 | H143: =Gegevens!F147 -> 165.2097902
C144: 1.21875 | G144: 1.21875 | H144: =Gegevens!F148 -> 165.2097902
C145: 1.229166667 | G145: 1.229166667 | H145: =Gegevens!F149 -> 165.2097902
C146: 1.239583333 | G146: 1.239583333 | H146: =Gegevens!F150 -> 165.2097902
C147: 1.25 | G147: 1.25 | H147: =Gegevens!F151 -> 168.5814186
C148: 1.260416667 | G148: 1.260416667 | H148: =Gegevens!F152 -> 168.5814186
C149: 1.270833333 | G149: 1.270833333 | H149: =Gegevens!F153 -> 168.5814186
C150: 1.28125 | G150: 1.28125 | H150: =Gegevens!F154 -> 168.5814186
C151: 1.291666667 | G151: 1.291666667 | H151: =Gegevens!F155 -> 168.5814186
C152: 1.302083333 | G152: 1.302083333 | H152: =Gegevens!F156 -> 168.5814186
C153: 1.3125 | G153: 1.3125 | H153: =Gegevens!F157 -> 168.5814186
C154: 1.322916667 | G154: 1.322916667 | H154: =Gegevens!F158 -> 168.5814186
C155: 1.333333333 | G155: 1.333333333 | H155: =Gegevens!F159 -> 171.953047
C156: 1.34375 | G156: 1.34375 | H156: =Gegevens!F160 -> 171.953047
C157: 1.354166667 | G157: 1.354166667 | H157: =Gegevens!F161 -> 171.953047
C158: 1.364583333 | G158: 1.364583333 | H158: =Gegevens!F162 -> 171.953047
C159: 1.375 | G159: 1.375 | H159: =Gegevens!F163 -> 168.5814186
C160: 1.385416667 | G160: 1.385416667 | H160: =Gegevens!F164 -> 168.5814186
C161: 1.395833333 | G161: 1.395833333 | H161: =Gegevens!F165 -> 168.5814186
C162: 1.40625 | G162: 1.40625 | H162: =Gegevens!F166 -> 168.5814186
C163: 1.416666667 | G163: 1.416666667 | H163: =Gegevens!F167 -> 161.8381618
C164: 1.427083333 | G164: 1.427083333 | H164: =Gegevens!F168 -> 161.8381618
C165: 1.4375 | G165: 1.4375 | H165: =Gegevens!F169 -> 161.8381618
C166: 1.447916667 | G166: 1.447916667 | H166: =Gegevens!F170 -> 161.8381618
C167: 1.458333333 | G167: 1.458333333 | H167: =Gegevens!F171 -> 151.7232767
C168: 1.46875 | G168: 1.46875 | H168: =Gegevens!F172 -> 151.7232767
C169: 1.479166667 | G169: 1.479166667 | H169: =Gegevens!F173 -> 151.7232767
C170: 1.489583333 | G170: 1.489583333 | H170: =Gegevens!F174 -> 151.7232767
C171: 1.5 | G171: 1.5 | H171: =Gegevens!F175 -> 148.3516484
C172: 1.510416667 | G172: 1.510416667 | H172: =Gegevens!F176 -> 148.3516484
C173: 1.520833333 | G173: 1.520833333 | H173: =Gegevens!F177 -> 148.3516484
C174: 1.53125 | G174: 1.53125 | H174: =Gegevens!F178 -> 148.3516484
C175: 1.541666667 | G175: 1.541666667 | H175: =Gegevens!F179 -> 144.98002
C176: 1.552083333 | G176: 1.552083333 | H176: =Gegevens!F180 -> 144.98002
C177: 1.5625 | G177: 1.5625 | H177: =Gegevens!F181 -> 144.98002
C178: 1.572916667 | G178: 1.572916667 | H178: =Gegevens!F182 -> 144.98002
C179: 1.583333333 | G179: 1.583333333 | H179: =Gegevens!F183 -> 141.6083916
C180: 1.59375 | G180: 1.59375 | H180: =Gegevens!F184 -> 141.6083916
C181: 1.604166667 | G181: 1.604166667 | H181: =Gegevens!F185 -> 141.6083916
C182: 1.614583333 | G182: 1.614583333 | H182: =Gegevens!F186 -> 141.6083916
C183: 1.625 | G183: 1.625 | H183: =Gegevens!F187 -> 141.6083916
C184: 1.635416667 | G184: 1.635416667 | H184: =Gegevens!F188 -> 141.6083916
C185: 1.645833333 | G185: 1.645833333 | H185: =Gegevens!F189 -> 141.6083916
C186: 1.65625 | G186: 1.65625 | H186: =Gegevens!F190 -> 141.6083916
C187: 1.666666667 | G187: 1.666666667 | H187: =Gegevens!F191 -> 144.98002
C188: 1.677083333 | G188: 1.677083333 | H188: =Gegevens!F192 -> 144.98002
C189: 1.6875 | G189: 1.6875 | H189: =Gegevens!F193 -> 144.98002
C190: 1.697916667 | G190: 1.697916667 | H190: =Gegevens!F194 -> 144.98002
C191: 1.708333333 | G191: 1.708333333 | H191: =Gegevens!F195 -> 155.0949051
C192: 1.71875 | G192: 1.71875 | H192: =Gegevens!F196 -> 155.0949051
C193: 1.729166667 | G193: 1.729166667 | H193: =Gegevens!F197 -> 155.0949051
C194: 1.739583333 | G194: 1.739583333 | H194: =Gegevens!F198 -> 155.0949051
C195: 1.75 | G195: 1.75 | H195: =Gegevens!F199 -> 161.8381618
C196: 1.760416667 | G196: 1.760416667 | H196: =Gegevens!F200 -> 161.8381618
C197: 1.770833333 | G197: 1.770833333 | H197: =Gegevens!F201 -> 161.8381618
C198: 1.78125 | G198: 1.78125 | H198: =Gegevens!F202 -> 161.8381618
C199: 1.791666667 | G199: 1.791666667 | H199: =Gegevens!F203 -> 161.8381618
C200: 1.802083333 | G200: 1.802083333 | H200: =Gegevens!F204 -> 161.8381618
C201: 1.8125 | G201: 1.8125 | H201: =Gegevens!F205 -> 161.8381618
C202: 1.822916667 | G202: 1.822916667 | H202: =Gegevens!F206 -> 161.8381618
C203: 1.833333333 | G203: 1.833333333 | H203: =Gegevens!F207 -> 165.2097902
C204: 1.84375 | G204: 1.84375 | H204: =Gegevens!F208 -> 165.2097902
C205: 1.854166667 | G205: 1.854166667 | H205: =Gegevens!F209 -> 165.2097902
C206: 1.864583333 | G206: 1.864583333 | H206: =Gegevens!F210 -> 165.2097902
C207: 1.875 | G207: 1.875 | H207: =Gegevens!F211 -> 161.8381618
C208: 1.885416667 | G208: 1.885416667 | H208: =Gegevens!F212 -> 161.8381618
C209: 1.895833333 | G209: 1.895833333 | H209: =Gegevens!F213 -> 161.8381618
C210: 1.90625 | G210: 1.90625 | H210: =Gegevens!F214 -> 161.8381618
... 488 more rows

Sheet Grafieken
A2: ="Geëxtrapoleerd thermisch profiel - "&Gegevens!$C$15&"" -> Geëxtrapoleerd thermisch profiel - … naam van het project …
A24: ="Wekelijks thermisch profiel - "&Gegevens!$C$15 -> Wekelijks thermisch profiel - … naam van het project …
A46: ="Energiehandtekening - "&Gegevens!C15&" " -> Energiehandtekening - … naam van het project …
A67: ="Brandstofverbruik - "&Gegevens!$C$15 -> Brandstofverbruik - … naam van het project …

Sheet 1-4 uur Profiel
C1: Opgelet : Dit blad niet gebruiken ! | G1: warmte | I1: elektriciteit | O1: 1
A2: datum | B2: verlof | C2: maand - jaar | D2: dag - maand | E2: dag - week | F2: n° 1/4 u | G2: warmteprofiel | H2: factor | I2: elek. Profiel | J2: normale uren | K2: factor
E3: 1
A4: ="1/01/"&INDEX(Titels!B2:B9,Gegevens!B19)&" 0:00" -> 1/01/2019 0:00 | B4: =IF(OR(AND(D4=1,C4=1),AND(D4=Titels!$O$12,C4=Titels!$P$12),AND(D4=1,C4=5),AND(D4=Titels!$O$14,C4=Titels!$P$14),AND(D4=Titels!$O$15,C4=Titels!$P$15),AND(D4=21,C4=7),AND(D4=15,C4=8),AND(D4=1,C4=11),AND(D4=11,C4=11),AND(D4=25,C4=12)),1,0) -> 1 | C4: =MONTH(A4) -> 1 | D4: =DAY(A4) -> 1 | E4: =WEEKDAY(A4,2) -> 2 | F4: =IF(E4=E3,F3+1,1) -> 1 | G4: =MAX(0,H4*IF(B4=1,INDEX(Gegevens!$O$31:$O$126,F4),INDEX(Gegevens!$F$31:$F$702,E4*96-96+F4))) -> 51.99769313 | H4: =1+INDEX(GD!$B$109:$M$139,D4,C4) -> 0.5823741631 | I4: =IF($O$1=1,N4,K4*IF(B4=1,INDEX(Gegevens!$N$31:$N$126,F4),INDEX(Gegevens!$E$31:$E$702,(E4-1)*96+F4))) -> 0 | J4: =IF(AND(E4<=5,B4=0,F4>Gegevens!$U$19*4,F4<=(Gegevens!$U$19+15)*4),1,2) -> 2 | K4: =INDEX('Elek. facturen'!$L$4:$M$15,C4,J4) -> 
A5: =A4+1/96 -> 2019-01-01T00:15:00 | B5: =IF(OR(AND(D5=1,C5=1),AND(D5=Titels!$O$12,C5=Titels!$P$12),AND(D5=1,C5=5),AND(D5=Titels!$O$14,C5=Titels!$P$14),AND(D5=Titels!$O$15,C5=Titels!$P$15),AND(D5=21,C5=7),AND(D5=15,C5=8),AND(D5=1,C5=11),AND(D5=11,C5=11),AND(D5=25,C5=12)),1,0) -> 1 | C5: =MONTH(A5) -> 1 | D5: =DAY(A5) -> 1 | E5: =WEEKDAY(A5,2) -> 2 | F5: =IF(E5=E4,F4+1,1) -> 2 | G5: =MAX(0,H5*IF(B5=1,INDEX(Gegevens!$O$31:$O$126,F5),INDEX(Gegevens!$F$31:$F$702,E5*96-96+F5))) -> 51.99769313 | H5: =1+INDEX(GD!$B$109:$M$139,D5,C5) -> 0.5823741631 | I5: =IF($O$1=1,N5,K5*IF(B5=1,INDEX(Gegevens!$N$31:$N$126,F5),INDEX(Gegevens!$E$31:$E$702,(E5-1)*96+F5))) -> 0 | J5: =IF(AND(E5<=5,B5=0,F5>Gegevens!$U$19*4,F5<=(Gegevens!$U$19+15)*4),1,2) -> 2 | K5: =INDEX('Elek. facturen'!$L$4:$M$15,C5,J5) -> 

Sheet 1 uur Profiel
A1: datum | C1: elek. Profiel | D1: warmte profiel | F1: som kWu elec | G1: som kWu gas | H1: Bemasting Decr | I1: therm prod | J1: Prod Min | K1: Prod vd correcte dimens. | L1: Vermogen correct gedim.
A2: ='1-4 uur Profiel'!A4 -> 1/01/2019 0:00 | B2: 1 | C2: =AVERAGE(INDEX('1-4 uur Profiel'!$I$4:$I$35139,(B2-1)*4+1),INDEX('1-4 uur Profiel'!$I$4:$I$35139,(B2-1)*4+2),INDEX('1-4 uur Profiel'!$I$4:$I$35139,(B2-1)*4+3),INDEX('1-4 uur Profiel'!$I$4:$I$35139,(B2-1)*4+4)) -> 0 | D2: =AVERAGE(INDEX('1-4 uur Profiel'!$G$4:$G$35139,(B2-1)*4+1),INDEX('1-4 uur Profiel'!$G$4:$G$35139,(B2-1)*4+2),INDEX('1-4 uur Profiel'!$G$4:$G$35139,(B2-1)*4+3),INDEX('1-4 uur Profiel'!$G$4:$G$35139,(B2-1)*4+4)) -> 51.99769313 | E2: januari | F2: =SUM(C2:C8785) ->  | G2: =SUM(D2:D8785) ->  | H2: 241.4242467 | I2: =B2*H2 -> 241.4242467 | J2: =$G$5 -> 434.4997443 | K2: =IF(I2>=J2,I2,0) -> 0 | L2: =IF(K2=0,"",H2) -> 
A3: =A2+1/24 -> 2019-01-01T01:00:00 | B3: 2 | C3: =AVERAGE(INDEX('1-4 uur Profiel'!$I$4:$I$35139,(B3-1)*4+1),INDEX('1-4 uur Profiel'!$I$4:$I$35139,(B3-1)*4+2),INDEX('1-4 uur Profiel'!$I$4:$I$35139,(B3-1)*4+3),INDEX('1-4 uur Profiel'!$I$4:$I$35139,(B3-1)*4+4)) ->  | D3: =AVERAGE(INDEX('1-4 uur Profiel'!$G$4:$G$35139,(B3-1)*4+1),INDEX('1-4 uur Profiel'!$G$4:$G$35139,(B3-1)*4+2),INDEX('1-4 uur Profiel'!$G$4:$G$35139,(B3-1)*4+3),INDEX('1-4 uur Profiel'!$G$4:$G$35139,(B3-1)*4+4)) ->  | E3: januari | H3: 241.3887469 | I3: =B3*H3 -> 482.7774937 | J3: =$G$5 -> 434.4997443 | K3: =IF(I3>=J3,I3,0) -> 482.7774937 | L3: =IF(K3=0,"",H3) -> 241.3887469
E4: januari | F4: Max th prod | G4: =MAX(I2:I8785) -> 482.7774937
E5: januari | F5: 90% Max Prod th | G5: =90%*G4 -> 434.4997443
E6: januari
E7: januari | F7: Num van MAX | G7: =MATCH(G4,I2:I8785,0) -> 2
E8: januari | F8: Vermogen van MAX | G8: =INDEX(H2:H8785,G7) -> 241.3887469
E9: januari
E10: januari
E11: januari | F11: Vermogen max | G11: =MAX(L1:L8785) -> 241.3887469
E12: januari
E13: januari
E14: januari | F14: Vermogen min | G14: =MIN(L2:L8785) -> 241.3887469
E15: januari
E16: januari | F16: Opgelet : Dit blad niet gebruiken !
E17: januari
E18: januari
E19: januari
E20: januari
E21: januari
E22: januari
E23: januari
E24: januari
E25: januari
E26: januari
E27: januari
E28: januari
E29: januari
E30: januari
E31: januari
E32: januari
E33: januari
E34: januari
E35: januari
E36: januari
E37: januari
E38: januari
E39: januari
E40: januari
E41: januari
E42: januari
E43: januari
E44: januari
E45: januari
E46: januari
E47: januari
E48: januari
E49: januari
E50: januari
E51: januari
E52: januari
E53: januari
E54: januari
E55: januari
E56: januari
E57: januari
E58: januari
E59: januari
E60: januari
E61: januari
E62: januari
E63: januari
E64: januari
E65: januari
E66: januari
E67: januari
E68: januari
E69: januari
E70: januari
E71: januari
E72: januari
E73: januari
E74: januari
E75: januari
E76: januari
E77: januari
E78: januari
E79: januari
E80: januari
E81: januari
E82: januari
E83: januari
E84: januari
E85: januari
E86: januari
E87: januari
E88: januari
E89: januari
E90: januari
E91: januari
E92: januari
E93: januari
E94: januari
E95: januari
E96: januari
E97: januari
E98: januari
E99: januari
E100: januari
E101: januari
E102: januari
E103: januari
E104: januari
E105: januari
E106: januari
E107: januari
E108: januari
E109: januari
E110: januari
E111: januari
E112: januari
E113: januari
E114: januari
E115: januari
E116: januari
E117: januari
E118: januari
E119: januari
E120: januari
E121: januari
E122: januari
E123: januari
E124: januari
E125: januari
E126: januari
E127: januari
E128: januari
E129: januari
E130: januari
E131: januari
E132: januari
E133: januari
E134: januari
E135: januari
E136: januari
E137: januari
E138: januari
E139: januari
E140: januari
E141: januari
E142: januari
E143: januari
E144: januari
E145: januari
E146: januari
E147: januari
E148: januari
E149: januari
E150: januari
E151: januari
E152: januari
E153: januari
E154: januari
E155: januari
E156: januari
E157: januari
E158: januari
E159: januari
E160: januari
E161: januari
E162: januari
E163: januari
E164: januari
E165: januari
E166: januari
E167: januari
E168: januari
E169: januari
E170: januari
E171: januari
E172: januari
E173: januari
E174: januari
E175: januari
E176: januari
E177: januari
E178: januari
E179: januari
E180: januari
E181: januari
E182: januari
E183: januari
E184: januari
E185: januari
E186: januari
E187: januari
E188: januari
E189: januari
E190: januari
E191: januari
E192: januari
E193: januari
E194: januari
E195: januari
E196: januari
E197: januari
E198: januari
E199: januari
E200: januari
... 8561 more rows

Sheet Brandstoffacturen
A1: Brandstoffacturen en energiehandtekening | E1: Opgelet : Dit blad niet gebruiken ! | M1: SXX | N1: SXY | O1: gd gemid | P1: =AVERAGE(C3:C14) -> 141.4
B2: dag/maand | C2: gd/maand | D2: kWh/maand | E2: kWh klimatologisch | F2: verschil | G2: b0 dag | H2: optelling pro extrapol | I2: optelling extrapol | K2: verschil | L2: verschil waarde | O2: warmte gemid. | P2: =AVERAGE(D3:D14) -> 68600
A3: januari | B3: 31 | C3: =GD!B34 -> 372.2 | D3: =Gegevens!Z21*Gegevens!$F$25 -> 84000 | E3: =C3*$P$3+$P$4 -> 93893.41099 | F3: =(D3-E3)/E3 -> -0.1053685332 | G3: =$P$4/B3 -> 1713.030649 | H3: =SUMIF('1-4 uur Profiel'!$C$4:$C$35043,1,'1-4 uur Profiel'!$G$4:$G$35043)/4 -> 25.99884657 | I3: =GD!B72 -> 84000 | J3: =E3*(1+F3) -> 84000 | K3: =IF(H3=0,0,(H3-D3)/H3) -> -3229.912563 | L3: 0 | M3: =(C3-$P$1)^2 -> 53268.64 | N3: =(C3-$P$1)*(D3-$P$2) -> 3554320 | O3: b1 | P3: =N15/M15 -> 109.5901689
A4: februari | B4: 28 | C4: =GD!C34 -> 224 | D4: =Gegevens!Z22*Gegevens!$F$25 -> 84000 | E4: =C4*$P$3+$P$4 -> 77652.14795 | F4: =(D4-E4)/E4 -> 0.08174728212 | G4: =$P$4/B4 -> 1896.569647 | H4: =SUMIF('1-4 uur Profiel'!$C$4:$C$35043,2,'1-4 uur Profiel'!$G$4:$G$35043)/4 -> 0 | I4: =GD!C72 -> 78440.80125 | J4: =E4*(1+F4) -> 84000 | K4: =IF(H4=0,0,(H4-D4)/H4) -> 0 | L4: 0 | M4: =(C4-$P$1)^2 -> 6822.76 | N4: =(C4-$P$1)*(D4-$P$2) -> 1272040 | O4: b0 | P4: =P2-P3*P1 -> 53103.95011
A5: maart | B5: 31 | C5: =GD!D34 -> 202.5 | D5: =Gegevens!Z23*Gegevens!$F$25 -> 84000 | E5: =C5*$P$3+$P$4 -> 75295.95932 | F5: 0.1155977128 | G5: 1713.030649 | H5: =SUMIF('1-4 uur Profiel'!$C$4:$C$35043,3,'1-4 uur Profiel'!$G$4:$G$35043)/4 -> 0 | I5: =GD!D72 -> 84000 | J5: 84000 | K5: 0 | L5: 0 | M5: 3733.21 | N5: =(C5-$P$1)*(D5-$P$2) -> 940940
A6: april | B6: 30 | C6: =GD!E34 -> 136.1 | D6: =Gegevens!Z24*Gegevens!$F$25 -> 56000 | E6: 68019.1721 | F6: -0.1767027109 | G6: 1770.13167 | H6: =SUMIF('1-4 uur Profiel'!$C$4:$C$35043,4,'1-4 uur Profiel'!$G$4:$G$35043)/4 -> 0 | I6: =GD!E72 -> 54589.66651 | J6: 56000 | K6: 0 | L6: 0 | M6: 28.09 | N6: =(C6-$P$1)*(D6-$P$2) -> 66780
A7: mei | B7: 31 | C7: =GD!F34 -> 101.3 | D7: =Gegevens!Z25*Gegevens!$F$25 -> 56000 | E7: 64205.43423 | F7: -0.1277996843 | G7: 1713.030649 | H7: =SUMIF('1-4 uur Profiel'!$C$4:$C$35043,5,'1-4 uur Profiel'!$G$4:$G$35043)/4 -> 0 | I7: =GD!F72 -> 56000 | J7: 56000 | K7: 0 | L7: 0 | M7: 1608.01 | N7: 505260
A8: juni | B8: 30 | C8: =GD!G34 -> 7.4 | D8: =Gegevens!Z26*Gegevens!$F$25 -> 44800 | E8: 53914.91736 | F8: -0.1690611394 | G8: 1770.13167 | H8: =SUMIF('1-4 uur Profiel'!$C$4:$C$35043,6,'1-4 uur Profiel'!$G$4:$G$35043)/4 -> 0 | I8: =GD!G72 -> 43376.57626 | J8: 44800 | K8: 0 | L8: 0 | M8: 17956 | N8: 3189200
A9: juli | B9: 31 | C9: =GD!H34 -> 0.2 | D9: =Gegevens!Z27*Gegevens!$F$25 -> 44800 | E9: =C9*$P$3+$P$4 -> 53125.86815 | F9: -0.1567196629 | G9: 1713.030649 | H9: =SUMIF('1-4 uur Profiel'!$C$4:$C$35043,7,'1-4 uur Profiel'!$G$4:$G$35043)/4 -> 0 | I9: =GD!H72 -> 44800 | J9: 44800 | K9: 0 | L9: 0 | M9: 19937.44 | N9: 3360560
A10: augustus | B10: 31 | C10: =GD!I34 -> 0.9 | D10: =Gegevens!Z28*Gegevens!$F$25 -> 50400 | E10: 53202.58126 | F10: -0.05267754304 | G10: 1713.030649 | H10: =SUMIF('1-4 uur Profiel'!$C$4:$C$35043,8,'1-4 uur Profiel'!$G$4:$G$35043)/4 -> 0 | I10: =GD!I72 -> 50400 | J10: 50400 | K10: 0 | L10: 0 | M10: 19740.25 | N10: 2557100
A11: september | B11: 30 | C11: =GD!J34 -> 18.3 | D11: =Gegevens!Z29*Gegevens!$F$25 -> 67200 | E11: 55109.4502 | F11: 0.219391588 | G11: 1770.13167 | H11: =SUMIF('1-4 uur Profiel'!$C$4:$C$35043,9,'1-4 uur Profiel'!$G$4:$G$35043)/4 -> 0 | I11: =GD!J72 -> 65111.14484 | J11: 67200 | K11: 0 | L11: 0 | M11: 15153.61 | N11: 172340
A12: oktober | B12: 31 | C12: =GD!K34 -> 99.7 | D12: =Gegevens!Z30*Gegevens!$F$25 -> 84000 | E12: 64030.08996 | F12: 0.3118832108 | G12: 1713.030649 | H12: =SUMIF('1-4 uur Profiel'!$C$4:$C$35043,10,'1-4 uur Profiel'!$G$4:$G$35043)/4 -> 0 | I12: =GD!K72 -> 84000 | J12: 84000 | K12: 0 | L12: 0 | M12: 1738.89 | N12: =(C12-$P$1)*(D12-$P$2) -> -642180
A13: november | B13: 30 | C13: =GD!L34 -> 253 | D13: =Gegevens!Z31*Gegevens!$F$25 -> 84000 | E13: 80830.26285 | F13: 0.03921473263 | G13: 1770.13167 | H13: =SUMIF('1-4 uur Profiel'!$C$4:$C$35043,11,'1-4 uur Profiel'!$G$4:$G$35043)/4 -> 0 | I13: =GD!L72 -> 82219.79331 | J13: 84000 | K13: 0 | L13: 0 | M13: =(C13-$P$1)^2 -> 12454.56 | N13: 1718640
A14: december | B14: 31 | C14: =GD!M34 -> 281.2 | D14: =Gegevens!Z32*Gegevens!$F$25 -> 84000 | E14: 83920.70562 | F14: 0.0009448726842 | G14: 1713.030649 | H14: =SUMIF('1-4 uur Profiel'!$C$4:$C$35043,12,'1-4 uur Profiel'!$G$4:$G$35043)/4 -> 0 | I14: =GD!M72 -> 84000 | J14: 84000 | K14: 0 | L14: 0 | M14: =(C14-$P$1)^2 -> 19544.04 | N14: =(C14-$P$1)*(D14-$P$2) -> 2152920
B15: =SUM(B3:B14) -> 365 | C15: =SUM(C3:C14) -> 1696.8 | D15: =SUM(D3:D14) -> 823200 | E15: =SUM(E3:E14) -> 823200 | F15: 1.414180294e-16 | G15: =P4/B16 -> 1745.883291 | H15: =SUM(H3:H14) -> 25.99884657 | I15: =SUM(I3:I14) -> 810937.9822 | J15: 823200 | M15: =SUM(M3:M14) -> 171985.5 | N15: =SUM(N3:N14) -> 18847920
B16: =B15/12 -> 30.41666667 | D16: =1270000/D15 -> 1.542759961 | F16: =SUM(F3:F14) -> -0.01954987469 | H16: =H15-D15 -> -823174.0012
D17: =D15/Gegevens!Z33 -> 0.56 | H17: =H16/I15 -> -1.015088723
E20: SI(@INDEX(Brandstoffacturen!$B$22:$B$29;GD!Q41)=0;0;(B3*Brandstoffacturen!$P$3+Brandstoffacturen!$G$3)*(1+@INDEX(Brandstoffacturen!$F$3:$F$14;B$39))*(1-@INDEX(Brandstoffacturen!$L$3:$L$14;B$39))*@INDEX(Gegevens!$T$40:$T$49;GD!Q41))
B21: kWh
A22: maandag | B22: =SUM(Gegevens!F31:F126)/4 -> 3375
A23: dinsdag | B23: =SUM(Gegevens!F127:F222)/4 -> 3375
A24: woensdag | B24: =SUM(Gegevens!F223:F318)/4 -> 3375
A25: donderdag | B25: =SUM(Gegevens!F319:F414)/4 -> 3375
A26: vrijdag | B26: =SUM(Gegevens!$F$415:$F$510)/4 -> 3375
A27: zaterdag | B27: =SUM(Gegevens!F511:F606)/4 -> 4062.5
A28: zondag | B28: =SUM(Gegevens!F607:F702)/4 -> 4062.5
A29: feestdag | B29: =SUM(Gegevens!O31:O126)/4 -> 4062.5
B30: =SUM(B22:B28) -> 25000

Sheet Elek. facturen
B1: Facturen | C1: Opgelet : Dit blad niet gebruiken ! | E1: Door optelling vd type profielen | G1: Controle extrapolatie = factuur
B2: kWh normale u, | C2: kWh stille uren | D2: kW | E2: profiel kWh normale u. | F2: profiel kWh stille u. | G2: optelling extrapolatie | H2: optelling factuur | I2: kW extrapol | J2: verschil kW | K2: kW factuur | L2: fact. normale u. | M2: fact. stille u. | N2: maandag | O2: dinsdag | P2: woensdag | Q2: donderdag | R2: vrijdag | S2: zaterdag | T2: zondag | U2: totaal | V2: verlof
B3: 2
A4: januari | B4: =Gegevens!T21 -> 0 | C4: =Gegevens!U21 -> 0 | D4: =Gegevens!V21 -> 0 | E4: =$N4*B$23+$O4*B$24+$P4*B$25+$Q4*B$26+$R4*B$27 -> 0 | F4: =$N4*C$23+$O4*C$24+$P4*C$25+$Q4*C$26+$R4*C$27+$S4*C$28+$T4*C$29+$V4*C$32 -> 0 | G4: =SUMIF('1-4 uur Profiel'!$C$4:$C$35043,1,'1-4 uur Profiel'!$I$4:$I$35043)/4 -> 0 | H4: =B4+C4 -> 0 | I4: =MAX('1-4 uur Profiel'!I4:I2979) -> 0 | J4: =I4/D4 ->  | K4: =Gegevens!V21 -> 0 | L4: =B4/E4 ->  | M4: =C4/F4 ->  | N4: =GD!$Q$76 -> 4 | O4: =GD!$Q$77 -> 4 | P4: =GD!$Q$78 -> 5 | Q4: =GD!$Q$79 -> 5 | R4: =GD!$Q$80 -> 4 | S4: =GD!$Q$81 -> 4 | T4: =GD!$Q$82 -> 3 | U4: 31 | V4: =U4-SUM(N4:T4) -> 2
A5: februari | B5: =Gegevens!T22 -> 0 | C5: =Gegevens!U22 -> 0 | D5: =Gegevens!V22 -> 0 | E5: 0 | F5: 0 | G5: =SUMIF('1-4 uur Profiel'!$C$4:$C$35043,2,'1-4 uur Profiel'!$I$4:$I$35043)/4 -> 0 | H5: =B5+C5 -> 0 | I5: =MAX('1-4 uur Profiel'!I2980:I5667) -> 0 | J5: =I5/D5 ->  | K5: =Gegevens!V22 -> 0 | N5: =GD!$R$76 -> 4 | O5: =GD!$R$77 -> 4 | P5: =GD!$R$78 -> 4 | Q5: =GD!$R$79 -> 4 | R5: =GD!$R$80 -> 4 | S5: =GD!$R$81 -> 4 | T5: =GD!$R$82 -> 4
A6: maart | B6: =Gegevens!T23 -> 0 | C6: =Gegevens!U23 -> 0 | D6: =Gegevens!V23 -> 0 | E6: 0 | F6: 0 | G6: =SUMIF('1-4 uur Profiel'!$C$4:$C$35043,3,'1-4 uur Profiel'!$I$4:$I$35043)/4 -> 0 | H6: 0 | I6: =MAX('1-4 uur Profiel'!I5668:I8643) -> 0 | K6: =Gegevens!V23 -> 0 | N6: =GD!$S$76 -> 4 | O6: =GD!$S$77 -> 4 | P6: =GD!$S$78 -> 4 | Q6: =GD!$S$79 -> 4 | R6: =GD!$S$80 -> 5 | S6: =GD!$S$81 -> 5 | T6: =GD!$S$82 -> 5 | U6: 31 | V6: =U6-SUM(N6:T6) -> 0
A7: april | B7: =Gegevens!T24 -> 0 | C7: =Gegevens!U24 -> 0 | D7: =Gegevens!V24 -> 0 | E7: 0 | F7: 0 | G7: =SUMIF('1-4 uur Profiel'!$C$4:$C$35043,4,'1-4 uur Profiel'!$I$4:$I$35043)/4 -> 0 | H7: 0 | I7: =MAX('1-4 uur Profiel'!I8644:I11523) -> 0 | K7: =Gegevens!V24 -> 0 | N7: =GD!$T$76 -> 4 | O7: =GD!$T$77 -> 5 | P7: =GD!$T$78 -> 4 | Q7: =GD!$T$79 -> 4 | R7: =GD!$T$80 -> 4 | S7: =GD!$T$81 -> 4 | T7: =GD!$T$82 -> 4 | U7: 30 | V7: 1
A8: mei | B8: =Gegevens!T25 -> 0 | C8: =Gegevens!U25 -> 0 | D8: =Gegevens!V25 -> 0 | E8: 0 | F8: 0 | G8: =SUMIF('1-4 uur Profiel'!$C$4:$C$35043,5,'1-4 uur Profiel'!$I$4:$I$35043)/4 -> 0 | H8: 0 | I8: =MAX('1-4 uur Profiel'!I11524:I14499) -> 0 | K8: =Gegevens!V25 -> 0 | N8: =GD!$U$76 -> 3 | O8: =GD!$U$77 -> 4 | P8: =GD!$U$78 -> 4 | Q8: =GD!$U$79 -> 4 | R8: =GD!$U$80 -> 5 | S8: =GD!$U$81 -> 4 | T8: =GD!$U$82 -> 4 | U8: 31 | V8: 3
A9: juni | B9: =Gegevens!T26 -> 0 | C9: =Gegevens!U26 -> 0 | D9: =Gegevens!V26 -> 0 | E9: 0 | F9: 0 | G9: =SUMIF('1-4 uur Profiel'!$C$4:$C$35043,6,'1-4 uur Profiel'!$I$4:$I$35043)/4 -> 0 | H9: 0 | I9: =MAX('1-4 uur Profiel'!I14500:I17379) -> 0 | K9: =Gegevens!V26 -> 0 | N9: =GD!$V$76 -> 3 | O9: =GD!$V$77 -> 4 | P9: =GD!$V$78 -> 4 | Q9: =GD!$V$79 -> 4 | R9: =GD!$V$80 -> 4 | S9: =GD!$V$81 -> 5 | T9: =GD!$V$82 -> 5 | U9: 30 | V9: 1
A10: juli | B10: =Gegevens!T27 -> 0 | C10: =Gegevens!U27 -> 0 | D10: =Gegevens!V27 -> 0 | E10: 0 | F10: 0 | G10: =SUMIF('1-4 uur Profiel'!$C$4:$C$35043,7,'1-4 uur Profiel'!$I$4:$I$35043)/4 -> 0 | H10: 0 | I10: =MAX('1-4 uur Profiel'!I17380:I20355) -> 0 | K10: =Gegevens!V27 -> 0 | N10: =GD!$W$76 -> 5 | O10: =GD!$W$77 -> 5 | P10: =GD!$W$78 -> 5 | Q10: =GD!$W$79 -> 4 | R10: =GD!$W$80 -> 3 | S10: =GD!$W$81 -> 4 | T10: =GD!$W$82 -> 3 | U10: 31 | V10: 2
A11: augustus | B11: =Gegevens!T28 -> 0 | C11: =Gegevens!U28 -> 0 | D11: =Gegevens!V28 -> 0 | E11: 0 | F11: 0 | G11: =SUMIF('1-4 uur Profiel'!$C$4:$C$35043,8,'1-4 uur Profiel'!$I$4:$I$35043)/4 -> 0 | H11: 0 | I11: =MAX('1-4 uur Profiel'!I20356:I23331) -> 0 | K11: =Gegevens!V28 -> 0 | N11: =GD!$X$76 -> 4 | O11: =GD!$X$77 -> 3 | P11: =GD!$X$78 -> 4 | Q11: =GD!$X$79 -> 4 | R11: =GD!$X$80 -> 5 | S11: =GD!$X$81 -> 5 | T11: =GD!$X$82 -> 4 | U11: 31 | V11: 2
A12: september | B12: =Gegevens!T29 -> 0 | C12: =Gegevens!U29 -> 0 | D12: =Gegevens!V29 -> 0 | E12: 0 | F12: 0 | G12: =SUMIF('1-4 uur Profiel'!$C$4:$C$35043,9,'1-4 uur Profiel'!$I$4:$I$35043)/4 -> 0 | H12: 0 | I12: =MAX('1-4 uur Profiel'!I23332:I26211) -> 0 | K12: =Gegevens!V29 -> 0 | N12: =GD!$Y$76 -> 5 | O12: =GD!$Y$77 -> 4 | P12: =GD!$Y$78 -> 4 | Q12: =GD!$Y$79 -> 4 | R12: =GD!$Y$80 -> 4 | S12: =GD!$Y$81 -> 4 | T12: =GD!$Y$82 -> 5 | U12: 30 | V12: 0
A13: oktober | B13: =Gegevens!T30 -> 0 | C13: =Gegevens!U30 -> 0 | D13: =Gegevens!V30 -> 0 | E13: 0 | F13: 0 | G13: =SUMIF('1-4 uur Profiel'!$C$4:$C$35043,10,'1-4 uur Profiel'!$I$4:$I$35043)/4 -> 0 | H13: 0 | I13: =MAX('1-4 uur Profiel'!I26212:I29187) -> 0 | K13: =Gegevens!V30 -> 0 | N13: =GD!$Z$76 -> 4 | O13: =GD!$Z$77 -> 5 | P13: =GD!$Z$78 -> 5 | Q13: =GD!$Z$79 -> 5 | R13: =GD!$Z$80 -> 4 | S13: =GD!$Z$81 -> 4 | T13: =GD!$Z$82 -> 4 | U13: 31 | V13: 0
A14: november | B14: =Gegevens!T31 -> 0 | C14: =Gegevens!U31 -> 0 | D14: =Gegevens!V31 -> 0 | E14: 0 | F14: 0 | G14: =SUMIF('1-4 uur Profiel'!$C$4:$C$35043,11,'1-4 uur Profiel'!$I$4:$I$35043)/4 -> 0 | H14: 0 | I14: =MAX('1-4 uur Profiel'!I29188:I32067) -> 0 | K14: =Gegevens!V31 -> 0 | N14: =GD!$AA$76 -> 3 | O14: =GD!$AA$77 -> 4 | P14: =GD!$AA$78 -> 3 | Q14: =GD!$AA$79 -> 4 | R14: =GD!$AA$80 -> 4 | S14: =GD!$AA$81 -> 4 | T14: =GD!$AA$82 -> 4 | U14: 30 | V14: 4
A15: december | B15: =Gegevens!T32 -> 0 | C15: =Gegevens!U32 -> 0 | D15: =Gegevens!V32 -> 0 | E15: 0 | F15: 0 | G15: =SUMIF('1-4 uur Profiel'!$C$4:$C$35043,12,'1-4 uur Profiel'!$I$4:$I$35043)/4 -> 0 | H15: 0 | I15: =MAX('1-4 uur Profiel'!I32068:I35043) -> 0 | K15: =Gegevens!V32 -> 0 | N15: =GD!$AB$76 -> 4 | O15: =GD!$AB$77 -> 5 | P15: =GD!$AB$78 -> 3 | Q15: =GD!$AB$79 -> 4 | R15: =GD!$AB$80 -> 4 | S15: =GD!$AB$81 -> 4 | T15: =GD!$AB$82 -> 5 | U15: 31 | V15: 2
B16: =SUM(B4:B15) -> 0 | C16: 0 | E16: 0 | F16: 0 | G16: 0 | H16: 0 | L16: =1+(B16-E16)/E16 ->  | M16: =1+(C16-F16)/F16 ->  | N16: =SUM(N4:N15) -> 47 | O16: =SUM(O4:O15) -> 51 | P16: 49 | Q16: 50 | R16: 50 | S16: 51 | T16: 50 | V16: =SUM(V4:V15) -> 17
C17: =B16+C16 -> 0 | F17: =(B16-G16)/B16 ->  | G17: =(C16-H16)/C16 ->  | S17: =SUM(N16:T16) -> 348
F20: Opgelet : Dit blad niet gebruiken !
B22: kWh normale uren | C22: kWh stille uren | D22: totaal
A23: maandag | B23: =SUM(Gegevens!AJ31:AJ126)/4 -> 0 | C23: =SUM(Gegevens!AK31:AK126)/4 -> 0 | D23: =SUM(B23:C23) -> 0
A24: dinsdag | B24: =SUM(Gegevens!AJ127:AJ222)/4 -> 0 | C24: =SUM(Gegevens!AK127:AK222)/4 -> 0 | D24: 0
A25: woensdag | B25: =SUM(Gegevens!AJ223:AJ318)/4 -> 0 | C25: =SUM(Gegevens!AK223:AK318)/4 -> 0 | D25: 0
A26: donderdag | B26: =SUM(Gegevens!AJ319:AJ414)/4 -> 0 | C26: =SUM(Gegevens!AK319:AK414)/4 -> 0 | D26: 0
A27: vrijdag | B27: =SUM(Gegevens!AJ415:AJ510)/4 -> 0 | C27: =SUM(Gegevens!AK415:AK510)/4 -> 0 | D27: 0
A28: zaterdag | B28: 0 | C28: =SUM(Gegevens!AK511:AK606)/4 -> 0 | D28: 0
A29: zondag | B29: 0 | C29: =SUM(Gegevens!AK607:AK702)/4 -> 0 | D29: 0
B30: =SUM(B23:B29) -> 0 | C30: =SUM(C23:C29) -> 0 | D30: =SUM(D23:D29) -> 0
A32: feestdagen | C32: =SUM(Gegevens!N31:N126)/4 -> 0 | D32: =SUM(B32:C32) -> 0

Sheet GD
B1: =INDEX(Titels!B2:B11,Gegevens!B19) -> 2019 | C1: ="Graaddagen ("&Gegevens!F23&")" -> Graaddagen (15) | H1: schrikkeljaar ? | I1: =IF(OR(B1=2012,B1=2016),1,2) -> 2 | J1: Opgelet : Dit blad niet gebruiken ! | O1: Gemiddelde temp. van de selectie | AB1: 2019 | AN1: 2018 | AZ1: 2017 | BL1: 2016 | BX1: 2015 | CJ1: 2014 | CV1: 2013 | DH1: 2012
A2: dagen | B2: januari | C2: februari | D2: maart | E2: april | F2: mei | G2: juni | H2: juli | I2: augustus | J2: september | K2: oktober | L2: november | M2: december | O2: januari | P2: februari | Q2: maart | R2: april | S2: mei | T2: juni | U2: juli | V2: augustus | W2: september | X2: oktober | Y2: november | Z2: december | AB2: januari | AC2: februari | AD2: maart | AE2: april | AF2: mei | AG2: juni | AH2: juli | AI2: augustus | AJ2: september | AK2: oktober | AL2: november | AM2: december | AN2: januari | AO2: februari | AP2: maart | AQ2: april | AR2: mei | AS2: juni | AT2: juli | AU2: augustus | AV2: september | AW2: oktober | AX2: november | AY2: december | AZ2: januari | BA2: februari | BB2: maart | BC2: april | BD2: mei | BE2: juni | BF2: juli | BG2: augustus | BH2: september | BI2: oktober | BJ2: november | BK2: december | BL2: januari | BM2: februari | BN2: maart | BO2: april | BP2: mei | BQ2: juni | BR2: juli | BS2: augustus | BT2: september | BU2: oktober | BV2: november | BW2: december | BX2: januari | BY2: februari | BZ2: maart | CA2: april | CB2: mei | CC2: juni | CD2: juli | CE2: augustus | CF2: september | CG2: oktober | CH2: november | CI2: december | CJ2: januari | CK2: februari | CL2: maart | CM2: april | CN2: mei | CO2: juni | CP2: juli | CQ2: augustus | CR2: september | CS2: oktober | CT2: november | CU2: december | CV2: januari | CW2: februari | CX2: maart | CY2: april | CZ2: mei | DA2: juni | DB2: juli | DC2: augustus | DD2: september | DE2: oktober | DF2: november | DG2: december | DH2: januari | DI2: februari | DJ2: maart | DK2: april | DL2: mei | DM2: juni | DN2: juli | DO2: augustus | DP2: september | DQ2: oktober | DR2: november | DS2: december | DW2: Plaats | EA2: a | EB2: b | EC2: R2 | EE2: GD UKKEL | EF2: januari | EG2: februari | EH2: maart | EI2: april | EJ2: mei | EK2: juni | EL2: juli | EM2: augustus | EN2: september | EO2: oktober | EP2: november | EQ2: december
A3: 1 | B3: =IF(O3>Gegevens!$F$23,0,Gegevens!$F$23-O3) -> 8.5 | C3: =IF(P3>Gegevens!$F$23,0,Gegevens!$F$23-P3) -> 12.5 | D3: =IF(Q3>Gegevens!$F$23,0,Gegevens!$F$23-Q3) -> 8.2 | E3: =IF(R3>Gegevens!$F$23,0,Gegevens!$F$23-R3) -> 5 | F3: =IF(S3>Gegevens!$F$23,0,Gegevens!$F$23-S3) -> 4.5 | G3: =IF(T3>Gegevens!$F$23,0,Gegevens!$F$23-T3) -> 0 | H3: =IF(U3>Gegevens!$F$23,0,Gegevens!$F$23-U3) -> 0 | I3: =IF(V3>Gegevens!$F$23,0,Gegevens!$F$23-V3) -> 0 | J3: =IF(W3>Gegevens!$F$23,0,Gegevens!$F$23-W3) -> 0 | K3: =IF(X3>Gegevens!$F$23,0,Gegevens!$F$23-X3) -> 0 | L3: =IF(Y3>Gegevens!$F$23,0,Gegevens!$F$23-Y3) -> 4.4 | M3: =IF(Z3>Gegevens!$F$23,0,Gegevens!$F$23-Z3) -> 13.2 | O3: =INDEX($AB$3:$DS$33,$A3,12*Gegevens!$B$19-O$36)-(1*O$35) -> 6.5 | P3: =INDEX($AB$3:$DS$33,$A3,12*Gegevens!$B$19-P$36)-(1*P$35) -> 2.5 | Q3: =INDEX($AB$3:$DS$33,$A3,12*Gegevens!$B$19-Q$36)-(1*Q$35) -> 6.8 | R3: =INDEX($AB$3:$DS$33,$A3,12*Gegevens!$B$19-R$36)-(1*R$35) -> 10 | S3: =INDEX($AB$3:$DS$33,$A3,12*Gegevens!$B$19-S$36)-(1*S$35) -> 10.5 | T3: =INDEX($AB$3:$DS$33,$A3,12*Gegevens!$B$19-T$36)-(1*T$35) -> 20.2 | U3: =INDEX($AB$3:$DS$33,$A3,12*Gegevens!$B$19-U$36)-(1*U$35) -> 18.4 | V3: =INDEX($AB$3:$DS$33,$A3,12*Gegevens!$B$19-V$36)-(1*V$35) -> 19.2 | W3: =INDEX($AB$3:$DS$33,$A3,12*Gegevens!$B$19-W$36)-(1*W$35) -> 16.3 | X3: =INDEX($AB$3:$DS$33,$A3,12*Gegevens!$B$19-X$36)-(1*X$35) -> 15.4 | Y3: =INDEX($AB$3:$DS$33,$A3,12*Gegevens!$B$19-Y$36)-(1*Y$35) -> 10.6 | Z3: =INDEX($AB$3:$DS$33,$A3,12*Gegevens!$B$19-Z$36)-(1*Z$35) -> 1.8 | AB3: 6.5 | AC3: 2.5 | AD3: 6.8 | AE3: 10 | AF3: 10.5 | AG3: 20.2 | AH3: 18.4 | AI3: 19.2 | AJ3: 16.3 | AK3: 15.4 | AL3: 10.6 | AM3: 1.8 | AN3: 6 | AO3: 3 | AP3: -2.9 | AQ3: 5.8 | AR3: 8.6 | AS3: 17.4 | AT3: 23.2 | AU3: 22.6 | AV3: 15.1 | AW3: 9.4 | AX3: 10.3 | AY3: 7.4 | AZ3: -2.2 | BA3: 6.5 | BB3: 6.6 | BC3: 11.2 | BD3: 10.7 | BE3: 20.1 | BF3: 15 | BG3: 18.3 | BH3: 13.8 | BI3: 13.9 | BJ3: 10.3 | BK3: 0.6 | BL3: 5.6 | BM3: 10.5 | BN3: 2.4 | BO3: 7.5 | BP3: 8.5 | BQ3: 14.2 | BR3: 16.7 | BS3: 16.5 | BT3: 17.4 | BU3: 12.7 | BV3: 10.4 | BW3: 3.3 | BX3: 2.2 | BY3: 2.2 | BZ3: 8.4 | CA3: 7 | CB3: 9.3 | CC3: 12.5 | CD3: 26.9 | CE3: 17.5 | CF3: 15 | CG3: 11.2 | CH3: 11.6 | CI3: 11.4 | CJ3: 7.6 | CK3: 6.1 | CL3: 4.8 | CM3: 14.8 | CN3: 11.9 | CO3: 14.1 | CP3: 15.2 | CQ3: 21.1 | CR3: 15.7 | CS3: 16.5 | CT3: 15.9 | CU3: 2.5 | CV3: 6.1 | CW3: 5.8 | CX3: 2.4 | CY3: 2.5 | CZ3: 12.6 | DA3: 11 | DB3: 15.5 | DC3: 25.2 | DD3: 14.1 | DE3: 12.3 | DF3: 10.3 | DG3: 6.6 | DH3: 12 | DI3: -5.4 | DJ3: 7.2 | DK3: 5.6 | DL3: 14.6 | DM3: 16 | DN3: 15.9 | DO3: 21 | DP3: 13.6 | DQ3: 13.5 | DR3: 8.2 | DS3: 2.3 | DW3: 1180 - Uccle | DX3: Uccle | DY3: y=x | EA3: 1 | EB3: 0 | EE3: 2019 | EF3: 372.2 | EG3: 224 | EH3: 202.5 | EI3: 136.1 | EJ3: 101.3 | EK3: 7.4 | EL3: 0.2 | EM3: 0.9 | EN3: 18.3 | EO3: 99.7 | EP3: 253 | EQ3: 281.2 | ER3: =SUM(EF3:EQ3) -> 1696.8
A4: 2 | B4: =IF(O4>Gegevens!$F$23,0,Gegevens!$F$23-O4) -> 10 | C4: =IF(P4>Gegevens!$F$23,0,Gegevens!$F$23-P4) -> 13.1 | D4: =IF(Q4>Gegevens!$F$23,0,Gegevens!$F$23-Q4) -> 6.5 | E4: =IF(R4>Gegevens!$F$23,0,Gegevens!$F$23-R4) -> 4.5 | F4: =IF(S4>Gegevens!$F$23,0,Gegevens!$F$23-S4) -> 5.7 | G4: =IF(T4>Gegevens!$F$23,0,Gegevens!$F$23-T4) -> 0 | H4: =IF(U4>Gegevens!$F$23,0,Gegevens!$F$23-U4) -> 0 | I4: =IF(V4>Gegevens!$F$23,0,Gegevens!$F$23-V4) -> 0 | J4: =IF(W4>Gegevens!$F$23,0,Gegevens!$F$23-W4) -> 0 | K4: =IF(X4>Gegevens!$F$23,0,Gegevens!$F$23-X4) -> 4.7 | L4: =IF(Y4>Gegevens!$F$23,0,Gegevens!$F$23-Y4) -> 2.2 | M4: =IF(Z4>Gegevens!$F$23,0,Gegevens!$F$23-Z4) -> 12.1 | O4: =INDEX($AB$3:$DS$33,$A4,12*Gegevens!$B$19-O$36)-(1*O$35) -> 5 | P4: =INDEX($AB$3:$DS$33,$A4,12*Gegevens!$B$19-P$36)-(1*P$35) -> 1.9 | Q4: =INDEX($AB$3:$DS$33,$A4,12*Gegevens!$B$19-Q$36)-(1*Q$35) -> 8.5 | R4: =INDEX($AB$3:$DS$33,$A4,12*Gegevens!$B$19-R$36)-(1*R$35) -> 10.5 | S4: =INDEX($AB$3:$DS$33,$A4,12*Gegevens!$B$19-S$36)-(1*S$35) -> 9.3 | T4: =INDEX($AB$3:$DS$33,$A4,12*Gegevens!$B$19-T$36)-(1*T$35) -> 23.8 | U4: =INDEX($AB$3:$DS$33,$A4,12*Gegevens!$B$19-U$36)-(1*U$35) -> 17.8 | V4: =INDEX($AB$3:$DS$33,$A4,12*Gegevens!$B$19-V$36)-(1*V$35) -> 18.1 | W4: =INDEX($AB$3:$DS$33,$A4,12*Gegevens!$B$19-W$36)-(1*W$35) -> 15.5 | X4: =INDEX($AB$3:$DS$33,$A4,12*Gegevens!$B$19-X$36)-(1*X$35) -> 10.3 | Y4: =INDEX($AB$3:$DS$33,$A4,12*Gegevens!$B$19-Y$36)-(1*Y$35) -> 12.8 | Z4: =INDEX($AB$3:$DS$33,$A4,12*Gegevens!$B$19-Z$36)-(1*Z$35) -> 2.9 | AB4: 5 | AC4: 1.9 | AD4: 8.5 | AE4: 10.5 | AF4: 9.3 | AG4: 23.8 | AH4: 17.8 | AI4: 18.1 | AJ4: 15.5 | AK4: 10.3 | AL4: 12.8 | AM4: 2.9 | AN4: 6.4 | AO4: 3.3 | AP4: -2.5 | AQ4: 9.4 | AR4: 11.3 | AS4: 16.2 | AT4: 22.5 | AU4: 23.9 | AV4: 17.5 | AW4: 11.6 | AX4: 6.7 | AY4: 12.3 | AZ4: -0.3 | BA4: 10.1 | BB4: 7.1 | BC4: 10.9 | BD4: 9.6 | BE4: 21.9 | BF4: 15.4 | BG4: 18 | BH4: 14.5 | BI4: 15.5 | BJ4: 8.9 | BK4: -1.4 | BL4: 7.9 | BM4: 7.6 | BN4: 5 | BO4: 10 | BP4: 11 | BQ4: 13.3 | BR4: 14 | BS4: 15.7 | BT4: 16.9 | BU4: 11.2 | BV4: 7.5 | BW4: 6.4 | BX4: 5.5 | BY4: 1.5 | BZ4: 5.5 | CA4: 6 | CB4: 11.8 | CC4: 15.2 | CD4: 25.9 | CE4: 19.6 | CF4: 14.2 | CG4: 11.8 | CH4: 9.8 | CI4: 10.7 | CJ4: 7.7 | CK4: 5 | CL4: 4.9 | CM4: 15.8 | CN4: 10.8 | CO4: 15.2 | CP4: 16.8 | CQ4: 21.3 | CR4: 17.4 | CS4: 16.6 | CT4: 15.3 | CU4: 1.5 | CV4: 5.5 | CW4: 3.4 | CX4: 2.2 | CY4: 3.2 | CZ4: 13.5 | DA4: 12.4 | DB4: 16.9 | DC4: 27.3 | DD4: 16.4 | DE4: 13 | DF4: 11.6 | DG4: 6.1 | DH4: 7 | DI4: -6.7 | DJ4: 7.4 | DK4: 8.1 | DL4: 10.9 | DM4: 15.4 | DN4: 16.7 | DO4: 18.8 | DP4: 16.2 | DQ4: 14.2 | DR4: 6.4 | DS4: 1.2 | DW4: 1320 - Beauvechain | DX4: Beauvechain | DY4: y = 1.0362x + 10.65 | EA4: 1.0362 | EB4: 10.65 | EC4: 0.9996 | EE4: 2018 | EF4: 280.2 | EG4: 397.2 | EH4: 298.4 | EI4: 86.3 | EJ4: 38.6 | EK4: 3.3 | EL4: 0 | EM4: 2.1 | EN4: 36.9 | EO4: 103.2 | EP4: 227.1 | EQ4: 284.7 | ER4: 1758
A5: 3 | B5: =IF(O5>Gegevens!$F$23,0,Gegevens!$F$23-O5) -> 10.8 | C5: =IF(P5>Gegevens!$F$23,0,Gegevens!$F$23-P5) -> 12.5 | D5: =IF(Q5>Gegevens!$F$23,0,Gegevens!$F$23-Q5) -> 3.9 | E5: =IF(R5>Gegevens!$F$23,0,Gegevens!$F$23-R5) -> 9.4 | F5: =IF(S5>Gegevens!$F$23,0,Gegevens!$F$23-S5) -> 5.6 | G5: =IF(T5>Gegevens!$F$23,0,Gegevens!$F$23-T5) -> 0 | H5: =IF(U5>Gegevens!$F$23,0,Gegevens!$F$23-U5) -> 0 | I5: =IF(V5>Gegevens!$F$23,0,Gegevens!$F$23-V5) -> 0 | J5: =IF(W5>Gegevens!$F$23,0,Gegevens!$F$23-W5) -> 0 | K5: =IF(X5>Gegevens!$F$23,0,Gegevens!$F$23-X5) -> 5.4 | L5: =IF(Y5>Gegevens!$F$23,0,Gegevens!$F$23-Y5) -> 4.5 | M5: =IF(Z5>Gegevens!$F$23,0,Gegevens!$F$23-Z5) -> 13.2 | O5: =INDEX($AB$3:$DS$33,$A5,12*Gegevens!$B$19-O$36)-(1*O$35) -> 4.2 | P5: =INDEX($AB$3:$DS$33,$A5,12*Gegevens!$B$19-P$36)-(1*P$35) -> 2.5 | Q5: =INDEX($AB$3:$DS$33,$A5,12*Gegevens!$B$19-Q$36)-(1*Q$35) -> 11.1 | R5: =INDEX($AB$3:$DS$33,$A5,12*Gegevens!$B$19-R$36)-(1*R$35) -> 5.6 | S5: =INDEX($AB$3:$DS$33,$A5,12*Gegevens!$B$19-S$36)-(1*S$35) -> 9.4 | T5: =INDEX($AB$3:$DS$33,$A5,12*Gegevens!$B$19-T$36)-(1*T$35) -> 17.7 | U5: =INDEX($AB$3:$DS$33,$A5,12*Gegevens!$B$19-U$36)-(1*U$35) -> 17 | V5: =INDEX($AB$3:$DS$33,$A5,12*Gegevens!$B$19-V$36)-(1*V$35) -> 18.5 | W5: =INDEX($AB$3:$DS$33,$A5,12*Gegevens!$B$19-W$36)-(1*W$35) -> 15.7 | X5: =INDEX($AB$3:$DS$33,$A5,12*Gegevens!$B$19-X$36)-(1*X$35) -> 9.6 | Y5: =INDEX($AB$3:$DS$33,$A5,12*Gegevens!$B$19-Y$36)-(1*Y$35) -> 10.5 | Z5: =INDEX($AB$3:$DS$33,$A5,12*Gegevens!$B$19-Z$36)-(1*Z$35) -> 1.8 | AB5: 4.2 | AC5: 2.5 | AD5: 11.1 | AE5: 5.6 | AF5: 9.4 | AG5: 17.7 | AH5: 17 | AI5: 18.5 | AJ5: 15.7 | AK5: 9.6 | AL5: 10.5 | AM5: 1.8 | AN5: 8.9 | AO5: 2.6 | AP5: 1.5 | AQ5: 12 | AR5: 11.1 | AS5: 19.3 | AT5: 23 | AU5: 25.8 | AV5: 18.1 | AW5: 13.4 | AX5: 4.7 | AY5: 12 | AZ5: 0.5 | BA5: 9.3 | BB5: 8.5 | BC5: 9.4 | BD5: 9.7 | BE5: 18.9 | BF5: 17 | BG5: 19.9 | BH5: 14.5 | BI5: 11.9 | BJ5: 9.5 | BK5: 0.5 | BL5: 6.2 | BM5: 4.2 | BN5: 3.1 | BO5: 15.1 | BP5: 9.9 | BQ5: 13.9 | BR5: 14.4 | BS5: 17.1 | BT5: 17.7 | BU5: 11.8 | BV5: 6.6 | BW5: 2.3 | BX5: 2.7 | BY5: 0.7 | BZ5: 4.8 | CA5: 5.5 | CB5: 13.8 | CC5: 15.2 | CD5: 25.9 | CE5: 25.1 | CF5: 12.5 | CG5: 13.4 | CH5: 13.1 | CI5: 9.2 | CJ5: 9.9 | CK5: 4.8 | CL5: 6.4 | CM5: 16.4 | CN5: 9.6 | CO5: 14.9 | CP5: 20.3 | CQ5: 19.4 | CR5: 16.9 | CS5: 17.7 | CT5: 12.5 | CU5: -0.3 | CV5: 8.7 | CW5: 3.4 | CX5: 3.3 | CY5: 2.3 | CZ5: 13.8 | DA5: 11.4 | DB5: 16.5 | DC5: 20.7 | DD5: 18.8 | DE5: 15.4 | DF5: 8.2 | DG5: 2.2 | DH5: 7.8 | DI5: -7.7 | DJ5: 9.8 | DK5: 10.8 | DL5: 11 | DM5: 11.3 | DN5: 19.2 | DO5: 17.4 | DP5: 17.6 | DQ5: 13.1 | DR5: 6.6 | DS5: 2.9 | DW5: 4000 - Liège (Monsin) | DX5: Liège | DY5: y = 1.0121x - 8.0735 | EA5: 1.0121 | EB5: -8.0735 | EC5: 0.9995 | EE5: 2017 | EF5: 431.6 | EG5: 249.7 | EH5: 171 | EI5: 186.3 | EJ5: 51.3 | EK5: 1.6 | EL5: 0 | EM5: 0.3 | EN5: 39.5 | EO5: 66.2 | EP5: 251.2 | EQ5: 327.7 | ER5: 1776.4
A6: 4 | B6: =IF(O6>Gegevens!$F$23,0,Gegevens!$F$23-O6) -> 11.9 | C6: =IF(P6>Gegevens!$F$23,0,Gegevens!$F$23-P6) -> 13.4 | D6: =IF(Q6>Gegevens!$F$23,0,Gegevens!$F$23-Q6) -> 6.6 | E6: =IF(R6>Gegevens!$F$23,0,Gegevens!$F$23-R6) -> 9.2 | F6: =IF(S6>Gegevens!$F$23,0,Gegevens!$F$23-S6) -> 9 | G6: =IF(T6>Gegevens!$F$23,0,Gegevens!$F$23-T6) -> 0 | H6: =IF(U6>Gegevens!$F$23,0,Gegevens!$F$23-U6) -> 0 | I6: =IF(V6>Gegevens!$F$23,0,Gegevens!$F$23-V6) -> 0 | J6: =IF(W6>Gegevens!$F$23,0,Gegevens!$F$23-W6) -> 0 | K6: =IF(X6>Gegevens!$F$23,0,Gegevens!$F$23-X6) -> 2.9 | L6: =IF(Y6>Gegevens!$F$23,0,Gegevens!$F$23-Y6) -> 4.8 | M6: =IF(Z6>Gegevens!$F$23,0,Gegevens!$F$23-Z6) -> 12.6 | O6: =INDEX($AB$3:$DS$33,$A6,12*Gegevens!$B$19-O$36)-(1*O$35) -> 3.1 | P6: =INDEX($AB$3:$DS$33,$A6,12*Gegevens!$B$19-P$36)-(1*P$35) -> 1.6 | Q6: =INDEX($AB$3:$DS$33,$A6,12*Gegevens!$B$19-Q$36)-(1*Q$35) -> 8.4 | R6: =INDEX($AB$3:$DG$33,$A6,12*Gegevens!$B$19-R$36)-(1*R$35) -> 5.8 | S6: =INDEX($AB$3:$DS$33,$A6,12*Gegevens!$B$19-S$36)-(1*S$35) -> 6 | T6: =INDEX($AB$3:$DS$33,$A6,12*Gegevens!$B$19-T$36)-(1*T$35) -> 18.7 | U6: =INDEX($AB$3:$DS$33,$A6,12*Gegevens!$B$19-U$36)-(1*U$35) -> 19 | V6: =INDEX($AB$3:$DS$33,$A6,12*Gegevens!$B$19-V$36)-(1*V$35) -> 20.8 | W6: =INDEX($AB$3:$DS$33,$A6,12*Gegevens!$B$19-W$36)-(1*W$35) -> 15.7 | X6: =INDEX($AB$3:$DS$33,$A6,12*Gegevens!$B$19-X$36)-(1*X$35) -> 12.1 | Y6: =INDEX($AB$3:$DS$33,$A6,12*Gegevens!$B$19-Y$36)-(1*Y$35) -> 10.2 | Z6: =INDEX($AB$3:$DS$33,$A6,12*Gegevens!$B$19-Z$36)-(1*Z$35) -> 2.4 | AB6: 3.1 | AC6: 1.6 | AD6: 8.4 | AE6: 5.8 | AF6: 6 | AG6: 18.7 | AH6: 19 | AI6: 20.8 | AJ6: 15.7 | AK6: 12.1 | AL6: 10.2 | AM6: 2.4 | AN6: 8.5 | AO6: 0.8 | AP6: 6.4 | AQ6: 10.6 | AR6: 12.8 | AS6: 19.9 | AT6: 22.8 | AU6: 23.7 | AV6: 19.8 | AW6: 14.2 | AX6: 7.8 | AY6: 6.3 | AZ6: 3.4 | BA6: 5.2 | BB6: 9.4 | BC6: 10.8 | BD6: 11 | BE6: 15.5 | BF6: 17.9 | BG6: 18.9 | BH6: 15.9 | BI6: 12.2 | BJ6: 10.9 | BK6: 4.8 | BL6: 6.7 | BM6: 5.4 | BN6: 2.9 | BO6: 12.3 | BP6: 10.4 | BQ6: 14.2 | BR6: 16.9 | BS6: 16.4 | BT6: 17.4 | BU6: 11.7 | BV6: 6.8 | BW6: 0.2 | BX6: 1.7 | BY6: 1.1 | BZ6: 4.1 | CA6: 5.6 | CB6: 15.7 | CC6: 14.8 | CD6: 27 | CE6: 18.1 | CF6: 13.1 | CG6: 12.6 | CH6: 13.2 | CI6: 8.8 | CJ6: 7.9 | CK6: 6.3 | CL6: 5.6 | CM6: 13 | CN6: 9.8 | CO6: 12.8 | CP6: 21.1 | CQ6: 18.5 | CR6: 17.7 | CS6: 16.3 | CT6: 8.6 | CU6: 0.1 | CV6: 9.1 | CW6: 7.5 | CX6: 6.1 | CY6: 3.7 | CZ6: 11.2 | DA6: 12.9 | DB6: 16.4 | DC6: 20.8 | DD6: 21.4 | DE6: 17.4 | DF6: 8.8 | DG6: 4.6 | DH6: 6.6 | DI6: -9.3 | DJ6: 8 | DK6: 8.9 | DL6: 11 | DM6: 9.5 | DN6: 21.9 | DO6: 18.1 | DP6: 18.3 | DQ6: 11.5 | DR6: 7.3 | DS6: 3.7 | DW6: 4557 - Scry | DX6: Scry | DY6: y = 1.0746x + 22.081 | EA6: 1.0746 | EB6: 22.081 | EC6: 0.9985 | EE6: 2016 | EF6: 315.5 | EG6: 304.4 | EH6: 301.7 | EI6: 195.5 | EJ6: 58.5 | EK6: 11.4 | EL6: 4 | EM6: 5.7 | EN6: 4 | EO6: 163.4 | EP6: 266.6 | EQ6: 319.2 | ER6: 1949.9
A7: 5 | B7: =IF(O7>Gegevens!$F$23,0,Gegevens!$F$23-O7) -> 10.2 | C7: =IF(P7>Gegevens!$F$23,0,Gegevens!$F$23-P7) -> 11.7 | D7: =IF(Q7>Gegevens!$F$23,0,Gegevens!$F$23-Q7) -> 8 | E7: =IF(R7>Gegevens!$F$23,0,Gegevens!$F$23-R7) -> 6.7 | F7: =IF(S7>Gegevens!$F$23,0,Gegevens!$F$23-S7) -> 8.7 | G7: =IF(T7>Gegevens!$F$23,0,Gegevens!$F$23-T7) -> 0.1 | H7: =IF(U7>Gegevens!$F$23,0,Gegevens!$F$23-U7) -> 0 | I7: =IF(V7>Gegevens!$F$23,0,Gegevens!$F$23-V7) -> 0 | J7: =IF(W7>Gegevens!$F$23,0,Gegevens!$F$23-W7) -> 2.1 | K7: =IF(X7>Gegevens!$F$23,0,Gegevens!$F$23-X7) -> 4.8 | L7: =IF(Y7>Gegevens!$F$23,0,Gegevens!$F$23-Y7) -> 6.7 | M7: =IF(Z7>Gegevens!$F$23,0,Gegevens!$F$23-Z7) -> 14.6 | O7: =INDEX($AB$3:$DS$33,$A7,12*Gegevens!$B$19-O$36)-(1*O$35) -> 4.8 | P7: =INDEX($AB$3:$DS$33,$A7,12*Gegevens!$B$19-P$36)-(1*P$35) -> 3.3 | Q7: =INDEX($AB$3:$DS$33,$A7,12*Gegevens!$B$19-Q$36)-(1*Q$35) -> 7 | R7: =INDEX($AB$3:$DS$33,$A7,12*Gegevens!$B$19-R$36)-(1*R$35) -> 8.3 | S7: =INDEX($AB$3:$DS$33,$A7,12*Gegevens!$B$19-S$36)-(1*S$35) -> 6.3 | T7: =INDEX($AB$3:$DS$33,$A7,12*Gegevens!$B$19-T$36)-(1*T$35) -> 14.9 | U7: =INDEX($AB$3:$DS$33,$A7,12*Gegevens!$B$19-U$36)-(1*U$35) -> 19 | V7: =INDEX($AB$3:$DS$33,$A7,12*Gegevens!$B$19-V$36)-(1*V$35) -> 21.4 | W7: =INDEX($AB$3:$DS$33,$A7,12*Gegevens!$B$19-W$36)-(1*W$35) -> 12.9 | X7: =INDEX($AB$3:$DS$33,$A7,12*Gegevens!$B$19-X$36)-(1*X$35) -> 10.2 | Y7: =INDEX($AB$3:$DS$33,$A7,12*Gegevens!$B$19-Y$36)-(1*Y$35) -> 8.3 | Z7: =INDEX($AB$3:$DS$33,$A7,12*Gegevens!$B$19-Z$36)-(1*Z$35) -> 0.4 | AB7: 4.8 | AC7: 3.3 | AD7: 7 | AE7: 8.3 | AF7: 6.3 | AG7: 14.9 | AH7: 19 | AI7: 21.4 | AJ7: 12.9 | AK7: 10.2 | AL7: 8.3 | AM7: 0.4 | AN7: 7.6 | AO7: 0 | AP7: 7.4 | AQ7: 6.7 | AR7: 16.3 | AS7: 16.6 | AT7: 21.1 | AU7: 22.3 | AV7: 19.6 | AW7: 14.6 | AX7: 10.5 | AY7: 7.9 | AZ7: 0.8 | BA7: 5.3 | BB7: 6.2 | BC7: 9 | BD7: 9.8 | BE7: 17 | BF7: 21 | BG7: 15.4 | BH7: 19.2 | BI7: 12.1 | BJ7: 6.7 | BK7: 5.3 | BL7: 6.5 | BM7: 8.7 | BN7: 2.3 | BO7: 10.5 | BP7: 13.5 | BQ7: 18 | BR7: 16.2 | BS7: 16.1 | BT7: 17.7 | BU7: 9.7 | BV7: 7 | BW7: 1.3 | BX7: 1 | BY7: -1 | BZ7: 4 | CA7: 6.1 | CB7: 16.3 | CC7: 17.2 | CD7: 20.5 | CE7: 20.3 | CF7: 12.5 | CG7: 14.1 | CH7: 14.3 | CI7: 6.9 | CJ7: 7.7 | CK7: 7.4 | CL7: 6.4 | CM7: 12.2 | CN7: 14 | CO7: 12.6 | CP7: 18.9 | CQ7: 18.7 | CR7: 20 | CS7: 12.1 | CT7: 7.4 | CU7: 3.6 | CV7: 8.5 | CW7: 3.5 | CX7: 11.2 | CY7: 2.7 | CZ7: 13 | DA7: 17.2 | DB7: 17.1 | DC7: 22.4 | DD7: 24.3 | DE7: 14.9 | DF7: 6.5 | DG7: 4 | DH7: 7.5 | DI7: -6.5 | DJ7: 1.8 | DK7: 7 | DL7: 7.9 | DM7: 10.4 | DN7: 19.9 | DO7: 18.6 | DP7: 17.1 | DQ7: 14.1 | DR7: 5.8 | DS7: 1.6 | DW7: 4780 - St Vith | DX7: St Vith | DY7: y = 1.1506x + 50.76 | EA7: 1.1506 | EB7: 50.76 | EC7: 0.9937 | EE7: 2015 | EF7: 356.5 | EG7: 328 | EH7: 259.9 | EI7: 153.2 | EJ7: 67.3 | EK7: 16.4 | EL7: 3 | EM7: 1.8 | EN7: 47.4 | EO7: 148.3 | EP7: 150.7 | EQ7: 166 | ER7: 1698.5
A8: 6 | B8: =IF(O8>Gegevens!$F$23,0,Gegevens!$F$23-O8) -> 10.9 | C8: =IF(P8>Gegevens!$F$23,0,Gegevens!$F$23-P8) -> 9.6 | D8: =IF(Q8>Gegevens!$F$23,0,Gegevens!$F$23-Q8) -> 4.9 | E8: =IF(R8>Gegevens!$F$23,0,Gegevens!$F$23-R8) -> 4.4 | F8: =IF(S8>Gegevens!$F$23,0,Gegevens!$F$23-S8) -> 8.4 | G8: =IF(T8>Gegevens!$F$23,0,Gegevens!$F$23-T8) -> 2.1 | H8: =IF(U8>Gegevens!$F$23,0,Gegevens!$F$23-U8) -> 0 | I8: =IF(V8>Gegevens!$F$23,0,Gegevens!$F$23-V8) -> 0 | J8: =IF(W8>Gegevens!$F$23,0,Gegevens!$F$23-W8) -> 1.6 | K8: =IF(X8>Gegevens!$F$23,0,Gegevens!$F$23-X8) -> 3.5 | L8: =IF(Y8>Gegevens!$F$23,0,Gegevens!$F$23-Y8) -> 6.5 | M8: =IF(Z8>Gegevens!$F$23,0,Gegevens!$F$23-Z8) -> 10.2 | O8: =INDEX($AB$3:$DS$33,$A8,12*Gegevens!$B$19-O$36)-(1*O$35) -> 4.1 | P8: =INDEX($AB$3:$DS$33,$A8,12*Gegevens!$B$19-P$36)-(1*P$35) -> 5.4 | Q8: =INDEX($AB$3:$DS$33,$A8,12*Gegevens!$B$19-Q$36)-(1*Q$35) -> 10.1 | R8: =INDEX($AB$3:$DS$33,$A8,12*Gegevens!$B$19-R$36)-(1*R$35) -> 10.6 | S8: =INDEX($AB$3:$DS$33,$A8,12*Gegevens!$B$19-S$36)-(1*S$35) -> 6.6 | T8: =INDEX($AB$3:$DS$33,$A8,12*Gegevens!$B$19-T$36)-(1*T$35) -> 12.9 | U8: =INDEX($AB$3:$DS$33,$A8,12*Gegevens!$B$19-U$36)-(1*U$35) -> 19 | V8: =INDEX($AB$3:$DS$33,$A8,12*Gegevens!$B$19-V$36)-(1*V$35) -> 19.7 | W8: =INDEX($AB$3:$DS$33,$A8,12*Gegevens!$B$19-W$36)-(1*W$35) -> 13.4 | X8: =INDEX($AB$3:$DS$33,$A8,12*Gegevens!$B$19-X$36)-(1*X$35) -> 11.5 | Y8: =INDEX($AB$3:$DS$33,$A8,12*Gegevens!$B$19-Y$36)-(1*Y$35) -> 8.5 | Z8: =INDEX($AB$3:$DS$33,$A8,12*Gegevens!$B$19-Z$36)-(1*Z$35) -> 4.8 | AB8: 4.1 | AC8: 5.4 | AD8: 10.1 | AE8: 10.6 | AF8: 6.6 | AG8: 12.9 | AH8: 19 | AI8: 19.7 | AJ8: 13.4 | AK8: 11.5 | AL8: 8.5 | AM8: 4.8 | AN8: 5.3 | AO8: -1.3 | AP8: 7.6 | AQ8: 10.1 | AR8: 19.2 | AS8: 20.7 | AT8: 22.1 | AU8: 25.4 | AV8: 17.8 | AW8: 17.1 | AX8: 14.9 | AY8: 11.3 | AZ8: -2.8 | BA8: 5.5 | BB8: 5.7 | BC8: 7.3 | BD8: 13.2 | BE8: 14.3 | BF8: 21.4 | BG8: 16 | BH8: 16.1 | BI8: 10.5 | BJ8: 5.3 | BK8: 6.5 | BL8: 6.7 | BM8: 9.6 | BN8: 2.5 | BO8: 8.5 | BP8: 16.7 | BQ8: 19.4 | BR8: 15.8 | BS8: 16.4 | BT8: 18.7 | BU8: 8.4 | BV8: 4.8 | BW8: 5.1 | BX8: 0.1 | BY8: -0.7 | BZ8: 5.4 | CA8: 5 | CB8: 12.4 | CC8: 22.2 | CD8: 19.4 | CE8: 22.8 | CF8: 12.1 | CG8: 16 | CH8: 15.6 | CI8: 9.8 | CJ8: 11.6 | CK8: 7.3 | CL8: 7.5 | CM8: 14.1 | CN8: 14.7 | CO8: 18.1 | CP8: 17.8 | CQ8: 17.5 | CR8: 17.7 | CS8: 12.6 | CT8: 6.9 | CU8: 4.6 | CV8: 7.2 | CW8: 2.2 | CX8: 13.1 | CY8: 4 | CZ8: 14.8 | DA8: 20.2 | DB8: 20.8 | DC8: 18.7 | DD8: 19.9 | DE8: 13.9 | DF8: 11.1 | DG8: 3.2 | DH8: 5.2 | DI8: -4.6 | DJ8: 3.7 | DK8: 6.7 | DL8: 8 | DM8: 14.3 | DN8: 18.1 | DO8: 16.6 | DP8: 14.6 | DQ8: 12.3 | DR8: 6 | DS8: 0.3 | DW8: 4890 - Thimister | DX8: Thimister | DY8: y = 1.0777x + 15.305 | EA8: 1.0777 | EB8: 15.305 | EC8: 0.9993 | EE8: 2014 | EF8: 274.8 | EG8: 235 | EH8: 179.9 | EI8: 82.1 | EJ8: 63.5 | EK8: 7.7 | EL8: 1.7 | EM8: 13 | EN8: 9.3 | EO8: 57.5 | EP8: 185.7 | EQ8: 330 | ER8: 1440.2
A9: 7 | B9: =IF(O9>Gegevens!$F$23,0,Gegevens!$F$23-O9) -> 8.9 | C9: =IF(P9>Gegevens!$F$23,0,Gegevens!$F$23-P9) -> 7.3 | D9: =IF(Q9>Gegevens!$F$23,0,Gegevens!$F$23-Q9) -> 6.6 | E9: =IF(R9>Gegevens!$F$23,0,Gegevens!$F$23-R9) -> 2.1 | F9: =IF(S9>Gegevens!$F$23,0,Gegevens!$F$23-S9) -> 5.7 | G9: =IF(T9>Gegevens!$F$23,0,Gegevens!$F$23-T9) -> 0.7 | H9: =IF(U9>Gegevens!$F$23,0,Gegevens!$F$23-U9) -> 0 | I9: =IF(V9>Gegevens!$F$23,0,Gegevens!$F$23-V9) -> 0 | J9: =IF(W9>Gegevens!$F$23,0,Gegevens!$F$23-W9) -> 1.3 | K9: =IF(X9>Gegevens!$F$23,0,Gegevens!$F$23-X9) -> 4.1 | L9: =IF(Y9>Gegevens!$F$23,0,Gegevens!$F$23-Y9) -> 7.8 | M9: =IF(Z9>Gegevens!$F$23,0,Gegevens!$F$23-Z9) -> 6.3 | O9: =INDEX($AB$3:$DS$33,$A9,12*Gegevens!$B$19-O$36)-(1*O$35) -> 6.1 | P9: =INDEX($AB$3:$DS$33,$A9,12*Gegevens!$B$19-P$36)-(1*P$35) -> 7.7 | Q9: =INDEX($AB$3:$DS$33,$A9,12*Gegevens!$B$19-Q$36)-(1*Q$35) -> 8.4 | R9: =INDEX($AB$3:$DS$33,$A9,12*Gegevens!$B$19-R$36)-(1*R$35) -> 12.9 | S9: =INDEX($AB$3:$DS$33,$A9,12*Gegevens!$B$19-S$36)-(1*S$35) -> 9.3 | T9: =INDEX($AB$3:$DS$33,$A9,12*Gegevens!$B$19-T$36)-(1*T$35) -> 14.3 | U9: =INDEX($AB$3:$DS$33,$A9,12*Gegevens!$B$19-U$36)-(1*U$35) -> 19 | V9: =INDEX($AB$3:$DS$33,$A9,12*Gegevens!$B$19-V$36)-(1*V$35) -> 19.3 | W9: =INDEX($AB$3:$DS$33,$A9,12*Gegevens!$B$19-W$36)-(1*W$35) -> 13.7 | X9: =INDEX($AB$3:$DS$33,$A9,12*Gegevens!$B$19-X$36)-(1*X$35) -> 10.9 | Y9: =INDEX($AB$3:$DS$33,$A9,12*Gegevens!$B$19-Y$36)-(1*Y$35) -> 7.2 | Z9: =INDEX($AB$3:$DS$33,$A9,12*Gegevens!$B$19-Z$36)-(1*Z$35) -> 8.7 | AB9: 6.1 | AC9: 7.7 | AD9: 8.4 | AE9: 12.9 | AF9: 9.3 | AG9: 14.3 | AH9: 19 | AI9: 19.3 | AJ9: 13.7 | AK9: 10.9 | AL9: 7.2 | AM9: 8.7 | AN9: 3 | AO9: -1.3 | AP9: 5.6 | AQ9: 15.7 | AR9: 19.2 | AS9: 20.9 | AT9: 22 | AU9: 26.9 | AV9: 14.5 | AW9: 12.1 | AX9: 10.7 | AY9: 9.3 | AZ9: -1.6 | BA9: 5.1 | BB9: 6.4 | BC9: 9 | BD9: 11.2 | BE9: 14.1 | BF9: 23 | BG9: 17.6 | BH9: 14.9 | BI9: 10.3 | BJ9: 4.2 | BK9: 4.8 | BL9: 6.3 | BM9: 8.1 | BN9: 1.3 | BO9: 7.4 | BP9: 19.3 | BQ9: 19.4 | BR9: 17.7 | BS9: 18.7 | BT9: 19.6 | BU9: 10.7 | BV9: 4.2 | BW9: 7.6 | BX9: 3.2 | BY9: 1.3 | BZ9: 8.7 | CA9: 7.9 | CB9: 11.9 | CC9: 15.7 | CD9: 20.5 | CE9: 21.7 | CF9: 13.4 | CG9: 13.5 | CH9: 17.3 | CI9: 10.7 | CJ9: 10.7 | CK9: 7.8 | CL9: 9.1 | CM9: 16.3 | CN9: 12.1 | CO9: 22.1 | CP9: 16.9 | CQ9: 19 | CR9: 16.9 | CS9: 12.1 | CT9: 8.6 | CU9: 2.7 | CV9: 7.8 | CW9: 1.4 | CX9: 11 | CY9: 5.8 | CZ9: 15.1 | DA9: 20.9 | DB9: 22.3 | DC9: 15.8 | DD9: 17.1 | DE9: 13.3 | DF9: 11.6 | DG9: 5.8 | DH9: 7.2 | DI9: -8.2 | DJ9: 3.9 | DK9: 5.7 | DL9: 10.9 | DM9: 17 | DN9: 18.2 | DO9: 15.6 | DP9: 16.3 | DQ9: 9.6 | DR9: 9.4 | DS9: 1.1 | DW9: 4970 - Francorchamps | DX9: Francorchamps | DY9: y = 1.1692x + 65.585 | EA9: 1.1692 | EB9: 65.585 | EC9: 0.993 | EE9: 2013 | EF9: 389.6 | EG9: 381.3 | EH9: 370.3 | EI9: 187.8 | EJ9: 119.8 | EK9: 25.5 | EL9: 0 | EM9: 0 | EN9: 39.1 | EO9: 77.2 | EP9: 257.2 | EQ9: 277 | ER9: 2124.8
A10: 8 | B10: =IF(O10>Gegevens!$F$23,0,Gegevens!$F$23-O10) -> 8.7 | C10: =IF(P10>Gegevens!$F$23,0,Gegevens!$F$23-P10) -> 7.3 | D10: =IF(Q10>Gegevens!$F$23,0,Gegevens!$F$23-Q10) -> 7.1 | E10: =IF(R10>Gegevens!$F$23,0,Gegevens!$F$23-R10) -> 5.3 | F10: =IF(S10>Gegevens!$F$23,0,Gegevens!$F$23-S10) -> 5 | G10: =IF(T10>Gegevens!$F$23,0,Gegevens!$F$23-T10) -> 1.2 | H10: =IF(U10>Gegevens!$F$23,0,Gegevens!$F$23-U10) -> 0 | I10: =IF(V10>Gegevens!$F$23,0,Gegevens!$F$23-V10) -> 0 | J10: =IF(W10>Gegevens!$F$23,0,Gegevens!$F$23-W10) -> 1.9 | K10: =IF(X10>Gegevens!$F$23,0,Gegevens!$F$23-X10) -> 2.1 | L10: =IF(Y10>Gegevens!$F$23,0,Gegevens!$F$23-Y10) -> 9.7 | M10: =IF(Z10>Gegevens!$F$23,0,Gegevens!$F$23-Z10) -> 6 | O10: =INDEX($AB$3:$DS$33,$A10,12*Gegevens!$B$19-O$36)-(1*O$35) -> 6.3 | P10: =INDEX($AB$3:$DS$33,$A10,12*Gegevens!$B$19-P$36)-(1*P$35) -> 7.7 | Q10: =INDEX($AB$3:$DS$33,$A10,12*Gegevens!$B$19-Q$36)-(1*Q$35) -> 7.9 | R10: =INDEX($AB$3:$DS$33,$A10,12*Gegevens!$B$19-R$36)-(1*R$35) -> 9.7 | S10: =INDEX($AB$3:$DS$33,$A10,12*Gegevens!$B$19-S$36)-(1*S$35) -> 10 | T10: =INDEX($AB$3:$DS$33,$A10,12*Gegevens!$B$19-T$36)-(1*T$35) -> 13.8 | U10: =INDEX($AB$3:$DS$33,$A10,12*Gegevens!$B$19-U$36)-(1*U$35) -> 19 | V10: =INDEX($AB$3:$DS$33,$A10,12*Gegevens!$B$19-V$36)-(1*V$35) -> 18.8 | W10: =INDEX($AB$3:$DS$33,$A10,12*Gegevens!$B$19-W$36)-(1*W$35) -> 13.1 | X10: =INDEX($AB$3:$DS$33,$A10,12*Gegevens!$B$19-X$36)-(1*X$35) -> 12.9 | Y10: =INDEX($AB$3:$DS$33,$A10,12*Gegevens!$B$19-Y$36)-(1*Y$35) -> 5.3 | Z10: =INDEX($AB$3:$DS$33,$A10,12*Gegevens!$B$19-Z$36)-(1*Z$35) -> 9 | AB10: 6.3 | AC10: 7.7 | AD10: 7.9 | AE10: 9.7 | AF10: 10 | AG10: 13.8 | AH10: 19 | AI10: 18.8 | AJ10: 13.1 | AK10: 12.9 | AL10: 5.3 | AM10: 9 | AN10: 3 | AO10: -0.8 | AP10: 5 | AQ10: 17.2 | AR10: 20.8 | AS10: 19 | AT10: 20.9 | AU10: 19.7 | AV10: 14.6 | AW10: 10.3 | AX10: 9.3 | AY10: 8.6 | AZ10: 2.8 | BA10: 3.5 | BB10: 7.8 | BC10: 10.4 | BD10: 9.4 | BE10: 18.7 | BF10: 20.1 | BG10: 15.6 | BH10: 14.9 | BI10: 12.2 | BJ10: 5.1 | BK10: 2.3 | BL10: 5.1 | BM10: 7.9 | BN10: 2.8 | BO10: 7.3 | BP10: 19.8 | BQ10: 17.4 | BR10: 18.7 | BS10: 16.8 | BT10: 19.4 | BU10: 10.2 | BV10: 2.7 | BW10: 7.1 | BX10: 6.4 | BY10: 4.2 | BZ10: 10.8 | CA10: 8.6 | CB10: 15.3 | CC10: 14.1 | CD10: 15.2 | CE10: 20.4 | CF10: 14.7 | CG10: 11.7 | CH10: 14.5 | CI10: 10 | CJ10: 9.6 | CK10: 6.9 | CL10: 11.8 | CM10: 9.4 | CN10: 11.7 | CO10: 21.5 | CP10: 14.4 | CQ10: 18.8 | CR10: 16.4 | CS10: 13.5 | CT10: 10.2 | CU10: 2.1 | CV10: 7.2 | CW10: 0.7 | CX10: 11.3 | CY10: 6.1 | CZ10: 14.1 | DA10: 17.3 | DB10: 22 | DC10: 16.8 | DD10: 15.9 | DE10: 14.2 | DF10: 9.3 | DG10: 7.1 | DH10: 6 | DI10: -4.5 | DJ10: 4.6 | DK10: 6 | DL10: 14.4 | DM10: 15.2 | DN10: 16.2 | DO10: 15.9 | DP10: 18 | DQ10: 9.6 | DR10: 9.2 | DS10: -0.2 | DW10: 5020 - Malonne | DX10: Malonne | DY10: y = 1.0146x + 11.841 | EA10: 1.0146 | EB10: 11.841 | EC10: 0.9989 | EE10: 2012 | EF10: 307.7 | EG10: 416.3 | EH10: 188.1 | EI10: 199.8 | EJ10: 68.2 | EK10: 27.1 | EL10: 3.8 | EM10: 1.2 | EN10: 40.7 | EO10: 127.5 | EP10: 237.1 | EQ10: 306.1 | ER10: =SUM(EF10:EQ10) -> 1923.6
A11: 9 | B11: =IF(O11>Gegevens!$F$23,0,Gegevens!$F$23-O11) -> 10.9 | C11: =IF(P11>Gegevens!$F$23,0,Gegevens!$F$23-P11) -> 7 | D11: =IF(Q11>Gegevens!$F$23,0,Gegevens!$F$23-Q11) -> 5.5 | E11: =IF(R11>Gegevens!$F$23,0,Gegevens!$F$23-R11) -> 5.4 | F11: =IF(S11>Gegevens!$F$23,0,Gegevens!$F$23-S11) -> 4 | G11: =IF(T11>Gegevens!$F$23,0,Gegevens!$F$23-T11) -> 0.2 | H11: =IF(U11>Gegevens!$F$23,0,Gegevens!$F$23-U11) -> 0 | I11: =IF(V11>Gegevens!$F$23,0,Gegevens!$F$23-V11) -> 0 | J11: =IF(W11>Gegevens!$F$23,0,Gegevens!$F$23-W11) -> 3 | K11: =IF(X11>Gegevens!$F$23,0,Gegevens!$F$23-X11) -> 3.8 | L11: =IF(Y11>Gegevens!$F$23,0,Gegevens!$F$23-Y11) -> 9.8 | M11: =IF(Z11>Gegevens!$F$23,0,Gegevens!$F$23-Z11) -> 8.7 | O11: =INDEX($AB$3:$DS$33,$A11,12*Gegevens!$B$19-O$36)-(1*O$35) -> 4.1 | P11: =INDEX($AB$3:$DS$33,$A11,12*Gegevens!$B$19-P$36)-(1*P$35) -> 8 | Q11: =INDEX($AB$3:$DS$33,$A11,12*Gegevens!$B$19-Q$36)-(1*Q$35) -> 9.5 | R11: =INDEX($AB$3:$DS$33,$A11,12*Gegevens!$B$19-R$36)-(1*R$35) -> 9.6 | S11: =INDEX($AB$3:$DS$33,$A11,12*Gegevens!$B$19-S$36)-(1*S$35) -> 11 | T11: =INDEX($AB$3:$DS$33,$A11,12*Gegevens!$B$19-T$36)-(1*T$35) -> 14.8 | U11: =INDEX($AB$3:$DS$33,$A11,12*Gegevens!$B$19-U$36)-(1*U$35) -> 16.1 | V11: =INDEX($AB$3:$DS$33,$A11,12*Gegevens!$B$19-V$36)-(1*V$35) -> 21.5 | W11: =INDEX($AB$3:$DS$33,$A11,12*Gegevens!$B$19-W$36)-(1*W$35) -> 12 | X11: =INDEX($AB$3:$DS$33,$A11,12*Gegevens!$B$19-X$36)-(1*X$35) -> 11.2 | Y11: =INDEX($AB$3:$DS$33,$A11,12*Gegevens!$B$19-Y$36)-(1*Y$35) -> 5.2 | Z11: =INDEX($AB$3:$DS$33,$A11,12*Gegevens!$B$19-Z$36)-(1*Z$35) -> 6.3 | AB11: 4.1 | AC11: 8 | AD11: 9.5 | AE11: 9.6 | AF11: 11 | AG11: 14.8 | AH11: 16.1 | AI11: 21.5 | AJ11: 12 | AK11: 11.2 | AL11: 5.2 | AM11: 6.3 | AN11: 4.4 | AO11: -0.3 | AP11: 6.9 | AQ11: 14.1 | AR11: 17.7 | AS11: 19.4 | AT11: 19.8 | AU11: 17.5 | AV11: 18 | AW11: 13 | AX11: 9.6 | AY11: 8 | AZ11: 4.3 | BA11: 0.7 | BB11: 10.2 | BC11: 14.5 | BD11: 9.6 | BE11: 16.8 | BF11: 20.1 | BG11: 16.5 | BH11: 13 | BI11: 13.1 | BJ11: 7.4 | BK11: 0.5 | BL11: 6.2 | BM11: 4.5 | BN11: 4.8 | BO11: 9.6 | BP11: 19.2 | BQ11: 15.9 | BR11: 19.7 | BS11: 14.6 | BT11: 16.7 | BU11: 8.1 | BV11: 4.1 | BW11: 8.6 | BX11: 9.6 | BY11: 3.1 | BZ11: 9.2 | CA11: 12.1 | CB11: 14.7 | CC11: 13.2 | CD11: 15.2 | CE11: 19.2 | CF11: 15.3 | CG11: 10.6 | CH11: 14.2 | CI11: 6.9 | CJ11: 9.4 | CK11: 5.6 | CL11: 12.9 | CM11: 9.5 | CN11: 12.9 | CO11: 21.5 | CP11: 13.9 | CQ11: 19 | CR11: 14.8 | CS11: 14.9 | CT11: 10.5 | CU11: 3.6 | CV11: 5.8 | CW11: -0.5 | CX11: 7.4 | CY11: 6.6 | CZ11: 12.7 | DA11: 14.3 | DB11: 20.9 | DC11: 17 | DD11: 12.8 | DE11: 13.7 | DF11: 8.3 | DG11: 5.8 | DH11: 8 | DI11: -4.6 | DJ11: 7.4 | DK11: 8.9 | DL11: 16.1 | DM11: 13.3 | DN11: 16.5 | DO11: 18.3 | DP11: 21.3 | DQ11: 10.4 | DR11: 8.9 | DS11: 3.8 | DW11: 5030 - Ernage | DX11: Ernage | DY11: y = 1.0229x + 23.05 | EA11: 1.0229 | EB11: 23.05 | EC11: 0.9982
A12: 10 | B12: =IF(O12>Gegevens!$F$23,0,Gegevens!$F$23-O12) -> 12 | C12: =IF(P12>Gegevens!$F$23,0,Gegevens!$F$23-P12) -> 8.3 | D12: =IF(Q12>Gegevens!$F$23,0,Gegevens!$F$23-Q12) -> 7.3 | E12: =IF(R12>Gegevens!$F$23,0,Gegevens!$F$23-R12) -> 6.5 | F12: =IF(S12>Gegevens!$F$23,0,Gegevens!$F$23-S12) -> 3.3 | G12: =IF(T12>Gegevens!$F$23,0,Gegevens!$F$23-T12) -> 0 | H12: =IF(U12>Gegevens!$F$23,0,Gegevens!$F$23-U12) -> 0 | I12: =IF(V12>Gegevens!$F$23,0,Gegevens!$F$23-V12) -> 0 | J12: =IF(W12>Gegevens!$F$23,0,Gegevens!$F$23-W12) -> 0 | K12: =IF(X12>Gegevens!$F$23,0,Gegevens!$F$23-X12) -> 2.6 | L12: =IF(Y12>Gegevens!$F$23,0,Gegevens!$F$23-Y12) -> 10.7 | M12: =IF(Z12>Gegevens!$F$23,0,Gegevens!$F$23-Z12) -> 10.5 | O12: =INDEX($AB$3:$DS$33,$A12,12*Gegevens!$B$19-O$36)-(1*O$35) -> 3 | P12: =INDEX($AB$3:$DS$33,$A12,12*Gegevens!$B$19-P$36)-(1*P$35) -> 6.7 | Q12: =INDEX($AB$3:$DS$33,$A12,12*Gegevens!$B$19-Q$36)-(1*Q$35) -> 7.7 | R12: =INDEX($AB$3:$DS$33,$A12,12*Gegevens!$B$19-R$36)-(1*R$35) -> 8.5 | S12: =INDEX($AB$3:$DS$33,$A12,12*Gegevens!$B$19-S$36)-(1*S$35) -> 11.7 | T12: =INDEX($AB$3:$DS$33,$A12,12*Gegevens!$B$19-T$36)-(1*T$35) -> 16.4 | U12: =INDEX($AB$3:$DS$33,$A12,12*Gegevens!$B$19-U$36)-(1*U$35) -> 18.3 | V12: =INDEX($AB$3:$DS$33,$A12,12*Gegevens!$B$19-V$36)-(1*V$35) -> 20.6 | W12: =INDEX($AB$3:$DS$33,$A12,12*Gegevens!$B$19-W$36)-(1*W$35) -> 15.3 | X12: =INDEX($AB$3:$DS$33,$A12,12*Gegevens!$B$19-X$36)-(1*X$35) -> 12.4 | Y12: =INDEX($AB$3:$DS$33,$A12,12*Gegevens!$B$19-Y$36)-(1*Y$35) -> 4.3 | Z12: =INDEX($AB$3:$DS$33,$A12,12*Gegevens!$B$19-Z$36)-(1*Z$35) -> 4.5 | AB12: 3 | AC12: 6.7 | AD12: 7.7 | AE12: 8.5 | AF12: 11.7 | AG12: 16.4 | AH12: 18.3 | AI12: 20.6 | AJ12: 15.3 | AK12: 12.4 | AL12: 4.3 | AM12: 4.5 | AN12: 6.8 | AO12: 2.8 | AP12: 11.8 | AQ12: 13.8 | AR12: 12.4 | AS12: 20.7 | AT12: 15.3 | AU12: 17.3 | AV12: 17.8 | AW12: 16.2 | AX12: 11.5 | AY12: 4.9 | AZ12: 4.5 | BA12: -1.4 | BB12: 7 | BC12: 10.5 | BD12: 12.2 | BE12: 18.9 | BF12: 19.1 | BG12: 14.7 | BH12: 13 | BI12: 14.1 | BJ12: 8 | BK12: 3 | BL12: 6.4 | BM12: 3.7 | BN12: 4.8 | BO12: 10 | BP12: 16 | BQ12: 16.6 | BR12: 22.1 | BS12: 12.1 | BT12: 19.1 | BU12: 8 | BV12: 6.5 | BW12: 7.3 | BX12: 10 | BY12: 5 | BZ12: 8.9 | CA12: 15.2 | CB12: 14.5 | CC12: 12.4 | CD12: 17.9 | CE12: 20.1 | CF12: 14.7 | CG12: 10.6 | CH12: 13 | CI12: 4.4 | CJ12: 5.4 | CK12: 4.9 | CL12: 11.8 | CM12: 11.2 | CN12: 11.1 | CO12: 19.4 | CP12: 16.6 | CQ12: 18.6 | CR12: 14.7 | CS12: 14 | CT12: 9.5 | CU12: 6.2 | CV12: 4.9 | CW12: -0.2 | CX12: 1.1 | CY12: 7.5 | CZ12: 11.6 | DA12: 13 | DB12: 18.2 | DC12: 15.8 | DD12: 11.7 | DE12: 8.2 | DF12: 5.4 | DG12: 4.7 | DH12: 8.9 | DI12: -5 | DJ12: 9.2 | DK12: 8.2 | DL12: 20.3 | DM12: 13.4 | DN12: 15.5 | DO12: 17.2 | DP12: 19.8 | DQ12: 8.4 | DR12: 10.4 | DS12: 3.1 | DW12: 5540 - Hastière | DX12: Hastière | DY12: y = 1.0408x + 12.367 | EA12: 1.0408 | EB12: 12.367 | EC12: 0.9977
A13: 11 | B13: =IF(O13>Gegevens!$F$23,0,Gegevens!$F$23-O13) -> 10.2 | C13: =IF(P13>Gegevens!$F$23,0,Gegevens!$F$23-P13) -> 11.1 | D13: =IF(Q13>Gegevens!$F$23,0,Gegevens!$F$23-Q13) -> 9.9 | E13: =IF(R13>Gegevens!$F$23,0,Gegevens!$F$23-R13) -> 8.5 | F13: =IF(S13>Gegevens!$F$23,0,Gegevens!$F$23-S13) -> 3.9 | G13: =IF(T13>Gegevens!$F$23,0,Gegevens!$F$23-T13) -> 0.7 | H13: =IF(U13>Gegevens!$F$23,0,Gegevens!$F$23-U13) -> 0 | I13: =IF(V13>Gegevens!$F$23,0,Gegevens!$F$23-V13) -> 0 | J13: =IF(W13>Gegevens!$F$23,0,Gegevens!$F$23-W13) -> 0 | K13: =IF(X13>Gegevens!$F$23,0,Gegevens!$F$23-X13) -> 0.5 | L13: =IF(Y13>Gegevens!$F$23,0,Gegevens!$F$23-Y13) -> 9.5 | M13: =IF(Z13>Gegevens!$F$23,0,Gegevens!$F$23-Z13) -> 9.6 | O13: =INDEX($AB$3:$DS$33,$A13,12*Gegevens!$B$19-O$36)-(1*O$35) -> 4.8 | P13: =INDEX($AB$3:$DS$33,$A13,12*Gegevens!$B$19-P$36)-(1*P$35) -> 3.9 | Q13: =INDEX($AB$3:$DS$33,$A13,12*Gegevens!$B$19-Q$36)-(1*Q$35) -> 5.1 | R13: =INDEX($AB$3:$DS$33,$A13,12*Gegevens!$B$19-R$36)-(1*R$35) -> 6.5 | S13: =INDEX($AB$3:$DS$33,$A13,12*Gegevens!$B$19-S$36)-(1*S$35) -> 11.1 | T13: =INDEX($AB$3:$DS$33,$A13,12*Gegevens!$B$19-T$36)-(1*T$35) -> 14.3 | U13: =INDEX($AB$3:$DS$33,$A13,12*Gegevens!$B$19-U$36)-(1*U$35) -> 20.2 | V13: =INDEX($AB$3:$DS$33,$A13,12*Gegevens!$B$19-V$36)-(1*V$35) -> 17.4 | W13: =INDEX($AB$3:$DS$33,$A13,12*Gegevens!$B$19-W$36)-(1*W$35) -> 15.5 | X13: =INDEX($AB$3:$DS$33,$A13,12*Gegevens!$B$19-X$36)-(1*X$35) -> 14.5 | Y13: =INDEX($AB$3:$DS$33,$A13,12*Gegevens!$B$19-Y$36)-(1*Y$35) -> 5.5 | Z13: =INDEX($AB$3:$DS$33,$A13,12*Gegevens!$B$19-Z$36)-(1*Z$35) -> 5.4 | AB13: 4.8 | AC13: 3.9 | AD13: 5.1 | AE13: 6.5 | AF13: 11.1 | AG13: 14.3 | AH13: 20.2 | AI13: 17.4 | AJ13: 15.5 | AK13: 14.5 | AL13: 5.5 | AM13: 5.4 | AN13: 6.6 | AO13: 3.7 | AP13: 12.1 | AQ13: 11.2 | AR13: 13.2 | AS13: 18.8 | AT13: 18 | AU13: 16.7 | AV13: 19.7 | AW13: 19.4 | AX13: 11.4 | AY13: 2.6 | AZ13: 6.1 | BA13: 0.1 | BB13: 8.5 | BC13: 9.1 | BD13: 15.1 | BE13: 22.3 | BF13: 17.7 | BG13: 16.6 | BH13: 13.8 | BI13: 14.3 | BJ13: 6.6 | BK13: 1 | BL13: 5.5 | BM13: 3.5 | BN13: 5.1 | BO13: 13.4 | BP13: 18.1 | BQ13: 17.2 | BR13: 17.9 | BS13: 12.6 | BT13: 18.9 | BU13: 8.4 | BV13: 2.8 | BW13: 7.5 | BX13: 4.8 | BY13: 2.7 | BZ13: 5.1 | CA13: 11.1 | CB13: 19.5 | CC13: 16.2 | CD13: 21.1 | CE13: 20.3 | CF13: 15.2 | CG13: 8.1 | CH13: 12 | CI13: 6.4 | CJ13: 4.5 | CK13: 5.6 | CL13: 9.6 | CM13: 11.4 | CN13: 10.7 | CO13: 18.6 | CP13: 16.3 | CQ13: 15.9 | CR13: 15.2 | CS13: 12.1 | CT13: 10.4 | CU13: 6.6 | CV13: 4.1 | CW13: -0.9 | CX13: -2.3 | CY13: 10.6 | CZ13: 10.4 | DA13: 16 | DB13: 16.2 | DC13: 16.7 | DD13: 13.8 | DE13: 7.8 | DF13: 5.8 | DG13: 4.5 | DH13: 8.8 | DI13: -6.9 | DJ13: 10.2 | DK13: 7.3 | DL13: 14.7 | DM13: 15 | DN13: 15.2 | DO13: 17.9 | DP13: 16.1 | DQ13: 11.5 | DR13: 7 | DS13: -0.7 | DW13: 5550 - Sugny | DX13: Sugny | DY13: y = 1.1242x + 30.185 | EA13: 1.1242 | EB13: 30.185 | EC13: 0.997
A14: 12 | B14: =IF(O14>Gegevens!$F$23,0,Gegevens!$F$23-O14) -> 8.6 | C14: =IF(P14>Gegevens!$F$23,0,Gegevens!$F$23-P14) -> 11.5 | D14: =IF(Q14>Gegevens!$F$23,0,Gegevens!$F$23-Q14) -> 8.1 | E14: =IF(R14>Gegevens!$F$23,0,Gegevens!$F$23-R14) -> 9.8 | F14: =IF(S14>Gegevens!$F$23,0,Gegevens!$F$23-S14) -> 5.4 | G14: =IF(T14>Gegevens!$F$23,0,Gegevens!$F$23-T14) -> 1.3 | H14: =IF(U14>Gegevens!$F$23,0,Gegevens!$F$23-U14) -> 0 | I14: =IF(V14>Gegevens!$F$23,0,Gegevens!$F$23-V14) -> 0 | J14: =IF(W14>Gegevens!$F$23,0,Gegevens!$F$23-W14) -> 0 | K14: =IF(X14>Gegevens!$F$23,0,Gegevens!$F$23-X14) -> 0 | L14: =IF(Y14>Gegevens!$F$23,0,Gegevens!$F$23-Y14) -> 10.2 | M14: =IF(Z14>Gegevens!$F$23,0,Gegevens!$F$23-Z14) -> 11.1 | O14: =INDEX($AB$3:$DS$33,$A14,12*Gegevens!$B$19-O$36)-(1*O$35) -> 6.4 | P14: =INDEX($AB$3:$DS$33,$A14,12*Gegevens!$B$19-P$36)-(1*P$35) -> 3.5 | Q14: =INDEX($AB$3:$DS$33,$A14,12*Gegevens!$B$19-Q$36)-(1*Q$35) -> 6.9 | R14: =INDEX($AB$3:$DS$33,$A14,12*Gegevens!$B$19-R$36)-(1*R$35) -> 5.2 | S14: =INDEX($AB$3:$DS$33,$A14,12*Gegevens!$B$19-S$36)-(1*S$35) -> 9.6 | T14: =INDEX($AB$3:$DS$33,$A14,12*Gegevens!$B$19-T$36)-(1*T$35) -> 13.7 | U14: =INDEX($AB$3:$DS$33,$A14,12*Gegevens!$B$19-U$36)-(1*U$35) -> 17.8 | V14: =INDEX($AB$3:$DS$33,$A14,12*Gegevens!$B$19-V$36)-(1*V$35) -> 15.6 | W14: =INDEX($AB$3:$DS$33,$A14,12*Gegevens!$B$19-W$36)-(1*W$35) -> 19 | X14: =INDEX($AB$3:$DS$33,$A14,12*Gegevens!$B$19-X$36)-(1*X$35) -> 15.7 | Y14: =INDEX($AB$3:$DS$33,$A14,12*Gegevens!$B$19-Y$36)-(1*Y$35) -> 4.8 | Z14: =INDEX($AB$3:$DS$33,$A14,12*Gegevens!$B$19-Z$36)-(1*Z$35) -> 3.9 | AB14: 6.4 | AC14: 3.5 | AD14: 6.9 | AE14: 5.2 | AF14: 9.6 | AG14: 13.7 | AH14: 17.8 | AI14: 15.6 | AJ14: 19 | AK14: 15.7 | AL14: 4.8 | AM14: 3.9 | AN14: 6 | AO14: 2 | AP14: 9.9 | AQ14: 10 | AR14: 17.8 | AS14: 15.4 | AT14: 19.5 | AU14: 21.8 | AV14: 15.9 | AW14: 18.7 | AX14: 9.8 | AY14: 1.9 | AZ14: 4.5 | BA14: 2.9 | BB14: 10.2 | BC14: 9.9 | BD14: 16 | BE14: 15.5 | BF14: 16.3 | BG14: 15.8 | BH14: 14.2 | BI14: 14 | BJ14: 5.2 | BK14: 1 | BL14: 5.5 | BM14: 2.7 | BN14: 4.3 | BO14: 10.5 | BP14: 17.6 | BQ14: 16.3 | BR14: 15.7 | BS14: 17.6 | BT14: 22.2 | BU14: 8.1 | BV14: 2.2 | BW14: 6 | BX14: 8.1 | BY14: 1.8 | BZ14: 7.2 | CA14: 11.1 | CB14: 15.7 | CC14: 19.7 | CD14: 16.3 | CE14: 22.6 | CF14: 16.2 | CG14: 6.3 | CH14: 13.3 | CI14: 8.5 | CJ14: 3 | CK14: 5.5 | CL14: 10.5 | CM14: 10.6 | CN14: 10 | CO14: 17.9 | CP14: 16.3 | CQ14: 15 | CR14: 16.1 | CS14: 12.5 | CT14: 10.7 | CU14: 8.3 | CV14: 1.2 | CW14: -1.5 | CX14: -3.2 | CY14: 9.9 | CZ14: 9 | DA14: 18.6 | DB14: 15.4 | DC14: 16.9 | DD14: 13.5 | DE14: 7.5 | DF14: 7.3 | DG14: 1.7 | DH14: 7.4 | DI14: -5 | DJ14: 8.8 | DK14: 6.6 | DL14: 9.5 | DM14: 15.2 | DN14: 15 | DO14: 20.2 | DP14: 13 | DQ14: 12.2 | DR14: 6.2 | DS14: -1.4 | DW14: 5580 - Rochefort | DX14: Rochefort | DY14: y = 1.0735x + 34.322 | EA14: 1.0735 | EB14: 34.322 | EC14: 0.9955
A15: 13 | B15: =IF(O15>Gegevens!$F$23,0,Gegevens!$F$23-O15) -> 6.6 | C15: =IF(P15>Gegevens!$F$23,0,Gegevens!$F$23-P15) -> 11.4 | D15: =IF(Q15>Gegevens!$F$23,0,Gegevens!$F$23-Q15) -> 8.2 | E15: =IF(R15>Gegevens!$F$23,0,Gegevens!$F$23-R15) -> 11.2 | F15: =IF(S15>Gegevens!$F$23,0,Gegevens!$F$23-S15) -> 4 | G15: =IF(T15>Gegevens!$F$23,0,Gegevens!$F$23-T15) -> 1.1 | H15: =IF(U15>Gegevens!$F$23,0,Gegevens!$F$23-U15) -> 0 | I15: =IF(V15>Gegevens!$F$23,0,Gegevens!$F$23-V15) -> 0.9 | J15: =IF(W15>Gegevens!$F$23,0,Gegevens!$F$23-W15) -> 0 | K15: =IF(X15>Gegevens!$F$23,0,Gegevens!$F$23-X15) -> 0 | L15: =IF(Y15>Gegevens!$F$23,0,Gegevens!$F$23-Y15) -> 8.9 | M15: =IF(Z15>Gegevens!$F$23,0,Gegevens!$F$23-Z15) -> 9.5 | O15: =INDEX($AB$3:$DS$33,$A15,12*Gegevens!$B$19-O$36)-(1*O$35) -> 8.4 | P15: =INDEX($AB$3:$DS$33,$A15,12*Gegevens!$B$19-P$36)-(1*P$35) -> 3.6 | Q15: =INDEX($AB$3:$DS$33,$A15,12*Gegevens!$B$19-Q$36)-(1*Q$35) -> 6.8 | R15: =INDEX($AB$3:$DS$33,$A15,12*Gegevens!$B$19-R$36)-(1*R$35) -> 3.8 | S15: =INDEX($AB$3:$DS$33,$A15,12*Gegevens!$B$19-S$36)-(1*S$35) -> 11 | T15: =INDEX($AB$3:$DS$33,$A15,12*Gegevens!$B$19-T$36)-(1*T$35) -> 13.9 | U15: =INDEX($AB$3:$DS$33,$A15,12*Gegevens!$B$19-U$36)-(1*U$35) -> 17.2 | V15: =INDEX($AB$3:$DS$33,$A15,12*Gegevens!$B$19-V$36)-(1*V$35) -> 14.1 | W15: =INDEX($AB$3:$DS$33,$A15,12*Gegevens!$B$19-W$36)-(1*W$35) -> 17.8 | X15: =INDEX($AB$3:$DS$33,$A15,12*Gegevens!$B$19-X$36)-(1*X$35) -> 18.3 | Y15: =INDEX($AB$3:$DS$33,$A15,12*Gegevens!$B$19-Y$36)-(1*Y$35) -> 6.1 | Z15: =INDEX($AB$3:$DS$33,$A15,12*Gegevens!$B$19-Z$36)-(1*Z$35) -> 5.5 | AB15: 8.4 | AC15: 3.6 | AD15: 6.8 | AE15: 3.8 | AF15: 11 | AG15: 13.9 | AH15: 17.2 | AI15: 14.1 | AJ15: 17.8 | AK15: 18.3 | AL15: 6.1 | AM15: 5.5 | AN15: 3.3 | AO15: 2.1 | AP15: 5.9 | AQ15: 10.9 | AR15: 11.9 | AS15: 14.5 | AT15: 20 | AU15: 18.1 | AV15: 14.8 | AW15: 20.1 | AX15: 10.3 | AY15: 0.1 | AZ15: 1.5 | BA15: 3.8 | BB15: 7.7 | BC15: 9.4 | BD15: 14.6 | BE15: 16.6 | BF15: 16.1 | BG15: 17.2 | BH15: 14.8 | BI15: 15.9 | BJ15: 5.2 | BK15: 4.9 | BL15: 4.8 | BM15: 1.3 | BN15: 4.1 | BO15: 8.5 | BP15: 16.8 | BQ15: 15.3 | BR15: 13.4 | BS15: 18 | BT15: 24.1 | BU15: 7.8 | BV15: 4.6 | BW15: 6.2 | BX15: 8.4 | BY15: 6 | BZ15: 5.8 | CA15: 9.8 | CB15: 13.4 | CC15: 22.6 | CD15: 16.8 | CE15: 22.5 | CF15: 14.7 | CG15: 4.2 | CH15: 11.3 | CI15: 8.5 | CJ15: 6.9 | CK15: 4.9 | CL15: 11.5 | CM15: 10 | CN15: 10.1 | CO15: 18.4 | CP15: 17.7 | CQ15: 16.1 | CR15: 16.1 | CS15: 14.6 | CT15: 9.1 | CU15: 4 | CV15: -0.6 | CW15: -0.5 | CX15: -3.2 | CY15: 10.4 | CZ15: 11.1 | DA15: 16.2 | DB15: 17.5 | DC15: 15.4 | DD15: 13.9 | DE15: 8.2 | DF15: 5.9 | DG15: 2.9 | DH15: 4.1 | DI15: 0.8 | DJ15: 8.2 | DK15: 7.1 | DL15: 9.1 | DM15: 10.5 | DN15: 15.2 | DO15: 20.7 | DP15: 13.5 | DQ15: 8.7 | DR15: 7.9 | DS15: -0.5 | DW15: 5590 - Ciney | DX15: Ciney | DY15: y = 1.0465x + 27.731 | EA15: 1.0465 | EB15: 27.731 | EC15: 0.9966
A16: 14 | B16: =IF(O16>Gegevens!$F$23,0,Gegevens!$F$23-O16) -> 9.1 | C16: =IF(P16>Gegevens!$F$23,0,Gegevens!$F$23-P16) -> 8.2 | D16: =IF(Q16>Gegevens!$F$23,0,Gegevens!$F$23-Q16) -> 7 | E16: =IF(R16>Gegevens!$F$23,0,Gegevens!$F$23-R16) -> 10.6 | F16: =IF(S16>Gegevens!$F$23,0,Gegevens!$F$23-S16) -> 3.8 | G16: =IF(T16>Gegevens!$F$23,0,Gegevens!$F$23-T16) -> 0 | H16: =IF(U16>Gegevens!$F$23,0,Gegevens!$F$23-U16) -> 0 | I16: =IF(V16>Gegevens!$F$23,0,Gegevens!$F$23-V16) -> 0 | J16: =IF(W16>Gegevens!$F$23,0,Gegevens!$F$23-W16) -> 0 | K16: =IF(X16>Gegevens!$F$23,0,Gegevens!$F$23-X16) -> 0 | L16: =IF(Y16>Gegevens!$F$23,0,Gegevens!$F$23-Y16) -> 9.8 | M16: =IF(Z16>Gegevens!$F$23,0,Gegevens!$F$23-Z16) -> 8.7 | O16: =INDEX($AB$3:$DS$33,$A16,12*Gegevens!$B$19-O$36)-(1*O$35) -> 5.9 | P16: =INDEX($AB$3:$DS$33,$A16,12*Gegevens!$B$19-P$36)-(1*P$35) -> 6.8 | Q16: =INDEX($AB$3:$DS$33,$A16,12*Gegevens!$B$19-Q$36)-(1*Q$35) -> 8 | R16: =INDEX($AB$3:$DS$33,$A16,12*Gegevens!$B$19-R$36)-(1*R$35) -> 4.4 | S16: =INDEX($AB$3:$DS$33,$A16,12*Gegevens!$B$19-S$36)-(1*S$35) -> 11.2 | T16: =INDEX($AB$3:$DS$33,$A16,12*Gegevens!$B$19-T$36)-(1*T$35) -> 17.7 | U16: =INDEX($AB$3:$DS$33,$A16,12*Gegevens!$B$19-U$36)-(1*U$35) -> 15.8 | V16: =INDEX($AB$3:$DS$33,$A16,12*Gegevens!$B$19-V$36)-(1*V$35) -> 15.8 | W16: =INDEX($AB$3:$DS$33,$A16,12*Gegevens!$B$19-W$36)-(1*W$35) -> 16.1 | X16: =INDEX($AB$3:$DS$33,$A16,12*Gegevens!$B$19-X$36)-(1*X$35) -> 17.1 | Y16: =INDEX($AB$3:$DS$33,$A16,12*Gegevens!$B$19-Y$36)-(1*Y$35) -> 5.2 | Z16: =INDEX($AB$3:$DS$33,$A16,12*Gegevens!$B$19-Z$36)-(1*Z$35) -> 6.3 | AB16: 5.9 | AC16: 6.8 | AD16: 8 | AE16: 4.4 | AF16: 11.2 | AG16: 17.7 | AH16: 15.8 | AI16: 15.8 | AJ16: 16.1 | AK16: 17.1 | AL16: 5.2 | AM16: 6.3 | AN16: 3.3 | AO16: 2.4 | AP16: 8.3 | AQ16: 12.1 | AR16: 12.9 | AS16: 15.5 | AT16: 21.7 | AU16: 18.7 | AV16: 13.6 | AW16: 19.4 | AX16: 9 | AY16: -0.2 | AZ16: 0.9 | BA16: 7.2 | BB16: 8.5 | BC16: 8.3 | BD16: 14.5 | BE16: 19.5 | BF16: 16.2 | BG16: 19.3 | BH16: 11.4 | BI16: 16.1 | BJ16: 5.8 | BK16: 3.1 | BL16: 2.9 | BM16: 1.9 | BN16: 3.3 | BO16: 9.7 | BP16: 9.1 | BQ16: 14.9 | BR16: 14.2 | BS16: 17.2 | BT16: 24 | BU16: 9.4 | BV16: 4.6 | BW16: 7.6 | BX16: 4.3 | BY16: 6.7 | BZ16: 4.4 | CA16: 15.1 | CB16: 11.1 | CC16: 17.6 | CD16: 18.1 | CE16: 21.1 | CF16: 13.9 | CG16: 4.2 | CH16: 8.7 | CI16: 6.9 | CJ16: 5 | CK16: 5.9 | CL16: 10 | CM16: 8.6 | CN16: 9.8 | CO16: 16.2 | CP16: 18.2 | CQ16: 15.1 | CR16: 15.8 | CS16: 12.5 | CT16: 9.5 | CU16: 2.5 | CV16: -2.5 | CW16: -0.3 | CX16: -0.9 | CY16: 17.7 | CZ16: 9.8 | DA16: 14.2 | DB16: 19.6 | DC16: 16 | DD16: 14.6 | DE16: 9.9 | DF16: 5.8 | DG16: 5.8 | DH16: 3.3 | DI16: 3.9 | DJ16: 8.1 | DK16: 7.5 | DL16: 11.8 | DM16: 12.5 | DN16: 14.6 | DO16: 20.8 | DP16: 13.8 | DQ16: 7.3 | DR16: 6.9 | DS16: 6.6 | DW16: 5640 - St Gérard | DX16: St Gérard | DY16: y = 1.0354x + 27.502 | EA16: 1.0354 | EB16: 27.502 | EC16: 0.998
A17: 15 | B17: =IF(O17>Gegevens!$F$23,0,Gegevens!$F$23-O17) -> 9.7 | C17: =IF(P17>Gegevens!$F$23,0,Gegevens!$F$23-P17) -> 5 | D17: =IF(Q17>Gegevens!$F$23,0,Gegevens!$F$23-Q17) -> 5.1 | E17: =IF(R17>Gegevens!$F$23,0,Gegevens!$F$23-R17) -> 5.6 | F17: =IF(S17>Gegevens!$F$23,0,Gegevens!$F$23-S17) -> 2.7 | G17: =IF(T17>Gegevens!$F$23,0,Gegevens!$F$23-T17) -> 0 | H17: =IF(U17>Gegevens!$F$23,0,Gegevens!$F$23-U17) -> 0.2 | I17: =IF(V17>Gegevens!$F$23,0,Gegevens!$F$23-V17) -> 0 | J17: =IF(W17>Gegevens!$F$23,0,Gegevens!$F$23-W17) -> 0 | K17: =IF(X17>Gegevens!$F$23,0,Gegevens!$F$23-X17) -> 0.7 | L17: =IF(Y17>Gegevens!$F$23,0,Gegevens!$F$23-Y17) -> 11.5 | M17: =IF(Z17>Gegevens!$F$23,0,Gegevens!$F$23-Z17) -> 7.6 | O17: =INDEX($AB$3:$DS$33,$A17,12*Gegevens!$B$19-O$36)-(1*O$35) -> 5.3 | P17: =INDEX($AB$3:$DS$33,$A17,12*Gegevens!$B$19-P$36)-(1*P$35) -> 10 | Q17: =INDEX($AB$3:$DS$33,$A17,12*Gegevens!$B$19-Q$36)-(1*Q$35) -> 9.9 | R17: =INDEX($AB$3:$DS$33,$A17,12*Gegevens!$B$19-R$36)-(1*R$35) -> 9.4 | S17: =INDEX($AB$3:$DS$33,$A17,12*Gegevens!$B$19-S$36)-(1*S$35) -> 12.3 | T17: =INDEX($AB$3:$DS$33,$A17,12*Gegevens!$B$19-T$36)-(1*T$35) -> 16.2 | U17: =INDEX($AB$3:$DS$33,$A17,12*Gegevens!$B$19-U$36)-(1*U$35) -> 14.8 | V17: =INDEX($AB$3:$DS$33,$A17,12*Gegevens!$B$19-V$36)-(1*V$35) -> 17.5 | W17: =INDEX($AB$3:$DS$33,$A17,12*Gegevens!$B$19-W$36)-(1*W$35) -> 16.9 | X17: =INDEX($AB$3:$DS$33,$A17,12*Gegevens!$B$19-X$36)-(1*X$35) -> 14.3 | Y17: =INDEX($AB$3:$DS$33,$A17,12*Gegevens!$B$19-Y$36)-(1*Y$35) -> 3.5 | Z17: =INDEX($AB$3:$DS$33,$A17,12*Gegevens!$B$19-Z$36)-(1*Z$35) -> 7.4 | AB17: 5.3 | AC17: 10 | AD17: 9.9 | AE17: 9.4 | AF17: 12.3 | AG17: 16.2 | AH17: 14.8 | AI17: 17.5 | AJ17: 16.9 | AK17: 14.3 | AL17: 3.5 | AM17: 7.4 | AN17: 5.4 | AO17: 5.4 | AP17: 7 | AQ17: 13.6 | AR17: 17.4 | AS17: 17.7 | AT17: 23.2 | AU17: 18.3 | AV17: 15 | AW17: 18.3 | AX17: 9.5 | AY17: 0 | AZ17: 0.6 | BA17: 10.2 | BB17: 11.4 | BC17: 8.6 | BD17: 16 | BE17: 21.7 | BF17: 17.5 | BG17: 18.7 | BH17: 11.3 | BI17: 17.6 | BJ17: 7.9 | BK17: 2.9 | BL17: 1.9 | BM17: 2.8 | BN17: 4.8 | BO17: 11.3 | BP17: 8.8 | BQ17: 13.4 | BR17: 16.2 | BS17: 17.6 | BT17: 19.6 | BU17: 11.6 | BV17: 9.2 | BW17: 6.3 | BX17: 8.1 | BY17: 5.6 | BZ17: 5 | CA17: 17.5 | CB17: 11.2 | CC17: 16.7 | CD17: 18.3 | CE17: 16.7 | CF17: 13.5 | CG17: 4.3 | CH17: 13.3 | CI17: 8.5 | CJ17: 4.6 | CK17: 9.8 | CL17: 9 | CM17: 7.6 | CN17: 10.1 | CO17: 15.1 | CP17: 17.6 | CQ17: 14.5 | CR17: 17.6 | CS17: 13.1 | CT17: 9.1 | CU17: 4.5 | CV17: -1.7 | CW17: 3.9 | CX17: 0.9 | CY17: 13.8 | CZ17: 11.9 | DA17: 15.4 | DB17: 21 | DC17: 17.7 | DD17: 12.7 | DE17: 10.3 | DF17: 6.4 | DG17: 7.5 | DH17: 1.5 | DI17: 5.5 | DJ17: 11.2 | DK17: 6.5 | DL17: 7.7 | DM17: 16.6 | DN17: 14.2 | DO17: 23.3 | DP17: 14 | DQ17: 9.9 | DR17: 4.6 | DS17: 8.8 | DW17: 5670 - Dourbes | DX17: Dourbes | DY17: y = 1.0351x + 26.915 | EA17: 1.0351 | EB17: 26.915 | EC17: 0.9978
A18: 16 | B18: =IF(O18>Gegevens!$F$23,0,Gegevens!$F$23-O18) -> 9.5 | C18: =IF(P18>Gegevens!$F$23,0,Gegevens!$F$23-P18) -> 6.4 | D18: =IF(Q18>Gegevens!$F$23,0,Gegevens!$F$23-Q18) -> 4.6 | E18: =IF(R18>Gegevens!$F$23,0,Gegevens!$F$23-R18) -> 2.4 | F18: =IF(S18>Gegevens!$F$23,0,Gegevens!$F$23-S18) -> 2.4 | G18: =IF(T18>Gegevens!$F$23,0,Gegevens!$F$23-T18) -> 0 | H18: =IF(U18>Gegevens!$F$23,0,Gegevens!$F$23-U18) -> 0 | I18: =IF(V18>Gegevens!$F$23,0,Gegevens!$F$23-V18) -> 0 | J18: =IF(W18>Gegevens!$F$23,0,Gegevens!$F$23-W18) -> 0 | K18: =IF(X18>Gegevens!$F$23,0,Gegevens!$F$23-X18) -> 2.5 | L18: =IF(Y18>Gegevens!$F$23,0,Gegevens!$F$23-Y18) -> 11.1 | M18: =IF(Z18>Gegevens!$F$23,0,Gegevens!$F$23-Z18) -> 7.2 | O18: =INDEX($AB$3:$DS$33,$A18,12*Gegevens!$B$19-O$36)-(1*O$35) -> 5.5 | P18: =INDEX($AB$3:$DS$33,$A18,12*Gegevens!$B$19-P$36)-(1*P$35) -> 8.6 | Q18: =INDEX($AB$3:$DS$33,$A18,12*Gegevens!$B$19-Q$36)-(1*Q$35) -> 10.4 | R18: =INDEX($AB$3:$DS$33,$A18,12*Gegevens!$B$19-R$36)-(1*R$35) -> 12.6 | S18: =INDEX($AB$3:$DS$33,$A18,12*Gegevens!$B$19-S$36)-(1*S$35) -> 12.6 | T18: =INDEX($AB$3:$DS$33,$A18,12*Gegevens!$B$19-T$36)-(1*T$35) -> 16.5 | U18: =INDEX($AB$3:$DS$33,$A18,12*Gegevens!$B$19-U$36)-(1*U$35) -> 16.2 | V18: =INDEX($AB$3:$DS$33,$A18,12*Gegevens!$B$19-V$36)-(1*V$35) -> 17.9 | W18: =INDEX($AB$3:$DS$33,$A18,12*Gegevens!$B$19-W$36)-(1*W$35) -> 16.4 | X18: =INDEX($AB$3:$DS$33,$A18,12*Gegevens!$B$19-X$36)-(1*X$35) -> 12.5 | Y18: =INDEX($AB$3:$DS$33,$A18,12*Gegevens!$B$19-Y$36)-(1*Y$35) -> 3.9 | Z18: =INDEX($AB$3:$DS$33,$A18,12*Gegevens!$B$19-Z$36)-(1*Z$35) -> 7.8 | AB18: 5.5 | AC18: 8.6 | AD18: 10.4 | AE18: 12.6 | AF18: 12.6 | AG18: 16.5 | AH18: 16.2 | AI18: 17.9 | AJ18: 16.4 | AK18: 12.5 | AL18: 3.9 | AM18: 7.8 | AN18: 5.9 | AO18: 3.3 | AP18: 7.9 | AQ18: 12 | AR18: 14.9 | AS18: 16.8 | AT18: 22.8 | AU18: 20.5 | AV18: 16.3 | AW18: 18.1 | AX18: 4.9 | AY18: 2.4 | AZ18: 0.5 | BA18: 7.9 | BB18: 11.7 | BC18: 8.1 | BD18: 21.2 | BE18: 16.4 | BF18: 18.6 | BG18: 18 | BH18: 10.6 | BI18: 19.8 | BJ18: 8.6 | BK18: 2.1 | BL18: 2.1 | BM18: 0 | BN18: 5.1 | BO18: 8.3 | BP18: 10.2 | BQ18: 13.5 | BR18: 18.6 | BS18: 17.7 | BT18: 16.8 | BU18: 14.1 | BV18: 11.5 | BW18: 6.9 | BX18: 5.6 | BY18: 2.7 | BZ18: 5.9 | CA18: 13.3 | CB18: 10.4 | CC18: 15.5 | CD18: 22 | CE18: 16.4 | CF18: 15.6 | CG18: 6.3 | CH18: 12.1 | CI18: 11.8 | CJ18: 7.7 | CK18: 6.5 | CL18: 10.4 | CM18: 9.2 | CN18: 12.8 | CO18: 14.4 | CP18: 20.4 | CQ18: 15.6 | CR18: 17.8 | CS18: 14.9 | CT18: 8.4 | CU18: 5.3 | CV18: -4.9 | CW18: 4.3 | CX18: 4.9 | CY18: 13.6 | CZ18: 9 | DA18: 15.7 | DB18: 21.7 | DC18: 20.6 | DD18: 12.1 | DE18: 10.7 | DF18: 3.2 | DG18: 10 | DH18: 0.7 | DI18: 5.7 | DJ18: 10 | DK18: 5.4 | DL18: 8.2 | DM18: 16.3 | DN18: 14.1 | DO18: 19.6 | DP18: 15.4 | DQ18: 10.2 | DR18: 4.1 | DS18: 7.6 | DW18: 6500 - Thirimont | DX18: Thirimont | DY18: y = 1.0235x + 19.617 | EA18: 1.0235 | EB18: 19.617 | EC18: 0.9985
A19: 17 | B19: =IF(O19>Gegevens!$F$23,0,Gegevens!$F$23-O19) -> 11.6 | C19: =IF(P19>Gegevens!$F$23,0,Gegevens!$F$23-P19) -> 4.7 | D19: =IF(Q19>Gegevens!$F$23,0,Gegevens!$F$23-Q19) -> 8.6 | E19: =IF(R19>Gegevens!$F$23,0,Gegevens!$F$23-R19) -> 3.2 | F19: =IF(S19>Gegevens!$F$23,0,Gegevens!$F$23-S19) -> 3.9 | G19: =IF(T19>Gegevens!$F$23,0,Gegevens!$F$23-T19) -> 0 | H19: =IF(U19>Gegevens!$F$23,0,Gegevens!$F$23-U19) -> 0 | I19: =IF(V19>Gegevens!$F$23,0,Gegevens!$F$23-V19) -> 0 | J19: =IF(W19>Gegevens!$F$23,0,Gegevens!$F$23-W19) -> 0.3 | K19: =IF(X19>Gegevens!$F$23,0,Gegevens!$F$23-X19) -> 1.8 | L19: =IF(Y19>Gegevens!$F$23,0,Gegevens!$F$23-Y19) -> 10.6 | M19: =IF(Z19>Gegevens!$F$23,0,Gegevens!$F$23-Z19) -> 3.4 | O19: =INDEX($AB$3:$DS$33,$A19,12*Gegevens!$B$19-O$36)-(1*O$35) -> 3.4 | P19: =INDEX($AB$3:$DS$33,$A19,12*Gegevens!$B$19-P$36)-(1*P$35) -> 10.3 | Q19: =INDEX($AB$3:$DS$33,$A19,12*Gegevens!$B$19-Q$36)-(1*Q$35) -> 6.4 | R19: =INDEX($AB$3:$DS$33,$A19,12*Gegevens!$B$19-R$36)-(1*R$35) -> 11.8 | S19: =INDEX($AB$3:$DS$33,$A19,12*Gegevens!$B$19-S$36)-(1*S$35) -> 11.1 | T19: =INDEX($AB$3:$DS$33,$A19,12*Gegevens!$B$19-T$36)-(1*T$35) -> 19.4 | U19: =INDEX($AB$3:$DS$33,$A19,12*Gegevens!$B$19-U$36)-(1*U$35) -> 18.7 | V19: =INDEX($AB$3:$DS$33,$A19,12*Gegevens!$B$19-V$36)-(1*V$35) -> 17.5 | W19: =INDEX($AB$3:$DS$33,$A19,12*Gegevens!$B$19-W$36)-(1*W$35) -> 14.7 | X19: =INDEX($AB$3:$DS$33,$A19,12*Gegevens!$B$19-X$36)-(1*X$35) -> 13.2 | Y19: =INDEX($AB$3:$DS$33,$A19,12*Gegevens!$B$19-Y$36)-(1*Y$35) -> 4.4 | Z19: =INDEX($AB$3:$DS$33,$A19,12*Gegevens!$B$19-Z$36)-(1*Z$35) -> 11.6 | AB19: 3.4 | AC19: 10.3 | AD19: 6.4 | AE19: 11.8 | AF19: 11.1 | AG19: 19.4 | AH19: 18.7 | AI19: 17.5 | AJ19: 14.7 | AK19: 13.2 | AL19: 4.4 | AM19: 11.6 | AN19: 4.1 | AO19: 3.4 | AP19: -1.5 | AQ19: 14.3 | AR19: 11.6 | AS19: 15.9 | AT19: 20.5 | AU19: 18 | AV19: 18.1 | AW19: 15.1 | AX19: 4.1 | AY19: 6.6 | AZ19: -2.3 | BA19: 7.1 | BB19: 8.9 | BC19: 7.8 | BD19: 23.2 | BE19: 19.7 | BF19: 19.4 | BG19: 18.1 | BH19: 11.4 | BI19: 15 | BJ19: 6.6 | BK19: 1.7 | BL19: -0.8 | BM19: 0.4 | BN19: 5.5 | BO19: 5.5 | BP19: 13.1 | BQ19: 14.4 | BR19: 20 | BS19: 19 | BT19: 16.5 | BU19: 12 | BV19: 10 | BW19: 4.5 | BX19: 2 | BY19: 4.2 | BZ19: 10.1 | CA19: 10.1 | CB19: 12.5 | CC19: 13.7 | CD19: 23.8 | CE19: 14.2 | CF19: 14.3 | CG19: 7.6 | CH19: 14 | CI19: 14 | CJ19: 7.9 | CK19: 6.9 | CL19: 9.4 | CM19: 12.4 | CN19: 15 | CO19: 15.1 | CP19: 23.1 | CQ19: 14.5 | CR19: 19.9 | CS19: 15.1 | CT19: 8.6 | CU19: 7.8 | CV19: -5.5 | CW19: 2.8 | CX19: 5.8 | CY19: 17.2 | CZ19: 8.4 | DA19: 18.1 | DB19: 22.5 | DC19: 20.2 | DD19: 10.5 | DE19: 12.8 | DF19: 4.9 | DG19: 8 | DH19: 1.2 | DI19: 5.6 | DJ19: 9.3 | DK19: 5 | DL19: 10.8 | DM19: 16.3 | DN19: 17 | DO19: 23.1 | DP19: 15.7 | DQ19: 12.2 | DR19: 6.5 | DS19: 6.8 | DW19: 6640 - Sibret | DX19: Sibret | DY19: y = 1.1858x + 45.886 | EA19: 1.1858 | EB19: 45.886 | EC19: 0.9955
A20: 18 | B20: =IF(O20>Gegevens!$F$23,0,Gegevens!$F$23-O20) -> 15.1 | C20: =IF(P20>Gegevens!$F$23,0,Gegevens!$F$23-P20) -> 5.4 | D20: =IF(Q20>Gegevens!$F$23,0,Gegevens!$F$23-Q20) -> 10.4 | E20: =IF(R20>Gegevens!$F$23,0,Gegevens!$F$23-R20) -> 0 | F20: =IF(S20>Gegevens!$F$23,0,Gegevens!$F$23-S20) -> 1.1 | G20: =IF(T20>Gegevens!$F$23,0,Gegevens!$F$23-T20) -> 0 | H20: =IF(U20>Gegevens!$F$23,0,Gegevens!$F$23-U20) -> 0 | I20: =IF(V20>Gegevens!$F$23,0,Gegevens!$F$23-V20) -> 0 | J20: =IF(W20>Gegevens!$F$23,0,Gegevens!$F$23-W20) -> 2.5 | K20: =IF(X20>Gegevens!$F$23,0,Gegevens!$F$23-X20) -> 2.1 | L20: =IF(Y20>Gegevens!$F$23,0,Gegevens!$F$23-Y20) -> 9.8 | M20: =IF(Z20>Gegevens!$F$23,0,Gegevens!$F$23-Z20) -> 7.1 | O20: =INDEX($AB$3:$DS$33,$A20,12*Gegevens!$B$19-O$36)-(1*O$35) -> -0.1 | P20: =INDEX($AB$3:$DS$33,$A20,12*Gegevens!$B$19-P$36)-(1*P$35) -> 9.6 | Q20: =INDEX($AB$3:$DS$33,$A20,12*Gegevens!$B$19-Q$36)-(1*Q$35) -> 4.6 | R20: =INDEX($AB$3:$DS$33,$A20,12*Gegevens!$B$19-R$36)-(1*R$35) -> 15.6 | S20: =INDEX($AB$3:$DS$33,$A20,12*Gegevens!$B$19-S$36)-(1*S$35) -> 13.9 | T20: =INDEX($AB$3:$DS$33,$A20,12*Gegevens!$B$19-T$36)-(1*T$35) -> 21.3 | U20: =INDEX($AB$3:$DS$33,$A20,12*Gegevens!$B$19-U$36)-(1*U$35) -> 19 | V20: =INDEX($AB$3:$DS$33,$A20,12*Gegevens!$B$19-V$36)-(1*V$35) -> 16.4 | W20: =INDEX($AB$3:$DS$33,$A20,12*Gegevens!$B$19-W$36)-(1*W$35) -> 12.5 | X20: =INDEX($AB$3:$DS$33,$A20,12*Gegevens!$B$19-X$36)-(1*X$35) -> 12.9 | Y20: =INDEX($AB$3:$DS$33,$A20,12*Gegevens!$B$19-Y$36)-(1*Y$35) -> 5.2 | Z20: =INDEX($AB$3:$DS$33,$A20,12*Gegevens!$B$19-Z$36)-(1*Z$35) -> 7.9 | AB20: -0.1 | AC20: 9.6 | AD20: 4.6 | AE20: 15.6 | AF20: 13.9 | AG20: 21.3 | AH20: 19 | AI20: 16.4 | AJ20: 12.5 | AK20: 12.9 | AL20: 5.2 | AM20: 7.9 | AN20: 6.4 | AO20: 2.3 | AP20: -1.5 | AQ20: 18.2 | AR20: 10.8 | AS20: 17.1 | AT20: 19.6 | AU20: 17.4 | AV20: 20.8 | AW20: 13.7 | AX20: 3.2 | AY20: 7.1 | AZ20: -3 | BA20: 6.9 | BB20: 9.8 | BC20: 5.3 | BD20: 16.8 | BE20: 21.8 | BF20: 22.3 | BG20: 17 | BH20: 11.5 | BI20: 15.4 | BJ20: 4.6 | BK20: 6 | BL20: -4.1 | BM20: 1.4 | BN20: 4 | BO20: 7.1 | BP20: 13.2 | BQ20: 13.8 | BR20: 22 | BS20: 19.1 | BT20: 17.3 | BU20: 10 | BV20: 6 | BW20: 6 | BX20: 2.9 | BY20: 0.9 | BZ20: 6.4 | CA20: 9.5 | CB20: 11.7 | CC20: 16.8 | CD20: 19.2 | CE20: 14 | CF20: 13.7 | CG20: 8.8 | CH20: 13.2 | CI20: 11.6 | CJ20: 7.3 | CK20: 6.6 | CL20: 9.1 | CM20: 9.1 | CN20: 16.9 | CO20: 15.5 | CP20: 26.4 | CQ20: 15 | CR20: 19.2 | CS20: 18.5 | CT20: 8.1 | CU20: 11.3 | CV20: -2.7 | CW20: 2 | CX20: 6 | CY20: 12.6 | CZ20: 10.5 | DA20: 24 | DB20: 23.8 | DC20: 19.3 | DD20: 12.1 | DE20: 13 | DF20: 4.6 | DG20: 8.5 | DH20: 2.5 | DI20: 7.2 | DJ20: 7.9 | DK20: 7.5 | DL20: 13.7 | DM20: 14.5 | DN20: 17.9 | DO20: 27.2 | DP20: 14.1 | DQ20: 16 | DR20: 7.1 | DS20: 5.3 | DW20: 6660 - Nadrin | DX20: Nadrin | DY20: y = 1.1177x + 52.458 | EA20: 1.1177 | EB20: 52.458 | EC20: 0.9928
A21: 19 | B21: =IF(O21>Gegevens!$F$23,0,Gegevens!$F$23-O21) -> 15.9 | C21: =IF(P21>Gegevens!$F$23,0,Gegevens!$F$23-P21) -> 7.3 | D21: =IF(Q21>Gegevens!$F$23,0,Gegevens!$F$23-Q21) -> 9 | E21: =IF(R21>Gegevens!$F$23,0,Gegevens!$F$23-R21) -> 0 | F21: =IF(S21>Gegevens!$F$23,0,Gegevens!$F$23-S21) -> 1.2 | G21: =IF(T21>Gegevens!$F$23,0,Gegevens!$F$23-T21) -> 0 | H21: =IF(U21>Gegevens!$F$23,0,Gegevens!$F$23-U21) -> 0 | I21: =IF(V21>Gegevens!$F$23,0,Gegevens!$F$23-V21) -> 0 | J21: =IF(W21>Gegevens!$F$23,0,Gegevens!$F$23-W21) -> 2.7 | K21: =IF(X21>Gegevens!$F$23,0,Gegevens!$F$23-X21) -> 3.4 | L21: =IF(Y21>Gegevens!$F$23,0,Gegevens!$F$23-Y21) -> 11.8 | M21: =IF(Z21>Gegevens!$F$23,0,Gegevens!$F$23-Z21) -> 2.7 | O21: =INDEX($AB$3:$DS$33,$A21,12*Gegevens!$B$19-O$36)-(1*O$35) -> -0.9 | P21: =INDEX($AB$3:$DS$33,$A21,12*Gegevens!$B$19-P$36)-(1*P$35) -> 7.7 | Q21: =INDEX($AB$3:$DS$33,$A21,12*Gegevens!$B$19-Q$36)-(1*Q$35) -> 6 | R21: =INDEX($AB$3:$DS$33,$A21,12*Gegevens!$B$19-R$36)-(1*R$35) -> 17.9 | S21: =INDEX($AB$3:$DS$33,$A21,12*Gegevens!$B$19-S$36)-(1*S$35) -> 13.8 | T21: =INDEX($AB$3:$DS$33,$A21,12*Gegevens!$B$19-T$36)-(1*T$35) -> 19.6 | U21: =INDEX($AB$3:$DS$33,$A21,12*Gegevens!$B$19-U$36)-(1*U$35) -> 20.1 | V21: =INDEX($AB$3:$DS$33,$A21,12*Gegevens!$B$19-V$36)-(1*V$35) -> 16.4 | W21: =INDEX($AB$3:$DS$33,$A21,12*Gegevens!$B$19-W$36)-(1*W$35) -> 12.3 | X21: =INDEX($AB$3:$DS$33,$A21,12*Gegevens!$B$19-X$36)-(1*X$35) -> 11.6 | Y21: =INDEX($AB$3:$DS$33,$A21,12*Gegevens!$B$19-Y$36)-(1*Y$35) -> 3.2 | Z21: =INDEX($AB$3:$DS$33,$A21,12*Gegevens!$B$19-Z$36)-(1*Z$35) -> 12.3 | AB21: -0.9 | AC21: 7.7 | AD21: 6 | AE21: 17.9 | AF21: 13.8 | AG21: 19.6 | AH21: 20.1 | AI21: 16.4 | AJ21: 12.3 | AK21: 11.6 | AL21: 3.2 | AM21: 12.3 | AN21: 3.3 | AO21: 1.8 | AP21: -0.3 | AQ21: 21.1 | AR21: 10.1 | AS21: 17.8 | AT21: 21 | AU21: 19.3 | AV21: 19.6 | AW21: 12.8 | AX21: 3.5 | AY21: 7.6 | AZ21: -1.8 | BA21: 5.5 | BB21: 10.6 | BC21: 4.9 | BD21: 11.7 | BE21: 24.7 | BF21: 24 | BG21: 15.4 | BH21: 12.9 | BI21: 17.1 | BJ21: 4.5 | BK21: 3.9 | BL21: -3.2 | BM21: 3.6 | BN21: 5.4 | BO21: 9.3 | BP21: 12.6 | BQ21: 14.4 | BR21: 24.3 | BS21: 18.1 | BT21: 15.8 | BU21: 8.6 | BV21: 5.4 | BW21: 5.4 | BX21: 1 | BY21: 3.1 | BZ21: 6.1 | CA21: 9.7 | CB21: 9.5 | CC21: 14.9 | CD21: 17.6 | CE21: 17.4 | CF21: 13.4 | CG21: 10.1 | CH21: 11.1 | CI21: 12.6 | CJ21: 8.2 | CK21: 7.2 | CL21: 11 | CM21: 11 | CN21: 19.8 | CO21: 14.9 | CP21: 26.3 | CQ21: 13.3 | CR21: 19.8 | CS21: 17.8 | CT21: 7.5 | CU21: 8.5 | CV21: -2.9 | CW21: 2.6 | CX21: 4.6 | CY21: 8 | CZ21: 13.2 | DA21: 22 | DB21: 22.4 | DC21: 17.1 | DD21: 11.5 | DE21: 14.2 | DF21: 5.5 | DG21: 7.3 | DH21: 8 | DI21: 2.1 | DJ21: 6.7 | DK21: 8.5 | DL21: 16 | DM21: 14.8 | DN21: 16.7 | DO21: 28.1 | DP21: 10.9 | DQ21: 17.6 | DR21: 7.3 | DS21: 5.6 | DW21: 6700 - Arlon | DX21: Arlon | DY21: y = 1.1538x + 17.299 | EA21: 1.1538 | EB21: 17.299 | EC21: 0.9952
A22: 20 | B22: =IF(O22>Gegevens!$F$23,0,Gegevens!$F$23-O22) -> 16.8 | C22: =IF(P22>Gegevens!$F$23,0,Gegevens!$F$23-P22) -> 7.7 | D22: =IF(Q22>Gegevens!$F$23,0,Gegevens!$F$23-Q22) -> 5.9 | E22: =IF(R22>Gegevens!$F$23,0,Gegevens!$F$23-R22) -> 0 | F22: =IF(S22>Gegevens!$F$23,0,Gegevens!$F$23-S22) -> 3.7 | G22: =IF(T22>Gegevens!$F$23,0,Gegevens!$F$23-T22) -> 0 | H22: =IF(U22>Gegevens!$F$23,0,Gegevens!$F$23-U22) -> 0 | I22: =IF(V22>Gegevens!$F$23,0,Gegevens!$F$23-V22) -> 0 | J22: =IF(W22>Gegevens!$F$23,0,Gegevens!$F$23-W22) -> 1.4 | K22: =IF(X22>Gegevens!$F$23,0,Gegevens!$F$23-X22) -> 4.4 | L22: =IF(Y22>Gegevens!$F$23,0,Gegevens!$F$23-Y22) -> 13.5 | M22: =IF(Z22>Gegevens!$F$23,0,Gegevens!$F$23-Z22) -> 4.1 | O22: =INDEX($AB$3:$DS$33,$A22,12*Gegevens!$B$19-O$36)-(1*O$35) -> -1.8 | P22: =INDEX($AB$3:$DS$33,$A22,12*Gegevens!$B$19-P$36)-(1*P$35) -> 7.3 | Q22: =INDEX($AB$3:$DS$33,$A22,12*Gegevens!$B$19-Q$36)-(1*Q$35) -> 9.1 | R22: =INDEX($AB$3:$DS$33,$A22,12*Gegevens!$B$19-R$36)-(1*R$35) -> 18.4 | S22: =INDEX($AB$3:$DS$33,$A22,12*Gegevens!$B$19-S$36)-(1*S$35) -> 11.3 | T22: =INDEX($AB$3:$DS$33,$A22,12*Gegevens!$B$19-T$36)-(1*T$35) -> 16.8 | U22: =INDEX($AB$3:$DS$33,$A22,12*Gegevens!$B$19-U$36)-(1*U$35) -> 20.8 | V22: =INDEX($AB$3:$DS$33,$A22,12*Gegevens!$B$19-V$36)-(1*V$35) -> 16.3 | W22: =INDEX($AB$3:$DS$33,$A22,12*Gegevens!$B$19-W$36)-(1*W$35) -> 13.6 | X22: =INDEX($AB$3:$DS$33,$A22,12*Gegevens!$B$19-X$36)-(1*X$35) -> 10.6 | Y22: =INDEX($AB$3:$DS$33,$A22,12*Gegevens!$B$19-Y$36)-(1*Y$35) -> 1.5 | Z22: =INDEX($AB$3:$DS$33,$A22,12*Gegevens!$B$19-Z$36)-(1*Z$35) -> 10.9 | AB22: -1.8 | AC22: 7.3 | AD22: 9.1 | AE22: 18.4 | AF22: 11.3 | AG22: 16.8 | AH22: 20.8 | AI22: 16.3 | AJ22: 13.6 | AK22: 10.6 | AL22: 1.5 | AM22: 10.9 | AN22: 2.2 | AO22: 2.6 | AP22: 2.9 | AQ22: 20.9 | AR22: 14.8 | AS22: 20.7 | AT22: 20.6 | AU22: 20.3 | AV22: 20.1 | AW22: 9.7 | AX22: 3.2 | AY22: 7.5 | AZ22: -0.3 | BA22: 8.7 | BB22: 10.4 | BC22: 6.1 | BD22: 11.8 | BE22: 25.8 | BF22: 18.9 | BG22: 15.7 | BH22: 13.3 | BI22: 13.4 | BJ22: 6.1 | BK22: 6.8 | BL22: -0.8 | BM22: 8 | BN22: 5.8 | BO22: 9.3 | BP22: 14 | BQ22: 14.9 | BR22: 25.4 | BS22: 17.6 | BT22: 14.7 | BU22: 9.1 | BV22: 9.5 | BW22: 1.4 | BX22: 0.7 | BY22: 5.4 | BZ22: 6.2 | CA22: 13.1 | CB22: 9.6 | CC22: 14 | CD22: 19.9 | CE22: 18.6 | CF22: 13.1 | CG22: 9.2 | CH22: 7.5 | CI22: 11.9 | CJ22: 5.8 | CK22: 8.3 | CL22: 14.5 | CM22: 15.1 | CN22: 19.5 | CO22: 14.5 | CP22: 21.4 | CQ22: 11.7 | CR22: 19.4 | CS22: 14 | CT22: 5.6 | CU22: 5.9 | CV22: -4.2 | CW22: 0.9 | CX22: 2.7 | CY22: 7.5 | CZ22: 10.3 | DA22: 20.8 | DB22: 19.3 | DC22: 17.5 | DD22: 13.4 | DE22: 15.2 | DF22: 2.4 | DG22: 5.4 | DH22: 4.9 | DI22: 1.3 | DJ22: 7.9 | DK22: 7.9 | DL22: 15.1 | DM22: 18.8 | DN22: 14.5 | DO22: 22.4 | DP22: 11 | DQ22: 15.5 | DR22: 8.8 | DS22: 4.3 | DW22: 6800 - Libramont | DX22: Libramont | DY22: y = 1.1181x + 41.535 | EA22: 1.1181 | EB22: 41.535 | EC22: 0.9971
A23: 21 | B23: =IF(O23>Gegevens!$F$23,0,Gegevens!$F$23-O23) -> 17.3 | C23: =IF(P23>Gegevens!$F$23,0,Gegevens!$F$23-P23) -> 5.6 | D23: =IF(Q23>Gegevens!$F$23,0,Gegevens!$F$23-Q23) -> 5.3 | E23: =IF(R23>Gegevens!$F$23,0,Gegevens!$F$23-R23) -> 0 | F23: =IF(S23>Gegevens!$F$23,0,Gegevens!$F$23-S23) -> 2.2 | G23: =IF(T23>Gegevens!$F$23,0,Gegevens!$F$23-T23) -> 0 | H23: =IF(U23>Gegevens!$F$23,0,Gegevens!$F$23-U23) -> 0 | I23: =IF(V23>Gegevens!$F$23,0,Gegevens!$F$23-V23) -> 0 | J23: =IF(W23>Gegevens!$F$23,0,Gegevens!$F$23-W23) -> 0 | K23: =IF(X23>Gegevens!$F$23,0,Gegevens!$F$23-X23) -> 3.5 | L23: =IF(Y23>Gegevens!$F$23,0,Gegevens!$F$23-Y23) -> 12.9 | M23: =IF(Z23>Gegevens!$F$23,0,Gegevens!$F$23-Z23) -> 7.5 | O23: =INDEX($AB$3:$DS$33,$A23,12*Gegevens!$B$19-O$36)-(1*O$35) -> -2.3 | P23: =INDEX($AB$3:$DS$33,$A23,12*Gegevens!$B$19-P$36)-(1*P$35) -> 9.4 | Q23: =INDEX($AB$3:$DS$33,$A23,12*Gegevens!$B$19-Q$36)-(1*Q$35) -> 9.7 | R23: =INDEX($AB$3:$DS$33,$A23,12*Gegevens!$B$19-R$36)-(1*R$35) -> 17.9 | S23: =INDEX($AB$3:$DS$33,$A23,12*Gegevens!$B$19-S$36)-(1*S$35) -> 12.8 | T23: =INDEX($AB$3:$DS$33,$A23,12*Gegevens!$B$19-T$36)-(1*T$35) -> 15.5 | U23: =INDEX($AB$3:$DS$33,$A23,12*Gegevens!$B$19-U$36)-(1*U$35) -> 19.4 | V23: =INDEX($AB$3:$DS$33,$A23,12*Gegevens!$B$19-V$36)-(1*V$35) -> 16.3 | W23: =INDEX($AB$3:$DS$33,$A23,12*Gegevens!$B$19-W$36)-(1*W$35) -> 17.9 | X23: =INDEX($AB$3:$DS$33,$A23,12*Gegevens!$B$19-X$36)-(1*X$35) -> 11.5 | Y23: =INDEX($AB$3:$DS$33,$A23,12*Gegevens!$B$19-Y$36)-(1*Y$35) -> 2.1 | Z23: =INDEX($AB$3:$DS$33,$A23,12*Gegevens!$B$19-Z$36)-(1*Z$35) -> 7.5 | AB23: -2.3 | AC23: 9.4 | AD23: 9.7 | AE23: 17.9 | AF23: 12.8 | AG23: 15.5 | AH23: 19.4 | AI23: 16.3 | AJ23: 17.9 | AK23: 11.5 | AL23: 2.1 | AM23: 7.5 | AN23: 2.4 | AO23: 0.9 | AP23: 3.2 | AQ23: 17.6 | AR23: 18.1 | AS23: 14.5 | AT23: 21.4 | AU23: 21.4 | AV23: 15.6 | AW23: 10.7 | AX23: 3.3 | AY23: 10.6 | AZ23: -1.1 | BA23: 9.7 | BB23: 8.1 | BC23: 10.3 | BD23: 14.7 | BE23: 25.2 | BF23: 19.1 | BG23: 16.9 | BH23: 13.7 | BI23: 13.6 | BJ23: 9.8 | BK23: 8.5 | BL23: 0.4 | BM23: 10.3 | BN23: 7 | BO23: 12.4 | BP23: 18 | BQ23: 16.5 | BR23: 21 | BS23: 15.5 | BT23: 15.7 | BU23: 6.7 | BV23: 11.9 | BW23: 4.2 | BX23: -0.1 | BY23: 2.9 | BZ23: 5.9 | CA23: 13.2 | CB23: 12.1 | CC23: 14.3 | CD23: 21.4 | CE23: 20.6 | CF23: 13.1 | CG23: 9.3 | CH23: 3.4 | CI23: 10.6 | CJ23: 3.9 | CK23: 6.5 | CL23: 9.2 | CM23: 12.6 | CN23: 16.9 | CO23: 15.9 | CP23: 18.8 | CQ23: 13.4 | CR23: 15.5 | CS23: 11 | CT23: 5.2 | CU23: 6.2 | CV23: -0.6 | CW23: -1.6 | CX23: 2 | CY23: 8.2 | CZ23: 9.5 | DA23: 16.1 | DB23: 23.8 | DC23: 18.5 | DD23: 13.2 | DE23: 15.4 | DF23: 2.5 | DG23: 6.2 | DH23: 8.1 | DI23: 4.2 | DJ23: 10.5 | DK23: 6.7 | DL23: 14.3 | DM23: 18.2 | DN23: 14.7 | DO23: 21.9 | DP23: 11.9 | DQ23: 14.7 | DR23: 6.9 | DS23: 7.9 | DW23: 6836 - Dohan | DX23: Dohan | DY23: y = 1.0811x + 31.998 | EA23: 1.0811 | EB23: 31.998 | EC23: 0.9959
A24: 22 | B24: =IF(O24>Gegevens!$F$23,0,Gegevens!$F$23-O24) -> 16.6 | C24: =IF(P24>Gegevens!$F$23,0,Gegevens!$F$23-P24) -> 6.5 | D24: =IF(Q24>Gegevens!$F$23,0,Gegevens!$F$23-Q24) -> 3.4 | E24: =IF(R24>Gegevens!$F$23,0,Gegevens!$F$23-R24) -> 0 | F24: =IF(S24>Gegevens!$F$23,0,Gegevens!$F$23-S24) -> 1 | G24: =IF(T24>Gegevens!$F$23,0,Gegevens!$F$23-T24) -> 0 | H24: =IF(U24>Gegevens!$F$23,0,Gegevens!$F$23-U24) -> 0 | I24: =IF(V24>Gegevens!$F$23,0,Gegevens!$F$23-V24) -> 0 | J24: =IF(W24>Gegevens!$F$23,0,Gegevens!$F$23-W24) -> 0 | K24: =IF(X24>Gegevens!$F$23,0,Gegevens!$F$23-X24) -> 3 | L24: =IF(Y24>Gegevens!$F$23,0,Gegevens!$F$23-Y24) -> 7.5 | M24: =IF(Z24>Gegevens!$F$23,0,Gegevens!$F$23-Z24) -> 7.3 | O24: =INDEX($AB$3:$DS$33,$A24,12*Gegevens!$B$19-O$36)-(1*O$35) -> -1.6 | P24: =INDEX($AB$3:$DS$33,$A24,12*Gegevens!$B$19-P$36)-(1*P$35) -> 8.5 | Q24: =INDEX($AB$3:$DS$33,$A24,12*Gegevens!$B$19-Q$36)-(1*Q$35) -> 11.6 | R24: =INDEX($AB$3:$DS$33,$A24,12*Gegevens!$B$19-R$36)-(1*R$35) -> 18.8 | S24: =INDEX($AB$3:$DS$33,$A24,12*Gegevens!$B$19-S$36)-(1*S$35) -> 14 | T24: =INDEX($AB$3:$DS$33,$A24,12*Gegevens!$B$19-T$36)-(1*T$35) -> 18 | U24: =INDEX($AB$3:$DS$33,$A24,12*Gegevens!$B$19-U$36)-(1*U$35) -> 22 | V24: =INDEX($AB$3:$DS$33,$A24,12*Gegevens!$B$19-V$36)-(1*V$35) -> 18.2 | W24: =INDEX($AB$3:$DS$33,$A24,12*Gegevens!$B$19-W$36)-(1*W$35) -> 19.3 | X24: =INDEX($AB$3:$DS$33,$A24,12*Gegevens!$B$19-X$36)-(1*X$35) -> 12 | Y24: =INDEX($AB$3:$DS$33,$A24,12*Gegevens!$B$19-Y$36)-(1*Y$35) -> 7.5 | Z24: =INDEX($AB$3:$DS$33,$A24,12*Gegevens!$B$19-Z$36)-(1*Z$35) -> 7.7 | AB24: -1.6 | AC24: 8.5 | AD24: 11.6 | AE24: 18.8 | AF24: 14 | AG24: 18 | AH24: 22 | AI24: 18.2 | AJ24: 19.3 | AK24: 12 | AL24: 7.5 | AM24: 7.7 | AN24: 7.4 | AO24: 0.5 | AP24: 4.8 | AQ24: 19.8 | AR24: 17.4 | AS24: 12.7 | AT24: 21.6 | AU24: 20.2 | AV24: 11.8 | AW24: 11.3 | AX24: 2.2 | AY24: 9.9 | AZ24: -1.6 | BA24: 9.6 | BB24: 7.1 | BC24: 8.6 | BD24: 18.7 | BE24: 25.1 | BF24: 18.2 | BG24: 19.8 | BH24: 13.3 | BI24: 9.9 | BJ24: 11.1 | BK24: 9 | BL24: 1.9 | BM24: 7.1 | BN24: 7 | BO24: 10.4 | BP24: 15.2 | BQ24: 19.9 | BR24: 20.8 | BS24: 18.2 | BT24: 15.3 | BU24: 7.4 | BV24: 10.2 | BW24: 5.7 | BX24: -1.3 | BY24: 2.6 | BZ24: 4.7 | CA24: 9.5 | CB24: 14.4 | CC24: 16.1 | CD24: 19.8 | CE24: 22.4 | CF24: 12.1 | CG24: 11.6 | CH24: 2.2 | CI24: 12 | CJ24: 3 | CK24: 5.9 | CL24: 6.8 | CM24: 12.7 | CN24: 17.1 | CO24: 17.5 | CP24: 22.1 | CQ24: 13.6 | CR24: 13.6 | CS24: 9.4 | CT24: 10.7 | CU24: 9.7 | CV24: -0.8 | CW24: -2.3 | CX24: 2.5 | CY24: 8.6 | CZ24: 9.2 | DA24: 15.5 | DB24: 25.9 | DC24: 18.5 | DD24: 16.2 | DE24: 17.5 | DF24: 3.5 | DG24: 7.7 | DH24: 6.9 | DI24: 5.7 | DJ24: 13.1 | DK24: 7.6 | DL24: 16.1 | DM24: 15.7 | DN24: 15.7 | DO24: 17.9 | DP24: 11.7 | DQ24: 17.6 | DR24: 7.5 | DS24: 7.8 | DW24: 7170 - La Hestre | DX24: La Hestre | DY24: y = 1.0047x + 18.278 | EA24: 1.0047 | EB24: 18.278 | EC24: 0.999
A25: 23 | B25: =IF(O25>Gegevens!$F$23,0,Gegevens!$F$23-O25) -> 15.8 | C25: =IF(P25>Gegevens!$F$23,0,Gegevens!$F$23-P25) -> 6.9 | D25: =IF(Q25>Gegevens!$F$23,0,Gegevens!$F$23-Q25) -> 5.9 | E25: =IF(R25>Gegevens!$F$23,0,Gegevens!$F$23-R25) -> 0 | F25: =IF(S25>Gegevens!$F$23,0,Gegevens!$F$23-S25) -> 0 | G25: =IF(T25>Gegevens!$F$23,0,Gegevens!$F$23-T25) -> 0 | H25: =IF(U25>Gegevens!$F$23,0,Gegevens!$F$23-U25) -> 0 | I25: =IF(V25>Gegevens!$F$23,0,Gegevens!$F$23-V25) -> 0 | J25: =IF(W25>Gegevens!$F$23,0,Gegevens!$F$23-W25) -> 0 | K25: =IF(X25>Gegevens!$F$23,0,Gegevens!$F$23-X25) -> 1.7 | L25: =IF(Y25>Gegevens!$F$23,0,Gegevens!$F$23-Y25) -> 8.2 | M25: =IF(Z25>Gegevens!$F$23,0,Gegevens!$F$23-Z25) -> 7.5 | O25: =INDEX($AB$3:$DS$33,$A25,12*Gegevens!$B$19-O$36)-(1*O$35) -> -0.8 | P25: =INDEX($AB$3:$DS$33,$A25,12*Gegevens!$B$19-P$36)-(1*P$35) -> 8.1 | Q25: =INDEX($AB$3:$DS$33,$A25,12*Gegevens!$B$19-Q$36)-(1*Q$35) -> 9.1 | R25: =INDEX($AB$3:$DS$33,$A25,12*Gegevens!$B$19-R$36)-(1*R$35) -> 16.5 | S25: =INDEX($AB$3:$DS$33,$A25,12*Gegevens!$B$19-S$36)-(1*S$35) -> 16.4 | T25: =INDEX($AB$3:$DS$33,$A25,12*Gegevens!$B$19-T$36)-(1*T$35) -> 22.6 | U25: =INDEX($AB$3:$DS$33,$A25,12*Gegevens!$B$19-U$36)-(1*U$35) -> 26.4 | V25: =INDEX($AB$3:$DS$33,$A25,12*Gegevens!$B$19-V$36)-(1*V$35) -> 19.8 | W25: =INDEX($AB$3:$DS$33,$A25,12*Gegevens!$B$19-W$36)-(1*W$35) -> 16.2 | X25: =INDEX($AB$3:$DS$33,$A25,12*Gegevens!$B$19-X$36)-(1*X$35) -> 13.3 | Y25: =INDEX($AB$3:$DS$33,$A25,12*Gegevens!$B$19-Y$36)-(1*Y$35) -> 6.8 | Z25: =INDEX($AB$3:$DS$33,$A25,12*Gegevens!$B$19-Z$36)-(1*Z$35) -> 7.5 | AB25: -0.8 | AC25: 8.1 | AD25: 9.1 | AE25: 16.5 | AF25: 16.4 | AG25: 22.6 | AH25: 26.4 | AI25: 19.8 | AJ25: 16.2 | AK25: 13.3 | AL25: 6.8 | AM25: 7.5 | AN25: 8.6 | AO25: -0.4 | AP25: 5.3 | AQ25: 13.3 | AR25: 17.4 | AS25: 15.1 | AT25: 24.3 | AU25: 18.2 | AV25: 10.5 | AW25: 9.6 | AX25: 6.1 | AY25: 9 | AZ25: 0.9 | BA25: 8.5 | BB25: 9.3 | BC25: 6.7 | BD25: 17.3 | BE25: 18.9 | BF25: 15.4 | BG25: 21.2 | BH25: 12.2 | BI25: 11.3 | BJ25: 12.1 | BK25: 8.7 | BL25: 5.9 | BM25: 3.4 | BN25: 6.9 | BO25: 6.3 | BP25: 11.4 | BQ25: 22.7 | BR25: 19 | BS25: 21.3 | BT25: 14.9 | BU25: 4.9 | BV25: 9.8 | BW25: 5.4 | BX25: -1.1 | BY25: 5.1 | BZ25: 5.5 | CA25: 10.7 | CB25: 14.2 | CC25: 11.7 | CD25: 18 | CE25: 19.5 | CF25: 12.1 | CG25: 11 | CH25: 1.1 | CI25: 10.1 | CJ25: 4.2 | CK25: 7.8 | CL25: 5.3 | CM25: 14 | CN25: 15.8 | CO25: 17.2 | CP25: 24 | CQ25: 13.4 | CR25: 12.5 | CS25: 11 | CT25: 12.5 | CU25: 10.1 | CV25: -4 | CW25: -2.5 | CX25: 0.7 | CY25: 11.4 | CZ25: 6.8 | DA25: 14.4 | DB25: 24.5 | DC25: 20.8 | DD25: 16.1 | DE25: 15.5 | DF25: 5 | DG25: 8.6 | DH25: 5.3 | DI25: 8 | DJ25: 14.3 | DK25: 7.9 | DL25: 17.2 | DM25: 15.8 | DN25: 19.6 | DO25: 17.4 | DP25: 11.8 | DQ25: 16 | DR25: 7.5 | DS25: 11 | DW25: 7390 - Wasmuel | DX25: Wasmuel | DY25: y = 0.9845x + 7.8926 | EA25: 0.9845 | EB25: 7.8926 | EC25: 0.999
A26: 24 | B26: =IF(O26>Gegevens!$F$23,0,Gegevens!$F$23-O26) -> 15.5 | C26: =IF(P26>Gegevens!$F$23,0,Gegevens!$F$23-P26) -> 6.5 | D26: =IF(Q26>Gegevens!$F$23,0,Gegevens!$F$23-Q26) -> 7.1 | E26: =IF(R26>Gegevens!$F$23,0,Gegevens!$F$23-R26) -> 0 | F26: =IF(S26>Gegevens!$F$23,0,Gegevens!$F$23-S26) -> 0 | G26: =IF(T26>Gegevens!$F$23,0,Gegevens!$F$23-T26) -> 0 | H26: =IF(U26>Gegevens!$F$23,0,Gegevens!$F$23-U26) -> 0 | I26: =IF(V26>Gegevens!$F$23,0,Gegevens!$F$23-V26) -> 0 | J26: =IF(W26>Gegevens!$F$23,0,Gegevens!$F$23-W26) -> 0 | K26: =IF(X26>Gegevens!$F$23,0,Gegevens!$F$23-X26) -> 0 | L26: =IF(Y26>Gegevens!$F$23,0,Gegevens!$F$23-Y26) -> 7.6 | M26: =IF(Z26>Gegevens!$F$23,0,Gegevens!$F$23-Z26) -> 6.4 | O26: =INDEX($AB$3:$DS$33,$A26,12*Gegevens!$B$19-O$36)-(1*O$35) -> -0.5 | P26: =INDEX($AB$3:$DS$33,$A26,12*Gegevens!$B$19-P$36)-(1*P$35) -> 8.5 | Q26: =INDEX($AB$3:$DS$33,$A26,12*Gegevens!$B$19-Q$36)-(1*Q$35) -> 7.9 | R26: =INDEX($AB$3:$DS$33,$A26,12*Gegevens!$B$19-R$36)-(1*R$35) -> 15.5 | S26: =INDEX($AB$3:$DS$33,$A26,12*Gegevens!$B$19-S$36)-(1*S$35) -> 16.8 | T26: =INDEX($AB$3:$DS$33,$A26,12*Gegevens!$B$19-T$36)-(1*T$35) -> 25.4 | U26: =INDEX($AB$3:$DS$33,$A26,12*Gegevens!$B$19-U$36)-(1*U$35) -> 29.4 | V26: =INDEX($AB$3:$DS$33,$A26,12*Gegevens!$B$19-V$36)-(1*V$35) -> 22.6 | W26: =INDEX($AB$3:$DS$33,$A26,12*Gegevens!$B$19-W$36)-(1*W$35) -> 15 | X26: =INDEX($AB$3:$DS$33,$A26,12*Gegevens!$B$19-X$36)-(1*X$35) -> 15.3 | Y26: =INDEX($AB$3:$DS$33,$A26,12*Gegevens!$B$19-Y$36)-(1*Y$35) -> 7.4 | Z26: =INDEX($AB$3:$DS$33,$A26,12*Gegevens!$B$19-Z$36)-(1*Z$35) -> 8.6 | AB26: -0.5 | AC26: 8.5 | AD26: 7.9 | AE26: 15.5 | AF26: 16.8 | AG26: 25.4 | AH26: 29.4 | AI26: 22.6 | AJ26: 15 | AK26: 15.3 | AL26: 7.4 | AM26: 8.6 | AN26: 11.7 | AO26: -0.1 | AP26: 7.8 | AQ26: 12.4 | AR26: 17.9 | AS26: 15.8 | AT26: 25.4 | AU26: 16.2 | AV26: 9.9 | AW26: 13.4 | AX26: 5.3 | AY26: 5.1 | AZ26: 0 | BA26: 4.6 | BB26: 9.4 | BC26: 9.8 | BD26: 17.1 | BE26: 17.6 | BF26: 15.6 | BG26: 18 | BH26: 14.5 | BI26: 15 | BJ26: 7.6 | BK26: 8.3 | BL26: 7.1 | BM26: 2.1 | BN26: 7 | BO26: 3.9 | BP26: 11.1 | BQ26: 19.3 | BR26: 19.5 | BS26: 24.5 | BT26: 16.7 | BU26: 8.4 | BV26: 8.5 | BW26: 7.3 | BX26: 1.2 | BY26: 4.8 | BZ26: 5.4 | CA26: 15 | CB26: 14.2 | CC26: 13 | CD26: 20 | CE26: 16.8 | CF26: 13.4 | CG26: 11.6 | CH26: 3.1 | CI26: 10.3 | CJ26: 2.5 | CK26: 9.3 | CL26: 5.8 | CM26: 14.5 | CN26: 14.9 | CO26: 18.2 | CP26: 22.5 | CQ26: 13.8 | CR26: 12.1 | CS26: 11.5 | CT26: 7.4 | CU26: 7.8 | CV26: -4.3 | CW26: -0.6 | CX26: -0.8 | CY26: 14.5 | CZ26: 5.9 | DA26: 12.9 | DB26: 21.8 | DC26: 17.5 | DD26: 15.6 | DE26: 12.9 | DF26: 5.3 | DG26: 9.4 | DH26: 2.7 | DI26: 8.9 | DJ26: 13.6 | DK26: 8.6 | DL26: 21.6 | DM26: 13.4 | DN26: 21.5 | DO26: 18.3 | DP26: 15.1 | DQ26: 13.4 | DR26: 8.8 | DS26: 11.2 | DW26: 7730 - Néchin | DX26: Néchin | DY26: y = 0.9769x + 6.652 | EA26: 0.9769 | EB26: 6.652 | EC26: 0.9993
A27: 25 | B27: =IF(O27>Gegevens!$F$23,0,Gegevens!$F$23-O27) -> 14.2 | C27: =IF(P27>Gegevens!$F$23,0,Gegevens!$F$23-P27) -> 3.9 | D27: =IF(Q27>Gegevens!$F$23,0,Gegevens!$F$23-Q27) -> 8.2 | E27: =IF(R27>Gegevens!$F$23,0,Gegevens!$F$23-R27) -> 3.5 | F27: =IF(S27>Gegevens!$F$23,0,Gegevens!$F$23-S27) -> 1.9 | G27: =IF(T27>Gegevens!$F$23,0,Gegevens!$F$23-T27) -> 0 | H27: =IF(U27>Gegevens!$F$23,0,Gegevens!$F$23-U27) -> 0 | I27: =IF(V27>Gegevens!$F$23,0,Gegevens!$F$23-V27) -> 0 | J27: =IF(W27>Gegevens!$F$23,0,Gegevens!$F$23-W27) -> 0.3 | K27: =IF(X27>Gegevens!$F$23,0,Gegevens!$F$23-X27) -> 1.6 | L27: =IF(Y27>Gegevens!$F$23,0,Gegevens!$F$23-Y27) -> 6.3 | M27: =IF(Z27>Gegevens!$F$23,0,Gegevens!$F$23-Z27) -> 8.8 | O27: =INDEX($AB$3:$DS$33,$A27,12*Gegevens!$B$19-O$36)-(1*O$35) -> 0.8 | P27: =INDEX($AB$3:$DS$33,$A27,12*Gegevens!$B$19-P$36)-(1*P$35) -> 11.1 | Q27: =INDEX($AB$3:$DS$33,$A27,12*Gegevens!$B$19-Q$36)-(1*Q$35) -> 6.8 | R27: =INDEX($AB$3:$DS$33,$A27,12*Gegevens!$B$19-R$36)-(1*R$35) -> 11.5 | S27: =INDEX($AB$3:$DS$33,$A27,12*Gegevens!$B$19-S$36)-(1*S$35) -> 13.1 | T27: =INDEX($AB$3:$DS$33,$A27,12*Gegevens!$B$19-T$36)-(1*T$35) -> 26.7 | U27: =INDEX($AB$3:$DS$33,$A27,12*Gegevens!$B$19-U$36)-(1*U$35) -> 30.2 | V27: =INDEX($AB$3:$DS$33,$A27,12*Gegevens!$B$19-V$36)-(1*V$35) -> 23.8 | W27: =INDEX($AB$3:$DS$33,$A27,12*Gegevens!$B$19-W$36)-(1*W$35) -> 14.7 | X27: =INDEX($AB$3:$DS$33,$A27,12*Gegevens!$B$19-X$36)-(1*X$35) -> 13.4 | Y27: =INDEX($AB$3:$DS$33,$A27,12*Gegevens!$B$19-Y$36)-(1*Y$35) -> 8.7 | Z27: =INDEX($AB$3:$DS$33,$A27,12*Gegevens!$B$19-Z$36)-(1*Z$35) -> 6.2 | AB27: 0.8 | AC27: 11.1 | AD27: 6.8 | AE27: 11.5 | AF27: 13.1 | AG27: 26.7 | AH27: 30.2 | AI27: 23.8 | AJ27: 14.7 | AK27: 13.4 | AL27: 8.7 | AM27: 6.2 | AN27: 7.8 | AO27: -1.9 | AP27: 7.2 | AQ27: 12.4 | AR27: 19.5 | AS27: 17.8 | AT27: 26.8 | AU27: 13.5 | AV27: 10 | AW27: 11.5 | AX27: 3.7 | AY27: 0.9 | AZ27: -1.7 | BA27: 5.2 | BB27: 10.1 | BC27: 5.9 | BD27: 18.1 | BE27: 18.4 | BF27: 16.5 | BG27: 19.5 | BH27: 15.1 | BI27: 15.1 | BJ27: 3.5 | BK27: 6.1 | BL27: 10.5 | BM27: 1.9 | BN27: 6.4 | BO27: 4.1 | BP27: 11.2 | BQ27: 14.9 | BR27: 19.6 | BS27: 25.5 | BT27: 15.4 | BU27: 8.8 | BV27: 4.9 | BW27: 8.9 | BX27: 2.1 | BY27: 4.1 | BZ27: 5 | CA27: 12.9 | CB27: 13.2 | CC27: 15.8 | CD27: 14.8 | CE27: 16.4 | CF27: 12.9 | CG27: 10.7 | CH27: 5.5 | CI27: 10 | CJ27: 3.6 | CK27: 9.1 | CL27: 6.1 | CM27: 16.1 | CN27: 15.9 | CO27: 15.7 | CP27: 19.8 | CQ27: 13.9 | CR27: 13 | CS27: 12.1 | CT27: 5.2 | CU27: 4.5 | CV27: -3.2 | CW27: 0.7 | CX27: 0.4 | CY27: 17.6 | CZ27: 8.6 | DA27: 13.6 | DB27: 23.6 | DC27: 16.8 | DD27: 15.3 | DE27: 15.8 | DF27: 5.5 | DG27: 7.1 | DH27: 4.7 | DI27: 7.5 | DJ27: 12.5 | DK27: 9 | DL27: 20.7 | DM27: 16 | DN27: 22.5 | DO27: 18.1 | DP27: 13.5 | DQ27: 10.5 | DR27: 10.2 | DS27: 9.5
A28: 26 | B28: =IF(O28>Gegevens!$F$23,0,Gegevens!$F$23-O28) -> 8.8 | C28: =IF(P28>Gegevens!$F$23,0,Gegevens!$F$23-P28) -> 3.5 | D28: =IF(Q28>Gegevens!$F$23,0,Gegevens!$F$23-Q28) -> 7.5 | E28: =IF(R28>Gegevens!$F$23,0,Gegevens!$F$23-R28) -> 2.8 | F28: =IF(S28>Gegevens!$F$23,0,Gegevens!$F$23-S28) -> 0 | G28: =IF(T28>Gegevens!$F$23,0,Gegevens!$F$23-T28) -> 0 | H28: =IF(U28>Gegevens!$F$23,0,Gegevens!$F$23-U28) -> 0 | I28: =IF(V28>Gegevens!$F$23,0,Gegevens!$F$23-V28) -> 0 | J28: =IF(W28>Gegevens!$F$23,0,Gegevens!$F$23-W28) -> 0 | K28: =IF(X28>Gegevens!$F$23,0,Gegevens!$F$23-X28) -> 0 | L28: =IF(Y28>Gegevens!$F$23,0,Gegevens!$F$23-Y28) -> 4.5 | M28: =IF(Z28>Gegevens!$F$23,0,Gegevens!$F$23-Z28) -> 10.8 | O28: =INDEX($AB$3:$DS$33,$A28,12*Gegevens!$B$19-O$36)-(1*O$35) -> 6.2 | P28: =INDEX($AB$3:$DS$33,$A28,12*Gegevens!$B$19-P$36)-(1*P$35) -> 11.5 | Q28: =INDEX($AB$3:$DS$33,$A28,12*Gegevens!$B$19-Q$36)-(1*Q$35) -> 7.5 | R28: =INDEX($AB$3:$DS$33,$A28,12*Gegevens!$B$19-R$36)-(1*R$35) -> 12.2 | S28: =INDEX($AB$3:$DS$33,$A28,12*Gegevens!$B$19-S$36)-(1*S$35) -> 15 | T28: =INDEX($AB$3:$DS$33,$A28,12*Gegevens!$B$19-T$36)-(1*T$35) -> 21.2 | U28: =INDEX($AB$3:$DS$33,$A28,12*Gegevens!$B$19-U$36)-(1*U$35) -> 26.7 | V28: =INDEX($AB$3:$DS$33,$A28,12*Gegevens!$B$19-V$36)-(1*V$35) -> 24.6 | W28: =INDEX($AB$3:$DS$33,$A28,12*Gegevens!$B$19-W$36)-(1*W$35) -> 15.6 | X28: =INDEX($AB$3:$DS$33,$A28,12*Gegevens!$B$19-X$36)-(1*X$35) -> 16.3 | Y28: =INDEX($AB$3:$DS$33,$A28,12*Gegevens!$B$19-Y$36)-(1*Y$35) -> 10.5 | Z28: =INDEX($AB$3:$DS$33,$A28,12*Gegevens!$B$19-Z$36)-(1*Z$35) -> 4.2 | AB28: 6.2 | AC28: 11.5 | AD28: 7.5 | AE28: 12.2 | AF28: 15 | AG28: 21.2 | AH28: 26.7 | AI28: 24.6 | AJ28: 15.6 | AK28: 16.3 | AL28: 10.5 | AM28: 4.2 | AN28: 5.9 | AO28: -4 | AP28: 6.6 | AQ28: 10.4 | AR28: 23 | AS28: 18.2 | AT28: 26 | AU28: 14.4 | AV28: 12 | AW28: 9 | AX28: 4.7 | AY28: 0.4 | AZ28: -2.3 | BA28: 8.5 | BB28: 10.3 | BC28: 5.2 | BD28: 21.2 | BE28: 18.9 | BF28: 18.2 | BG28: 21.1 | BH28: 14.6 | BI28: 14.5 | BJ28: 3.4 | BK28: 5.6 | BL28: 9.7 | BM28: 2.4 | BN28: 9.2 | BO28: 3 | BP28: 16.1 | BQ28: 13.8 | BR28: 18.4 | BS28: 23.4 | BT28: 12.4 | BU28: 8.1 | BV28: 5.2 | BW28: 7.2 | BX28: 5.8 | BY28: 6.8 | BZ28: 4 | CA28: 12.5 | CB28: 12.3 | CC28: 18.8 | CD28: 14.3 | CE28: 21.1 | CF28: 11.7 | CG28: 10.6 | CH28: 4.4 | CI28: 12 | CJ28: 5.1 | CK28: 7 | CL28: 5.3 | CM28: 12.6 | CN28: 16 | CO28: 16.9 | CP28: 20.8 | CQ28: 15 | CR28: 15 | CS28: 13 | CT28: 7.4 | CU28: 3.1 | CV28: -1.7 | CW28: 2.7 | CX28: 0.7 | CY28: 9.3 | CZ28: 10 | DA28: 13.7 | DB28: 23.1 | DC28: 18.1 | DD28: 14.9 | DE28: 17 | DF28: 5.6 | DG28: 5.6 | DH28: 6.3 | DI28: 4.6 | DJ28: 12.5 | DK28: 10.8 | DL28: 19.9 | DM28: 17.3 | DN28: 22.6 | DO28: 15.6 | DP28: 13 | DQ28: 5.6 | DR28: 9.1 | DS28: 7.7
A29: 27 | B29: =IF(O29>Gegevens!$F$23,0,Gegevens!$F$23-O29) -> 10.1 | C29: =IF(P29>Gegevens!$F$23,0,Gegevens!$F$23-P29) -> 3.3 | D29: =IF(Q29>Gegevens!$F$23,0,Gegevens!$F$23-Q29) -> 7.2 | E29: =IF(R29>Gegevens!$F$23,0,Gegevens!$F$23-R29) -> 5.2 | F29: =IF(S29>Gegevens!$F$23,0,Gegevens!$F$23-S29) -> 0 | G29: =IF(T29>Gegevens!$F$23,0,Gegevens!$F$23-T29) -> 0 | H29: =IF(U29>Gegevens!$F$23,0,Gegevens!$F$23-U29) -> 0 | I29: =IF(V29>Gegevens!$F$23,0,Gegevens!$F$23-V29) -> 0 | J29: =IF(W29>Gegevens!$F$23,0,Gegevens!$F$23-W29) -> 0 | K29: =IF(X29>Gegevens!$F$23,0,Gegevens!$F$23-X29) -> 6.3 | L29: =IF(Y29>Gegevens!$F$23,0,Gegevens!$F$23-Y29) -> 4.8 | M29: =IF(Z29>Gegevens!$F$23,0,Gegevens!$F$23-Z29) -> 8.8 | O29: =INDEX($AB$3:$DS$33,$A29,12*Gegevens!$B$19-O$36)-(1*O$35) -> 4.9 | P29: =INDEX($AB$3:$DS$33,$A29,12*Gegevens!$B$19-P$36)-(1*P$35) -> 11.7 | Q29: =INDEX($AB$3:$DS$33,$A29,12*Gegevens!$B$19-Q$36)-(1*Q$35) -> 7.8 | R29: =INDEX($AB$3:$DS$33,$A29,12*Gegevens!$B$19-R$36)-(1*R$35) -> 9.8 | S29: =INDEX($AB$3:$DS$33,$A29,12*Gegevens!$B$19-S$36)-(1*S$35) -> 15.3 | T29: =INDEX($AB$3:$DS$33,$A29,12*Gegevens!$B$19-T$36)-(1*T$35) -> 19.7 | U29: =INDEX($AB$3:$DS$33,$A29,12*Gegevens!$B$19-U$36)-(1*U$35) -> 19.1 | V29: =INDEX($AB$3:$DS$33,$A29,12*Gegevens!$B$19-V$36)-(1*V$35) -> 25.9 | W29: =INDEX($AB$3:$DS$33,$A29,12*Gegevens!$B$19-W$36)-(1*W$35) -> 15.2 | X29: =INDEX($AB$3:$DS$33,$A29,12*Gegevens!$B$19-X$36)-(1*X$35) -> 8.7 | Y29: =INDEX($AB$3:$DS$33,$A29,12*Gegevens!$B$19-Y$36)-(1*Y$35) -> 10.2 | Z29: =INDEX($AB$3:$DS$33,$A29,12*Gegevens!$B$19-Z$36)-(1*Z$35) -> 6.2 | AB29: 4.9 | AC29: 11.7 | AD29: 7.8 | AE29: 9.8 | AF29: 15.3 | AG29: 19.7 | AH29: 19.1 | AI29: 25.9 | AJ29: 15.2 | AK29: 8.7 | AL29: 10.2 | AM29: 6.2 | AN29: 4.4 | AO29: -4.4 | AP29: 6.4 | AQ29: 12.4 | AR29: 21.7 | AS29: 20.6 | AT29: 27.1 | AU29: 16.8 | AV29: 14.2 | AW29: 5.8 | AX29: 4.6 | AY29: 1.5 | AZ29: 3 | BA29: 9 | BB29: 11.3 | BC29: 5.8 | BD29: 23.5 | BE29: 17.5 | BF29: 17.9 | BG29: 20.4 | BH29: 15.2 | BI29: 11.4 | BJ29: 5.9 | BK29: 4.8 | BL29: 10 | BM29: 2.9 | BN29: 8.7 | BO29: 4.4 | BP29: 17.1 | BQ29: 15 | BR29: 17.5 | BS29: 23.6 | BT29: 14.9 | BU29: 10.6 | BV29: 5.5 | BW29: 2.8 | BX29: 3.8 | BY29: 4.4 | BZ29: 6.2 | CA29: 9.2 | CB29: 14.5 | CC29: 21.8 | CD29: 16.1 | CE29: 15 | CF29: 12.1 | CG29: 12.5 | CH29: 3.6 | CI29: 10.4 | CJ29: 3.4 | CK29: 4.9 | CL29: 5.9 | CM29: 12 | CN29: 14.2 | CO29: 17 | CP29: 21.2 | CQ29: 15.5 | CR29: 16.7 | CS29: 12.9 | CT29: 9.7 | CU29: 1.1 | CV29: 4.2 | CW29: 0.6 | CX29: 1.7 | CY29: 7.4 | CZ29: 12.5 | DA29: 12.6 | DB29: 21.6 | DC29: 18.8 | DD29: 11.7 | DE29: 14.5 | DF29: 4.1 | DG29: 7.9 | DH29: 4.8 | DI29: 5.6 | DJ29: 12.8 | DK29: 12.3 | DL29: 20.8 | DM29: 19.9 | DN29: 22.8 | DO29: 17.9 | DP29: 12.5 | DQ29: 3.6 | DR29: 6.7 | DS29: 7.7
A30: 28 | B30: =IF(O30>Gegevens!$F$23,0,Gegevens!$F$23-O30) -> 12.4 | C30: =IF(P30>Gegevens!$F$23,0,Gegevens!$F$23-P30) -> 6.4 | D30: =IF(Q30>Gegevens!$F$23,0,Gegevens!$F$23-Q30) -> 5.9 | E30: =IF(R30>Gegevens!$F$23,0,Gegevens!$F$23-R30) -> 6.6 | F30: =IF(S30>Gegevens!$F$23,0,Gegevens!$F$23-S30) -> 3.2 | G30: =IF(T30>Gegevens!$F$23,0,Gegevens!$F$23-T30) -> 0 | H30: =IF(U30>Gegevens!$F$23,0,Gegevens!$F$23-U30) -> 0 | I30: =IF(V30>Gegevens!$F$23,0,Gegevens!$F$23-V30) -> 0 | J30: =IF(W30>Gegevens!$F$23,0,Gegevens!$F$23-W30) -> 0.7 | K30: =IF(X30>Gegevens!$F$23,0,Gegevens!$F$23-X30) -> 7.2 | L30: =IF(Y30>Gegevens!$F$23,0,Gegevens!$F$23-Y30) -> 5.9 | M30: =IF(Z30>Gegevens!$F$23,0,Gegevens!$F$23-Z30) -> 11.6 | O30: =INDEX($AB$3:$DS$33,$A30,12*Gegevens!$B$19-O$36)-(1*O$35) -> 2.6 | P30: =INDEX($AB$3:$DS$33,$A30,12*Gegevens!$B$19-P$36)-(1*P$35) -> 8.6 | Q30: =INDEX($AB$3:$DS$33,$A30,12*Gegevens!$B$19-Q$36)-(1*Q$35) -> 9.1 | R30: =INDEX($AB$3:$DS$33,$A30,12*Gegevens!$B$19-R$36)-(1*R$35) -> 8.4 | S30: =INDEX($AB$3:$DS$33,$A30,12*Gegevens!$B$19-S$36)-(1*S$35) -> 11.8 | T30: =INDEX($AB$3:$DS$33,$A30,12*Gegevens!$B$19-T$36)-(1*T$35) -> 19.8 | U30: =INDEX($AB$3:$DS$33,$A30,12*Gegevens!$B$19-U$36)-(1*U$35) -> 17.2 | V30: =INDEX($AB$3:$DS$33,$A30,12*Gegevens!$B$19-V$36)-(1*V$35) -> 23 | W30: =INDEX($AB$3:$DS$33,$A30,12*Gegevens!$B$19-W$36)-(1*W$35) -> 14.3 | X30: =INDEX($AB$3:$DS$33,$A30,12*Gegevens!$B$19-X$36)-(1*X$35) -> 7.8 | Y30: =INDEX($AB$3:$DS$33,$A30,12*Gegevens!$B$19-Y$36)-(1*Y$35) -> 9.1 | Z30: =INDEX($AB$3:$DS$33,$A30,12*Gegevens!$B$19-Z$36)-(1*Z$35) -> 3.4 | AB30: 2.6 | AC30: 8.6 | AD30: 9.1 | AE30: 8.4 | AF30: 11.8 | AG30: 19.8 | AH30: 17.2 | AI30: 23 | AJ30: 14.3 | AK30: 7.8 | AL30: 9.1 | AM30: 3.4 | AN30: 8.5 | AO30: -5.6 | AP30: 6.3 | AQ30: 12.5 | AR30: 23.3 | AS30: 22.5 | AT30: 21.2 | AU30: 17.1 | AV30: 12.2 | AW30: 4 | AX30: 7.7 | AY30: 0.1 | AZ30: 7.6 | BA30: 5.1 | BB30: 13.2 | BC30: 7.8 | BD30: 22.2 | BE30: 18.4 | BF30: 17.1 | BG30: 21.6 | BH30: 16.6 | BI30: 10.1 | BJ30: 4.4 | BK30: 2.3 | BL30: 6 | BM30: 2.3 | BN30: 8.3 | BO30: 4.8 | BP30: 17.5 | BQ30: 16.6 | BR30: 18.6 | BS30: 20.9 | BT30: 17.9 | BU30: 12 | BV30: 1.8 | BW30: 0.7 | BX30: 4.7 | BY30: 4.8 | BZ30: 8.5 | CA30: 7.8 | CB30: 14.3 | CC30: 18.6 | CD30: 14.7 | CE30: 15.5 | CF30: 12 | CG30: 12.8 | CH30: 6.1 | CI30: 9.6 | CJ30: 4.1 | CK30: 5.2 | CL30: 10.5 | CM30: 13.1 | CN30: 13.1 | CO30: 15.3 | CP30: 18.2 | CQ30: 17.2 | CR30: 17.2 | CS30: 9.8 | CT30: 8.9 | CU30: -3.8 | CV30: 5.4 | CW30: 1.2 | CX30: 1.8 | CY30: 8.2 | CZ30: 13.2 | DA30: 13.6 | DB30: 20.1 | DC30: 17.5 | DD30: 13.5 | DE30: 14 | DF30: 6.1 | DG30: 6.8 | DH30: 3.8 | DI30: 8.3 | DJ30: 12.7 | DK30: 13.3 | DL30: 20.5 | DM30: 23.8 | DN30: 19.3 | DO30: 18.8 | DP30: 13.1 | DQ30: 4.1 | DR30: 5.9 | DS30: 7.4
A31: 29 | B31: =IF(O31>Gegevens!$F$23,0,Gegevens!$F$23-O31) -> 13.6 | C31: =IF(P31>Gegevens!$F$23,0,Gegevens!$F$23-P31) -> 0 | D31: =IF(Q31>Gegevens!$F$23,0,Gegevens!$F$23-Q31) -> 3.9 | E31: =IF(R31>Gegevens!$F$23,0,Gegevens!$F$23-R31) -> 4.6 | F31: =IF(S31>Gegevens!$F$23,0,Gegevens!$F$23-S31) -> 1 | G31: =IF(T31>Gegevens!$F$23,0,Gegevens!$F$23-T31) -> 0 | H31: =IF(U31>Gegevens!$F$23,0,Gegevens!$F$23-U31) -> 0 | I31: =IF(V31>Gegevens!$F$23,0,Gegevens!$F$23-V31) -> 0 | J31: =IF(W31>Gegevens!$F$23,0,Gegevens!$F$23-W31) -> 0 | K31: =IF(X31>Gegevens!$F$23,0,Gegevens!$F$23-X31) -> 7.2 | L31: =IF(Y31>Gegevens!$F$23,0,Gegevens!$F$23-Y31) -> 9.3 | M31: =IF(Z31>Gegevens!$F$23,0,Gegevens!$F$23-Z31) -> 12.8 | O31: =INDEX($AB$3:$DS$33,$A31,12*Gegevens!$B$19-O$36)-(1*O$35) -> 1.4 | P31: =IF(I1=1,INDEX($AB$3:$DS$33,$A25,12*Gegevens!$B$19-P$36)-(1*P$35),"") ->  | Q31: =INDEX($AB$3:$DS$33,$A31,12*Gegevens!$B$19-Q$36)-(1*Q$35) -> 11.1 | R31: =INDEX($AB$3:$DS$33,$A31,12*Gegevens!$B$19-R$36)-(1*R$35) -> 10.4 | S31: =INDEX($AB$3:$DS$33,$A31,12*Gegevens!$B$19-S$36)-(1*S$35) -> 14 | T31: =INDEX($AB$3:$DS$33,$A31,12*Gegevens!$B$19-T$36)-(1*T$35) -> 25.3 | U31: =INDEX($AB$3:$DS$33,$A31,12*Gegevens!$B$19-U$36)-(1*U$35) -> 19.2 | V31: =INDEX($AB$3:$DS$33,$A31,12*Gegevens!$B$19-V$36)-(1*V$35) -> 18.8 | W31: =INDEX($AB$3:$DS$33,$A31,12*Gegevens!$B$19-W$36)-(1*W$35) -> 15.1 | X31: =INDEX($AB$3:$DS$33,$A31,12*Gegevens!$B$19-X$36)-(1*X$35) -> 7.8 | Y31: =INDEX($AB$3:$DS$33,$A31,12*Gegevens!$B$19-Y$36)-(1*Y$35) -> 5.7 | Z31: =INDEX($AB$3:$DS$33,$A31,12*Gegevens!$B$19-Z$36)-(1*Z$35) -> 2.2 | AB31: 1.4 | AD31: 11.1 | AE31: 10.4 | AF31: 14 | AG31: 25.3 | AH31: 19.2 | AI31: 18.8 | AJ31: 15.1 | AK31: 7.8 | AL31: 5.7 | AM31: 2.2 | AN31: 9 | AP31: 6.9 | AQ31: 10.1 | AR31: 20.6 | AS31: 22.6 | AT31: 22 | AU31: 16.5 | AV31: 9.7 | AW31: 3.9 | AX31: 10.7 | AY31: 4.7 | AZ31: 4.7 | BB31: 12.6 | BC31: 9.2 | BD31: 24 | BE31: 17.2 | BF31: 21.5 | BG31: 24.5 | BH31: 18.6 | BI31: 10.2 | BJ31: 2.4 | BK31: 2.5 | BL31: 7.3 | BM31: 2.4 | BN31: 7.8 | BO31: 6.8 | BP31: 16.3 | BQ31: 15.8 | BR31: 18.6 | BS31: 17.9 | BT31: 15.8 | BU31: 11.7 | BV31: -0.9 | BW31: -0.6 | BX31: 2.5 | BZ31: 9.9 | CA31: 9.5 | CB31: 11 | CC31: 19.3 | CD31: 15 | CE31: 18.9 | CF31: 12.2 | CG31: 11 | CH31: 9.8 | CI31: 8.8 | CJ31: 3.4 | CL31: 14 | CM31: 13.6 | CN31: 14.3 | CO31: 14.2 | CP31: 19.2 | CQ31: 16.8 | CR31: 16.4 | CS31: 10.4 | CT31: 4.4 | CU31: 0.6 | CV31: 10.6 | CX31: -0.4 | CY31: 8.7 | CZ31: 9.4 | DA31: 14.5 | DB31: 19.5 | DC31: 17.2 | DD31: 13.6 | DE31: 9.6 | DF31: 6.3 | DG31: 5.1 | DH31: -0.4 | DI31: 8.2 | DJ31: 9.2 | DK31: 13.8 | DL31: 18.6 | DM31: 18.3 | DN31: 15.8 | DO31: 18.6 | DP31: 12.1 | DQ31: 6.4 | DR31: 4.7 | DS31: 10.7
A32: 30 | B32: =IF(O32>Gegevens!$F$23,0,Gegevens!$F$23-O32) -> 14.9 | D32: =IF(Q32>Gegevens!$F$23,0,Gegevens!$F$23-Q32) -> 1.8 | E32: =IF(R32>Gegevens!$F$23,0,Gegevens!$F$23-R32) -> 3.6 | F32: =IF(S32>Gegevens!$F$23,0,Gegevens!$F$23-S32) -> 0 | G32: =IF(T32>Gegevens!$F$23,0,Gegevens!$F$23-T32) -> 0 | H32: =IF(U32>Gegevens!$F$23,0,Gegevens!$F$23-U32) -> 0 | I32: =IF(V32>Gegevens!$F$23,0,Gegevens!$F$23-V32) -> 0 | J32: =IF(W32>Gegevens!$F$23,0,Gegevens!$F$23-W32) -> 0.5 | K32: =IF(X32>Gegevens!$F$23,0,Gegevens!$F$23-X32) -> 9.9 | L32: =IF(Y32>Gegevens!$F$23,0,Gegevens!$F$23-Y32) -> 12.2 | M32: =IF(Z32>Gegevens!$F$23,0,Gegevens!$F$23-Z32) -> 9.9 | O32: =INDEX($AB$3:$DS$33,$A32,12*Gegevens!$B$19-O$36)-(1*O$35) -> 0.1 | Q32: =INDEX($AB$3:$DS$33,$A32,12*Gegevens!$B$19-Q$36)-(1*Q$35) -> 13.2 | R32: =INDEX($AB$3:$DS$33,$A32,12*Gegevens!$B$19-R$36)-(1*R$35) -> 11.4 | S32: =INDEX($AB$3:$DS$33,$A32,12*Gegevens!$B$19-S$36)-(1*S$35) -> 16.7 | T32: =INDEX($AB$3:$DS$33,$A32,12*Gegevens!$B$19-T$36)-(1*T$35) -> 22.8 | U32: =INDEX($AB$3:$DS$33,$A32,12*Gegevens!$B$19-U$36)-(1*U$35) -> 21 | V32: =INDEX($AB$3:$DS$33,$A32,12*Gegevens!$B$19-V$36)-(1*V$35) -> 17.1 | W32: =INDEX($AB$3:$DS$33,$A32,12*Gegevens!$B$19-W$36)-(1*W$35) -> 14.5 | X32: =INDEX($AB$3:$DS$33,$A32,12*Gegevens!$B$19-X$36)-(1*X$35) -> 5.1 | Y32: =INDEX($AB$3:$DS$33,$A32,12*Gegevens!$B$19-Y$36)-(1*Y$35) -> 2.8 | Z32: =INDEX($AB$3:$DS$33,$A32,12*Gegevens!$B$19-Z$36)-(1*Z$35) -> 5.1 | AB32: 0.1 | AD32: 13.2 | AE32: 11.4 | AF32: 16.7 | AG32: 22.8 | AH32: 21 | AI32: 17.1 | AJ32: 14.5 | AK32: 5.1 | AL32: 2.8 | AM32: 5.1 | AN32: 5.6 | AP32: 7.8 | AQ32: 8.6 | AR32: 21.1 | AS32: 23 | AT32: 23.7 | AU32: 16.2 | AV32: 10.3 | AW32: 5.1 | AX32: 9.7 | AY32: 6.1 | AZ32: 5.9 | BB32: 16.7 | BC32: 13.9 | BD32: 18.2 | BE32: 17.5 | BF32: 20.3 | BG32: 19.4 | BH32: 13.4 | BI32: 7.1 | BJ32: 1.2 | BK32: 9.9 | BL32: 6.3 | BN32: 8.7 | BO32: 7.4 | BP32: 13.5 | BQ32: 16.1 | BR32: 17.6 | BS32: 17.2 | BT32: 14.1 | BU32: 10.5 | BV32: 0.1 | BW32: -0.1 | BX32: 1.1 | BZ32: 8.1 | CB32: 11.4 | CC32: 19.1 | CD32: 13.2 | CE32: 23.9 | CF32: 12.2 | CG32: 11 | CH32: 9.9 | CI32: 7.5 | CJ32: 4.2 | CL32: 16.1 | CM32: 13.7 | CN32: 13.6 | CO32: 14.9 | CP32: 18.3 | CQ32: 15.8 | CR32: 17.2 | CS32: 13.5 | CT32: 1.7 | CU32: 2.1 | CV32: 11.2 | CX32: 0.8 | CY32: 10.1 | CZ32: 11.1 | DA32: 16.4 | DB32: 17.6 | DC32: 17.3 | DD32: 12.3 | DE32: 8.8 | DF32: 6 | DG32: 5.1 | DH32: -1.3 | DJ32: 7.3 | DK32: 15.6 | DL32: 17.2 | DM32: 19.5 | DN32: 14.1 | DO32: 16.2 | DP32: 11.2 | DQ32: 6.9 | DR32: 1 | DS32: 7.2
A33: 31 | B33: =IF(O33>Gegevens!$F$23,0,Gegevens!$F$23-O33) -> 17.1 | D33: =IF(Q33>Gegevens!$F$23,0,Gegevens!$F$23-Q33) -> 4.9 | F33: =IF(S33>Gegevens!$F$23,0,Gegevens!$F$23-S33) -> 0 | H33: =IF(U33>Gegevens!$F$23,0,Gegevens!$F$23-U33) -> 0 | I33: =IF(V33>Gegevens!$F$23,0,Gegevens!$F$23-V33) -> 0 | K33: =IF(X33>Gegevens!$F$23,0,Gegevens!$F$23-X33) -> 10 | M33: =IF(Z33>Gegevens!$F$23,0,Gegevens!$F$23-Z33) -> 11.4 | O33: =INDEX($AB$3:$DS$33,$A33,12*Gegevens!$B$19-O$36)-(1*O$35) -> -2.1 | Q33: =INDEX($AB$3:$DS$33,$A33,12*Gegevens!$B$19-Q$36)-(1*Q$35) -> 10.1 | S33: =INDEX($AB$3:$DS$33,$A33,12*Gegevens!$B$19-S$36)-(1*S$35) -> 16.5 | U33: =INDEX($AB$3:$DS$33,$A33,12*Gegevens!$B$19-U$36)-(1*U$35) -> 18.1 | V33: =INDEX($AB$3:$DS$33,$A33,12*Gegevens!$B$19-V$36)-(1*V$35) -> 21 | X33: =INDEX($AB$3:$DS$33,$A33,12*Gegevens!$B$19-X$36)-(1*X$35) -> 5 | Z33: =INDEX($AB$3:$DS$33,$A33,12*Gegevens!$B$19-Z$36)-(1*Z$35) -> 3.6 | AB33: -2.1 | AD33: 10.1 | AF33: 16.5 | AH33: 18.1 | AI33: 21 | AK33: 5 | AM33: 3.6 | AN33: 7.1 | AP33: 6.8 | AR33: 21.5 | AT33: 22.7 | AU33: 15.4 | AW33: 7.7 | AY33: 8.4 | AZ33: 1.9 | BB33: 15.4 | BD33: 17.4 | BF33: 18.8 | BG33: 15 | BI33: 8.7 | BK33: 11.3 | BL33: 7 | BN33: 7 | BP33: 15.1 | BR33: 16.9 | BS33: 18.8 | BU33: 10.9 | BW33: -2.7 | BX33: 1.5 | BZ33: 9.9 | CB33: 13.3 | CD33: 14.9 | CE33: 21.6 | CG33: 11 | CI33: 8.2 | CJ33: 4.4 | CL33: 16.3 | CN33: 14.3 | CP33: 19.2 | CQ33: 14.9 | CS33: 15.3 | CU33: 2.3 | CV33: 7.5 | CX33: 0.9 | CZ33: 13.1 | DB33: 19.9 | DC33: 17 | DE33: 10.1 | DG33: 6.8 | DH33: -2.2 | DJ33: 7.1 | DL33: 16.4 | DN33: 16 | DO33: 13.8 | DQ33: 8.6 | DS33: 8.6
B34: =SUM(B3:B33) -> 372.2 | C34: =SUM(C3:C33) -> 224 | D34: 202.5 | E34: 136.1 | F34: 101.3 | G34: 7.4 | H34: 0.2 | I34: 0.9 | J34: 18.3 | K34: 99.7 | L34: 253 | M34: 281.2 | N34: =SUM(B34:M34) -> 1696.8
B35: =MAX(0,INDEX($EF$3:$EQ$10,Gegevens!$B$19,B36)*INDEX($EA$3:$EA$26,Gegevens!$B$21)+INDEX($EB$3:$EB$26,Gegevens!$B$21)) -> 372.2 | C35: =MAX(0,INDEX($EF$3:$EQ$10,Gegevens!$B$19,C36)*INDEX($EA$3:$EA$26,Gegevens!$B$21)+INDEX($EB$3:$EB$26,Gegevens!$B$21)) -> 224 | D35: =MAX(0,INDEX($EF$3:$EQ$10,Gegevens!$B$19,D36)*INDEX($EA$3:$EA$26,Gegevens!$B$21)+INDEX($EB$3:$EB$26,Gegevens!$B$21)) -> 202.5 | E35: =MAX(0,INDEX($EF$3:$EQ$10,Gegevens!$B$19,E36)*INDEX($EA$3:$EA$26,Gegevens!$B$21)+INDEX($EB$3:$EB$26,Gegevens!$B$21)) -> 136.1 | F35: =MAX(0,INDEX($EF$3:$EQ$10,Gegevens!$B$19,F36)*INDEX($EA$3:$EA$26,Gegevens!$B$21)+INDEX($EB$3:$EB$26,Gegevens!$B$21)) -> 101.3 | G35: =MAX(0,INDEX($EF$3:$EQ$10,Gegevens!$B$19,G36)*INDEX($EA$3:$EA$26,Gegevens!$B$21)+INDEX($EB$3:$EB$26,Gegevens!$B$21)) -> 7.4 | H35: =MAX(0,INDEX($EF$3:$EQ$10,Gegevens!$B$19,H36)*INDEX($EA$3:$EA$26,Gegevens!$B$21)+INDEX($EB$3:$EB$26,Gegevens!$B$21)) -> 0.2 | I35: =MAX(0,INDEX($EF$3:$EQ$10,Gegevens!$B$19,I36)*INDEX($EA$3:$EA$26,Gegevens!$B$21)+INDEX($EB$3:$EB$26,Gegevens!$B$21)) -> 0.9 | J35: =MAX(0,INDEX($EF$3:$EQ$10,Gegevens!$B$19,J36)*INDEX($EA$3:$EA$26,Gegevens!$B$21)+INDEX($EB$3:$EB$26,Gegevens!$B$21)) -> 18.3 | K35: =MAX(0,INDEX($EF$3:$EQ$10,Gegevens!$B$19,K36)*INDEX($EA$3:$EA$26,Gegevens!$B$21)+INDEX($EB$3:$EB$26,Gegevens!$B$21)) -> 99.7 | L35: =MAX(0,INDEX($EF$3:$EQ$10,Gegevens!$B$19,L36)*INDEX($EA$3:$EA$26,Gegevens!$B$21)+INDEX($EB$3:$EB$26,Gegevens!$B$21)) -> 253 | M35: =MAX(0,INDEX($EF$3:$EQ$10,Gegevens!$B$19,M36)*INDEX($EA$3:$EA$26,Gegevens!$B$21)+INDEX($EB$3:$EB$26,Gegevens!$B$21)) -> 281.2 | N35: =SUM(B35:M35) -> 1696.8 | O35: 0 | P35: 0 | Q35: 0 | R35: 0 | S35: 0 | T35: 0 | U35: 0 | V35: 0 | W35: 0 | X35: 0 | Y35: 0 | Z35: 0
B36: 1 | C36: 2 | D36: 3 | E36: 4 | F36: 5 | G36: 6 | H36: 7 | I36: 8 | J36: 9 | K36: 10 | L36: 11 | M36: 12 | O36: 11 | P36: 10 | Q36: 9 | R36: 8 | S36: 7 | T36: 6 | U36: 5 | V36: 4 | W36: 3 | X36: 2 | Y36: 1 | Z36: 0
A38: kWh gas nodig volgens facturen en metingen
B39: 1 | C39: 2 | D39: 3 | E39: 4 | F39: 5 | G39: 6 | H39: 7 | I39: 8 | J39: 9 | K39: 10 | L39: 11 | M39: 12
A40: dagen | B40: januari | C40: februari | D40: maart | E40: april | F40: mei | G40: juni | H40: juli | I40: augustus | J40: september | K40: oktober | L40: november | M40: december | P40: dagen | Q40: januari | R40: februari | S40: maart | T40: april | U40: mei | V40: juni | W40: juli | X40: augustus | Y40: september | Z40: oktober | AA40: november | AB40: december
A41: 1 | B41: =IF(INDEX(Brandstoffacturen!$B$22:$B$29,GD!Q41)=0,0,(B3*Brandstoffacturen!$P$3+Brandstoffacturen!$G$3)*(1+INDEX(Brandstoffacturen!$F$3:$F$14,B$39))*(1-INDEX(Brandstoffacturen!$L$3:$L$14,B$39))*INDEX(Gegevens!$T$40:$T$49,GD!Q41)) -> 2365.895038 | C41: =IF(INDEX(Brandstoffacturen!$B$22:$B$29,GD!R41)=0,0,(C3*Brandstoffacturen!$P$3+Brandstoffacturen!$G$3)*(1+INDEX(Brandstoffacturen!$F$3:$F$14,C$39))*(1-INDEX(Brandstoffacturen!$L$3:$L$14,C$39))*INDEX(Gegevens!$T$40:$T$49,GD!R41)) -> 3334.927091 | D41: =IF(INDEX(Brandstoffacturen!$B$22:$B$29,GD!S41)=0,0,(D3*Brandstoffacturen!$P$3+Brandstoffacturen!$G$3)*(1+INDEX(Brandstoffacturen!$F$3:$F$14,D$39))*(1-INDEX(Brandstoffacturen!$L$3:$L$14,D$39))*INDEX(Gegevens!$T$40:$T$49,GD!S41)) -> 2913.573117 | E41: =IF(INDEX(Brandstoffacturen!$B$22:$B$29,GD!T41)=0,0,(E3*Brandstoffacturen!$P$3+Brandstoffacturen!$G$3)*(1+INDEX(Brandstoffacturen!$F$3:$F$14,E$39))*(1-INDEX(Brandstoffacturen!$L$3:$L$14,E$39))*INDEX(Gegevens!$T$40:$T$49,GD!T41)) -> 1861.459934 | F41: =IF(INDEX(Brandstoffacturen!$B$22:$B$29,GD!U41)=0,0,(F3*Brandstoffacturen!$P$3+Brandstoffacturen!$G$3)*(1+INDEX(Brandstoffacturen!$F$3:$F$14,F$39))*(1-INDEX(Brandstoffacturen!$L$3:$L$14,F$39))*INDEX(Gegevens!$T$40:$T$49,GD!U41)) -> 1924.236482 | G41: =IF(INDEX(Brandstoffacturen!$B$22:$B$29,GD!V41)=0,0,(G3*Brandstoffacturen!$P$3+Brandstoffacturen!$G$3)*(1+INDEX(Brandstoffacturen!$F$3:$F$14,G$39))*(1-INDEX(Brandstoffacturen!$L$3:$L$14,G$39))*INDEX(Gegevens!$T$40:$T$49,GD!V41)) -> 1423.423735 | H41: =IF(INDEX(Brandstoffacturen!$B$22:$B$29,GD!W41)=0,0,(H3*Brandstoffacturen!$P$3+Brandstoffacturen!$G$3)*(1+INDEX(Brandstoffacturen!$F$3:$F$14,H$39))*(1-INDEX(Brandstoffacturen!$L$3:$L$14,H$39))*INDEX(Gegevens!$T$40:$T$49,GD!W41)) -> 1444.565063 | I41: =IF(INDEX(Brandstoffacturen!$B$22:$B$29,GD!X41)=0,0,(I3*Brandstoffacturen!$P$3+Brandstoffacturen!$G$3)*(1+INDEX(Brandstoffacturen!$F$3:$F$14,I$39))*(1-INDEX(Brandstoffacturen!$L$3:$L$14,I$39))*INDEX(Gegevens!$T$40:$T$49,GD!X41)) -> 1622.792403 | J41: =IF(INDEX(Brandstoffacturen!$B$22:$B$29,GD!Y41)=0,0,(J3*Brandstoffacturen!$P$3+Brandstoffacturen!$G$3)*(1+INDEX(Brandstoffacturen!$F$3:$F$14,J$39))*(1-INDEX(Brandstoffacturen!$L$3:$L$14,J$39))*INDEX(Gegevens!$T$40:$T$49,GD!Y41)) -> 2088.855163 | K41: =IF(INDEX(Brandstoffacturen!$B$22:$B$29,GD!Z41)=0,0,(K3*Brandstoffacturen!$P$3+Brandstoffacturen!$G$3)*(1+INDEX(Brandstoffacturen!$F$3:$F$14,K$39))*(1-INDEX(Brandstoffacturen!$L$3:$L$14,K$39))*INDEX(Gegevens!$T$40:$T$49,GD!Z41)) -> 2247.296148 | L41: =IF(INDEX(Brandstoffacturen!$B$22:$B$29,GD!AA41)=0,0,(L3*Brandstoffacturen!$P$3+Brandstoffacturen!$G$3)*(1+INDEX(Brandstoffacturen!$F$3:$F$14,L$39))*(1-INDEX(Brandstoffacturen!$L$3:$L$14,L$39))*INDEX(Gegevens!$T$40:$T$49,GD!AA41)) -> 2281.312647 | M41: =IF(INDEX(Brandstoffacturen!$B$22:$B$29,GD!AB41)=0,0,(M3*Brandstoffacturen!$P$3+Brandstoffacturen!$G$3)*(1+INDEX(Brandstoffacturen!$F$3:$F$14,M$39))*(1-INDEX(Brandstoffacturen!$L$3:$L$14,M$39))*INDEX(Gegevens!$T$40:$T$49,GD!AB41)) -> 3162.606318 | P41: 1 | Q41: =IF(OR(AND($A41=1,B$39=1),AND($A41=Titels!$O$12,B$39=Titels!$P$12),AND($A41=1,B$39=5),AND($A41=Titels!$O$14,B$39=Titels!$P$14),AND($A41=Titels!$O$15,B$39=Titels!$P$15),AND($A41=21,B$39=7),AND($A41=15,B$39=8),AND($A41=1,B$39=11),AND($A41=11,B$39=11),AND($A41=25,B$39=12)),8,WEEKDAY(CONCATENATE($P41,"/",B$39,"/",$B$1),2)) -> 8 | R41: =IF(OR(AND($A41=1,C$39=1),AND($A41=Titels!$O$12,C$39=Titels!$P$12),AND($A41=1,C$39=5),AND($A41=Titels!$O$14,C$39=Titels!$P$14),AND($A41=Titels!$O$15,C$39=Titels!$P$15),AND($A41=21,C$39=7),AND($A41=15,C$39=8),AND($A41=1,C$39=11),AND($A41=11,C$39=11),AND($A41=25,C$39=12)),8,WEEKDAY(CONCATENATE($P41,"/",C$39,"/",$B$1),2)) -> 5 | S41: =IF(OR(AND($A41=1,D$39=1),AND($A41=Titels!$O$12,D$39=Titels!$P$12),AND($A41=1,D$39=5),AND($A41=Titels!$O$14,D$39=Titels!$P$14),AND($A41=Titels!$O$15,D$39=Titels!$P$15),AND($A41=21,D$39=7),AND($A41=15,D$39=8),AND($A41=1,D$39=11),AND($A41=11,D$39=11),AND($A41=25,D$39=12)),8,WEEKDAY(CONCATENATE($P41,"/",D$39,"/",$B$1),2)) -> 5 | T41: =IF(OR(AND($A41=1,E$39=1),AND($A41=Titels!$O$12,E$39=Titels!$P$12),AND($A41=1,E$39=5),AND($A41=Titels!$O$14,E$39=Titels!$P$14),AND($A41=Titels!$O$15,E$39=Titels!$P$15),AND($A41=21,E$39=7),AND($A41=15,E$39=8),AND($A41=1,E$39=11),AND($A41=11,E$39=11),AND($A41=25,E$39=12)),8,WEEKDAY(CONCATENATE($P41,"/",E$39,"/",$B$1),2)) -> 1 | U41: =IF(OR(AND($A41=1,F$39=1),AND($A41=Titels!$O$12,F$39=Titels!$P$12),AND($A41=1,F$39=5),AND($A41=Titels!$O$14,F$39=Titels!$P$14),AND($A41=Titels!$O$15,F$39=Titels!$P$15),AND($A41=21,F$39=7),AND($A41=15,F$39=8),AND($A41=1,F$39=11),AND($A41=11,F$39=11),AND($A41=25,F$39=12)),8,WEEKDAY(CONCATENATE($P41,"/",F$39,"/",$B$1),2)) -> 8 | V41: =IF(OR(AND($A41=1,G$39=1),AND($A41=Titels!$O$12,G$39=Titels!$P$12),AND($A41=1,G$39=5),AND($A41=Titels!$O$14,G$39=Titels!$P$14),AND($A41=Titels!$O$15,G$39=Titels!$P$15),AND($A41=21,G$39=7),AND($A41=15,G$39=8),AND($A41=1,G$39=11),AND($A41=11,G$39=11),AND($A41=25,G$39=12)),8,WEEKDAY(CONCATENATE($P41,"/",G$39,"/",$B$1),2)) -> 6 | W41: =IF(OR(AND($A41=1,H$39=1),AND($A41=Titels!$O$12,H$39=Titels!$P$12),AND($A41=1,H$39=5),AND($A41=Titels!$O$14,H$39=Titels!$P$14),AND($A41=Titels!$O$15,H$39=Titels!$P$15),AND($A41=21,H$39=7),AND($A41=15,H$39=8),AND($A41=1,H$39=11),AND($A41=11,H$39=11),AND($A41=25,H$39=12)),8,WEEKDAY(CONCATENATE($P41,"/",H$39,"/",$B$1),2)) -> 1 | X41: =IF(OR(AND($A41=1,I$39=1),AND($A41=Titels!$O$12,I$39=Titels!$P$12),AND($A41=1,I$39=5),AND($A41=Titels!$O$14,I$39=Titels!$P$14),AND($A41=Titels!$O$15,I$39=Titels!$P$15),AND($A41=21,I$39=7),AND($A41=15,I$39=8),AND($A41=1,I$39=11),AND($A41=11,I$39=11),AND($A41=25,I$39=12)),8,WEEKDAY(CONCATENATE($P41,"/",I$39,"/",$B$1),2)) -> 4 | Y41: =IF(OR(AND($A41=1,J$39=1),AND($A41=Titels!$O$12,J$39=Titels!$P$12),AND($A41=1,J$39=5),AND($A41=Titels!$O$14,J$39=Titels!$P$14),AND($A41=Titels!$O$15,J$39=Titels!$P$15),AND($A41=21,J$39=7),AND($A41=15,J$39=8),AND($A41=1,J$39=11),AND($A41=11,J$39=11),AND($A41=25,J$39=12)),8,WEEKDAY(CONCATENATE($P41,"/",J$39,"/",$B$1),2)) -> 7 | Z41: =IF(OR(AND($A41=1,K$39=1),AND($A41=Titels!$O$12,K$39=Titels!$P$12),AND($A41=1,K$39=5),AND($A41=Titels!$O$14,K$39=Titels!$P$14),AND($A41=Titels!$O$15,K$39=Titels!$P$15),AND($A41=21,K$39=7),AND($A41=15,K$39=8),AND($A41=1,K$39=11),AND($A41=11,K$39=11),AND($A41=25,K$39=12)),8,WEEKDAY(CONCATENATE($P41,"/",K$39,"/",$B$1),2)) -> 2 | AA41: =IF(OR(AND($A41=1,L$39=1),AND($A41=Titels!$O$12,L$39=Titels!$P$12),AND($A41=1,L$39=5),AND($A41=Titels!$O$14,L$39=Titels!$P$14),AND($A41=Titels!$O$15,L$39=Titels!$P$15),AND($A41=21,L$39=7),AND($A41=15,L$39=8),AND($A41=1,L$39=11),AND($A41=11,L$39=11),AND($A41=25,L$39=12)),8,WEEKDAY(CONCATENATE($P41,"/",L$39,"/",$B$1),2)) -> 8 | AB41: =IF(OR(AND($A41=1,M$39=1),AND($A41=Titels!$O$12,M$39=Titels!$P$12),AND($A41=1,M$39=5),AND($A41=Titels!$O$14,M$39=Titels!$P$14),AND($A41=Titels!$O$15,M$39=Titels!$P$15),AND($A41=21,M$39=7),AND($A41=15,M$39=8),AND($A41=1,M$39=11),AND($A41=11,M$39=11),AND($A41=25,M$39=12)),8,WEEKDAY(CONCATENATE($P41,"/",M$39,"/",$B$1),2)) -> 7
A42: 2 | B42: =IF(INDEX(Brandstoffacturen!$B$22:$B$29,GD!Q42)=0,0,(B4*Brandstoffacturen!$P$3+Brandstoffacturen!$G$3)*(1+INDEX(Brandstoffacturen!$F$3:$F$14,B$39))*(1-INDEX(Brandstoffacturen!$L$3:$L$14,B$39))*INDEX(Gegevens!$T$40:$T$49,GD!Q42)) -> 2512.959258 | C42: =IF(INDEX(Brandstoffacturen!$B$22:$B$29,GD!R42)=0,0,(C4*Brandstoffacturen!$P$3+Brandstoffacturen!$G$3)*(1+INDEX(Brandstoffacturen!$F$3:$F$14,C$39))*(1-INDEX(Brandstoffacturen!$L$3:$L$14,C$39))*INDEX(Gegevens!$T$40:$T$49,GD!R42)) -> 3406.056411 | D42: =IF(INDEX(Brandstoffacturen!$B$22:$B$29,GD!S42)=0,0,(D4*Brandstoffacturen!$P$3+Brandstoffacturen!$G$3)*(1+INDEX(Brandstoffacturen!$F$3:$F$14,D$39))*(1-INDEX(Brandstoffacturen!$L$3:$L$14,D$39))*INDEX(Gegevens!$T$40:$T$49,GD!S42)) -> 2705.733595 | E42: =IF(INDEX(Brandstoffacturen!$B$22:$B$29,GD!T42)=0,0,(E4*Brandstoffacturen!$P$3+Brandstoffacturen!$G$3)*(1+INDEX(Brandstoffacturen!$F$3:$F$14,E$39))*(1-INDEX(Brandstoffacturen!$L$3:$L$14,E$39))*INDEX(Gegevens!$T$40:$T$49,GD!T42)) -> 1816.34729 | F42: =IF(INDEX(Brandstoffacturen!$B$22:$B$29,GD!U42)=0,0,(F4*Brandstoffacturen!$P$3+Brandstoffacturen!$G$3)*(1+INDEX(Brandstoffacturen!$F$3:$F$14,F$39))*(1-INDEX(Brandstoffacturen!$L$3:$L$14,F$39))*INDEX(Gegevens!$T$40:$T$49,GD!U42)) -> 2038.937978 | G42: =IF(INDEX(Brandstoffacturen!$B$22:$B$29,GD!V42)=0,0,(G4*Brandstoffacturen!$P$3+Brandstoffacturen!$G$3)*(1+INDEX(Brandstoffacturen!$F$3:$F$14,G$39))*(1-INDEX(Brandstoffacturen!$L$3:$L$14,G$39))*INDEX(Gegevens!$T$40:$T$49,GD!V42)) -> 1423.423735 | H42: =IF(INDEX(Brandstoffacturen!$B$22:$B$29,GD!W42)=0,0,(H4*Brandstoffacturen!$P$3+Brandstoffacturen!$G$3)*(1+INDEX(Brandstoffacturen!$F$3:$F$14,H$39))*(1-INDEX(Brandstoffacturen!$L$3:$L$14,H$39))*INDEX(Gegevens!$T$40:$T$49,GD!W42)) -> 1444.565063 | I42: =IF(INDEX(Brandstoffacturen!$B$22:$B$29,GD!X42)=0,0,(I4*Brandstoffacturen!$P$3+Brandstoffacturen!$G$3)*(1+INDEX(Brandstoffacturen!$F$3:$F$14,I$39))*(1-INDEX(Brandstoffacturen!$L$3:$L$14,I$39))*INDEX(Gegevens!$T$40:$T$49,GD!X42)) -> 1622.792403 | J42: =IF(INDEX(Brandstoffacturen!$B$22:$B$29,GD!Y42)=0,0,(J4*Brandstoffacturen!$P$3+Brandstoffacturen!$G$3)*(1+INDEX(Brandstoffacturen!$F$3:$F$14,J$39))*(1-INDEX(Brandstoffacturen!$L$3:$L$14,J$39))*INDEX(Gegevens!$T$40:$T$49,GD!Y42)) -> 2088.855163 | K42: =IF(INDEX(Brandstoffacturen!$B$22:$B$29,GD!Z42)=0,0,(K4*Brandstoffacturen!$P$3+Brandstoffacturen!$G$3)*(1+INDEX(Brandstoffacturen!$F$3:$F$14,K$39))*(1-INDEX(Brandstoffacturen!$L$3:$L$14,K$39))*INDEX(Gegevens!$T$40:$T$49,GD!Z42)) -> 2923.01281 | L42: =IF(INDEX(Brandstoffacturen!$B$22:$B$29,GD!AA42)=0,0,(L4*Brandstoffacturen!$P$3+Brandstoffacturen!$G$3)*(1+INDEX(Brandstoffacturen!$F$3:$F$14,L$39))*(1-INDEX(Brandstoffacturen!$L$3:$L$14,L$39))*INDEX(Gegevens!$T$40:$T$49,GD!AA42)) -> 2030.759668 | M42: =IF(INDEX(Brandstoffacturen!$B$22:$B$29,GD!AB42)=0,0,(M4*Brandstoffacturen!$P$3+Brandstoffacturen!$G$3)*(1+INDEX(Brandstoffacturen!$F$3:$F$14,M$39))*(1-INDEX(Brandstoffacturen!$L$3:$L$14,M$39))*INDEX(Gegevens!$T$40:$T$49,GD!AB42)) -> 3041.943229 | P42: 2 | Q42: =IF(OR(AND($A42=1,B$39=1),AND($A42=Titels!$O$12,B$39=Titels!$P$12),AND($A42=1,B$39=5),AND($A42=Titels!$O$14,B$39=Titels!$P$14),AND($A42=Titels!$O$15,B$39=Titels!$P$15),AND($A42=21,B$39=7),AND($A42=15,B$39=8),AND($A42=1,B$39=11),AND($A42=11,B$39=11),AND($A42=25,B$39=12)),8,WEEKDAY(CONCATENATE($P42,"/",B$39,"/",$B$1),2)) -> 3 | R42: =IF(OR(AND($A42=1,C$39=1),AND($A42=Titels!$O$12,C$39=Titels!$P$12),AND($A42=1,C$39=5),AND($A42=Titels!$O$14,C$39=Titels!$P$14),AND($A42=Titels!$O$15,C$39=Titels!$P$15),AND($A42=21,C$39=7),AND($A42=15,C$39=8),AND($A42=1,C$39=11),AND($A42=11,C$39=11),AND($A42=25,C$39=12)),8,WEEKDAY(CONCATENATE($P42,"/",C$39,"/",$B$1),2)) -> 6 | S42: =IF(OR(AND($A42=1,D$39=1),AND($A42=Titels!$O$12,D$39=Titels!$P$12),AND($A42=1,D$39=5),AND($A42=Titels!$O$14,D$39=Titels!$P$14),AND($A42=Titels!$O$15,D$39=Titels!$P$15),AND($A42=21,D$39=7),AND($A42=15,D$39=8),AND($A42=1,D$39=11),AND($A42=11,D$39=11),AND($A42=25,D$39=12)),8,WEEKDAY(CONCATENATE($P42,"/",D$39,"/",$B$1),2)) -> 6 | T42: =IF(OR(AND($A42=1,E$39=1),AND($A42=Titels!$O$12,E$39=Titels!$P$12),AND($A42=1,E$39=5),AND($A42=Titels!$O$14,E$39=Titels!$P$14),AND($A42=Titels!$O$15,E$39=Titels!$P$15),AND($A42=21,E$39=7),AND($A42=15,E$39=8),AND($A42=1,E$39=11),AND($A42=11,E$39=11),AND($A42=25,E$39=12)),8,WEEKDAY(CONCATENATE($P42,"/",E$39,"/",$B$1),2)) -> 2 | U42: =IF(OR(AND($A42=1,F$39=1),AND($A42=Titels!$O$12,F$39=Titels!$P$12),AND($A42=1,F$39=5),AND($A42=Titels!$O$14,F$39=Titels!$P$14),AND($A42=Titels!$O$15,F$39=Titels!$P$15),AND($A42=21,F$39=7),AND($A42=15,F$39=8),AND($A42=1,F$39=11),AND($A42=11,F$39=11),AND($A42=25,F$39=12)),8,WEEKDAY(CONCATENATE($P42,"/",F$39,"/",$B$1),2)) -> 4 | V42: =IF(OR(AND($A42=1,G$39=1),AND($A42=Titels!$O$12,G$39=Titels!$P$12),AND($A42=1,G$39=5),AND($A42=Titels!$O$14,G$39=Titels!$P$14),AND($A42=Titels!$O$15,G$39=Titels!$P$15),AND($A42=21,G$39=7),AND($A42=15,G$39=8),AND($A42=1,G$39=11),AND($A42=11,G$39=11),AND($A42=25,G$39=12)),8,WEEKDAY(CONCATENATE($P42,"/",G$39,"/",$B$1),2)) -> 7 | W42: =IF(OR(AND($A42=1,H$39=1),AND($A42=Titels!$O$12,H$39=Titels!$P$12),AND($A42=1,H$39=5),AND($A42=Titels!$O$14,H$39=Titels!$P$14),AND($A42=Titels!$O$15,H$39=Titels!$P$15),AND($A42=21,H$39=7),AND($A42=15,H$39=8),AND($A42=1,H$39=11),AND($A42=11,H$39=11),AND($A42=25,H$39=12)),8,WEEKDAY(CONCATENATE($P42,"/",H$39,"/",$B$1),2)) -> 2 | X42: =IF(OR(AND($A42=1,I$39=1),AND($A42=Titels!$O$12,I$39=Titels!$P$12),AND($A42=1,I$39=5),AND($A42=Titels!$O$14,I$39=Titels!$P$14),AND($A42=Titels!$O$15,I$39=Titels!$P$15),AND($A42=21,I$39=7),AND($A42=15,I$39=8),AND($A42=1,I$39=11),AND($A42=11,I$39=11),AND($A42=25,I$39=12)),8,WEEKDAY(CONCATENATE($P42,"/",I$39,"/",$B$1),2)) -> 5 | Y42: =IF(OR(AND($A42=1,J$39=1),AND($A42=Titels!$O$12,J$39=Titels!$P$12),AND($A42=1,J$39=5),AND($A42=Titels!$O$14,J$39=Titels!$P$14),AND($A42=Titels!$O$15,J$39=Titels!$P$15),AND($A42=21,J$39=7),AND($A42=15,J$39=8),AND($A42=1,J$39=11),AND($A42=11,J$39=11),AND($A42=25,J$39=12)),8,WEEKDAY(CONCATENATE($P42,"/",J$39,"/",$B$1),2)) -> 1 | Z42: =IF(OR(AND($A42=1,K$39=1),AND($A42=Titels!$O$12,K$39=Titels!$P$12),AND($A42=1,K$39=5),AND($A42=Titels!$O$14,K$39=Titels!$P$14),AND($A42=Titels!$O$15,K$39=Titels!$P$15),AND($A42=21,K$39=7),AND($A42=15,K$39=8),AND($A42=1,K$39=11),AND($A42=11,K$39=11),AND($A42=25,K$39=12)),8,WEEKDAY(CONCATENATE($P42,"/",K$39,"/",$B$1),2)) -> 3 | AA42: =IF(OR(AND($A42=1,L$39=1),AND($A42=Titels!$O$12,L$39=Titels!$P$12),AND($A42=1,L$39=5),AND($A42=Titels!$O$14,L$39=Titels!$P$14),AND($A42=Titels!$O$15,L$39=Titels!$P$15),AND($A42=21,L$39=7),AND($A42=15,L$39=8),AND($A42=1,L$39=11),AND($A42=11,L$39=11),AND($A42=25,L$39=12)),8,WEEKDAY(CONCATENATE($P42,"/",L$39,"/",$B$1),2)) -> 6 | AB42: =IF(OR(AND($A42=1,M$39=1),AND($A42=Titels!$O$12,M$39=Titels!$P$12),AND($A42=1,M$39=5),AND($A42=Titels!$O$14,M$39=Titels!$P$14),AND($A42=Titels!$O$15,M$39=Titels!$P$15),AND($A42=21,M$39=7),AND($A42=15,M$39=8),AND($A42=1,M$39=11),AND($A42=11,M$39=11),AND($A42=25,M$39=12)),8,WEEKDAY(CONCATENATE($P42,"/",M$39,"/",$B$1),2)) -> 1
A43: 3 | B43: =IF(INDEX(Brandstoffacturen!$B$22:$B$29,GD!Q43)=0,0,(B5*Brandstoffacturen!$P$3+Brandstoffacturen!$G$3)*(1+INDEX(Brandstoffacturen!$F$3:$F$14,B$39))*(1-INDEX(Brandstoffacturen!$L$3:$L$14,B$39))*INDEX(Gegevens!$T$40:$T$49,GD!Q43)) -> 2591.393509 | C43: =IF(INDEX(Brandstoffacturen!$B$22:$B$29,GD!R43)=0,0,(C5*Brandstoffacturen!$P$3+Brandstoffacturen!$G$3)*(1+INDEX(Brandstoffacturen!$F$3:$F$14,C$39))*(1-INDEX(Brandstoffacturen!$L$3:$L$14,C$39))*INDEX(Gegevens!$T$40:$T$49,GD!R43)) -> 3334.927091 | D43: =IF(INDEX(Brandstoffacturen!$B$22:$B$29,GD!S43)=0,0,(D5*Brandstoffacturen!$P$3+Brandstoffacturen!$G$3)*(1+INDEX(Brandstoffacturen!$F$3:$F$14,D$39))*(1-INDEX(Brandstoffacturen!$L$3:$L$14,D$39))*INDEX(Gegevens!$T$40:$T$49,GD!S43)) -> 2387.861387 | E43: =IF(INDEX(Brandstoffacturen!$B$22:$B$29,GD!T43)=0,0,(E5*Brandstoffacturen!$P$3+Brandstoffacturen!$G$3)*(1+INDEX(Brandstoffacturen!$F$3:$F$14,E$39))*(1-INDEX(Brandstoffacturen!$L$3:$L$14,E$39))*INDEX(Gegevens!$T$40:$T$49,GD!T43)) -> 2258.451206 | F43: =IF(INDEX(Brandstoffacturen!$B$22:$B$29,GD!U43)=0,0,(F5*Brandstoffacturen!$P$3+Brandstoffacturen!$G$3)*(1+INDEX(Brandstoffacturen!$F$3:$F$14,F$39))*(1-INDEX(Brandstoffacturen!$L$3:$L$14,F$39))*INDEX(Gegevens!$T$40:$T$49,GD!U43)) -> 2029.37952 | G43: =IF(INDEX(Brandstoffacturen!$B$22:$B$29,GD!V43)=0,0,(G5*Brandstoffacturen!$P$3+Brandstoffacturen!$G$3)*(1+INDEX(Brandstoffacturen!$F$3:$F$14,G$39))*(1-INDEX(Brandstoffacturen!$L$3:$L$14,G$39))*INDEX(Gegevens!$T$40:$T$49,GD!V43)) -> 1423.423735 | H43: =IF(INDEX(Brandstoffacturen!$B$22:$B$29,GD!W43)=0,0,(H5*Brandstoffacturen!$P$3+Brandstoffacturen!$G$3)*(1+INDEX(Brandstoffacturen!$F$3:$F$14,H$39))*(1-INDEX(Brandstoffacturen!$L$3:$L$14,H$39))*INDEX(Gegevens!$T$40:$T$49,GD!W43)) -> 1444.565063 | I43: =IF(INDEX(Brandstoffacturen!$B$22:$B$29,GD!X43)=0,0,(I5*Brandstoffacturen!$P$3+Brandstoffacturen!$G$3)*(1+INDEX(Brandstoffacturen!$F$3:$F$14,I$39))*(1-INDEX(Brandstoffacturen!$L$3:$L$14,I$39))*INDEX(Gegevens!$T$40:$T$49,GD!X43)) -> 1622.792403 | J43: =IF(INDEX(Brandstoffacturen!$B$22:$B$29,GD!Y43)=0,0,(J5*Brandstoffacturen!$P$3+Brandstoffacturen!$G$3)*(1+INDEX(Brandstoffacturen!$F$3:$F$14,J$39))*(1-INDEX(Brandstoffacturen!$L$3:$L$14,J$39))*INDEX(Gegevens!$T$40:$T$49,GD!Y43)) -> 2088.855163 | K43: =IF(INDEX(Brandstoffacturen!$B$22:$B$29,GD!Z43)=0,0,(K5*Brandstoffacturen!$P$3+Brandstoffacturen!$G$3)*(1+INDEX(Brandstoffacturen!$F$3:$F$14,K$39))*(1-INDEX(Brandstoffacturen!$L$3:$L$14,K$39))*INDEX(Gegevens!$T$40:$T$49,GD!Z43)) -> 3023.651462 | L43: =IF(INDEX(Brandstoffacturen!$B$22:$B$29,GD!AA43)=0,0,(L5*Brandstoffacturen!$P$3+Brandstoffacturen!$G$3)*(1+INDEX(Brandstoffacturen!$F$3:$F$14,L$39))*(1-INDEX(Brandstoffacturen!$L$3:$L$14,L$39))*INDEX(Gegevens!$T$40:$T$49,GD!AA43)) -> 2292.701419 | M43: =IF(INDEX(Brandstoffacturen!$B$22:$B$29,GD!AB43)=0,0,(M5*Brandstoffacturen!$P$3+Brandstoffacturen!$G$3)*(1+INDEX(Brandstoffacturen!$F$3:$F$14,M$39))*(1-INDEX(Brandstoffacturen!$L$3:$L$14,M$39))*INDEX(Gegevens!$T$40:$T$49,GD!AB43)) -> 3162.606318 | P43: 3 | Q43: =IF(OR(AND($A43=1,B$39=1),AND($A43=Titels!$O$12,B$39=Titels!$P$12),AND($A43=1,B$39=5),AND($A43=Titels!$O$14,B$39=Titels!$P$14),AND($A43=Titels!$O$15,B$39=Titels!$P$15),AND($A43=21,B$39=7),AND($A43=15,B$39=8),AND($A43=1,B$39=11),AND($A43=11,B$39=11),AND($A43=25,B$39=12)),8,WEEKDAY(CONCATENATE($P43,"/",B$39,"/",$B$1),2)) -> 4 | R43: =IF(OR(AND($A43=1,C$39=1),AND($A43=Titels!$O$12,C$39=Titels!$P$12),AND($A43=1,C$39=5),AND($A43=Titels!$O$14,C$39=Titels!$P$14),AND($A43=Titels!$O$15,C$39=Titels!$P$15),AND($A43=21,C$39=7),AND($A43=15,C$39=8),AND($A43=1,C$39=11),AND($A43=11,C$39=11),AND($A43=25,C$39=12)),8,WEEKDAY(CONCATENATE($P43,"/",C$39,"/",$B$1),2)) -> 7 | S43: =IF(OR(AND($A43=1,D$39=1),AND($A43=Titels!$O$12,D$39=Titels!$P$12),AND($A43=1,D$39=5),AND($A43=Titels!$O$14,D$39=Titels!$P$14),AND($A43=Titels!$O$15,D$39=Titels!$P$15),AND($A43=21,D$39=7),AND($A43=15,D$39=8),AND($A43=1,D$39=11),AND($A43=11,D$39=11),AND($A43=25,D$39=12)),8,WEEKDAY(CONCATENATE($P43,"/",D$39,"/",$B$1),2)) -> 7 | T43: =IF(OR(AND($A43=1,E$39=1),AND($A43=Titels!$O$12,E$39=Titels!$P$12),AND($A43=1,E$39=5),AND($A43=Titels!$O$14,E$39=Titels!$P$14),AND($A43=Titels!$O$15,E$39=Titels!$P$15),AND($A43=21,E$39=7),AND($A43=15,E$39=8),AND($A43=1,E$39=11),AND($A43=11,E$39=11),AND($A43=25,E$39=12)),8,WEEKDAY(CONCATENATE($P43,"/",E$39,"/",$B$1),2)) -> 3 | U43: =IF(OR(AND($A43=1,F$39=1),AND($A43=Titels!$O$12,F$39=Titels!$P$12),AND($A43=1,F$39=5),AND($A43=Titels!$O$14,F$39=Titels!$P$14),AND($A43=Titels!$O$15,F$39=Titels!$P$15),AND($A43=21,F$39=7),AND($A43=15,F$39=8),AND($A43=1,F$39=11),AND($A43=11,F$39=11),AND($A43=25,F$39=12)),8,WEEKDAY(CONCATENATE($P43,"/",F$39,"/",$B$1),2)) -> 5 | V43: =IF(OR(AND($A43=1,G$39=1),AND($A43=Titels!$O$12,G$39=Titels!$P$12),AND($A43=1,G$39=5),AND($A43=Titels!$O$14,G$39=Titels!$P$14),AND($A43=Titels!$O$15,G$39=Titels!$P$15),AND($A43=21,G$39=7),AND($A43=15,G$39=8),AND($A43=1,G$39=11),AND($A43=11,G$39=11),AND($A43=25,G$39=12)),8,WEEKDAY(CONCATENATE($P43,"/",G$39,"/",$B$1),2)) -> 1 | W43: =IF(OR(AND($A43=1,H$39=1),AND($A43=Titels!$O$12,H$39=Titels!$P$12),AND($A43=1,H$39=5),AND($A43=Titels!$O$14,H$39=Titels!$P$14),AND($A43=Titels!$O$15,H$39=Titels!$P$15),AND($A43=21,H$39=7),AND($A43=15,H$39=8),AND($A43=1,H$39=11),AND($A43=11,H$39=11),AND($A43=25,H$39=12)),8,WEEKDAY(CONCATENATE($P43,"/",H$39,"/",$B$1),2)) -> 3 | X43: =IF(OR(AND($A43=1,I$39=1),AND($A43=Titels!$O$12,I$39=Titels!$P$12),AND($A43=1,I$39=5),AND($A43=Titels!$O$14,I$39=Titels!$P$14),AND($A43=Titels!$O$15,I$39=Titels!$P$15),AND($A43=21,I$39=7),AND($A43=15,I$39=8),AND($A43=1,I$39=11),AND($A43=11,I$39=11),AND($A43=25,I$39=12)),8,WEEKDAY(CONCATENATE($P43,"/",I$39,"/",$B$1),2)) -> 6 | Y43: =IF(OR(AND($A43=1,J$39=1),AND($A43=Titels!$O$12,J$39=Titels!$P$12),AND($A43=1,J$39=5),AND($A43=Titels!$O$14,J$39=Titels!$P$14),AND($A43=Titels!$O$15,J$39=Titels!$P$15),AND($A43=21,J$39=7),AND($A43=15,J$39=8),AND($A43=1,J$39=11),AND($A43=11,J$39=11),AND($A43=25,J$39=12)),8,WEEKDAY(CONCATENATE($P43,"/",J$39,"/",$B$1),2)) -> 2 | Z43: =IF(OR(AND($A43=1,K$39=1),AND($A43=Titels!$O$12,K$39=Titels!$P$12),AND($A43=1,K$39=5),AND($A43=Titels!$O$14,K$39=Titels!$P$14),AND($A43=Titels!$O$15,K$39=Titels!$P$15),AND($A43=21,K$39=7),AND($A43=15,K$39=8),AND($A43=1,K$39=11),AND($A43=11,K$39=11),AND($A43=25,K$39=12)),8,WEEKDAY(CONCATENATE($P43,"/",K$39,"/",$B$1),2)) -> 4 | AA43: =IF(OR(AND($A43=1,L$39=1),AND($A43=Titels!$O$12,L$39=Titels!$P$12),AND($A43=1,L$39=5),AND($A43=Titels!$O$14,L$39=Titels!$P$14),AND($A43=Titels!$O$15,L$39=Titels!$P$15),AND($A43=21,L$39=7),AND($A43=15,L$39=8),AND($A43=1,L$39=11),AND($A43=11,L$39=11),AND($A43=25,L$39=12)),8,WEEKDAY(CONCATENATE($P43,"/",L$39,"/",$B$1),2)) -> 7 | AB43: =IF(OR(AND($A43=1,M$39=1),AND($A43=Titels!$O$12,M$39=Titels!$P$12),AND($A43=1,M$39=5),AND($A43=Titels!$O$14,M$39=Titels!$P$14),AND($A43=Titels!$O$15,M$39=Titels!$P$15),AND($A43=21,M$39=7),AND($A43=15,M$39=8),AND($A43=1,M$39=11),AND($A43=11,M$39=11),AND($A43=25,M$39=12)),8,WEEKDAY(CONCATENATE($P43,"/",M$39,"/",$B$1),2)) -> 2
A44: 4 | B44: =IF(INDEX(Brandstoffacturen!$B$22:$B$29,GD!Q44)=0,0,(B6*Brandstoffacturen!$P$3+Brandstoffacturen!$G$3)*(1+INDEX(Brandstoffacturen!$F$3:$F$14,B$39))*(1-INDEX(Brandstoffacturen!$L$3:$L$14,B$39))*INDEX(Gegevens!$T$40:$T$49,GD!Q44)) -> 2699.240604 | C44: =IF(INDEX(Brandstoffacturen!$B$22:$B$29,GD!R44)=0,0,(C6*Brandstoffacturen!$P$3+Brandstoffacturen!$G$3)*(1+INDEX(Brandstoffacturen!$F$3:$F$14,C$39))*(1-INDEX(Brandstoffacturen!$L$3:$L$14,C$39))*INDEX(Gegevens!$T$40:$T$49,GD!R44)) -> 3441.621072 | D44: =IF(INDEX(Brandstoffacturen!$B$22:$B$29,GD!S44)=0,0,(D6*Brandstoffacturen!$P$3+Brandstoffacturen!$G$3)*(1+INDEX(Brandstoffacturen!$F$3:$F$14,D$39))*(1-INDEX(Brandstoffacturen!$L$3:$L$14,D$39))*INDEX(Gegevens!$T$40:$T$49,GD!S44)) -> 2717.95945 | E44: =IF(INDEX(Brandstoffacturen!$B$22:$B$29,GD!T44)=0,0,(E6*Brandstoffacturen!$P$3+Brandstoffacturen!$G$3)*(1+INDEX(Brandstoffacturen!$F$3:$F$14,E$39))*(1-INDEX(Brandstoffacturen!$L$3:$L$14,E$39))*INDEX(Gegevens!$T$40:$T$49,GD!T44)) -> 2240.406148 | F44: =IF(INDEX(Brandstoffacturen!$B$22:$B$29,GD!U44)=0,0,(F6*Brandstoffacturen!$P$3+Brandstoffacturen!$G$3)*(1+INDEX(Brandstoffacturen!$F$3:$F$14,F$39))*(1-INDEX(Brandstoffacturen!$L$3:$L$14,F$39))*INDEX(Gegevens!$T$40:$T$49,GD!U44)) -> 2354.367092 | G44: =IF(INDEX(Brandstoffacturen!$B$22:$B$29,GD!V44)=0,0,(G6*Brandstoffacturen!$P$3+Brandstoffacturen!$G$3)*(1+INDEX(Brandstoffacturen!$F$3:$F$14,G$39))*(1-INDEX(Brandstoffacturen!$L$3:$L$14,G$39))*INDEX(Gegevens!$T$40:$T$49,GD!V44)) -> 1423.423735 | H44: =IF(INDEX(Brandstoffacturen!$B$22:$B$29,GD!W44)=0,0,(H6*Brandstoffacturen!$P$3+Brandstoffacturen!$G$3)*(1+INDEX(Brandstoffacturen!$F$3:$F$14,H$39))*(1-INDEX(Brandstoffacturen!$L$3:$L$14,H$39))*INDEX(Gegevens!$T$40:$T$49,GD!W44)) -> 1444.565063 | I44: =IF(INDEX(Brandstoffacturen!$B$22:$B$29,GD!X44)=0,0,(I6*Brandstoffacturen!$P$3+Brandstoffacturen!$G$3)*(1+INDEX(Brandstoffacturen!$F$3:$F$14,I$39))*(1-INDEX(Brandstoffacturen!$L$3:$L$14,I$39))*INDEX(Gegevens!$T$40:$T$49,GD!X44)) -> 1622.792403 | J44: =IF(INDEX(Brandstoffacturen!$B$22:$B$29,GD!Y44)=0,0,(J6*Brandstoffacturen!$P$3+Brandstoffacturen!$G$3)*(1+INDEX(Brandstoffacturen!$F$3:$F$14,J$39))*(1-INDEX(Brandstoffacturen!$L$3:$L$14,J$39))*INDEX(Gegevens!$T$40:$T$49,GD!Y44)) -> 2088.855163 | K44: =IF(INDEX(Brandstoffacturen!$B$22:$B$29,GD!Z44)=0,0,(K6*Brandstoffacturen!$P$3+Brandstoffacturen!$G$3)*(1+INDEX(Brandstoffacturen!$F$3:$F$14,K$39))*(1-INDEX(Brandstoffacturen!$L$3:$L$14,K$39))*INDEX(Gegevens!$T$40:$T$49,GD!Z44)) -> 2664.227706 | L44: =IF(INDEX(Brandstoffacturen!$B$22:$B$29,GD!AA44)=0,0,(L6*Brandstoffacturen!$P$3+Brandstoffacturen!$G$3)*(1+INDEX(Brandstoffacturen!$F$3:$F$14,L$39))*(1-INDEX(Brandstoffacturen!$L$3:$L$14,L$39))*INDEX(Gegevens!$T$40:$T$49,GD!AA44)) -> 2326.867735 | M44: =IF(INDEX(Brandstoffacturen!$B$22:$B$29,GD!AB44)=0,0,(M6*Brandstoffacturen!$P$3+Brandstoffacturen!$G$3)*(1+INDEX(Brandstoffacturen!$F$3:$F$14,M$39))*(1-INDEX(Brandstoffacturen!$L$3:$L$14,M$39))*INDEX(Gegevens!$T$40:$T$49,GD!AB44)) -> 3096.790088 | P44: 4 | Q44: =IF(OR(AND($A44=1,B$39=1),AND($A44=Titels!$O$12,B$39=Titels!$P$12),AND($A44=1,B$39=5),AND($A44=Titels!$O$14,B$39=Titels!$P$14),AND($A44=Titels!$O$15,B$39=Titels!$P$15),AND($A44=21,B$39=7),AND($A44=15,B$39=8),AND($A44=1,B$39=11),AND($A44=11,B$39=11),AND($A44=25,B$39=12)),8,WEEKDAY(CONCATENATE($P44,"/",B$39,"/",$B$1),2)) -> 5 | R44: =IF(OR(AND($A44=1,C$39=1),AND($A44=Titels!$O$12,C$39=Titels!$P$12),AND($A44=1,C$39=5),AND($A44=Titels!$O$14,C$39=Titels!$P$14),AND($A44=Titels!$O$15,C$39=Titels!$P$15),AND($A44=21,C$39=7),AND($A44=15,C$39=8),AND($A44=1,C$39=11),AND($A44=11,C$39=11),AND($A44=25,C$39=12)),8,WEEKDAY(CONCATENATE($P44,"/",C$39,"/",$B$1),2)) -> 1 | S44: =IF(OR(AND($A44=1,D$39=1),AND($A44=Titels!$O$12,D$39=Titels!$P$12),AND($A44=1,D$39=5),AND($A44=Titels!$O$14,D$39=Titels!$P$14),AND($A44=Titels!$O$15,D$39=Titels!$P$15),AND($A44=21,D$39=7),AND($A44=15,D$39=8),AND($A44=1,D$39=11),AND($A44=11,D$39=11),AND($A44=25,D$39=12)),8,WEEKDAY(CONCATENATE($P44,"/",D$39,"/",$B$1),2)) -> 1 | T44: =IF(OR(AND($A44=1,E$39=1),AND($A44=Titels!$O$12,E$39=Titels!$P$12),AND($A44=1,E$39=5),AND($A44=Titels!$O$14,E$39=Titels!$P$14),AND($A44=Titels!$O$15,E$39=Titels!$P$15),AND($A44=21,E$39=7),AND($A44=15,E$39=8),AND($A44=1,E$39=11),AND($A44=11,E$39=11),AND($A44=25,E$39=12)),8,WEEKDAY(CONCATENATE($P44,"/",E$39,"/",$B$1),2)) -> 4 | U44: =IF(OR(AND($A44=1,F$39=1),AND($A44=Titels!$O$12,F$39=Titels!$P$12),AND($A44=1,F$39=5),AND($A44=Titels!$O$14,F$39=Titels!$P$14),AND($A44=Titels!$O$15,F$39=Titels!$P$15),AND($A44=21,F$39=7),AND($A44=15,F$39=8),AND($A44=1,F$39=11),AND($A44=11,F$39=11),AND($A44=25,F$39=12)),8,WEEKDAY(CONCATENATE($P44,"/",F$39,"/",$B$1),2)) -> 6 | V44: =IF(OR(AND($A44=1,G$39=1),AND($A44=Titels!$O$12,G$39=Titels!$P$12),AND($A44=1,G$39=5),AND($A44=Titels!$O$14,G$39=Titels!$P$14),AND($A44=Titels!$O$15,G$39=Titels!$P$15),AND($A44=21,G$39=7),AND($A44=15,G$39=8),AND($A44=1,G$39=11),AND($A44=11,G$39=11),AND($A44=25,G$39=12)),8,WEEKDAY(CONCATENATE($P44,"/",G$39,"/",$B$1),2)) -> 2 | W44: =IF(OR(AND($A44=1,H$39=1),AND($A44=Titels!$O$12,H$39=Titels!$P$12),AND($A44=1,H$39=5),AND($A44=Titels!$O$14,H$39=Titels!$P$14),AND($A44=Titels!$O$15,H$39=Titels!$P$15),AND($A44=21,H$39=7),AND($A44=15,H$39=8),AND($A44=1,H$39=11),AND($A44=11,H$39=11),AND($A44=25,H$39=12)),8,WEEKDAY(CONCATENATE($P44,"/",H$39,"/",$B$1),2)) -> 4 | X44: =IF(OR(AND($A44=1,I$39=1),AND($A44=Titels!$O$12,I$39=Titels!$P$12),AND($A44=1,I$39=5),AND($A44=Titels!$O$14,I$39=Titels!$P$14),AND($A44=Titels!$O$15,I$39=Titels!$P$15),AND($A44=21,I$39=7),AND($A44=15,I$39=8),AND($A44=1,I$39=11),AND($A44=11,I$39=11),AND($A44=25,I$39=12)),8,WEEKDAY(CONCATENATE($P44,"/",I$39,"/",$B$1),2)) -> 7 | Y44: =IF(OR(AND($A44=1,J$39=1),AND($A44=Titels!$O$12,J$39=Titels!$P$12),AND($A44=1,J$39=5),AND($A44=Titels!$O$14,J$39=Titels!$P$14),AND($A44=Titels!$O$15,J$39=Titels!$P$15),AND($A44=21,J$39=7),AND($A44=15,J$39=8),AND($A44=1,J$39=11),AND($A44=11,J$39=11),AND($A44=25,J$39=12)),8,WEEKDAY(CONCATENATE($P44,"/",J$39,"/",$B$1),2)) -> 3 | Z44: =IF(OR(AND($A44=1,K$39=1),AND($A44=Titels!$O$12,K$39=Titels!$P$12),AND($A44=1,K$39=5),AND($A44=Titels!$O$14,K$39=Titels!$P$14),AND($A44=Titels!$O$15,K$39=Titels!$P$15),AND($A44=21,K$39=7),AND($A44=15,K$39=8),AND($A44=1,K$39=11),AND($A44=11,K$39=11),AND($A44=25,K$39=12)),8,WEEKDAY(CONCATENATE($P44,"/",K$39,"/",$B$1),2)) -> 5 | AA44: =IF(OR(AND($A44=1,L$39=1),AND($A44=Titels!$O$12,L$39=Titels!$P$12),AND($A44=1,L$39=5),AND($A44=Titels!$O$14,L$39=Titels!$P$14),AND($A44=Titels!$O$15,L$39=Titels!$P$15),AND($A44=21,L$39=7),AND($A44=15,L$39=8),AND($A44=1,L$39=11),AND($A44=11,L$39=11),AND($A44=25,L$39=12)),8,WEEKDAY(CONCATENATE($P44,"/",L$39,"/",$B$1),2)) -> 1 | AB44: =IF(OR(AND($A44=1,M$39=1),AND($A44=Titels!$O$12,M$39=Titels!$P$12),AND($A44=1,M$39=5),AND($A44=Titels!$O$14,M$39=Titels!$P$14),AND($A44=Titels!$O$15,M$39=Titels!$P$15),AND($A44=21,M$39=7),AND($A44=15,M$39=8),AND($A44=1,M$39=11),AND($A44=11,M$39=11),AND($A44=25,M$39=12)),8,WEEKDAY(CONCATENATE($P44,"/",M$39,"/",$B$1),2)) -> 3
A45: 5 | B45: =IF(INDEX(Brandstoffacturen!$B$22:$B$29,GD!Q45)=0,0,(B7*Brandstoffacturen!$P$3+Brandstoffacturen!$G$3)*(1+INDEX(Brandstoffacturen!$F$3:$F$14,B$39))*(1-INDEX(Brandstoffacturen!$L$3:$L$14,B$39))*INDEX(Gegevens!$T$40:$T$49,GD!Q45)) -> 2532.567821 | C45: =IF(INDEX(Brandstoffacturen!$B$22:$B$29,GD!R45)=0,0,(C7*Brandstoffacturen!$P$3+Brandstoffacturen!$G$3)*(1+INDEX(Brandstoffacturen!$F$3:$F$14,C$39))*(1-INDEX(Brandstoffacturen!$L$3:$L$14,C$39))*INDEX(Gegevens!$T$40:$T$49,GD!R45)) -> 3240.087997 | D45: =IF(INDEX(Brandstoffacturen!$B$22:$B$29,GD!S45)=0,0,(D7*Brandstoffacturen!$P$3+Brandstoffacturen!$G$3)*(1+INDEX(Brandstoffacturen!$F$3:$F$14,D$39))*(1-INDEX(Brandstoffacturen!$L$3:$L$14,D$39))*INDEX(Gegevens!$T$40:$T$49,GD!S45)) -> 2889.121408 | E45: =IF(INDEX(Brandstoffacturen!$B$22:$B$29,GD!T45)=0,0,(E7*Brandstoffacturen!$P$3+Brandstoffacturen!$G$3)*(1+INDEX(Brandstoffacturen!$F$3:$F$14,E$39))*(1-INDEX(Brandstoffacturen!$L$3:$L$14,E$39))*INDEX(Gegevens!$T$40:$T$49,GD!T45)) -> 2014.842926 | F45: =IF(INDEX(Brandstoffacturen!$B$22:$B$29,GD!U45)=0,0,(F7*Brandstoffacturen!$P$3+Brandstoffacturen!$G$3)*(1+INDEX(Brandstoffacturen!$F$3:$F$14,F$39))*(1-INDEX(Brandstoffacturen!$L$3:$L$14,F$39))*INDEX(Gegevens!$T$40:$T$49,GD!U45)) -> 2325.691718 | G45: =IF(INDEX(Brandstoffacturen!$B$22:$B$29,GD!V45)=0,0,(G7*Brandstoffacturen!$P$3+Brandstoffacturen!$G$3)*(1+INDEX(Brandstoffacturen!$F$3:$F$14,G$39))*(1-INDEX(Brandstoffacturen!$L$3:$L$14,G$39))*INDEX(Gegevens!$T$40:$T$49,GD!V45)) -> 1432.530008 | H45: =IF(INDEX(Brandstoffacturen!$B$22:$B$29,GD!W45)=0,0,(H7*Brandstoffacturen!$P$3+Brandstoffacturen!$G$3)*(1+INDEX(Brandstoffacturen!$F$3:$F$14,H$39))*(1-INDEX(Brandstoffacturen!$L$3:$L$14,H$39))*INDEX(Gegevens!$T$40:$T$49,GD!W45)) -> 1444.565063 | I45: =IF(INDEX(Brandstoffacturen!$B$22:$B$29,GD!X45)=0,0,(I7*Brandstoffacturen!$P$3+Brandstoffacturen!$G$3)*(1+INDEX(Brandstoffacturen!$F$3:$F$14,I$39))*(1-INDEX(Brandstoffacturen!$L$3:$L$14,I$39))*INDEX(Gegevens!$T$40:$T$49,GD!X45)) -> 1622.792403 | J45: =IF(INDEX(Brandstoffacturen!$B$22:$B$29,GD!Y45)=0,0,(J7*Brandstoffacturen!$P$3+Brandstoffacturen!$G$3)*(1+INDEX(Brandstoffacturen!$F$3:$F$14,J$39))*(1-INDEX(Brandstoffacturen!$L$3:$L$14,J$39))*INDEX(Gegevens!$T$40:$T$49,GD!Y45)) -> 2369.485156 | K45: =IF(INDEX(Brandstoffacturen!$B$22:$B$29,GD!Z45)=0,0,(K7*Brandstoffacturen!$P$3+Brandstoffacturen!$G$3)*(1+INDEX(Brandstoffacturen!$F$3:$F$14,K$39))*(1-INDEX(Brandstoffacturen!$L$3:$L$14,K$39))*INDEX(Gegevens!$T$40:$T$49,GD!Z45)) -> 2937.389761 | L45: =IF(INDEX(Brandstoffacturen!$B$22:$B$29,GD!AA45)=0,0,(L7*Brandstoffacturen!$P$3+Brandstoffacturen!$G$3)*(1+INDEX(Brandstoffacturen!$F$3:$F$14,L$39))*(1-INDEX(Brandstoffacturen!$L$3:$L$14,L$39))*INDEX(Gegevens!$T$40:$T$49,GD!AA45)) -> 2543.254399 | M45: =IF(INDEX(Brandstoffacturen!$B$22:$B$29,GD!AB45)=0,0,(M7*Brandstoffacturen!$P$3+Brandstoffacturen!$G$3)*(1+INDEX(Brandstoffacturen!$F$3:$F$14,M$39))*(1-INDEX(Brandstoffacturen!$L$3:$L$14,M$39))*INDEX(Gegevens!$T$40:$T$49,GD!AB45)) -> 3316.177523 | P45: 5 | Q45: =IF(OR(AND($A45=1,B$39=1),AND($A45=Titels!$O$12,B$39=Titels!$P$12),AND($A45=1,B$39=5),AND($A45=Titels!$O$14,B$39=Titels!$P$14),AND($A45=Titels!$O$15,B$39=Titels!$P$15),AND($A45=21,B$39=7),AND($A45=15,B$39=8),AND($A45=1,B$39=11),AND($A45=11,B$39=11),AND($A45=25,B$39=12)),8,WEEKDAY(CONCATENATE($P45,"/",B$39,"/",$B$1),2)) -> 6 | R45: =IF(OR(AND($A45=1,C$39=1),AND($A45=Titels!$O$12,C$39=Titels!$P$12),AND($A45=1,C$39=5),AND($A45=Titels!$O$14,C$39=Titels!$P$14),AND($A45=Titels!$O$15,C$39=Titels!$P$15),AND($A45=21,C$39=7),AND($A45=15,C$39=8),AND($A45=1,C$39=11),AND($A45=11,C$39=11),AND($A45=25,C$39=12)),8,WEEKDAY(CONCATENATE($P45,"/",C$39,"/",$B$1),2)) -> 2 | S45: =IF(OR(AND($A45=1,D$39=1),AND($A45=Titels!$O$12,D$39=Titels!$P$12),AND($A45=1,D$39=5),AND($A45=Titels!$O$14,D$39=Titels!$P$14),AND($A45=Titels!$O$15,D$39=Titels!$P$15),AND($A45=21,D$39=7),AND($A45=15,D$39=8),AND($A45=1,D$39=11),AND($A45=11,D$39=11),AND($A45=25,D$39=12)),8,WEEKDAY(CONCATENATE($P45,"/",D$39,"/",$B$1),2)) -> 2 | T45: =IF(OR(AND($A45=1,E$39=1),AND($A45=Titels!$O$12,E$39=Titels!$P$12),AND($A45=1,E$39=5),AND($A45=Titels!$O$14,E$39=Titels!$P$14),AND($A45=Titels!$O$15,E$39=Titels!$P$15),AND($A45=21,E$39=7),AND($A45=15,E$39=8),AND($A45=1,E$39=11),AND($A45=11,E$39=11),AND($A45=25,E$39=12)),8,WEEKDAY(CONCATENATE($P45,"/",E$39,"/",$B$1),2)) -> 5 | U45: =IF(OR(AND($A45=1,F$39=1),AND($A45=Titels!$O$12,F$39=Titels!$P$12),AND($A45=1,F$39=5),AND($A45=Titels!$O$14,F$39=Titels!$P$14),AND($A45=Titels!$O$15,F$39=Titels!$P$15),AND($A45=21,F$39=7),AND($A45=15,F$39=8),AND($A45=1,F$39=11),AND($A45=11,F$39=11),AND($A45=25,F$39=12)),8,WEEKDAY(CONCATENATE($P45,"/",F$39,"/",$B$1),2)) -> 7 | V45: =IF(OR(AND($A45=1,G$39=1),AND($A45=Titels!$O$12,G$39=Titels!$P$12),AND($A45=1,G$39=5),AND($A45=Titels!$O$14,G$39=Titels!$P$14),AND($A45=Titels!$O$15,G$39=Titels!$P$15),AND($A45=21,G$39=7),AND($A45=15,G$39=8),AND($A45=1,G$39=11),AND($A45=11,G$39=11),AND($A45=25,G$39=12)),8,WEEKDAY(CONCATENATE($P45,"/",G$39,"/",$B$1),2)) -> 3 | W45: =IF(OR(AND($A45=1,H$39=1),AND($A45=Titels!$O$12,H$39=Titels!$P$12),AND($A45=1,H$39=5),AND($A45=Titels!$O$14,H$39=Titels!$P$14),AND($A45=Titels!$O$15,H$39=Titels!$P$15),AND($A45=21,H$39=7),AND($A45=15,H$39=8),AND($A45=1,H$39=11),AND($A45=11,H$39=11),AND($A45=25,H$39=12)),8,WEEKDAY(CONCATENATE($P45,"/",H$39,"/",$B$1),2)) -> 5 | X45: =IF(OR(AND($A45=1,I$39=1),AND($A45=Titels!$O$12,I$39=Titels!$P$12),AND($A45=1,I$39=5),AND($A45=Titels!$O$14,I$39=Titels!$P$14),AND($A45=Titels!$O$15,I$39=Titels!$P$15),AND($A45=21,I$39=7),AND($A45=15,I$39=8),AND($A45=1,I$39=11),AND($A45=11,I$39=11),AND($A45=25,I$39=12)),8,WEEKDAY(CONCATENATE($P45,"/",I$39,"/",$B$1),2)) -> 1 | Y45: =IF(OR(AND($A45=1,J$39=1),AND($A45=Titels!$O$12,J$39=Titels!$P$12),AND($A45=1,J$39=5),AND($A45=Titels!$O$14,J$39=Titels!$P$14),AND($A45=Titels!$O$15,J$39=Titels!$P$15),AND($A45=21,J$39=7),AND($A45=15,J$39=8),AND($A45=1,J$39=11),AND($A45=11,J$39=11),AND($A45=25,J$39=12)),8,WEEKDAY(CONCATENATE($P45,"/",J$39,"/",$B$1),2)) -> 4 | Z45: =IF(OR(AND($A45=1,K$39=1),AND($A45=Titels!$O$12,K$39=Titels!$P$12),AND($A45=1,K$39=5),AND($A45=Titels!$O$14,K$39=Titels!$P$14),AND($A45=Titels!$O$15,K$39=Titels!$P$15),AND($A45=21,K$39=7),AND($A45=15,K$39=8),AND($A45=1,K$39=11),AND($A45=11,K$39=11),AND($A45=25,K$39=12)),8,WEEKDAY(CONCATENATE($P45,"/",K$39,"/",$B$1),2)) -> 6 | AA45: =IF(OR(AND($A45=1,L$39=1),AND($A45=Titels!$O$12,L$39=Titels!$P$12),AND($A45=1,L$39=5),AND($A45=Titels!$O$14,L$39=Titels!$P$14),AND($A45=Titels!$O$15,L$39=Titels!$P$15),AND($A45=21,L$39=7),AND($A45=15,L$39=8),AND($A45=1,L$39=11),AND($A45=11,L$39=11),AND($A45=25,L$39=12)),8,WEEKDAY(CONCATENATE($P45,"/",L$39,"/",$B$1),2)) -> 2 | AB45: =IF(OR(AND($A45=1,M$39=1),AND($A45=Titels!$O$12,M$39=Titels!$P$12),AND($A45=1,M$39=5),AND($A45=Titels!$O$14,M$39=Titels!$P$14),AND($A45=Titels!$O$15,M$39=Titels!$P$15),AND($A45=21,M$39=7),AND($A45=15,M$39=8),AND($A45=1,M$39=11),AND($A45=11,M$39=11),AND($A45=25,M$39=12)),8,WEEKDAY(CONCATENATE($P45,"/",M$39,"/",$B$1),2)) -> 4
A46: 6 | B46: =IF(INDEX(Brandstoffacturen!$B$22:$B$29,GD!Q46)=0,0,(B8*Brandstoffacturen!$P$3+Brandstoffacturen!$G$3)*(1+INDEX(Brandstoffacturen!$F$3:$F$14,B$39))*(1-INDEX(Brandstoffacturen!$L$3:$L$14,B$39))*INDEX(Gegevens!$T$40:$T$49,GD!Q46)) -> 2601.19779 | C46: =IF(INDEX(Brandstoffacturen!$B$22:$B$29,GD!R46)=0,0,(C8*Brandstoffacturen!$P$3+Brandstoffacturen!$G$3)*(1+INDEX(Brandstoffacturen!$F$3:$F$14,C$39))*(1-INDEX(Brandstoffacturen!$L$3:$L$14,C$39))*INDEX(Gegevens!$T$40:$T$49,GD!R46)) -> 2991.135375 | D46: =IF(INDEX(Brandstoffacturen!$B$22:$B$29,GD!S46)=0,0,(D8*Brandstoffacturen!$P$3+Brandstoffacturen!$G$3)*(1+INDEX(Brandstoffacturen!$F$3:$F$14,D$39))*(1-INDEX(Brandstoffacturen!$L$3:$L$14,D$39))*INDEX(Gegevens!$T$40:$T$49,GD!S46)) -> 2510.119929 | E46: =IF(INDEX(Brandstoffacturen!$B$22:$B$29,GD!T46)=0,0,(E8*Brandstoffacturen!$P$3+Brandstoffacturen!$G$3)*(1+INDEX(Brandstoffacturen!$F$3:$F$14,E$39))*(1-INDEX(Brandstoffacturen!$L$3:$L$14,E$39))*INDEX(Gegevens!$T$40:$T$49,GD!T46)) -> 1807.324761 | F46: =IF(INDEX(Brandstoffacturen!$B$22:$B$29,GD!U46)=0,0,(F8*Brandstoffacturen!$P$3+Brandstoffacturen!$G$3)*(1+INDEX(Brandstoffacturen!$F$3:$F$14,F$39))*(1-INDEX(Brandstoffacturen!$L$3:$L$14,F$39))*INDEX(Gegevens!$T$40:$T$49,GD!U46)) -> 2297.016344 | G46: =IF(INDEX(Brandstoffacturen!$B$22:$B$29,GD!V46)=0,0,(G8*Brandstoffacturen!$P$3+Brandstoffacturen!$G$3)*(1+INDEX(Brandstoffacturen!$F$3:$F$14,G$39))*(1-INDEX(Brandstoffacturen!$L$3:$L$14,G$39))*INDEX(Gegevens!$T$40:$T$49,GD!V46)) -> 1614.655469 | H46: =IF(INDEX(Brandstoffacturen!$B$22:$B$29,GD!W46)=0,0,(H8*Brandstoffacturen!$P$3+Brandstoffacturen!$G$3)*(1+INDEX(Brandstoffacturen!$F$3:$F$14,H$39))*(1-INDEX(Brandstoffacturen!$L$3:$L$14,H$39))*INDEX(Gegevens!$T$40:$T$49,GD!W46)) -> 1444.565063 | I46: =IF(INDEX(Brandstoffacturen!$B$22:$B$29,GD!X46)=0,0,(I8*Brandstoffacturen!$P$3+Brandstoffacturen!$G$3)*(1+INDEX(Brandstoffacturen!$F$3:$F$14,I$39))*(1-INDEX(Brandstoffacturen!$L$3:$L$14,I$39))*INDEX(Gegevens!$T$40:$T$49,GD!X46)) -> 1622.792403 | J46: =IF(INDEX(Brandstoffacturen!$B$22:$B$29,GD!Y46)=0,0,(J8*Brandstoffacturen!$P$3+Brandstoffacturen!$G$3)*(1+INDEX(Brandstoffacturen!$F$3:$F$14,J$39))*(1-INDEX(Brandstoffacturen!$L$3:$L$14,J$39))*INDEX(Gegevens!$T$40:$T$49,GD!Y46)) -> 2302.668491 | K46: =IF(INDEX(Brandstoffacturen!$B$22:$B$29,GD!Z46)=0,0,(K8*Brandstoffacturen!$P$3+Brandstoffacturen!$G$3)*(1+INDEX(Brandstoffacturen!$F$3:$F$14,K$39))*(1-INDEX(Brandstoffacturen!$L$3:$L$14,K$39))*INDEX(Gegevens!$T$40:$T$49,GD!Z46)) -> 2750.489407 | L46: =IF(INDEX(Brandstoffacturen!$B$22:$B$29,GD!AA46)=0,0,(L8*Brandstoffacturen!$P$3+Brandstoffacturen!$G$3)*(1+INDEX(Brandstoffacturen!$F$3:$F$14,L$39))*(1-INDEX(Brandstoffacturen!$L$3:$L$14,L$39))*INDEX(Gegevens!$T$40:$T$49,GD!AA46)) -> 2520.476855 | M46: =IF(INDEX(Brandstoffacturen!$B$22:$B$29,GD!AB46)=0,0,(M8*Brandstoffacturen!$P$3+Brandstoffacturen!$G$3)*(1+INDEX(Brandstoffacturen!$F$3:$F$14,M$39))*(1-INDEX(Brandstoffacturen!$L$3:$L$14,M$39))*INDEX(Gegevens!$T$40:$T$49,GD!AB46)) -> 2833.525165 | P46: 6 | Q46: =IF(OR(AND($A46=1,B$39=1),AND($A46=Titels!$O$12,B$39=Titels!$P$12),AND($A46=1,B$39=5),AND($A46=Titels!$O$14,B$39=Titels!$P$14),AND($A46=Titels!$O$15,B$39=Titels!$P$15),AND($A46=21,B$39=7),AND($A46=15,B$39=8),AND($A46=1,B$39=11),AND($A46=11,B$39=11),AND($A46=25,B$39=12)),8,WEEKDAY(CONCATENATE($P46,"/",B$39,"/",$B$1),2)) -> 7 | R46: =IF(OR(AND($A46=1,C$39=1),AND($A46=Titels!$O$12,C$39=Titels!$P$12),AND($A46=1,C$39=5),AND($A46=Titels!$O$14,C$39=Titels!$P$14),AND($A46=Titels!$O$15,C$39=Titels!$P$15),AND($A46=21,C$39=7),AND($A46=15,C$39=8),AND($A46=1,C$39=11),AND($A46=11,C$39=11),AND($A46=25,C$39=12)),8,WEEKDAY(CONCATENATE($P46,"/",C$39,"/",$B$1),2)) -> 3 | S46: =IF(OR(AND($A46=1,D$39=1),AND($A46=Titels!$O$12,D$39=Titels!$P$12),AND($A46=1,D$39=5),AND($A46=Titels!$O$14,D$39=Titels!$P$14),AND($A46=Titels!$O$15,D$39=Titels!$P$15),AND($A46=21,D$39=7),AND($A46=15,D$39=8),AND($A46=1,D$39=11),AND($A46=11,D$39=11),AND($A46=25,D$39=12)),8,WEEKDAY(CONCATENATE($P46,"/",D$39,"/",$B$1),2)) -> 3 | T46: =IF(OR(AND($A46=1,E$39=1),AND($A46=Titels!$O$12,E$39=Titels!$P$12),AND($A46=1,E$39=5),AND($A46=Titels!$O$14,E$39=Titels!$P$14),AND($A46=Titels!$O$15,E$39=Titels!$P$15),AND($A46=21,E$39=7),AND($A46=15,E$39=8),AND($A46=1,E$39=11),AND($A46=11,E$39=11),AND($A46=25,E$39=12)),8,WEEKDAY(CONCATENATE($P46,"/",E$39,"/",$B$1),2)) -> 6 | U46: =IF(OR(AND($A46=1,F$39=1),AND($A46=Titels!$O$12,F$39=Titels!$P$12),AND($A46=1,F$39=5),AND($A46=Titels!$O$14,F$39=Titels!$P$14),AND($A46=Titels!$O$15,F$39=Titels!$P$15),AND($A46=21,F$39=7),AND($A46=15,F$39=8),AND($A46=1,F$39=11),AND($A46=11,F$39=11),AND($A46=25,F$39=12)),8,WEEKDAY(CONCATENATE($P46,"/",F$39,"/",$B$1),2)) -> 1 | V46: =IF(OR(AND($A46=1,G$39=1),AND($A46=Titels!$O$12,G$39=Titels!$P$12),AND($A46=1,G$39=5),AND($A46=Titels!$O$14,G$39=Titels!$P$14),AND($A46=Titels!$O$15,G$39=Titels!$P$15),AND($A46=21,G$39=7),AND($A46=15,G$39=8),AND($A46=1,G$39=11),AND($A46=11,G$39=11),AND($A46=25,G$39=12)),8,WEEKDAY(CONCATENATE($P46,"/",G$39,"/",$B$1),2)) -> 4 | W46: =IF(OR(AND($A46=1,H$39=1),AND($A46=Titels!$O$12,H$39=Titels!$P$12),AND($A46=1,H$39=5),AND($A46=Titels!$O$14,H$39=Titels!$P$14),AND($A46=Titels!$O$15,H$39=Titels!$P$15),AND($A46=21,H$39=7),AND($A46=15,H$39=8),AND($A46=1,H$39=11),AND($A46=11,H$39=11),AND($A46=25,H$39=12)),8,WEEKDAY(CONCATENATE($P46,"/",H$39,"/",$B$1),2)) -> 6 | X46: =IF(OR(AND($A46=1,I$39=1),AND($A46=Titels!$O$12,I$39=Titels!$P$12),AND($A46=1,I$39=5),AND($A46=Titels!$O$14,I$39=Titels!$P$14),AND($A46=Titels!$O$15,I$39=Titels!$P$15),AND($A46=21,I$39=7),AND($A46=15,I$39=8),AND($A46=1,I$39=11),AND($A46=11,I$39=11),AND($A46=25,I$39=12)),8,WEEKDAY(CONCATENATE($P46,"/",I$39,"/",$B$1),2)) -> 2 | Y46: =IF(OR(AND($A46=1,J$39=1),AND($A46=Titels!$O$12,J$39=Titels!$P$12),AND($A46=1,J$39=5),AND($A46=Titels!$O$14,J$39=Titels!$P$14),AND($A46=Titels!$O$15,J$39=Titels!$P$15),AND($A46=21,J$39=7),AND($A46=15,J$39=8),AND($A46=1,J$39=11),AND($A46=11,J$39=11),AND($A46=25,J$39=12)),8,WEEKDAY(CONCATENATE($P46,"/",J$39,"/",$B$1),2)) -> 5 | Z46: =IF(OR(AND($A46=1,K$39=1),AND($A46=Titels!$O$12,K$39=Titels!$P$12),AND($A46=1,K$39=5),AND($A46=Titels!$O$14,K$39=Titels!$P$14),AND($A46=Titels!$O$15,K$39=Titels!$P$15),AND($A46=21,K$39=7),AND($A46=15,K$39=8),AND($A46=1,K$39=11),AND($A46=11,K$39=11),AND($A46=25,K$39=12)),8,WEEKDAY(CONCATENATE($P46,"/",K$39,"/",$B$1),2)) -> 7 | AA46: =IF(OR(AND($A46=1,L$39=1),AND($A46=Titels!$O$12,L$39=Titels!$P$12),AND($A46=1,L$39=5),AND($A46=Titels!$O$14,L$39=Titels!$P$14),AND($A46=Titels!$O$15,L$39=Titels!$P$15),AND($A46=21,L$39=7),AND($A46=15,L$39=8),AND($A46=1,L$39=11),AND($A46=11,L$39=11),AND($A46=25,L$39=12)),8,WEEKDAY(CONCATENATE($P46,"/",L$39,"/",$B$1),2)) -> 3 | AB46: =IF(OR(AND($A46=1,M$39=1),AND($A46=Titels!$O$12,M$39=Titels!$P$12),AND($A46=1,M$39=5),AND($A46=Titels!$O$14,M$39=Titels!$P$14),AND($A46=Titels!$O$15,M$39=Titels!$P$15),AND($A46=21,M$39=7),AND($A46=15,M$39=8),AND($A46=1,M$39=11),AND($A46=11,M$39=11),AND($A46=25,M$39=12)),8,WEEKDAY(CONCATENATE($P46,"/",M$39,"/",$B$1),2)) -> 5
A47: 7 | B47: =IF(INDEX(Brandstoffacturen!$B$22:$B$29,GD!Q47)=0,0,(B9*Brandstoffacturen!$P$3+Brandstoffacturen!$G$3)*(1+INDEX(Brandstoffacturen!$F$3:$F$14,B$39))*(1-INDEX(Brandstoffacturen!$L$3:$L$14,B$39))*INDEX(Gegevens!$T$40:$T$49,GD!Q47)) -> 2405.112163 | C47: =IF(INDEX(Brandstoffacturen!$B$22:$B$29,GD!R47)=0,0,(C9*Brandstoffacturen!$P$3+Brandstoffacturen!$G$3)*(1+INDEX(Brandstoffacturen!$F$3:$F$14,C$39))*(1-INDEX(Brandstoffacturen!$L$3:$L$14,C$39))*INDEX(Gegevens!$T$40:$T$49,GD!R47)) -> 2718.47298 | D47: =IF(INDEX(Brandstoffacturen!$B$22:$B$29,GD!S47)=0,0,(D9*Brandstoffacturen!$P$3+Brandstoffacturen!$G$3)*(1+INDEX(Brandstoffacturen!$F$3:$F$14,D$39))*(1-INDEX(Brandstoffacturen!$L$3:$L$14,D$39))*INDEX(Gegevens!$T$40:$T$49,GD!S47)) -> 2717.95945 | E47: =IF(INDEX(Brandstoffacturen!$B$22:$B$29,GD!T47)=0,0,(E9*Brandstoffacturen!$P$3+Brandstoffacturen!$G$3)*(1+INDEX(Brandstoffacturen!$F$3:$F$14,E$39))*(1-INDEX(Brandstoffacturen!$L$3:$L$14,E$39))*INDEX(Gegevens!$T$40:$T$49,GD!T47)) -> 1599.806596 | F47: =IF(INDEX(Brandstoffacturen!$B$22:$B$29,GD!U47)=0,0,(F9*Brandstoffacturen!$P$3+Brandstoffacturen!$G$3)*(1+INDEX(Brandstoffacturen!$F$3:$F$14,F$39))*(1-INDEX(Brandstoffacturen!$L$3:$L$14,F$39))*INDEX(Gegevens!$T$40:$T$49,GD!U47)) -> 2038.937978 | G47: =IF(INDEX(Brandstoffacturen!$B$22:$B$29,GD!V47)=0,0,(G9*Brandstoffacturen!$P$3+Brandstoffacturen!$G$3)*(1+INDEX(Brandstoffacturen!$F$3:$F$14,G$39))*(1-INDEX(Brandstoffacturen!$L$3:$L$14,G$39))*INDEX(Gegevens!$T$40:$T$49,GD!V47)) -> 1487.167646 | H47: =IF(INDEX(Brandstoffacturen!$B$22:$B$29,GD!W47)=0,0,(H9*Brandstoffacturen!$P$3+Brandstoffacturen!$G$3)*(1+INDEX(Brandstoffacturen!$F$3:$F$14,H$39))*(1-INDEX(Brandstoffacturen!$L$3:$L$14,H$39))*INDEX(Gegevens!$T$40:$T$49,GD!W47)) -> 1444.565063 | I47: =IF(INDEX(Brandstoffacturen!$B$22:$B$29,GD!X47)=0,0,(I9*Brandstoffacturen!$P$3+Brandstoffacturen!$G$3)*(1+INDEX(Brandstoffacturen!$F$3:$F$14,I$39))*(1-INDEX(Brandstoffacturen!$L$3:$L$14,I$39))*INDEX(Gegevens!$T$40:$T$49,GD!X47)) -> 1622.792403 | J47: =IF(INDEX(Brandstoffacturen!$B$22:$B$29,GD!Y47)=0,0,(J9*Brandstoffacturen!$P$3+Brandstoffacturen!$G$3)*(1+INDEX(Brandstoffacturen!$F$3:$F$14,J$39))*(1-INDEX(Brandstoffacturen!$L$3:$L$14,J$39))*INDEX(Gegevens!$T$40:$T$49,GD!Y47)) -> 2262.578492 | K47: =IF(INDEX(Brandstoffacturen!$B$22:$B$29,GD!Z47)=0,0,(K9*Brandstoffacturen!$P$3+Brandstoffacturen!$G$3)*(1+INDEX(Brandstoffacturen!$F$3:$F$14,K$39))*(1-INDEX(Brandstoffacturen!$L$3:$L$14,K$39))*INDEX(Gegevens!$T$40:$T$49,GD!Z47)) -> 2836.751109 | L47: =IF(INDEX(Brandstoffacturen!$B$22:$B$29,GD!AA47)=0,0,(L9*Brandstoffacturen!$P$3+Brandstoffacturen!$G$3)*(1+INDEX(Brandstoffacturen!$F$3:$F$14,L$39))*(1-INDEX(Brandstoffacturen!$L$3:$L$14,L$39))*INDEX(Gegevens!$T$40:$T$49,GD!AA47)) -> 2668.530889 | M47: =IF(INDEX(Brandstoffacturen!$B$22:$B$29,GD!AB47)=0,0,(M9*Brandstoffacturen!$P$3+Brandstoffacturen!$G$3)*(1+INDEX(Brandstoffacturen!$F$3:$F$14,M$39))*(1-INDEX(Brandstoffacturen!$L$3:$L$14,M$39))*INDEX(Gegevens!$T$40:$T$49,GD!AB47)) -> 2405.719666 | P47: 7 | Q47: =IF(OR(AND($A47=1,B$39=1),AND($A47=Titels!$O$12,B$39=Titels!$P$12),AND($A47=1,B$39=5),AND($A47=Titels!$O$14,B$39=Titels!$P$14),AND($A47=Titels!$O$15,B$39=Titels!$P$15),AND($A47=21,B$39=7),AND($A47=15,B$39=8),AND($A47=1,B$39=11),AND($A47=11,B$39=11),AND($A47=25,B$39=12)),8,WEEKDAY(CONCATENATE($P47,"/",B$39,"/",$B$1),2)) -> 1 | R47: =IF(OR(AND($A47=1,C$39=1),AND($A47=Titels!$O$12,C$39=Titels!$P$12),AND($A47=1,C$39=5),AND($A47=Titels!$O$14,C$39=Titels!$P$14),AND($A47=Titels!$O$15,C$39=Titels!$P$15),AND($A47=21,C$39=7),AND($A47=15,C$39=8),AND($A47=1,C$39=11),AND($A47=11,C$39=11),AND($A47=25,C$39=12)),8,WEEKDAY(CONCATENATE($P47,"/",C$39,"/",$B$1),2)) -> 4 | S47: =IF(OR(AND($A47=1,D$39=1),AND($A47=Titels!$O$12,D$39=Titels!$P$12),AND($A47=1,D$39=5),AND($A47=Titels!$O$14,D$39=Titels!$P$14),AND($A47=Titels!$O$15,D$39=Titels!$P$15),AND($A47=21,D$39=7),AND($A47=15,D$39=8),AND($A47=1,D$39=11),AND($A47=11,D$39=11),AND($A47=25,D$39=12)),8,WEEKDAY(CONCATENATE($P47,"/",D$39,"/",$B$1),2)) -> 4 | T47: =IF(OR(AND($A47=1,E$39=1),AND($A47=Titels!$O$12,E$39=Titels!$P$12),AND($A47=1,E$39=5),AND($A47=Titels!$O$14,E$39=Titels!$P$14),AND($A47=Titels!$O$15,E$39=Titels!$P$15),AND($A47=21,E$39=7),AND($A47=15,E$39=8),AND($A47=1,E$39=11),AND($A47=11,E$39=11),AND($A47=25,E$39=12)),8,WEEKDAY(CONCATENATE($P47,"/",E$39,"/",$B$1),2)) -> 7 | U47: =IF(OR(AND($A47=1,F$39=1),AND($A47=Titels!$O$12,F$39=Titels!$P$12),AND($A47=1,F$39=5),AND($A47=Titels!$O$14,F$39=Titels!$P$14),AND($A47=Titels!$O$15,F$39=Titels!$P$15),AND($A47=21,F$39=7),AND($A47=15,F$39=8),AND($A47=1,F$39=11),AND($A47=11,F$39=11),AND($A47=25,F$39=12)),8,WEEKDAY(CONCATENATE($P47,"/",F$39,"/",$B$1),2)) -> 2 | V47: =IF(OR(AND($A47=1,G$39=1),AND($A47=Titels!$O$12,G$39=Titels!$P$12),AND($A47=1,G$39=5),AND($A47=Titels!$O$14,G$39=Titels!$P$14),AND($A47=Titels!$O$15,G$39=Titels!$P$15),AND($A47=21,G$39=7),AND($A47=15,G$39=8),AND($A47=1,G$39=11),AND($A47=11,G$39=11),AND($A47=25,G$39=12)),8,WEEKDAY(CONCATENATE($P47,"/",G$39,"/",$B$1),2)) -> 5 | W47: =IF(OR(AND($A47=1,H$39=1),AND($A47=Titels!$O$12,H$39=Titels!$P$12),AND($A47=1,H$39=5),AND($A47=Titels!$O$14,H$39=Titels!$P$14),AND($A47=Titels!$O$15,H$39=Titels!$P$15),AND($A47=21,H$39=7),AND($A47=15,H$39=8),AND($A47=1,H$39=11),AND($A47=11,H$39=11),AND($A47=25,H$39=12)),8,WEEKDAY(CONCATENATE($P47,"/",H$39,"/",$B$1),2)) -> 7 | X47: =IF(OR(AND($A47=1,I$39=1),AND($A47=Titels!$O$12,I$39=Titels!$P$12),AND($A47=1,I$39=5),AND($A47=Titels!$O$14,I$39=Titels!$P$14),AND($A47=Titels!$O$15,I$39=Titels!$P$15),AND($A47=21,I$39=7),AND($A47=15,I$39=8),AND($A47=1,I$39=11),AND($A47=11,I$39=11),AND($A47=25,I$39=12)),8,WEEKDAY(CONCATENATE($P47,"/",I$39,"/",$B$1),2)) -> 3 | Y47: =IF(OR(AND($A47=1,J$39=1),AND($A47=Titels!$O$12,J$39=Titels!$P$12),AND($A47=1,J$39=5),AND($A47=Titels!$O$14,J$39=Titels!$P$14),AND($A47=Titels!$O$15,J$39=Titels!$P$15),AND($A47=21,J$39=7),AND($A47=15,J$39=8),AND($A47=1,J$39=11),AND($A47=11,J$39=11),AND($A47=25,J$39=12)),8,WEEKDAY(CONCATENATE($P47,"/",J$39,"/",$B$1),2)) -> 6 | Z47: =IF(OR(AND($A47=1,K$39=1),AND($A47=Titels!$O$12,K$39=Titels!$P$12),AND($A47=1,K$39=5),AND($A47=Titels!$O$14,K$39=Titels!$P$14),AND($A47=Titels!$O$15,K$39=Titels!$P$15),AND($A47=21,K$39=7),AND($A47=15,K$39=8),AND($A47=1,K$39=11),AND($A47=11,K$39=11),AND($A47=25,K$39=12)),8,WEEKDAY(CONCATENATE($P47,"/",K$39,"/",$B$1),2)) -> 1 | AA47: =IF(OR(AND($A47=1,L$39=1),AND($A47=Titels!$O$12,L$39=Titels!$P$12),AND($A47=1,L$39=5),AND($A47=Titels!$O$14,L$39=Titels!$P$14),AND($A47=Titels!$O$15,L$39=Titels!$P$15),AND($A47=21,L$39=7),AND($A47=15,L$39=8),AND($A47=1,L$39=11),AND($A47=11,L$39=11),AND($A47=25,L$39=12)),8,WEEKDAY(CONCATENATE($P47,"/",L$39,"/",$B$1),2)) -> 4 | AB47: =IF(OR(AND($A47=1,M$39=1),AND($A47=Titels!$O$12,M$39=Titels!$P$12),AND($A47=1,M$39=5),AND($A47=Titels!$O$14,M$39=Titels!$P$14),AND($A47=Titels!$O$15,M$39=Titels!$P$15),AND($A47=21,M$39=7),AND($A47=15,M$39=8),AND($A47=1,M$39=11),AND($A47=11,M$39=11),AND($A47=25,M$39=12)),8,WEEKDAY(CONCATENATE($P47,"/",M$39,"/",$B$1),2)) -> 6
A48: 8 | B48: =IF(INDEX(Brandstoffacturen!$B$22:$B$29,GD!Q48)=0,0,(B10*Brandstoffacturen!$P$3+Brandstoffacturen!$G$3)*(1+INDEX(Brandstoffacturen!$F$3:$F$14,B$39))*(1-INDEX(Brandstoffacturen!$L$3:$L$14,B$39))*INDEX(Gegevens!$T$40:$T$49,GD!Q48)) -> 2385.5036 | C48: =IF(INDEX(Brandstoffacturen!$B$22:$B$29,GD!R48)=0,0,(C10*Brandstoffacturen!$P$3+Brandstoffacturen!$G$3)*(1+INDEX(Brandstoffacturen!$F$3:$F$14,C$39))*(1-INDEX(Brandstoffacturen!$L$3:$L$14,C$39))*INDEX(Gegevens!$T$40:$T$49,GD!R48)) -> 2718.47298 | D48: =IF(INDEX(Brandstoffacturen!$B$22:$B$29,GD!S48)=0,0,(D10*Brandstoffacturen!$P$3+Brandstoffacturen!$G$3)*(1+INDEX(Brandstoffacturen!$F$3:$F$14,D$39))*(1-INDEX(Brandstoffacturen!$L$3:$L$14,D$39))*INDEX(Gegevens!$T$40:$T$49,GD!S48)) -> 2779.088721 | E48: =IF(INDEX(Brandstoffacturen!$B$22:$B$29,GD!T48)=0,0,(E10*Brandstoffacturen!$P$3+Brandstoffacturen!$G$3)*(1+INDEX(Brandstoffacturen!$F$3:$F$14,E$39))*(1-INDEX(Brandstoffacturen!$L$3:$L$14,E$39))*INDEX(Gegevens!$T$40:$T$49,GD!T48)) -> 1888.527521 | F48: =IF(INDEX(Brandstoffacturen!$B$22:$B$29,GD!U48)=0,0,(F10*Brandstoffacturen!$P$3+Brandstoffacturen!$G$3)*(1+INDEX(Brandstoffacturen!$F$3:$F$14,F$39))*(1-INDEX(Brandstoffacturen!$L$3:$L$14,F$39))*INDEX(Gegevens!$T$40:$T$49,GD!U48)) -> 1972.028772 | G48: =IF(INDEX(Brandstoffacturen!$B$22:$B$29,GD!V48)=0,0,(G10*Brandstoffacturen!$P$3+Brandstoffacturen!$G$3)*(1+INDEX(Brandstoffacturen!$F$3:$F$14,G$39))*(1-INDEX(Brandstoffacturen!$L$3:$L$14,G$39))*INDEX(Gegevens!$T$40:$T$49,GD!V48)) -> 1532.699012 | H48: =IF(INDEX(Brandstoffacturen!$B$22:$B$29,GD!W48)=0,0,(H10*Brandstoffacturen!$P$3+Brandstoffacturen!$G$3)*(1+INDEX(Brandstoffacturen!$F$3:$F$14,H$39))*(1-INDEX(Brandstoffacturen!$L$3:$L$14,H$39))*INDEX(Gegevens!$T$40:$T$49,GD!W48)) -> 1444.565063 | I48: =IF(INDEX(Brandstoffacturen!$B$22:$B$29,GD!X48)=0,0,(I10*Brandstoffacturen!$P$3+Brandstoffacturen!$G$3)*(1+INDEX(Brandstoffacturen!$F$3:$F$14,I$39))*(1-INDEX(Brandstoffacturen!$L$3:$L$14,I$39))*INDEX(Gegevens!$T$40:$T$49,GD!X48)) -> 1622.792403 | J48: =IF(INDEX(Brandstoffacturen!$B$22:$B$29,GD!Y48)=0,0,(J10*Brandstoffacturen!$P$3+Brandstoffacturen!$G$3)*(1+INDEX(Brandstoffacturen!$F$3:$F$14,J$39))*(1-INDEX(Brandstoffacturen!$L$3:$L$14,J$39))*INDEX(Gegevens!$T$40:$T$49,GD!Y48)) -> 2342.75849 | K48: =IF(INDEX(Brandstoffacturen!$B$22:$B$29,GD!Z48)=0,0,(K10*Brandstoffacturen!$P$3+Brandstoffacturen!$G$3)*(1+INDEX(Brandstoffacturen!$F$3:$F$14,K$39))*(1-INDEX(Brandstoffacturen!$L$3:$L$14,K$39))*INDEX(Gegevens!$T$40:$T$49,GD!Z48)) -> 2549.212103 | L48: =IF(INDEX(Brandstoffacturen!$B$22:$B$29,GD!AA48)=0,0,(L10*Brandstoffacturen!$P$3+Brandstoffacturen!$G$3)*(1+INDEX(Brandstoffacturen!$F$3:$F$14,L$39))*(1-INDEX(Brandstoffacturen!$L$3:$L$14,L$39))*INDEX(Gegevens!$T$40:$T$49,GD!AA48)) -> 2884.917553 | M48: =IF(INDEX(Brandstoffacturen!$B$22:$B$29,GD!AB48)=0,0,(M10*Brandstoffacturen!$P$3+Brandstoffacturen!$G$3)*(1+INDEX(Brandstoffacturen!$F$3:$F$14,M$39))*(1-INDEX(Brandstoffacturen!$L$3:$L$14,M$39))*INDEX(Gegevens!$T$40:$T$49,GD!AB48)) -> 2372.811551 | P48: 8 | Q48: =IF(OR(AND($A48=1,B$39=1),AND($A48=Titels!$O$12,B$39=Titels!$P$12),AND($A48=1,B$39=5),AND($A48=Titels!$O$14,B$39=Titels!$P$14),AND($A48=Titels!$O$15,B$39=Titels!$P$15),AND($A48=21,B$39=7),AND($A48=15,B$39=8),AND($A48=1,B$39=11),AND($A48=11,B$39=11),AND($A48=25,B$39=12)),8,WEEKDAY(CONCATENATE($P48,"/",B$39,"/",$B$1),2)) -> 2 | R48: =IF(OR(AND($A48=1,C$39=1),AND($A48=Titels!$O$12,C$39=Titels!$P$12),AND($A48=1,C$39=5),AND($A48=Titels!$O$14,C$39=Titels!$P$14),AND($A48=Titels!$O$15,C$39=Titels!$P$15),AND($A48=21,C$39=7),AND($A48=15,C$39=8),AND($A48=1,C$39=11),AND($A48=11,C$39=11),AND($A48=25,C$39=12)),8,WEEKDAY(CONCATENATE($P48,"/",C$39,"/",$B$1),2)) -> 5 | S48: =IF(OR(AND($A48=1,D$39=1),AND($A48=Titels!$O$12,D$39=Titels!$P$12),AND($A48=1,D$39=5),AND($A48=Titels!$O$14,D$39=Titels!$P$14),AND($A48=Titels!$O$15,D$39=Titels!$P$15),AND($A48=21,D$39=7),AND($A48=15,D$39=8),AND($A48=1,D$39=11),AND($A48=11,D$39=11),AND($A48=25,D$39=12)),8,WEEKDAY(CONCATENATE($P48,"/",D$39,"/",$B$1),2)) -> 5 | T48: =IF(OR(AND($A48=1,E$39=1),AND($A48=Titels!$O$12,E$39=Titels!$P$12),AND($A48=1,E$39=5),AND($A48=Titels!$O$14,E$39=Titels!$P$14),AND($A48=Titels!$O$15,E$39=Titels!$P$15),AND($A48=21,E$39=7),AND($A48=15,E$39=8),AND($A48=1,E$39=11),AND($A48=11,E$39=11),AND($A48=25,E$39=12)),8,WEEKDAY(CONCATENATE($P48,"/",E$39,"/",$B$1),2)) -> 1 | U48: =IF(OR(AND($A48=1,F$39=1),AND($A48=Titels!$O$12,F$39=Titels!$P$12),AND($A48=1,F$39=5),AND($A48=Titels!$O$14,F$39=Titels!$P$14),AND($A48=Titels!$O$15,F$39=Titels!$P$15),AND($A48=21,F$39=7),AND($A48=15,F$39=8),AND($A48=1,F$39=11),AND($A48=11,F$39=11),AND($A48=25,F$39=12)),8,WEEKDAY(CONCATENATE($P48,"/",F$39,"/",$B$1),2)) -> 3 | V48: =IF(OR(AND($A48=1,G$39=1),AND($A48=Titels!$O$12,G$39=Titels!$P$12),AND($A48=1,G$39=5),AND($A48=Titels!$O$14,G$39=Titels!$P$14),AND($A48=Titels!$O$15,G$39=Titels!$P$15),AND($A48=21,G$39=7),AND($A48=15,G$39=8),AND($A48=1,G$39=11),AND($A48=11,G$39=11),AND($A48=25,G$39=12)),8,WEEKDAY(CONCATENATE($P48,"/",G$39,"/",$B$1),2)) -> 6 | W48: =IF(OR(AND($A48=1,H$39=1),AND($A48=Titels!$O$12,H$39=Titels!$P$12),AND($A48=1,H$39=5),AND($A48=Titels!$O$14,H$39=Titels!$P$14),AND($A48=Titels!$O$15,H$39=Titels!$P$15),AND($A48=21,H$39=7),AND($A48=15,H$39=8),AND($A48=1,H$39=11),AND($A48=11,H$39=11),AND($A48=25,H$39=12)),8,WEEKDAY(CONCATENATE($P48,"/",H$39,"/",$B$1),2)) -> 1 | X48: =IF(OR(AND($A48=1,I$39=1),AND($A48=Titels!$O$12,I$39=Titels!$P$12),AND($A48=1,I$39=5),AND($A48=Titels!$O$14,I$39=Titels!$P$14),AND($A48=Titels!$O$15,I$39=Titels!$P$15),AND($A48=21,I$39=7),AND($A48=15,I$39=8),AND($A48=1,I$39=11),AND($A48=11,I$39=11),AND($A48=25,I$39=12)),8,WEEKDAY(CONCATENATE($P48,"/",I$39,"/",$B$1),2)) -> 4 | Y48: =IF(OR(AND($A48=1,J$39=1),AND($A48=Titels!$O$12,J$39=Titels!$P$12),AND($A48=1,J$39=5),AND($A48=Titels!$O$14,J$39=Titels!$P$14),AND($A48=Titels!$O$15,J$39=Titels!$P$15),AND($A48=21,J$39=7),AND($A48=15,J$39=8),AND($A48=1,J$39=11),AND($A48=11,J$39=11),AND($A48=25,J$39=12)),8,WEEKDAY(CONCATENATE($P48,"/",J$39,"/",$B$1),2)) -> 7 | Z48: =IF(OR(AND($A48=1,K$39=1),AND($A48=Titels!$O$12,K$39=Titels!$P$12),AND($A48=1,K$39=5),AND($A48=Titels!$O$14,K$39=Titels!$P$14),AND($A48=Titels!$O$15,K$39=Titels!$P$15),AND($A48=21,K$39=7),AND($A48=15,K$39=8),AND($A48=1,K$39=11),AND($A48=11,K$39=11),AND($A48=25,K$39=12)),8,WEEKDAY(CONCATENATE($P48,"/",K$39,"/",$B$1),2)) -> 2 | AA48: =IF(OR(AND($A48=1,L$39=1),AND($A48=Titels!$O$12,L$39=Titels!$P$12),AND($A48=1,L$39=5),AND($A48=Titels!$O$14,L$39=Titels!$P$14),AND($A48=Titels!$O$15,L$39=Titels!$P$15),AND($A48=21,L$39=7),AND($A48=15,L$39=8),AND($A48=1,L$39=11),AND($A48=11,L$39=11),AND($A48=25,L$39=12)),8,WEEKDAY(CONCATENATE($P48,"/",L$39,"/",$B$1),2)) -> 5 | AB48: =IF(OR(AND($A48=1,M$39=1),AND($A48=Titels!$O$12,M$39=Titels!$P$12),AND($A48=1,M$39=5),AND($A48=Titels!$O$14,M$39=Titels!$P$14),AND($A48=Titels!$O$15,M$39=Titels!$P$15),AND($A48=21,M$39=7),AND($A48=15,M$39=8),AND($A48=1,M$39=11),AND($A48=11,M$39=11),AND($A48=25,M$39=12)),8,WEEKDAY(CONCATENATE($P48,"/",M$39,"/",$B$1),2)) -> 7
A49: 9 | B49: =IF(INDEX(Brandstoffacturen!$B$22:$B$29,GD!Q49)=0,0,(B11*Brandstoffacturen!$P$3+Brandstoffacturen!$G$3)*(1+INDEX(Brandstoffacturen!$F$3:$F$14,B$39))*(1-INDEX(Brandstoffacturen!$L$3:$L$14,B$39))*INDEX(Gegevens!$T$40:$T$49,GD!Q49)) -> 2601.19779 | C49: =IF(INDEX(Brandstoffacturen!$B$22:$B$29,GD!R49)=0,0,(C11*Brandstoffacturen!$P$3+Brandstoffacturen!$G$3)*(1+INDEX(Brandstoffacturen!$F$3:$F$14,C$39))*(1-INDEX(Brandstoffacturen!$L$3:$L$14,C$39))*INDEX(Gegevens!$T$40:$T$49,GD!R49)) -> 2682.90832 | D49: =IF(INDEX(Brandstoffacturen!$B$22:$B$29,GD!S49)=0,0,(D11*Brandstoffacturen!$P$3+Brandstoffacturen!$G$3)*(1+INDEX(Brandstoffacturen!$F$3:$F$14,D$39))*(1-INDEX(Brandstoffacturen!$L$3:$L$14,D$39))*INDEX(Gegevens!$T$40:$T$49,GD!S49)) -> 2583.475054 | E49: =IF(INDEX(Brandstoffacturen!$B$22:$B$29,GD!T49)=0,0,(E11*Brandstoffacturen!$P$3+Brandstoffacturen!$G$3)*(1+INDEX(Brandstoffacturen!$F$3:$F$14,E$39))*(1-INDEX(Brandstoffacturen!$L$3:$L$14,E$39))*INDEX(Gegevens!$T$40:$T$49,GD!T49)) -> 1897.55005 | F49: =IF(INDEX(Brandstoffacturen!$B$22:$B$29,GD!U49)=0,0,(F11*Brandstoffacturen!$P$3+Brandstoffacturen!$G$3)*(1+INDEX(Brandstoffacturen!$F$3:$F$14,F$39))*(1-INDEX(Brandstoffacturen!$L$3:$L$14,F$39))*INDEX(Gegevens!$T$40:$T$49,GD!U49)) -> 1876.444192 | G49: =IF(INDEX(Brandstoffacturen!$B$22:$B$29,GD!V49)=0,0,(G11*Brandstoffacturen!$P$3+Brandstoffacturen!$G$3)*(1+INDEX(Brandstoffacturen!$F$3:$F$14,G$39))*(1-INDEX(Brandstoffacturen!$L$3:$L$14,G$39))*INDEX(Gegevens!$T$40:$T$49,GD!V49)) -> 1441.636281 | H49: =IF(INDEX(Brandstoffacturen!$B$22:$B$29,GD!W49)=0,0,(H11*Brandstoffacturen!$P$3+Brandstoffacturen!$G$3)*(1+INDEX(Brandstoffacturen!$F$3:$F$14,H$39))*(1-INDEX(Brandstoffacturen!$L$3:$L$14,H$39))*INDEX(Gegevens!$T$40:$T$49,GD!W49)) -> 1444.565063 | I49: =IF(INDEX(Brandstoffacturen!$B$22:$B$29,GD!X49)=0,0,(I11*Brandstoffacturen!$P$3+Brandstoffacturen!$G$3)*(1+INDEX(Brandstoffacturen!$F$3:$F$14,I$39))*(1-INDEX(Brandstoffacturen!$L$3:$L$14,I$39))*INDEX(Gegevens!$T$40:$T$49,GD!X49)) -> 1622.792403 | J49: =IF(INDEX(Brandstoffacturen!$B$22:$B$29,GD!Y49)=0,0,(J11*Brandstoffacturen!$P$3+Brandstoffacturen!$G$3)*(1+INDEX(Brandstoffacturen!$F$3:$F$14,J$39))*(1-INDEX(Brandstoffacturen!$L$3:$L$14,J$39))*INDEX(Gegevens!$T$40:$T$49,GD!Y49)) -> 2489.755154 | K49: =IF(INDEX(Brandstoffacturen!$B$22:$B$29,GD!Z49)=0,0,(K11*Brandstoffacturen!$P$3+Brandstoffacturen!$G$3)*(1+INDEX(Brandstoffacturen!$F$3:$F$14,K$39))*(1-INDEX(Brandstoffacturen!$L$3:$L$14,K$39))*INDEX(Gegevens!$T$40:$T$49,GD!Z49)) -> 2793.620258 | L49: =IF(INDEX(Brandstoffacturen!$B$22:$B$29,GD!AA49)=0,0,(L11*Brandstoffacturen!$P$3+Brandstoffacturen!$G$3)*(1+INDEX(Brandstoffacturen!$F$3:$F$14,L$39))*(1-INDEX(Brandstoffacturen!$L$3:$L$14,L$39))*INDEX(Gegevens!$T$40:$T$49,GD!AA49)) -> 2896.306325 | M49: =IF(INDEX(Brandstoffacturen!$B$22:$B$29,GD!AB49)=0,0,(M11*Brandstoffacturen!$P$3+Brandstoffacturen!$G$3)*(1+INDEX(Brandstoffacturen!$F$3:$F$14,M$39))*(1-INDEX(Brandstoffacturen!$L$3:$L$14,M$39))*INDEX(Gegevens!$T$40:$T$49,GD!AB49)) -> 2668.984589 | P49: 9 | Q49: =IF(OR(AND($A49=1,B$39=1),AND($A49=Titels!$O$12,B$39=Titels!$P$12),AND($A49=1,B$39=5),AND($A49=Titels!$O$14,B$39=Titels!$P$14),AND($A49=Titels!$O$15,B$39=Titels!$P$15),AND($A49=21,B$39=7),AND($A49=15,B$39=8),AND($A49=1,B$39=11),AND($A49=11,B$39=11),AND($A49=25,B$39=12)),8,WEEKDAY(CONCATENATE($P49,"/",B$39,"/",$B$1),2)) -> 3 | R49: =IF(OR(AND($A49=1,C$39=1),AND($A49=Titels!$O$12,C$39=Titels!$P$12),AND($A49=1,C$39=5),AND($A49=Titels!$O$14,C$39=Titels!$P$14),AND($A49=Titels!$O$15,C$39=Titels!$P$15),AND($A49=21,C$39=7),AND($A49=15,C$39=8),AND($A49=1,C$39=11),AND($A49=11,C$39=11),AND($A49=25,C$39=12)),8,WEEKDAY(CONCATENATE($P49,"/",C$39,"/",$B$1),2)) -> 6 | S49: =IF(OR(AND($A49=1,D$39=1),AND($A49=Titels!$O$12,D$39=Titels!$P$12),AND($A49=1,D$39=5),AND($A49=Titels!$O$14,D$39=Titels!$P$14),AND($A49=Titels!$O$15,D$39=Titels!$P$15),AND($A49=21,D$39=7),AND($A49=15,D$39=8),AND($A49=1,D$39=11),AND($A49=11,D$39=11),AND($A49=25,D$39=12)),8,WEEKDAY(CONCATENATE($P49,"/",D$39,"/",$B$1),2)) -> 6 | T49: =IF(OR(AND($A49=1,E$39=1),AND($A49=Titels!$O$12,E$39=Titels!$P$12),AND($A49=1,E$39=5),AND($A49=Titels!$O$14,E$39=Titels!$P$14),AND($A49=Titels!$O$15,E$39=Titels!$P$15),AND($A49=21,E$39=7),AND($A49=15,E$39=8),AND($A49=1,E$39=11),AND($A49=11,E$39=11),AND($A49=25,E$39=12)),8,WEEKDAY(CONCATENATE($P49,"/",E$39,"/",$B$1),2)) -> 2 | U49: =IF(OR(AND($A49=1,F$39=1),AND($A49=Titels!$O$12,F$39=Titels!$P$12),AND($A49=1,F$39=5),AND($A49=Titels!$O$14,F$39=Titels!$P$14),AND($A49=Titels!$O$15,F$39=Titels!$P$15),AND($A49=21,F$39=7),AND($A49=15,F$39=8),AND($A49=1,F$39=11),AND($A49=11,F$39=11),AND($A49=25,F$39=12)),8,WEEKDAY(CONCATENATE($P49,"/",F$39,"/",$B$1),2)) -> 4 | V49: =IF(OR(AND($A49=1,G$39=1),AND($A49=Titels!$O$12,G$39=Titels!$P$12),AND($A49=1,G$39=5),AND($A49=Titels!$O$14,G$39=Titels!$P$14),AND($A49=Titels!$O$15,G$39=Titels!$P$15),AND($A49=21,G$39=7),AND($A49=15,G$39=8),AND($A49=1,G$39=11),AND($A49=11,G$39=11),AND($A49=25,G$39=12)),8,WEEKDAY(CONCATENATE($P49,"/",G$39,"/",$B$1),2)) -> 7 | W49: =IF(OR(AND($A49=1,H$39=1),AND($A49=Titels!$O$12,H$39=Titels!$P$12),AND($A49=1,H$39=5),AND($A49=Titels!$O$14,H$39=Titels!$P$14),AND($A49=Titels!$O$15,H$39=Titels!$P$15),AND($A49=21,H$39=7),AND($A49=15,H$39=8),AND($A49=1,H$39=11),AND($A49=11,H$39=11),AND($A49=25,H$39=12)),8,WEEKDAY(CONCATENATE($P49,"/",H$39,"/",$B$1),2)) -> 2 | X49: =IF(OR(AND($A49=1,I$39=1),AND($A49=Titels!$O$12,I$39=Titels!$P$12),AND($A49=1,I$39=5),AND($A49=Titels!$O$14,I$39=Titels!$P$14),AND($A49=Titels!$O$15,I$39=Titels!$P$15),AND($A49=21,I$39=7),AND($A49=15,I$39=8),AND($A49=1,I$39=11),AND($A49=11,I$39=11),AND($A49=25,I$39=12)),8,WEEKDAY(CONCATENATE($P49,"/",I$39,"/",$B$1),2)) -> 5 | Y49: =IF(OR(AND($A49=1,J$39=1),AND($A49=Titels!$O$12,J$39=Titels!$P$12),AND($A49=1,J$39=5),AND($A49=Titels!$O$14,J$39=Titels!$P$14),AND($A49=Titels!$O$15,J$39=Titels!$P$15),AND($A49=21,J$39=7),AND($A49=15,J$39=8),AND($A49=1,J$39=11),AND($A49=11,J$39=11),AND($A49=25,J$39=12)),8,WEEKDAY(CONCATENATE($P49,"/",J$39,"/",$B$1),2)) -> 1 | Z49: =IF(OR(AND($A49=1,K$39=1),AND($A49=Titels!$O$12,K$39=Titels!$P$12),AND($A49=1,K$39=5),AND($A49=Titels!$O$14,K$39=Titels!$P$14),AND($A49=Titels!$O$15,K$39=Titels!$P$15),AND($A49=21,K$39=7),AND($A49=15,K$39=8),AND($A49=1,K$39=11),AND($A49=11,K$39=11),AND($A49=25,K$39=12)),8,WEEKDAY(CONCATENATE($P49,"/",K$39,"/",$B$1),2)) -> 3 | AA49: =IF(OR(AND($A49=1,L$39=1),AND($A49=Titels!$O$12,L$39=Titels!$P$12),AND($A49=1,L$39=5),AND($A49=Titels!$O$14,L$39=Titels!$P$14),AND($A49=Titels!$O$15,L$39=Titels!$P$15),AND($A49=21,L$39=7),AND($A49=15,L$39=8),AND($A49=1,L$39=11),AND($A49=11,L$39=11),AND($A49=25,L$39=12)),8,WEEKDAY(CONCATENATE($P49,"/",L$39,"/",$B$1),2)) -> 6 | AB49: =IF(OR(AND($A49=1,M$39=1),AND($A49=Titels!$O$12,M$39=Titels!$P$12),AND($A49=1,M$39=5),AND($A49=Titels!$O$14,M$39=Titels!$P$14),AND($A49=Titels!$O$15,M$39=Titels!$P$15),AND($A49=21,M$39=7),AND($A49=15,M$39=8),AND($A49=1,M$39=11),AND($A49=11,M$39=11),AND($A49=25,M$39=12)),8,WEEKDAY(CONCATENATE($P49,"/",M$39,"/",$B$1),2)) -> 1
A50: 10 | B50: =IF(INDEX(Brandstoffacturen!$B$22:$B$29,GD!Q50)=0,0,(B12*Brandstoffacturen!$P$3+Brandstoffacturen!$G$3)*(1+INDEX(Brandstoffacturen!$F$3:$F$14,B$39))*(1-INDEX(Brandstoffacturen!$L$3:$L$14,B$39))*INDEX(Gegevens!$T$40:$T$49,GD!Q50)) -> 2709.044885 | C50: =IF(INDEX(Brandstoffacturen!$B$22:$B$29,GD!R50)=0,0,(C12*Brandstoffacturen!$P$3+Brandstoffacturen!$G$3)*(1+INDEX(Brandstoffacturen!$F$3:$F$14,C$39))*(1-INDEX(Brandstoffacturen!$L$3:$L$14,C$39))*INDEX(Gegevens!$T$40:$T$49,GD!R50)) -> 2837.021848 | D50: =IF(INDEX(Brandstoffacturen!$B$22:$B$29,GD!S50)=0,0,(D12*Brandstoffacturen!$P$3+Brandstoffacturen!$G$3)*(1+INDEX(Brandstoffacturen!$F$3:$F$14,D$39))*(1-INDEX(Brandstoffacturen!$L$3:$L$14,D$39))*INDEX(Gegevens!$T$40:$T$49,GD!S50)) -> 2803.540429 | E50: =IF(INDEX(Brandstoffacturen!$B$22:$B$29,GD!T50)=0,0,(E12*Brandstoffacturen!$P$3+Brandstoffacturen!$G$3)*(1+INDEX(Brandstoffacturen!$F$3:$F$14,E$39))*(1-INDEX(Brandstoffacturen!$L$3:$L$14,E$39))*INDEX(Gegevens!$T$40:$T$49,GD!T50)) -> 1996.797868 | F50: =IF(INDEX(Brandstoffacturen!$B$22:$B$29,GD!U50)=0,0,(F12*Brandstoffacturen!$P$3+Brandstoffacturen!$G$3)*(1+INDEX(Brandstoffacturen!$F$3:$F$14,F$39))*(1-INDEX(Brandstoffacturen!$L$3:$L$14,F$39))*INDEX(Gegevens!$T$40:$T$49,GD!U50)) -> 1809.534986 | G50: =IF(INDEX(Brandstoffacturen!$B$22:$B$29,GD!V50)=0,0,(G12*Brandstoffacturen!$P$3+Brandstoffacturen!$G$3)*(1+INDEX(Brandstoffacturen!$F$3:$F$14,G$39))*(1-INDEX(Brandstoffacturen!$L$3:$L$14,G$39))*INDEX(Gegevens!$T$40:$T$49,GD!V50)) -> 1423.423735 | H50: =IF(INDEX(Brandstoffacturen!$B$22:$B$29,GD!W50)=0,0,(H12*Brandstoffacturen!$P$3+Brandstoffacturen!$G$3)*(1+INDEX(Brandstoffacturen!$F$3:$F$14,H$39))*(1-INDEX(Brandstoffacturen!$L$3:$L$14,H$39))*INDEX(Gegevens!$T$40:$T$49,GD!W50)) -> 1444.565063 | I50: =IF(INDEX(Brandstoffacturen!$B$22:$B$29,GD!X50)=0,0,(I12*Brandstoffacturen!$P$3+Brandstoffacturen!$G$3)*(1+INDEX(Brandstoffacturen!$F$3:$F$14,I$39))*(1-INDEX(Brandstoffacturen!$L$3:$L$14,I$39))*INDEX(Gegevens!$T$40:$T$49,GD!X50)) -> 1622.792403 | J50: =IF(INDEX(Brandstoffacturen!$B$22:$B$29,GD!Y50)=0,0,(J12*Brandstoffacturen!$P$3+Brandstoffacturen!$G$3)*(1+INDEX(Brandstoffacturen!$F$3:$F$14,J$39))*(1-INDEX(Brandstoffacturen!$L$3:$L$14,J$39))*INDEX(Gegevens!$T$40:$T$49,GD!Y50)) -> 2088.855163 | K50: =IF(INDEX(Brandstoffacturen!$B$22:$B$29,GD!Z50)=0,0,(K12*Brandstoffacturen!$P$3+Brandstoffacturen!$G$3)*(1+INDEX(Brandstoffacturen!$F$3:$F$14,K$39))*(1-INDEX(Brandstoffacturen!$L$3:$L$14,K$39))*INDEX(Gegevens!$T$40:$T$49,GD!Z50)) -> 2621.096855 | L50: =IF(INDEX(Brandstoffacturen!$B$22:$B$29,GD!AA50)=0,0,(L12*Brandstoffacturen!$P$3+Brandstoffacturen!$G$3)*(1+INDEX(Brandstoffacturen!$F$3:$F$14,L$39))*(1-INDEX(Brandstoffacturen!$L$3:$L$14,L$39))*INDEX(Gegevens!$T$40:$T$49,GD!AA50)) -> 2998.805271 | M50: =IF(INDEX(Brandstoffacturen!$B$22:$B$29,GD!AB50)=0,0,(M12*Brandstoffacturen!$P$3+Brandstoffacturen!$G$3)*(1+INDEX(Brandstoffacturen!$F$3:$F$14,M$39))*(1-INDEX(Brandstoffacturen!$L$3:$L$14,M$39))*INDEX(Gegevens!$T$40:$T$49,GD!AB50)) -> 2866.43328 | P50: 10 | Q50: =IF(OR(AND($A50=1,B$39=1),AND($A50=Titels!$O$12,B$39=Titels!$P$12),AND($A50=1,B$39=5),AND($A50=Titels!$O$14,B$39=Titels!$P$14),AND($A50=Titels!$O$15,B$39=Titels!$P$15),AND($A50=21,B$39=7),AND($A50=15,B$39=8),AND($A50=1,B$39=11),AND($A50=11,B$39=11),AND($A50=25,B$39=12)),8,WEEKDAY(CONCATENATE($P50,"/",B$39,"/",$B$1),2)) -> 4 | R50: =IF(OR(AND($A50=1,C$39=1),AND($A50=Titels!$O$12,C$39=Titels!$P$12),AND($A50=1,C$39=5),AND($A50=Titels!$O$14,C$39=Titels!$P$14),AND($A50=Titels!$O$15,C$39=Titels!$P$15),AND($A50=21,C$39=7),AND($A50=15,C$39=8),AND($A50=1,C$39=11),AND($A50=11,C$39=11),AND($A50=25,C$39=12)),8,WEEKDAY(CONCATENATE($P50,"/",C$39,"/",$B$1),2)) -> 7 | S50: =IF(OR(AND($A50=1,D$39=1),AND($A50=Titels!$O$12,D$39=Titels!$P$12),AND($A50=1,D$39=5),AND($A50=Titels!$O$14,D$39=Titels!$P$14),AND($A50=Titels!$O$15,D$39=Titels!$P$15),AND($A50=21,D$39=7),AND($A50=15,D$39=8),AND($A50=1,D$39=11),AND($A50=11,D$39=11),AND($A50=25,D$39=12)),8,WEEKDAY(CONCATENATE($P50,"/",D$39,"/",$B$1),2)) -> 7 | T50: =IF(OR(AND($A50=1,E$39=1),AND($A50=Titels!$O$12,E$39=Titels!$P$12),AND($A50=1,E$39=5),AND($A50=Titels!$O$14,E$39=Titels!$P$14),AND($A50=Titels!$O$15,E$39=Titels!$P$15),AND($A50=21,E$39=7),AND($A50=15,E$39=8),AND($A50=1,E$39=11),AND($A50=11,E$39=11),AND($A50=25,E$39=12)),8,WEEKDAY(CONCATENATE($P50,"/",E$39,"/",$B$1),2)) -> 3 | U50: =IF(OR(AND($A50=1,F$39=1),AND($A50=Titels!$O$12,F$39=Titels!$P$12),AND($A50=1,F$39=5),AND($A50=Titels!$O$14,F$39=Titels!$P$14),AND($A50=Titels!$O$15,F$39=Titels!$P$15),AND($A50=21,F$39=7),AND($A50=15,F$39=8),AND($A50=1,F$39=11),AND($A50=11,F$39=11),AND($A50=25,F$39=12)),8,WEEKDAY(CONCATENATE($P50,"/",F$39,"/",$B$1),2)) -> 5 | V50: =IF(OR(AND($A50=1,G$39=1),AND($A50=Titels!$O$12,G$39=Titels!$P$12),AND($A50=1,G$39=5),AND($A50=Titels!$O$14,G$39=Titels!$P$14),AND($A50=Titels!$O$15,G$39=Titels!$P$15),AND($A50=21,G$39=7),AND($A50=15,G$39=8),AND($A50=1,G$39=11),AND($A50=11,G$39=11),AND($A50=25,G$39=12)),8,WEEKDAY(CONCATENATE($P50,"/",G$39,"/",$B$1),2)) -> 1 | W50: =IF(OR(AND($A50=1,H$39=1),AND($A50=Titels!$O$12,H$39=Titels!$P$12),AND($A50=1,H$39=5),AND($A50=Titels!$O$14,H$39=Titels!$P$14),AND($A50=Titels!$O$15,H$39=Titels!$P$15),AND($A50=21,H$39=7),AND($A50=15,H$39=8),AND($A50=1,H$39=11),AND($A50=11,H$39=11),AND($A50=25,H$39=12)),8,WEEKDAY(CONCATENATE($P50,"/",H$39,"/",$B$1),2)) -> 3 | X50: =IF(OR(AND($A50=1,I$39=1),AND($A50=Titels!$O$12,I$39=Titels!$P$12),AND($A50=1,I$39=5),AND($A50=Titels!$O$14,I$39=Titels!$P$14),AND($A50=Titels!$O$15,I$39=Titels!$P$15),AND($A50=21,I$39=7),AND($A50=15,I$39=8),AND($A50=1,I$39=11),AND($A50=11,I$39=11),AND($A50=25,I$39=12)),8,WEEKDAY(CONCATENATE($P50,"/",I$39,"/",$B$1),2)) -> 6 | Y50: =IF(OR(AND($A50=1,J$39=1),AND($A50=Titels!$O$12,J$39=Titels!$P$12),AND($A50=1,J$39=5),AND($A50=Titels!$O$14,J$39=Titels!$P$14),AND($A50=Titels!$O$15,J$39=Titels!$P$15),AND($A50=21,J$39=7),AND($A50=15,J$39=8),AND($A50=1,J$39=11),AND($A50=11,J$39=11),AND($A50=25,J$39=12)),8,WEEKDAY(CONCATENATE($P50,"/",J$39,"/",$B$1),2)) -> 2 | Z50: =IF(OR(AND($A50=1,K$39=1),AND($A50=Titels!$O$12,K$39=Titels!$P$12),AND($A50=1,K$39=5),AND($A50=Titels!$O$14,K$39=Titels!$P$14),AND($A50=Titels!$O$15,K$39=Titels!$P$15),AND($A50=21,K$39=7),AND($A50=15,K$39=8),AND($A50=1,K$39=11),AND($A50=11,K$39=11),AND($A50=25,K$39=12)),8,WEEKDAY(CONCATENATE($P50,"/",K$39,"/",$B$1),2)) -> 4 | AA50: =IF(OR(AND($A50=1,L$39=1),AND($A50=Titels!$O$12,L$39=Titels!$P$12),AND($A50=1,L$39=5),AND($A50=Titels!$O$14,L$39=Titels!$P$14),AND($A50=Titels!$O$15,L$39=Titels!$P$15),AND($A50=21,L$39=7),AND($A50=15,L$39=8),AND($A50=1,L$39=11),AND($A50=11,L$39=11),AND($A50=25,L$39=12)),8,WEEKDAY(CONCATENATE($P50,"/",L$39,"/",$B$1),2)) -> 7 | AB50: =IF(OR(AND($A50=1,M$39=1),AND($A50=Titels!$O$12,M$39=Titels!$P$12),AND($A50=1,M$39=5),AND($A50=Titels!$O$14,M$39=Titels!$P$14),AND($A50=Titels!$O$15,M$39=Titels!$P$15),AND($A50=21,M$39=7),AND($A50=15,M$39=8),AND($A50=1,M$39=11),AND($A50=11,M$39=11),AND($A50=25,M$39=12)),8,WEEKDAY(CONCATENATE($P50,"/",M$39,"/",$B$1),2)) -> 2
A51: 11 | B51: =IF(INDEX(Brandstoffacturen!$B$22:$B$29,GD!Q51)=0,0,(B13*Brandstoffacturen!$P$3+Brandstoffacturen!$G$3)*(1+INDEX(Brandstoffacturen!$F$3:$F$14,B$39))*(1-INDEX(Brandstoffacturen!$L$3:$L$14,B$39))*INDEX(Gegevens!$T$40:$T$49,GD!Q51)) -> 2532.567821 | C51: =IF(INDEX(Brandstoffacturen!$B$22:$B$29,GD!R51)=0,0,(C13*Brandstoffacturen!$P$3+Brandstoffacturen!$G$3)*(1+INDEX(Brandstoffacturen!$F$3:$F$14,C$39))*(1-INDEX(Brandstoffacturen!$L$3:$L$14,C$39))*INDEX(Gegevens!$T$40:$T$49,GD!R51)) -> 3168.958677 | D51: =IF(INDEX(Brandstoffacturen!$B$22:$B$29,GD!S51)=0,0,(D13*Brandstoffacturen!$P$3+Brandstoffacturen!$G$3)*(1+INDEX(Brandstoffacturen!$F$3:$F$14,D$39))*(1-INDEX(Brandstoffacturen!$L$3:$L$14,D$39))*INDEX(Gegevens!$T$40:$T$49,GD!S51)) -> 3121.412638 | E51: =IF(INDEX(Brandstoffacturen!$B$22:$B$29,GD!T51)=0,0,(E13*Brandstoffacturen!$P$3+Brandstoffacturen!$G$3)*(1+INDEX(Brandstoffacturen!$F$3:$F$14,E$39))*(1-INDEX(Brandstoffacturen!$L$3:$L$14,E$39))*INDEX(Gegevens!$T$40:$T$49,GD!T51)) -> 2177.248446 | F51: =IF(INDEX(Brandstoffacturen!$B$22:$B$29,GD!U51)=0,0,(F13*Brandstoffacturen!$P$3+Brandstoffacturen!$G$3)*(1+INDEX(Brandstoffacturen!$F$3:$F$14,F$39))*(1-INDEX(Brandstoffacturen!$L$3:$L$14,F$39))*INDEX(Gegevens!$T$40:$T$49,GD!U51)) -> 1866.885734 | G51: =IF(INDEX(Brandstoffacturen!$B$22:$B$29,GD!V51)=0,0,(G13*Brandstoffacturen!$P$3+Brandstoffacturen!$G$3)*(1+INDEX(Brandstoffacturen!$F$3:$F$14,G$39))*(1-INDEX(Brandstoffacturen!$L$3:$L$14,G$39))*INDEX(Gegevens!$T$40:$T$49,GD!V51)) -> 1487.167646 | H51: =IF(INDEX(Brandstoffacturen!$B$22:$B$29,GD!W51)=0,0,(H13*Brandstoffacturen!$P$3+Brandstoffacturen!$G$3)*(1+INDEX(Brandstoffacturen!$F$3:$F$14,H$39))*(1-INDEX(Brandstoffacturen!$L$3:$L$14,H$39))*INDEX(Gegevens!$T$40:$T$49,GD!W51)) -> 1444.565063 | I51: =IF(INDEX(Brandstoffacturen!$B$22:$B$29,GD!X51)=0,0,(I13*Brandstoffacturen!$P$3+Brandstoffacturen!$G$3)*(1+INDEX(Brandstoffacturen!$F$3:$F$14,I$39))*(1-INDEX(Brandstoffacturen!$L$3:$L$14,I$39))*INDEX(Gegevens!$T$40:$T$49,GD!X51)) -> 1622.792403 | J51: =IF(INDEX(Brandstoffacturen!$B$22:$B$29,GD!Y51)=0,0,(J13*Brandstoffacturen!$P$3+Brandstoffacturen!$G$3)*(1+INDEX(Brandstoffacturen!$F$3:$F$14,J$39))*(1-INDEX(Brandstoffacturen!$L$3:$L$14,J$39))*INDEX(Gegevens!$T$40:$T$49,GD!Y51)) -> 2088.855163 | K51: =IF(INDEX(Brandstoffacturen!$B$22:$B$29,GD!Z51)=0,0,(K13*Brandstoffacturen!$P$3+Brandstoffacturen!$G$3)*(1+INDEX(Brandstoffacturen!$F$3:$F$14,K$39))*(1-INDEX(Brandstoffacturen!$L$3:$L$14,K$39))*INDEX(Gegevens!$T$40:$T$49,GD!Z51)) -> 2319.180899 | L51: =IF(INDEX(Brandstoffacturen!$B$22:$B$29,GD!AA51)=0,0,(L13*Brandstoffacturen!$P$3+Brandstoffacturen!$G$3)*(1+INDEX(Brandstoffacturen!$F$3:$F$14,L$39))*(1-INDEX(Brandstoffacturen!$L$3:$L$14,L$39))*INDEX(Gegevens!$T$40:$T$49,GD!AA51)) -> 2862.14001 | M51: =IF(INDEX(Brandstoffacturen!$B$22:$B$29,GD!AB51)=0,0,(M13*Brandstoffacturen!$P$3+Brandstoffacturen!$G$3)*(1+INDEX(Brandstoffacturen!$F$3:$F$14,M$39))*(1-INDEX(Brandstoffacturen!$L$3:$L$14,M$39))*INDEX(Gegevens!$T$40:$T$49,GD!AB51)) -> 2767.708935 | P51: 11 | Q51: =IF(OR(AND($A51=1,B$39=1),AND($A51=Titels!$O$12,B$39=Titels!$P$12),AND($A51=1,B$39=5),AND($A51=Titels!$O$14,B$39=Titels!$P$14),AND($A51=Titels!$O$15,B$39=Titels!$P$15),AND($A51=21,B$39=7),AND($A51=15,B$39=8),AND($A51=1,B$39=11),AND($A51=11,B$39=11),AND($A51=25,B$39=12)),8,WEEKDAY(CONCATENATE($P51,"/",B$39,"/",$B$1),2)) -> 5 | R51: =IF(OR(AND($A51=1,C$39=1),AND($A51=Titels!$O$12,C$39=Titels!$P$12),AND($A51=1,C$39=5),AND($A51=Titels!$O$14,C$39=Titels!$P$14),AND($A51=Titels!$O$15,C$39=Titels!$P$15),AND($A51=21,C$39=7),AND($A51=15,C$39=8),AND($A51=1,C$39=11),AND($A51=11,C$39=11),AND($A51=25,C$39=12)),8,WEEKDAY(CONCATENATE($P51,"/",C$39,"/",$B$1),2)) -> 1 | S51: =IF(OR(AND($A51=1,D$39=1),AND($A51=Titels!$O$12,D$39=Titels!$P$12),AND($A51=1,D$39=5),AND($A51=Titels!$O$14,D$39=Titels!$P$14),AND($A51=Titels!$O$15,D$39=Titels!$P$15),AND($A51=21,D$39=7),AND($A51=15,D$39=8),AND($A51=1,D$39=11),AND($A51=11,D$39=11),AND($A51=25,D$39=12)),8,WEEKDAY(CONCATENATE($P51,"/",D$39,"/",$B$1),2)) -> 1 | T51: =IF(OR(AND($A51=1,E$39=1),AND($A51=Titels!$O$12,E$39=Titels!$P$12),AND($A51=1,E$39=5),AND($A51=Titels!$O$14,E$39=Titels!$P$14),AND($A51=Titels!$O$15,E$39=Titels!$P$15),AND($A51=21,E$39=7),AND($A51=15,E$39=8),AND($A51=1,E$39=11),AND($A51=11,E$39=11),AND($A51=25,E$39=12)),8,WEEKDAY(CONCATENATE($P51,"/",E$39,"/",$B$1),2)) -> 4 | U51: =IF(OR(AND($A51=1,F$39=1),AND($A51=Titels!$O$12,F$39=Titels!$P$12),AND($A51=1,F$39=5),AND($A51=Titels!$O$14,F$39=Titels!$P$14),AND($A51=Titels!$O$15,F$39=Titels!$P$15),AND($A51=21,F$39=7),AND($A51=15,F$39=8),AND($A51=1,F$39=11),AND($A51=11,F$39=11),AND($A51=25,F$39=12)),8,WEEKDAY(CONCATENATE($P51,"/",F$39,"/",$B$1),2)) -> 6 | V51: =IF(OR(AND($A51=1,G$39=1),AND($A51=Titels!$O$12,G$39=Titels!$P$12),AND($A51=1,G$39=5),AND($A51=Titels!$O$14,G$39=Titels!$P$14),AND($A51=Titels!$O$15,G$39=Titels!$P$15),AND($A51=21,G$39=7),AND($A51=15,G$39=8),AND($A51=1,G$39=11),AND($A51=11,G$39=11),AND($A51=25,G$39=12)),8,WEEKDAY(CONCATENATE($P51,"/",G$39,"/",$B$1),2)) -> 2 | W51: =IF(OR(AND($A51=1,H$39=1),AND($A51=Titels!$O$12,H$39=Titels!$P$12),AND($A51=1,H$39=5),AND($A51=Titels!$O$14,H$39=Titels!$P$14),AND($A51=Titels!$O$15,H$39=Titels!$P$15),AND($A51=21,H$39=7),AND($A51=15,H$39=8),AND($A51=1,H$39=11),AND($A51=11,H$39=11),AND($A51=25,H$39=12)),8,WEEKDAY(CONCATENATE($P51,"/",H$39,"/",$B$1),2)) -> 4 | X51: =IF(OR(AND($A51=1,I$39=1),AND($A51=Titels!$O$12,I$39=Titels!$P$12),AND($A51=1,I$39=5),AND($A51=Titels!$O$14,I$39=Titels!$P$14),AND($A51=Titels!$O$15,I$39=Titels!$P$15),AND($A51=21,I$39=7),AND($A51=15,I$39=8),AND($A51=1,I$39=11),AND($A51=11,I$39=11),AND($A51=25,I$39=12)),8,WEEKDAY(CONCATENATE($P51,"/",I$39,"/",$B$1),2)) -> 7 | Y51: =IF(OR(AND($A51=1,J$39=1),AND($A51=Titels!$O$12,J$39=Titels!$P$12),AND($A51=1,J$39=5),AND($A51=Titels!$O$14,J$39=Titels!$P$14),AND($A51=Titels!$O$15,J$39=Titels!$P$15),AND($A51=21,J$39=7),AND($A51=15,J$39=8),AND($A51=1,J$39=11),AND($A51=11,J$39=11),AND($A51=25,J$39=12)),8,WEEKDAY(CONCATENATE($P51,"/",J$39,"/",$B$1),2)) -> 3 | Z51: =IF(OR(AND($A51=1,K$39=1),AND($A51=Titels!$O$12,K$39=Titels!$P$12),AND($A51=1,K$39=5),AND($A51=Titels!$O$14,K$39=Titels!$P$14),AND($A51=Titels!$O$15,K$39=Titels!$P$15),AND($A51=21,K$39=7),AND($A51=15,K$39=8),AND($A51=1,K$39=11),AND($A51=11,K$39=11),AND($A51=25,K$39=12)),8,WEEKDAY(CONCATENATE($P51,"/",K$39,"/",$B$1),2)) -> 5 | AA51: =IF(OR(AND($A51=1,L$39=1),AND($A51=Titels!$O$12,L$39=Titels!$P$12),AND($A51=1,L$39=5),AND($A51=Titels!$O$14,L$39=Titels!$P$14),AND($A51=Titels!$O$15,L$39=Titels!$P$15),AND($A51=21,L$39=7),AND($A51=15,L$39=8),AND($A51=1,L$39=11),AND($A51=11,L$39=11),AND($A51=25,L$39=12)),8,WEEKDAY(CONCATENATE($P51,"/",L$39,"/",$B$1),2)) -> 8 | AB51: =IF(OR(AND($A51=1,M$39=1),AND($A51=Titels!$O$12,M$39=Titels!$P$12),AND($A51=1,M$39=5),AND($A51=Titels!$O$14,M$39=Titels!$P$14),AND($A51=Titels!$O$15,M$39=Titels!$P$15),AND($A51=21,M$39=7),AND($A51=15,M$39=8),AND($A51=1,M$39=11),AND($A51=11,M$39=11),AND($A51=25,M$39=12)),8,WEEKDAY(CONCATENATE($P51,"/",M$39,"/",$B$1),2)) -> 3
A52: 12 | B52: =IF(INDEX(Brandstoffacturen!$B$22:$B$29,GD!Q52)=0,0,(B14*Brandstoffacturen!$P$3+Brandstoffacturen!$G$3)*(1+INDEX(Brandstoffacturen!$F$3:$F$14,B$39))*(1-INDEX(Brandstoffacturen!$L$3:$L$14,B$39))*INDEX(Gegevens!$T$40:$T$49,GD!Q52)) -> 2375.699319 | C52: =IF(INDEX(Brandstoffacturen!$B$22:$B$29,GD!R52)=0,0,(C14*Brandstoffacturen!$P$3+Brandstoffacturen!$G$3)*(1+INDEX(Brandstoffacturen!$F$3:$F$14,C$39))*(1-INDEX(Brandstoffacturen!$L$3:$L$14,C$39))*INDEX(Gegevens!$T$40:$T$49,GD!R52)) -> 3216.378224 | D52: =IF(INDEX(Brandstoffacturen!$B$22:$B$29,GD!S52)=0,0,(D14*Brandstoffacturen!$P$3+Brandstoffacturen!$G$3)*(1+INDEX(Brandstoffacturen!$F$3:$F$14,D$39))*(1-INDEX(Brandstoffacturen!$L$3:$L$14,D$39))*INDEX(Gegevens!$T$40:$T$49,GD!S52)) -> 2901.347262 | E52: =IF(INDEX(Brandstoffacturen!$B$22:$B$29,GD!T52)=0,0,(E14*Brandstoffacturen!$P$3+Brandstoffacturen!$G$3)*(1+INDEX(Brandstoffacturen!$F$3:$F$14,E$39))*(1-INDEX(Brandstoffacturen!$L$3:$L$14,E$39))*INDEX(Gegevens!$T$40:$T$49,GD!T52)) -> 2294.541321 | F52: =IF(INDEX(Brandstoffacturen!$B$22:$B$29,GD!U52)=0,0,(F14*Brandstoffacturen!$P$3+Brandstoffacturen!$G$3)*(1+INDEX(Brandstoffacturen!$F$3:$F$14,F$39))*(1-INDEX(Brandstoffacturen!$L$3:$L$14,F$39))*INDEX(Gegevens!$T$40:$T$49,GD!U52)) -> 2010.262604 | G52: =IF(INDEX(Brandstoffacturen!$B$22:$B$29,GD!V52)=0,0,(G14*Brandstoffacturen!$P$3+Brandstoffacturen!$G$3)*(1+INDEX(Brandstoffacturen!$F$3:$F$14,G$39))*(1-INDEX(Brandstoffacturen!$L$3:$L$14,G$39))*INDEX(Gegevens!$T$40:$T$49,GD!V52)) -> 1541.805285 | H52: =IF(INDEX(Brandstoffacturen!$B$22:$B$29,GD!W52)=0,0,(H14*Brandstoffacturen!$P$3+Brandstoffacturen!$G$3)*(1+INDEX(Brandstoffacturen!$F$3:$F$14,H$39))*(1-INDEX(Brandstoffacturen!$L$3:$L$14,H$39))*INDEX(Gegevens!$T$40:$T$49,GD!W52)) -> 1444.565063 | I52: =IF(INDEX(Brandstoffacturen!$B$22:$B$29,GD!X52)=0,0,(I14*Brandstoffacturen!$P$3+Brandstoffacturen!$G$3)*(1+INDEX(Brandstoffacturen!$F$3:$F$14,I$39))*(1-INDEX(Brandstoffacturen!$L$3:$L$14,I$39))*INDEX(Gegevens!$T$40:$T$49,GD!X52)) -> 1622.792403 | J52: =IF(INDEX(Brandstoffacturen!$B$22:$B$29,GD!Y52)=0,0,(J14*Brandstoffacturen!$P$3+Brandstoffacturen!$G$3)*(1+INDEX(Brandstoffacturen!$F$3:$F$14,J$39))*(1-INDEX(Brandstoffacturen!$L$3:$L$14,J$39))*INDEX(Gegevens!$T$40:$T$49,GD!Y52)) -> 2088.855163 | K52: =IF(INDEX(Brandstoffacturen!$B$22:$B$29,GD!Z52)=0,0,(K14*Brandstoffacturen!$P$3+Brandstoffacturen!$G$3)*(1+INDEX(Brandstoffacturen!$F$3:$F$14,K$39))*(1-INDEX(Brandstoffacturen!$L$3:$L$14,K$39))*INDEX(Gegevens!$T$40:$T$49,GD!Z52)) -> 2247.296148 | L52: =IF(INDEX(Brandstoffacturen!$B$22:$B$29,GD!AA52)=0,0,(L14*Brandstoffacturen!$P$3+Brandstoffacturen!$G$3)*(1+INDEX(Brandstoffacturen!$F$3:$F$14,L$39))*(1-INDEX(Brandstoffacturen!$L$3:$L$14,L$39))*INDEX(Gegevens!$T$40:$T$49,GD!AA52)) -> 2941.861412 | M52: =IF(INDEX(Brandstoffacturen!$B$22:$B$29,GD!AB52)=0,0,(M14*Brandstoffacturen!$P$3+Brandstoffacturen!$G$3)*(1+INDEX(Brandstoffacturen!$F$3:$F$14,M$39))*(1-INDEX(Brandstoffacturen!$L$3:$L$14,M$39))*INDEX(Gegevens!$T$40:$T$49,GD!AB52)) -> 2932.249511 | P52: 12 | Q52: =IF(OR(AND($A52=1,B$39=1),AND($A52=Titels!$O$12,B$39=Titels!$P$12),AND($A52=1,B$39=5),AND($A52=Titels!$O$14,B$39=Titels!$P$14),AND($A52=Titels!$O$15,B$39=Titels!$P$15),AND($A52=21,B$39=7),AND($A52=15,B$39=8),AND($A52=1,B$39=11),AND($A52=11,B$39=11),AND($A52=25,B$39=12)),8,WEEKDAY(CONCATENATE($P52,"/",B$39,"/",$B$1),2)) -> 6 | R52: =IF(OR(AND($A52=1,C$39=1),AND($A52=Titels!$O$12,C$39=Titels!$P$12),AND($A52=1,C$39=5),AND($A52=Titels!$O$14,C$39=Titels!$P$14),AND($A52=Titels!$O$15,C$39=Titels!$P$15),AND($A52=21,C$39=7),AND($A52=15,C$39=8),AND($A52=1,C$39=11),AND($A52=11,C$39=11),AND($A52=25,C$39=12)),8,WEEKDAY(CONCATENATE($P52,"/",C$39,"/",$B$1),2)) -> 2 | S52: =IF(OR(AND($A52=1,D$39=1),AND($A52=Titels!$O$12,D$39=Titels!$P$12),AND($A52=1,D$39=5),AND($A52=Titels!$O$14,D$39=Titels!$P$14),AND($A52=Titels!$O$15,D$39=Titels!$P$15),AND($A52=21,D$39=7),AND($A52=15,D$39=8),AND($A52=1,D$39=11),AND($A52=11,D$39=11),AND($A52=25,D$39=12)),8,WEEKDAY(CONCATENATE($P52,"/",D$39,"/",$B$1),2)) -> 2 | T52: =IF(OR(AND($A52=1,E$39=1),AND($A52=Titels!$O$12,E$39=Titels!$P$12),AND($A52=1,E$39=5),AND($A52=Titels!$O$14,E$39=Titels!$P$14),AND($A52=Titels!$O$15,E$39=Titels!$P$15),AND($A52=21,E$39=7),AND($A52=15,E$39=8),AND($A52=1,E$39=11),AND($A52=11,E$39=11),AND($A52=25,E$39=12)),8,WEEKDAY(CONCATENATE($P52,"/",E$39,"/",$B$1),2)) -> 5 | U52: =IF(OR(AND($A52=1,F$39=1),AND($A52=Titels!$O$12,F$39=Titels!$P$12),AND($A52=1,F$39=5),AND($A52=Titels!$O$14,F$39=Titels!$P$14),AND($A52=Titels!$O$15,F$39=Titels!$P$15),AND($A52=21,F$39=7),AND($A52=15,F$39=8),AND($A52=1,F$39=11),AND($A52=11,F$39=11),AND($A52=25,F$39=12)),8,WEEKDAY(CONCATENATE($P52,"/",F$39,"/",$B$1),2)) -> 7 | V52: =IF(OR(AND($A52=1,G$39=1),AND($A52=Titels!$O$12,G$39=Titels!$P$12),AND($A52=1,G$39=5),AND($A52=Titels!$O$14,G$39=Titels!$P$14),AND($A52=Titels!$O$15,G$39=Titels!$P$15),AND($A52=21,G$39=7),AND($A52=15,G$39=8),AND($A52=1,G$39=11),AND($A52=11,G$39=11),AND($A52=25,G$39=12)),8,WEEKDAY(CONCATENATE($P52,"/",G$39,"/",$B$1),2)) -> 3 | W52: =IF(OR(AND($A52=1,H$39=1),AND($A52=Titels!$O$12,H$39=Titels!$P$12),AND($A52=1,H$39=5),AND($A52=Titels!$O$14,H$39=Titels!$P$14),AND($A52=Titels!$O$15,H$39=Titels!$P$15),AND($A52=21,H$39=7),AND($A52=15,H$39=8),AND($A52=1,H$39=11),AND($A52=11,H$39=11),AND($A52=25,H$39=12)),8,WEEKDAY(CONCATENATE($P52,"/",H$39,"/",$B$1),2)) -> 5 | X52: =IF(OR(AND($A52=1,I$39=1),AND($A52=Titels!$O$12,I$39=Titels!$P$12),AND($A52=1,I$39=5),AND($A52=Titels!$O$14,I$39=Titels!$P$14),AND($A52=Titels!$O$15,I$39=Titels!$P$15),AND($A52=21,I$39=7),AND($A52=15,I$39=8),AND($A52=1,I$39=11),AND($A52=11,I$39=11),AND($A52=25,I$39=12)),8,WEEKDAY(CONCATENATE($P52,"/",I$39,"/",$B$1),2)) -> 1 | Y52: =IF(OR(AND($A52=1,J$39=1),AND($A52=Titels!$O$12,J$39=Titels!$P$12),AND($A52=1,J$39=5),AND($A52=Titels!$O$14,J$39=Titels!$P$14),AND($A52=Titels!$O$15,J$39=Titels!$P$15),AND($A52=21,J$39=7),AND($A52=15,J$39=8),AND($A52=1,J$39=11),AND($A52=11,J$39=11),AND($A52=25,J$39=12)),8,WEEKDAY(CONCATENATE($P52,"/",J$39,"/",$B$1),2)) -> 4 | Z52: =IF(OR(AND($A52=1,K$39=1),AND($A52=Titels!$O$12,K$39=Titels!$P$12),AND($A52=1,K$39=5),AND($A52=Titels!$O$14,K$39=Titels!$P$14),AND($A52=Titels!$O$15,K$39=Titels!$P$15),AND($A52=21,K$39=7),AND($A52=15,K$39=8),AND($A52=1,K$39=11),AND($A52=11,K$39=11),AND($A52=25,K$39=12)),8,WEEKDAY(CONCATENATE($P52,"/",K$39,"/",$B$1),2)) -> 6 | AA52: =IF(OR(AND($A52=1,L$39=1),AND($A52=Titels!$O$12,L$39=Titels!$P$12),AND($A52=1,L$39=5),AND($A52=Titels!$O$14,L$39=Titels!$P$14),AND($A52=Titels!$O$15,L$39=Titels!$P$15),AND($A52=21,L$39=7),AND($A52=15,L$39=8),AND($A52=1,L$39=11),AND($A52=11,L$39=11),AND($A52=25,L$39=12)),8,WEEKDAY(CONCATENATE($P52,"/",L$39,"/",$B$1),2)) -> 2 | AB52: =IF(OR(AND($A52=1,M$39=1),AND($A52=Titels!$O$12,M$39=Titels!$P$12),AND($A52=1,M$39=5),AND($A52=Titels!$O$14,M$39=Titels!$P$14),AND($A52=Titels!$O$15,M$39=Titels!$P$15),AND($A52=21,M$39=7),AND($A52=15,M$39=8),AND($A52=1,M$39=11),AND($A52=11,M$39=11),AND($A52=25,M$39=12)),8,WEEKDAY(CONCATENATE($P52,"/",M$39,"/",$B$1),2)) -> 4
A53: 13 | B53: =IF(INDEX(Brandstoffacturen!$B$22:$B$29,GD!Q53)=0,0,(B15*Brandstoffacturen!$P$3+Brandstoffacturen!$G$3)*(1+INDEX(Brandstoffacturen!$F$3:$F$14,B$39))*(1-INDEX(Brandstoffacturen!$L$3:$L$14,B$39))*INDEX(Gegevens!$T$40:$T$49,GD!Q53)) -> 2179.613692 | C53: =IF(INDEX(Brandstoffacturen!$B$22:$B$29,GD!R53)=0,0,(C15*Brandstoffacturen!$P$3+Brandstoffacturen!$G$3)*(1+INDEX(Brandstoffacturen!$F$3:$F$14,C$39))*(1-INDEX(Brandstoffacturen!$L$3:$L$14,C$39))*INDEX(Gegevens!$T$40:$T$49,GD!R53)) -> 3204.523337 | D53: =IF(INDEX(Brandstoffacturen!$B$22:$B$29,GD!S53)=0,0,(D15*Brandstoffacturen!$P$3+Brandstoffacturen!$G$3)*(1+INDEX(Brandstoffacturen!$F$3:$F$14,D$39))*(1-INDEX(Brandstoffacturen!$L$3:$L$14,D$39))*INDEX(Gegevens!$T$40:$T$49,GD!S53)) -> 2913.573117 | E53: =IF(INDEX(Brandstoffacturen!$B$22:$B$29,GD!T53)=0,0,(E15*Brandstoffacturen!$P$3+Brandstoffacturen!$G$3)*(1+INDEX(Brandstoffacturen!$F$3:$F$14,E$39))*(1-INDEX(Brandstoffacturen!$L$3:$L$14,E$39))*INDEX(Gegevens!$T$40:$T$49,GD!T53)) -> 2420.856726 | F53: =IF(INDEX(Brandstoffacturen!$B$22:$B$29,GD!U53)=0,0,(F15*Brandstoffacturen!$P$3+Brandstoffacturen!$G$3)*(1+INDEX(Brandstoffacturen!$F$3:$F$14,F$39))*(1-INDEX(Brandstoffacturen!$L$3:$L$14,F$39))*INDEX(Gegevens!$T$40:$T$49,GD!U53)) -> 1876.444192 | G53: =IF(INDEX(Brandstoffacturen!$B$22:$B$29,GD!V53)=0,0,(G15*Brandstoffacturen!$P$3+Brandstoffacturen!$G$3)*(1+INDEX(Brandstoffacturen!$F$3:$F$14,G$39))*(1-INDEX(Brandstoffacturen!$L$3:$L$14,G$39))*INDEX(Gegevens!$T$40:$T$49,GD!V53)) -> 1523.592739 | H53: =IF(INDEX(Brandstoffacturen!$B$22:$B$29,GD!W53)=0,0,(H15*Brandstoffacturen!$P$3+Brandstoffacturen!$G$3)*(1+INDEX(Brandstoffacturen!$F$3:$F$14,H$39))*(1-INDEX(Brandstoffacturen!$L$3:$L$14,H$39))*INDEX(Gegevens!$T$40:$T$49,GD!W53)) -> 1444.565063 | I53: =IF(INDEX(Brandstoffacturen!$B$22:$B$29,GD!X53)=0,0,(I15*Brandstoffacturen!$P$3+Brandstoffacturen!$G$3)*(1+INDEX(Brandstoffacturen!$F$3:$F$14,I$39))*(1-INDEX(Brandstoffacturen!$L$3:$L$14,I$39))*INDEX(Gegevens!$T$40:$T$49,GD!X53)) -> 1716.227908 | J53: =IF(INDEX(Brandstoffacturen!$B$22:$B$29,GD!Y53)=0,0,(J15*Brandstoffacturen!$P$3+Brandstoffacturen!$G$3)*(1+INDEX(Brandstoffacturen!$F$3:$F$14,J$39))*(1-INDEX(Brandstoffacturen!$L$3:$L$14,J$39))*INDEX(Gegevens!$T$40:$T$49,GD!Y53)) -> 2088.855163 | K53: =IF(INDEX(Brandstoffacturen!$B$22:$B$29,GD!Z53)=0,0,(K15*Brandstoffacturen!$P$3+Brandstoffacturen!$G$3)*(1+INDEX(Brandstoffacturen!$F$3:$F$14,K$39))*(1-INDEX(Brandstoffacturen!$L$3:$L$14,K$39))*INDEX(Gegevens!$T$40:$T$49,GD!Z53)) -> 2247.296148 | L53: =IF(INDEX(Brandstoffacturen!$B$22:$B$29,GD!AA53)=0,0,(L15*Brandstoffacturen!$P$3+Brandstoffacturen!$G$3)*(1+INDEX(Brandstoffacturen!$F$3:$F$14,L$39))*(1-INDEX(Brandstoffacturen!$L$3:$L$14,L$39))*INDEX(Gegevens!$T$40:$T$49,GD!AA53)) -> 2793.807379 | M53: =IF(INDEX(Brandstoffacturen!$B$22:$B$29,GD!AB53)=0,0,(M15*Brandstoffacturen!$P$3+Brandstoffacturen!$G$3)*(1+INDEX(Brandstoffacturen!$F$3:$F$14,M$39))*(1-INDEX(Brandstoffacturen!$L$3:$L$14,M$39))*INDEX(Gegevens!$T$40:$T$49,GD!AB53)) -> 2756.739563 | P53: 13 | Q53: =IF(OR(AND($A53=1,B$39=1),AND($A53=Titels!$O$12,B$39=Titels!$P$12),AND($A53=1,B$39=5),AND($A53=Titels!$O$14,B$39=Titels!$P$14),AND($A53=Titels!$O$15,B$39=Titels!$P$15),AND($A53=21,B$39=7),AND($A53=15,B$39=8),AND($A53=1,B$39=11),AND($A53=11,B$39=11),AND($A53=25,B$39=12)),8,WEEKDAY(CONCATENATE($P53,"/",B$39,"/",$B$1),2)) -> 7 | R53: =IF(OR(AND($A53=1,C$39=1),AND($A53=Titels!$O$12,C$39=Titels!$P$12),AND($A53=1,C$39=5),AND($A53=Titels!$O$14,C$39=Titels!$P$14),AND($A53=Titels!$O$15,C$39=Titels!$P$15),AND($A53=21,C$39=7),AND($A53=15,C$39=8),AND($A53=1,C$39=11),AND($A53=11,C$39=11),AND($A53=25,C$39=12)),8,WEEKDAY(CONCATENATE($P53,"/",C$39,"/",$B$1),2)) -> 3 | S53: =IF(OR(AND($A53=1,D$39=1),AND($A53=Titels!$O$12,D$39=Titels!$P$12),AND($A53=1,D$39=5),AND($A53=Titels!$O$14,D$39=Titels!$P$14),AND($A53=Titels!$O$15,D$39=Titels!$P$15),AND($A53=21,D$39=7),AND($A53=15,D$39=8),AND($A53=1,D$39=11),AND($A53=11,D$39=11),AND($A53=25,D$39=12)),8,WEEKDAY(CONCATENATE($P53,"/",D$39,"/",$B$1),2)) -> 3 | T53: =IF(OR(AND($A53=1,E$39=1),AND($A53=Titels!$O$12,E$39=Titels!$P$12),AND($A53=1,E$39=5),AND($A53=Titels!$O$14,E$39=Titels!$P$14),AND($A53=Titels!$O$15,E$39=Titels!$P$15),AND($A53=21,E$39=7),AND($A53=15,E$39=8),AND($A53=1,E$39=11),AND($A53=11,E$39=11),AND($A53=25,E$39=12)),8,WEEKDAY(CONCATENATE($P53,"/",E$39,"/",$B$1),2)) -> 6 | U53: =IF(OR(AND($A53=1,F$39=1),AND($A53=Titels!$O$12,F$39=Titels!$P$12),AND($A53=1,F$39=5),AND($A53=Titels!$O$14,F$39=Titels!$P$14),AND($A53=Titels!$O$15,F$39=Titels!$P$15),AND($A53=21,F$39=7),AND($A53=15,F$39=8),AND($A53=1,F$39=11),AND($A53=11,F$39=11),AND($A53=25,F$39=12)),8,WEEKDAY(CONCATENATE($P53,"/",F$39,"/",$B$1),2)) -> 1 | V53: =IF(OR(AND($A53=1,G$39=1),AND($A53=Titels!$O$12,G$39=Titels!$P$12),AND($A53=1,G$39=5),AND($A53=Titels!$O$14,G$39=Titels!$P$14),AND($A53=Titels!$O$15,G$39=Titels!$P$15),AND($A53=21,G$39=7),AND($A53=15,G$39=8),AND($A53=1,G$39=11),AND($A53=11,G$39=11),AND($A53=25,G$39=12)),8,WEEKDAY(CONCATENATE($P53,"/",G$39,"/",$B$1),2)) -> 4 | W53: =IF(OR(AND($A53=1,H$39=1),AND($A53=Titels!$O$12,H$39=Titels!$P$12),AND($A53=1,H$39=5),AND($A53=Titels!$O$14,H$39=Titels!$P$14),AND($A53=Titels!$O$15,H$39=Titels!$P$15),AND($A53=21,H$39=7),AND($A53=15,H$39=8),AND($A53=1,H$39=11),AND($A53=11,H$39=11),AND($A53=25,H$39=12)),8,WEEKDAY(CONCATENATE($P53,"/",H$39,"/",$B$1),2)) -> 6 | X53: =IF(OR(AND($A53=1,I$39=1),AND($A53=Titels!$O$12,I$39=Titels!$P$12),AND($A53=1,I$39=5),AND($A53=Titels!$O$14,I$39=Titels!$P$14),AND($A53=Titels!$O$15,I$39=Titels!$P$15),AND($A53=21,I$39=7),AND($A53=15,I$39=8),AND($A53=1,I$39=11),AND($A53=11,I$39=11),AND($A53=25,I$39=12)),8,WEEKDAY(CONCATENATE($P53,"/",I$39,"/",$B$1),2)) -> 2 | Y53: =IF(OR(AND($A53=1,J$39=1),AND($A53=Titels!$O$12,J$39=Titels!$P$12),AND($A53=1,J$39=5),AND($A53=Titels!$O$14,J$39=Titels!$P$14),AND($A53=Titels!$O$15,J$39=Titels!$P$15),AND($A53=21,J$39=7),AND($A53=15,J$39=8),AND($A53=1,J$39=11),AND($A53=11,J$39=11),AND($A53=25,J$39=12)),8,WEEKDAY(CONCATENATE($P53,"/",J$39,"/",$B$1),2)) -> 5 | Z53: =IF(OR(AND($A53=1,K$39=1),AND($A53=Titels!$O$12,K$39=Titels!$P$12),AND($A53=1,K$39=5),AND($A53=Titels!$O$14,K$39=Titels!$P$14),AND($A53=Titels!$O$15,K$39=Titels!$P$15),AND($A53=21,K$39=7),AND($A53=15,K$39=8),AND($A53=1,K$39=11),AND($A53=11,K$39=11),AND($A53=25,K$39=12)),8,WEEKDAY(CONCATENATE($P53,"/",K$39,"/",$B$1),2)) -> 7 | AA53: =IF(OR(AND($A53=1,L$39=1),AND($A53=Titels!$O$12,L$39=Titels!$P$12),AND($A53=1,L$39=5),AND($A53=Titels!$O$14,L$39=Titels!$P$14),AND($A53=Titels!$O$15,L$39=Titels!$P$15),AND($A53=21,L$39=7),AND($A53=15,L$39=8),AND($A53=1,L$39=11),AND($A53=11,L$39=11),AND($A53=25,L$39=12)),8,WEEKDAY(CONCATENATE($P53,"/",L$39,"/",$B$1),2)) -> 3 | AB53: =IF(OR(AND($A53=1,M$39=1),AND($A53=Titels!$O$12,M$39=Titels!$P$12),AND($A53=1,M$39=5),AND($A53=Titels!$O$14,M$39=Titels!$P$14),AND($A53=Titels!$O$15,M$39=Titels!$P$15),AND($A53=21,M$39=7),AND($A53=15,M$39=8),AND($A53=1,M$39=11),AND($A53=11,M$39=11),AND($A53=25,M$39=12)),8,WEEKDAY(CONCATENATE($P53,"/",M$39,"/",$B$1),2)) -> 5
A54: 14 | B54: =IF(INDEX(Brandstoffacturen!$B$22:$B$29,GD!Q54)=0,0,(B16*Brandstoffacturen!$P$3+Brandstoffacturen!$G$3)*(1+INDEX(Brandstoffacturen!$F$3:$F$14,B$39))*(1-INDEX(Brandstoffacturen!$L$3:$L$14,B$39))*INDEX(Gegevens!$T$40:$T$49,GD!Q54)) -> 2424.720726 | C54: =IF(INDEX(Brandstoffacturen!$B$22:$B$29,GD!R54)=0,0,(C16*Brandstoffacturen!$P$3+Brandstoffacturen!$G$3)*(1+INDEX(Brandstoffacturen!$F$3:$F$14,C$39))*(1-INDEX(Brandstoffacturen!$L$3:$L$14,C$39))*INDEX(Gegevens!$T$40:$T$49,GD!R54)) -> 2825.166961 | D54: =IF(INDEX(Brandstoffacturen!$B$22:$B$29,GD!S54)=0,0,(D16*Brandstoffacturen!$P$3+Brandstoffacturen!$G$3)*(1+INDEX(Brandstoffacturen!$F$3:$F$14,D$39))*(1-INDEX(Brandstoffacturen!$L$3:$L$14,D$39))*INDEX(Gegevens!$T$40:$T$49,GD!S54)) -> 2766.862866 | E54: =IF(INDEX(Brandstoffacturen!$B$22:$B$29,GD!T54)=0,0,(E16*Brandstoffacturen!$P$3+Brandstoffacturen!$G$3)*(1+INDEX(Brandstoffacturen!$F$3:$F$14,E$39))*(1-INDEX(Brandstoffacturen!$L$3:$L$14,E$39))*INDEX(Gegevens!$T$40:$T$49,GD!T54)) -> 2366.721553 | F54: =IF(INDEX(Brandstoffacturen!$B$22:$B$29,GD!U54)=0,0,(F16*Brandstoffacturen!$P$3+Brandstoffacturen!$G$3)*(1+INDEX(Brandstoffacturen!$F$3:$F$14,F$39))*(1-INDEX(Brandstoffacturen!$L$3:$L$14,F$39))*INDEX(Gegevens!$T$40:$T$49,GD!U54)) -> 1857.327276 | G54: =IF(INDEX(Brandstoffacturen!$B$22:$B$29,GD!V54)=0,0,(G16*Brandstoffacturen!$P$3+Brandstoffacturen!$G$3)*(1+INDEX(Brandstoffacturen!$F$3:$F$14,G$39))*(1-INDEX(Brandstoffacturen!$L$3:$L$14,G$39))*INDEX(Gegevens!$T$40:$T$49,GD!V54)) -> 1423.423735 | H54: =IF(INDEX(Brandstoffacturen!$B$22:$B$29,GD!W54)=0,0,(H16*Brandstoffacturen!$P$3+Brandstoffacturen!$G$3)*(1+INDEX(Brandstoffacturen!$F$3:$F$14,H$39))*(1-INDEX(Brandstoffacturen!$L$3:$L$14,H$39))*INDEX(Gegevens!$T$40:$T$49,GD!W54)) -> 1444.565063 | I54: =IF(INDEX(Brandstoffacturen!$B$22:$B$29,GD!X54)=0,0,(I16*Brandstoffacturen!$P$3+Brandstoffacturen!$G$3)*(1+INDEX(Brandstoffacturen!$F$3:$F$14,I$39))*(1-INDEX(Brandstoffacturen!$L$3:$L$14,I$39))*INDEX(Gegevens!$T$40:$T$49,GD!X54)) -> 1622.792403 | J54: =IF(INDEX(Brandstoffacturen!$B$22:$B$29,GD!Y54)=0,0,(J16*Brandstoffacturen!$P$3+Brandstoffacturen!$G$3)*(1+INDEX(Brandstoffacturen!$F$3:$F$14,J$39))*(1-INDEX(Brandstoffacturen!$L$3:$L$14,J$39))*INDEX(Gegevens!$T$40:$T$49,GD!Y54)) -> 2088.855163 | K54: =IF(INDEX(Brandstoffacturen!$B$22:$B$29,GD!Z54)=0,0,(K16*Brandstoffacturen!$P$3+Brandstoffacturen!$G$3)*(1+INDEX(Brandstoffacturen!$F$3:$F$14,K$39))*(1-INDEX(Brandstoffacturen!$L$3:$L$14,K$39))*INDEX(Gegevens!$T$40:$T$49,GD!Z54)) -> 2247.296148 | L54: =IF(INDEX(Brandstoffacturen!$B$22:$B$29,GD!AA54)=0,0,(L16*Brandstoffacturen!$P$3+Brandstoffacturen!$G$3)*(1+INDEX(Brandstoffacturen!$F$3:$F$14,L$39))*(1-INDEX(Brandstoffacturen!$L$3:$L$14,L$39))*INDEX(Gegevens!$T$40:$T$49,GD!AA54)) -> 2896.306325 | M54: =IF(INDEX(Brandstoffacturen!$B$22:$B$29,GD!AB54)=0,0,(M16*Brandstoffacturen!$P$3+Brandstoffacturen!$G$3)*(1+INDEX(Brandstoffacturen!$F$3:$F$14,M$39))*(1-INDEX(Brandstoffacturen!$L$3:$L$14,M$39))*INDEX(Gegevens!$T$40:$T$49,GD!AB54)) -> 2668.984589 | P54: 14 | Q54: =IF(OR(AND($A54=1,B$39=1),AND($A54=Titels!$O$12,B$39=Titels!$P$12),AND($A54=1,B$39=5),AND($A54=Titels!$O$14,B$39=Titels!$P$14),AND($A54=Titels!$O$15,B$39=Titels!$P$15),AND($A54=21,B$39=7),AND($A54=15,B$39=8),AND($A54=1,B$39=11),AND($A54=11,B$39=11),AND($A54=25,B$39=12)),8,WEEKDAY(CONCATENATE($P54,"/",B$39,"/",$B$1),2)) -> 1 | R54: =IF(OR(AND($A54=1,C$39=1),AND($A54=Titels!$O$12,C$39=Titels!$P$12),AND($A54=1,C$39=5),AND($A54=Titels!$O$14,C$39=Titels!$P$14),AND($A54=Titels!$O$15,C$39=Titels!$P$15),AND($A54=21,C$39=7),AND($A54=15,C$39=8),AND($A54=1,C$39=11),AND($A54=11,C$39=11),AND($A54=25,C$39=12)),8,WEEKDAY(CONCATENATE($P54,"/",C$39,"/",$B$1),2)) -> 4 | S54: =IF(OR(AND($A54=1,D$39=1),AND($A54=Titels!$O$12,D$39=Titels!$P$12),AND($A54=1,D$39=5),AND($A54=Titels!$O$14,D$39=Titels!$P$14),AND($A54=Titels!$O$15,D$39=Titels!$P$15),AND($A54=21,D$39=7),AND($A54=15,D$39=8),AND($A54=1,D$39=11),AND($A54=11,D$39=11),AND($A54=25,D$39=12)),8,WEEKDAY(CONCATENATE($P54,"/",D$39,"/",$B$1),2)) -> 4 | T54: =IF(OR(AND($A54=1,E$39=1),AND($A54=Titels!$O$12,E$39=Titels!$P$12),AND($A54=1,E$39=5),AND($A54=Titels!$O$14,E$39=Titels!$P$14),AND($A54=Titels!$O$15,E$39=Titels!$P$15),AND($A54=21,E$39=7),AND($A54=15,E$39=8),AND($A54=1,E$39=11),AND($A54=11,E$39=11),AND($A54=25,E$39=12)),8,WEEKDAY(CONCATENATE($P54,"/",E$39,"/",$B$1),2)) -> 7 | U54: =IF(OR(AND($A54=1,F$39=1),AND($A54=Titels!$O$12,F$39=Titels!$P$12),AND($A54=1,F$39=5),AND($A54=Titels!$O$14,F$39=Titels!$P$14),AND($A54=Titels!$O$15,F$39=Titels!$P$15),AND($A54=21,F$39=7),AND($A54=15,F$39=8),AND($A54=1,F$39=11),AND($A54=11,F$39=11),AND($A54=25,F$39=12)),8,WEEKDAY(CONCATENATE($P54,"/",F$39,"/",$B$1),2)) -> 2 | V54: =IF(OR(AND($A54=1,G$39=1),AND($A54=Titels!$O$12,G$39=Titels!$P$12),AND($A54=1,G$39=5),AND($A54=Titels!$O$14,G$39=Titels!$P$14),AND($A54=Titels!$O$15,G$39=Titels!$P$15),AND($A54=21,G$39=7),AND($A54=15,G$39=8),AND($A54=1,G$39=11),AND($A54=11,G$39=11),AND($A54=25,G$39=12)),8,WEEKDAY(CONCATENATE($P54,"/",G$39,"/",$B$1),2)) -> 5 | W54: =IF(OR(AND($A54=1,H$39=1),AND($A54=Titels!$O$12,H$39=Titels!$P$12),AND($A54=1,H$39=5),AND($A54=Titels!$O$14,H$39=Titels!$P$14),AND($A54=Titels!$O$15,H$39=Titels!$P$15),AND($A54=21,H$39=7),AND($A54=15,H$39=8),AND($A54=1,H$39=11),AND($A54=11,H$39=11),AND($A54=25,H$39=12)),8,WEEKDAY(CONCATENATE($P54,"/",H$39,"/",$B$1),2)) -> 7 | X54: =IF(OR(AND($A54=1,I$39=1),AND($A54=Titels!$O$12,I$39=Titels!$P$12),AND($A54=1,I$39=5),AND($A54=Titels!$O$14,I$39=Titels!$P$14),AND($A54=Titels!$O$15,I$39=Titels!$P$15),AND($A54=21,I$39=7),AND($A54=15,I$39=8),AND($A54=1,I$39=11),AND($A54=11,I$39=11),AND($A54=25,I$39=12)),8,WEEKDAY(CONCATENATE($P54,"/",I$39,"/",$B$1),2)) -> 3 | Y54: =IF(OR(AND($A54=1,J$39=1),AND($A54=Titels!$O$12,J$39=Titels!$P$12),AND($A54=1,J$39=5),AND($A54=Titels!$O$14,J$39=Titels!$P$14),AND($A54=Titels!$O$15,J$39=Titels!$P$15),AND($A54=21,J$39=7),AND($A54=15,J$39=8),AND($A54=1,J$39=11),AND($A54=11,J$39=11),AND($A54=25,J$39=12)),8,WEEKDAY(CONCATENATE($P54,"/",J$39,"/",$B$1),2)) -> 6 | Z54: =IF(OR(AND($A54=1,K$39=1),AND($A54=Titels!$O$12,K$39=Titels!$P$12),AND($A54=1,K$39=5),AND($A54=Titels!$O$14,K$39=Titels!$P$14),AND($A54=Titels!$O$15,K$39=Titels!$P$15),AND($A54=21,K$39=7),AND($A54=15,K$39=8),AND($A54=1,K$39=11),AND($A54=11,K$39=11),AND($A54=25,K$39=12)),8,WEEKDAY(CONCATENATE($P54,"/",K$39,"/",$B$1),2)) -> 1 | AA54: =IF(OR(AND($A54=1,L$39=1),AND($A54=Titels!$O$12,L$39=Titels!$P$12),AND($A54=1,L$39=5),AND($A54=Titels!$O$14,L$39=Titels!$P$14),AND($A54=Titels!$O$15,L$39=Titels!$P$15),AND($A54=21,L$39=7),AND($A54=15,L$39=8),AND($A54=1,L$39=11),AND($A54=11,L$39=11),AND($A54=25,L$39=12)),8,WEEKDAY(CONCATENATE($P54,"/",L$39,"/",$B$1),2)) -> 4 | AB54: =IF(OR(AND($A54=1,M$39=1),AND($A54=Titels!$O$12,M$39=Titels!$P$12),AND($A54=1,M$39=5),AND($A54=Titels!$O$14,M$39=Titels!$P$14),AND($A54=Titels!$O$15,M$39=Titels!$P$15),AND($A54=21,M$39=7),AND($A54=15,M$39=8),AND($A54=1,M$39=11),AND($A54=11,M$39=11),AND($A54=25,M$39=12)),8,WEEKDAY(CONCATENATE($P54,"/",M$39,"/",$B$1),2)) -> 6
A55: 15 | B55: =IF(INDEX(Brandstoffacturen!$B$22:$B$29,GD!Q55)=0,0,(B17*Brandstoffacturen!$P$3+Brandstoffacturen!$G$3)*(1+INDEX(Brandstoffacturen!$F$3:$F$14,B$39))*(1-INDEX(Brandstoffacturen!$L$3:$L$14,B$39))*INDEX(Gegevens!$T$40:$T$49,GD!Q55)) -> 2483.546414 | C55: =IF(INDEX(Brandstoffacturen!$B$22:$B$29,GD!R55)=0,0,(C17*Brandstoffacturen!$P$3+Brandstoffacturen!$G$3)*(1+INDEX(Brandstoffacturen!$F$3:$F$14,C$39))*(1-INDEX(Brandstoffacturen!$L$3:$L$14,C$39))*INDEX(Gegevens!$T$40:$T$49,GD!R55)) -> 2445.810585 | D55: =IF(INDEX(Brandstoffacturen!$B$22:$B$29,GD!S55)=0,0,(D17*Brandstoffacturen!$P$3+Brandstoffacturen!$G$3)*(1+INDEX(Brandstoffacturen!$F$3:$F$14,D$39))*(1-INDEX(Brandstoffacturen!$L$3:$L$14,D$39))*INDEX(Gegevens!$T$40:$T$49,GD!S55)) -> 2534.571637 | E55: =IF(INDEX(Brandstoffacturen!$B$22:$B$29,GD!T55)=0,0,(E17*Brandstoffacturen!$P$3+Brandstoffacturen!$G$3)*(1+INDEX(Brandstoffacturen!$F$3:$F$14,E$39))*(1-INDEX(Brandstoffacturen!$L$3:$L$14,E$39))*INDEX(Gegevens!$T$40:$T$49,GD!T55)) -> 1915.595108 | F55: =IF(INDEX(Brandstoffacturen!$B$22:$B$29,GD!U55)=0,0,(F17*Brandstoffacturen!$P$3+Brandstoffacturen!$G$3)*(1+INDEX(Brandstoffacturen!$F$3:$F$14,F$39))*(1-INDEX(Brandstoffacturen!$L$3:$L$14,F$39))*INDEX(Gegevens!$T$40:$T$49,GD!U55)) -> 1752.184238 | G55: =IF(INDEX(Brandstoffacturen!$B$22:$B$29,GD!V55)=0,0,(G17*Brandstoffacturen!$P$3+Brandstoffacturen!$G$3)*(1+INDEX(Brandstoffacturen!$F$3:$F$14,G$39))*(1-INDEX(Brandstoffacturen!$L$3:$L$14,G$39))*INDEX(Gegevens!$T$40:$T$49,GD!V55)) -> 1423.423735 | H55: =IF(INDEX(Brandstoffacturen!$B$22:$B$29,GD!W55)=0,0,(H17*Brandstoffacturen!$P$3+Brandstoffacturen!$G$3)*(1+INDEX(Brandstoffacturen!$F$3:$F$14,H$39))*(1-INDEX(Brandstoffacturen!$L$3:$L$14,H$39))*INDEX(Gegevens!$T$40:$T$49,GD!W55)) -> 1463.04811 | I55: =IF(INDEX(Brandstoffacturen!$B$22:$B$29,GD!X55)=0,0,(I17*Brandstoffacturen!$P$3+Brandstoffacturen!$G$3)*(1+INDEX(Brandstoffacturen!$F$3:$F$14,I$39))*(1-INDEX(Brandstoffacturen!$L$3:$L$14,I$39))*INDEX(Gegevens!$T$40:$T$49,GD!X55)) -> 1622.792403 | J55: =IF(INDEX(Brandstoffacturen!$B$22:$B$29,GD!Y55)=0,0,(J17*Brandstoffacturen!$P$3+Brandstoffacturen!$G$3)*(1+INDEX(Brandstoffacturen!$F$3:$F$14,J$39))*(1-INDEX(Brandstoffacturen!$L$3:$L$14,J$39))*INDEX(Gegevens!$T$40:$T$49,GD!Y55)) -> 2088.855163 | K55: =IF(INDEX(Brandstoffacturen!$B$22:$B$29,GD!Z55)=0,0,(K17*Brandstoffacturen!$P$3+Brandstoffacturen!$G$3)*(1+INDEX(Brandstoffacturen!$F$3:$F$14,K$39))*(1-INDEX(Brandstoffacturen!$L$3:$L$14,K$39))*INDEX(Gegevens!$T$40:$T$49,GD!Z55)) -> 2347.9348 | L55: =IF(INDEX(Brandstoffacturen!$B$22:$B$29,GD!AA55)=0,0,(L17*Brandstoffacturen!$P$3+Brandstoffacturen!$G$3)*(1+INDEX(Brandstoffacturen!$F$3:$F$14,L$39))*(1-INDEX(Brandstoffacturen!$L$3:$L$14,L$39))*INDEX(Gegevens!$T$40:$T$49,GD!AA55)) -> 3089.915446 | M55: =IF(INDEX(Brandstoffacturen!$B$22:$B$29,GD!AB55)=0,0,(M17*Brandstoffacturen!$P$3+Brandstoffacturen!$G$3)*(1+INDEX(Brandstoffacturen!$F$3:$F$14,M$39))*(1-INDEX(Brandstoffacturen!$L$3:$L$14,M$39))*INDEX(Gegevens!$T$40:$T$49,GD!AB55)) -> 2548.321499 | P55: 15 | Q55: =IF(OR(AND($A55=1,B$39=1),AND($A55=Titels!$O$12,B$39=Titels!$P$12),AND($A55=1,B$39=5),AND($A55=Titels!$O$14,B$39=Titels!$P$14),AND($A55=Titels!$O$15,B$39=Titels!$P$15),AND($A55=21,B$39=7),AND($A55=15,B$39=8),AND($A55=1,B$39=11),AND($A55=11,B$39=11),AND($A55=25,B$39=12)),8,WEEKDAY(CONCATENATE($P55,"/",B$39,"/",$B$1),2)) -> 2 | R55: =IF(OR(AND($A55=1,C$39=1),AND($A55=Titels!$O$12,C$39=Titels!$P$12),AND($A55=1,C$39=5),AND($A55=Titels!$O$14,C$39=Titels!$P$14),AND($A55=Titels!$O$15,C$39=Titels!$P$15),AND($A55=21,C$39=7),AND($A55=15,C$39=8),AND($A55=1,C$39=11),AND($A55=11,C$39=11),AND($A55=25,C$39=12)),8,WEEKDAY(CONCATENATE($P55,"/",C$39,"/",$B$1),2)) -> 5 | S55: =IF(OR(AND($A55=1,D$39=1),AND($A55=Titels!$O$12,D$39=Titels!$P$12),AND($A55=1,D$39=5),AND($A55=Titels!$O$14,D$39=Titels!$P$14),AND($A55=Titels!$O$15,D$39=Titels!$P$15),AND($A55=21,D$39=7),AND($A55=15,D$39=8),AND($A55=1,D$39=11),AND($A55=11,D$39=11),AND($A55=25,D$39=12)),8,WEEKDAY(CONCATENATE($P55,"/",D$39,"/",$B$1),2)) -> 5 | T55: =IF(OR(AND($A55=1,E$39=1),AND($A55=Titels!$O$12,E$39=Titels!$P$12),AND($A55=1,E$39=5),AND($A55=Titels!$O$14,E$39=Titels!$P$14),AND($A55=Titels!$O$15,E$39=Titels!$P$15),AND($A55=21,E$39=7),AND($A55=15,E$39=8),AND($A55=1,E$39=11),AND($A55=11,E$39=11),AND($A55=25,E$39=12)),8,WEEKDAY(CONCATENATE($P55,"/",E$39,"/",$B$1),2)) -> 1 | U55: =IF(OR(AND($A55=1,F$39=1),AND($A55=Titels!$O$12,F$39=Titels!$P$12),AND($A55=1,F$39=5),AND($A55=Titels!$O$14,F$39=Titels!$P$14),AND($A55=Titels!$O$15,F$39=Titels!$P$15),AND($A55=21,F$39=7),AND($A55=15,F$39=8),AND($A55=1,F$39=11),AND($A55=11,F$39=11),AND($A55=25,F$39=12)),8,WEEKDAY(CONCATENATE($P55,"/",F$39,"/",$B$1),2)) -> 3 | V55: =IF(OR(AND($A55=1,G$39=1),AND($A55=Titels!$O$12,G$39=Titels!$P$12),AND($A55=1,G$39=5),AND($A55=Titels!$O$14,G$39=Titels!$P$14),AND($A55=Titels!$O$15,G$39=Titels!$P$15),AND($A55=21,G$39=7),AND($A55=15,G$39=8),AND($A55=1,G$39=11),AND($A55=11,G$39=11),AND($A55=25,G$39=12)),8,WEEKDAY(CONCATENATE($P55,"/",G$39,"/",$B$1),2)) -> 6 | W55: =IF(OR(AND($A55=1,H$39=1),AND($A55=Titels!$O$12,H$39=Titels!$P$12),AND($A55=1,H$39=5),AND($A55=Titels!$O$14,H$39=Titels!$P$14),AND($A55=Titels!$O$15,H$39=Titels!$P$15),AND($A55=21,H$39=7),AND($A55=15,H$39=8),AND($A55=1,H$39=11),AND($A55=11,H$39=11),AND($A55=25,H$39=12)),8,WEEKDAY(CONCATENATE($P55,"/",H$39,"/",$B$1),2)) -> 1 | X55: =IF(OR(AND($A55=1,I$39=1),AND($A55=Titels!$O$12,I$39=Titels!$P$12),AND($A55=1,I$39=5),AND($A55=Titels!$O$14,I$39=Titels!$P$14),AND($A55=Titels!$O$15,I$39=Titels!$P$15),AND($A55=21,I$39=7),AND($A55=15,I$39=8),AND($A55=1,I$39=11),AND($A55=11,I$39=11),AND($A55=25,I$39=12)),8,WEEKDAY(CONCATENATE($P55,"/",I$39,"/",$B$1),2)) -> 8 | Y55: =IF(OR(AND($A55=1,J$39=1),AND($A55=Titels!$O$12,J$39=Titels!$P$12),AND($A55=1,J$39=5),AND($A55=Titels!$O$14,J$39=Titels!$P$14),AND($A55=Titels!$O$15,J$39=Titels!$P$15),AND($A55=21,J$39=7),AND($A55=15,J$39=8),AND($A55=1,J$39=11),AND($A55=11,J$39=11),AND($A55=25,J$39=12)),8,WEEKDAY(CONCATENATE($P55,"/",J$39,"/",$B$1),2)) -> 7 | Z55: =IF(OR(AND($A55=1,K$39=1),AND($A55=Titels!$O$12,K$39=Titels!$P$12),AND($A55=1,K$39=5),AND($A55=Titels!$O$14,K$39=Titels!$P$14),AND($A55=Titels!$O$15,K$39=Titels!$P$15),AND($A55=21,K$39=7),AND($A55=15,K$39=8),AND($A55=1,K$39=11),AND($A55=11,K$39=11),AND($A55=25,K$39=12)),8,WEEKDAY(CONCATENATE($P55,"/",K$39,"/",$B$1),2)) -> 2 | AA55: =IF(OR(AND($A55=1,L$39=1),AND($A55=Titels!$O$12,L$39=Titels!$P$12),AND($A55=1,L$39=5),AND($A55=Titels!$O$14,L$39=Titels!$P$14),AND($A55=Titels!$O$15,L$39=Titels!$P$15),AND($A55=21,L$39=7),AND($A55=15,L$39=8),AND($A55=1,L$39=11),AND($A55=11,L$39=11),AND($A55=25,L$39=12)),8,WEEKDAY(CONCATENATE($P55,"/",L$39,"/",$B$1),2)) -> 5 | AB55: =IF(OR(AND($A55=1,M$39=1),AND($A55=Titels!$O$12,M$39=Titels!$P$12),AND($A55=1,M$39=5),AND($A55=Titels!$O$14,M$39=Titels!$P$14),AND($A55=Titels!$O$15,M$39=Titels!$P$15),AND($A55=21,M$39=7),AND($A55=15,M$39=8),AND($A55=1,M$39=11),AND($A55=11,M$39=11),AND($A55=25,M$39=12)),8,WEEKDAY(CONCATENATE($P55,"/",M$39,"/",$B$1),2)) -> 7
A56: 16 | B56: =IF(INDEX(Brandstoffacturen!$B$22:$B$29,GD!Q56)=0,0,(B18*Brandstoffacturen!$P$3+Brandstoffacturen!$G$3)*(1+INDEX(Brandstoffacturen!$F$3:$F$14,B$39))*(1-INDEX(Brandstoffacturen!$L$3:$L$14,B$39))*INDEX(Gegevens!$T$40:$T$49,GD!Q56)) -> 2463.937851 | C56: =IF(INDEX(Brandstoffacturen!$B$22:$B$29,GD!R56)=0,0,(C18*Brandstoffacturen!$P$3+Brandstoffacturen!$G$3)*(1+INDEX(Brandstoffacturen!$F$3:$F$14,C$39))*(1-INDEX(Brandstoffacturen!$L$3:$L$14,C$39))*INDEX(Gegevens!$T$40:$T$49,GD!R56)) -> 2611.779 | D56: =IF(INDEX(Brandstoffacturen!$B$22:$B$29,GD!S56)=0,0,(D18*Brandstoffacturen!$P$3+Brandstoffacturen!$G$3)*(1+INDEX(Brandstoffacturen!$F$3:$F$14,D$39))*(1-INDEX(Brandstoffacturen!$L$3:$L$14,D$39))*INDEX(Gegevens!$T$40:$T$49,GD!S56)) -> 2473.442366 | E56: =IF(INDEX(Brandstoffacturen!$B$22:$B$29,GD!T56)=0,0,(E18*Brandstoffacturen!$P$3+Brandstoffacturen!$G$3)*(1+INDEX(Brandstoffacturen!$F$3:$F$14,E$39))*(1-INDEX(Brandstoffacturen!$L$3:$L$14,E$39))*INDEX(Gegevens!$T$40:$T$49,GD!T56)) -> 1626.874183 | F56: =IF(INDEX(Brandstoffacturen!$B$22:$B$29,GD!U56)=0,0,(F18*Brandstoffacturen!$P$3+Brandstoffacturen!$G$3)*(1+INDEX(Brandstoffacturen!$F$3:$F$14,F$39))*(1-INDEX(Brandstoffacturen!$L$3:$L$14,F$39))*INDEX(Gegevens!$T$40:$T$49,GD!U56)) -> 1723.508865 | G56: =IF(INDEX(Brandstoffacturen!$B$22:$B$29,GD!V56)=0,0,(G18*Brandstoffacturen!$P$3+Brandstoffacturen!$G$3)*(1+INDEX(Brandstoffacturen!$F$3:$F$14,G$39))*(1-INDEX(Brandstoffacturen!$L$3:$L$14,G$39))*INDEX(Gegevens!$T$40:$T$49,GD!V56)) -> 1423.423735 | H56: =IF(INDEX(Brandstoffacturen!$B$22:$B$29,GD!W56)=0,0,(H18*Brandstoffacturen!$P$3+Brandstoffacturen!$G$3)*(1+INDEX(Brandstoffacturen!$F$3:$F$14,H$39))*(1-INDEX(Brandstoffacturen!$L$3:$L$14,H$39))*INDEX(Gegevens!$T$40:$T$49,GD!W56)) -> 1444.565063 | I56: =IF(INDEX(Brandstoffacturen!$B$22:$B$29,GD!X56)=0,0,(I18*Brandstoffacturen!$P$3+Brandstoffacturen!$G$3)*(1+INDEX(Brandstoffacturen!$F$3:$F$14,I$39))*(1-INDEX(Brandstoffacturen!$L$3:$L$14,I$39))*INDEX(Gegevens!$T$40:$T$49,GD!X56)) -> 1622.792403 | J56: =IF(INDEX(Brandstoffacturen!$B$22:$B$29,GD!Y56)=0,0,(J18*Brandstoffacturen!$P$3+Brandstoffacturen!$G$3)*(1+INDEX(Brandstoffacturen!$F$3:$F$14,J$39))*(1-INDEX(Brandstoffacturen!$L$3:$L$14,J$39))*INDEX(Gegevens!$T$40:$T$49,GD!Y56)) -> 2088.855163 | K56: =IF(INDEX(Brandstoffacturen!$B$22:$B$29,GD!Z56)=0,0,(K18*Brandstoffacturen!$P$3+Brandstoffacturen!$G$3)*(1+INDEX(Brandstoffacturen!$F$3:$F$14,K$39))*(1-INDEX(Brandstoffacturen!$L$3:$L$14,K$39))*INDEX(Gegevens!$T$40:$T$49,GD!Z56)) -> 2606.719905 | L56: =IF(INDEX(Brandstoffacturen!$B$22:$B$29,GD!AA56)=0,0,(L18*Brandstoffacturen!$P$3+Brandstoffacturen!$G$3)*(1+INDEX(Brandstoffacturen!$F$3:$F$14,L$39))*(1-INDEX(Brandstoffacturen!$L$3:$L$14,L$39))*INDEX(Gegevens!$T$40:$T$49,GD!AA56)) -> 3044.360359 | M56: =IF(INDEX(Brandstoffacturen!$B$22:$B$29,GD!AB56)=0,0,(M18*Brandstoffacturen!$P$3+Brandstoffacturen!$G$3)*(1+INDEX(Brandstoffacturen!$F$3:$F$14,M$39))*(1-INDEX(Brandstoffacturen!$L$3:$L$14,M$39))*INDEX(Gegevens!$T$40:$T$49,GD!AB56)) -> 2504.444012 | P56: 16 | Q56: =IF(OR(AND($A56=1,B$39=1),AND($A56=Titels!$O$12,B$39=Titels!$P$12),AND($A56=1,B$39=5),AND($A56=Titels!$O$14,B$39=Titels!$P$14),AND($A56=Titels!$O$15,B$39=Titels!$P$15),AND($A56=21,B$39=7),AND($A56=15,B$39=8),AND($A56=1,B$39=11),AND($A56=11,B$39=11),AND($A56=25,B$39=12)),8,WEEKDAY(CONCATENATE($P56,"/",B$39,"/",$B$1),2)) -> 3 | R56: =IF(OR(AND($A56=1,C$39=1),AND($A56=Titels!$O$12,C$39=Titels!$P$12),AND($A56=1,C$39=5),AND($A56=Titels!$O$14,C$39=Titels!$P$14),AND($A56=Titels!$O$15,C$39=Titels!$P$15),AND($A56=21,C$39=7),AND($A56=15,C$39=8),AND($A56=1,C$39=11),AND($A56=11,C$39=11),AND($A56=25,C$39=12)),8,WEEKDAY(CONCATENATE($P56,"/",C$39,"/",$B$1),2)) -> 6 | S56: =IF(OR(AND($A56=1,D$39=1),AND($A56=Titels!$O$12,D$39=Titels!$P$12),AND($A56=1,D$39=5),AND($A56=Titels!$O$14,D$39=Titels!$P$14),AND($A56=Titels!$O$15,D$39=Titels!$P$15),AND($A56=21,D$39=7),AND($A56=15,D$39=8),AND($A56=1,D$39=11),AND($A56=11,D$39=11),AND($A56=25,D$39=12)),8,WEEKDAY(CONCATENATE($P56,"/",D$39,"/",$B$1),2)) -> 6 | T56: =IF(OR(AND($A56=1,E$39=1),AND($A56=Titels!$O$12,E$39=Titels!$P$12),AND($A56=1,E$39=5),AND($A56=Titels!$O$14,E$39=Titels!$P$14),AND($A56=Titels!$O$15,E$39=Titels!$P$15),AND($A56=21,E$39=7),AND($A56=15,E$39=8),AND($A56=1,E$39=11),AND($A56=11,E$39=11),AND($A56=25,E$39=12)),8,WEEKDAY(CONCATENATE($P56,"/",E$39,"/",$B$1),2)) -> 2 | U56: =IF(OR(AND($A56=1,F$39=1),AND($A56=Titels!$O$12,F$39=Titels!$P$12),AND($A56=1,F$39=5),AND($A56=Titels!$O$14,F$39=Titels!$P$14),AND($A56=Titels!$O$15,F$39=Titels!$P$15),AND($A56=21,F$39=7),AND($A56=15,F$39=8),AND($A56=1,F$39=11),AND($A56=11,F$39=11),AND($A56=25,F$39=12)),8,WEEKDAY(CONCATENATE($P56,"/",F$39,"/",$B$1),2)) -> 4 | V56: =IF(OR(AND($A56=1,G$39=1),AND($A56=Titels!$O$12,G$39=Titels!$P$12),AND($A56=1,G$39=5),AND($A56=Titels!$O$14,G$39=Titels!$P$14),AND($A56=Titels!$O$15,G$39=Titels!$P$15),AND($A56=21,G$39=7),AND($A56=15,G$39=8),AND($A56=1,G$39=11),AND($A56=11,G$39=11),AND($A56=25,G$39=12)),8,WEEKDAY(CONCATENATE($P56,"/",G$39,"/",$B$1),2)) -> 7 | W56: =IF(OR(AND($A56=1,H$39=1),AND($A56=Titels!$O$12,H$39=Titels!$P$12),AND($A56=1,H$39=5),AND($A56=Titels!$O$14,H$39=Titels!$P$14),AND($A56=Titels!$O$15,H$39=Titels!$P$15),AND($A56=21,H$39=7),AND($A56=15,H$39=8),AND($A56=1,H$39=11),AND($A56=11,H$39=11),AND($A56=25,H$39=12)),8,WEEKDAY(CONCATENATE($P56,"/",H$39,"/",$B$1),2)) -> 2 | X56: =IF(OR(AND($A56=1,I$39=1),AND($A56=Titels!$O$12,I$39=Titels!$P$12),AND($A56=1,I$39=5),AND($A56=Titels!$O$14,I$39=Titels!$P$14),AND($A56=Titels!$O$15,I$39=Titels!$P$15),AND($A56=21,I$39=7),AND($A56=15,I$39=8),AND($A56=1,I$39=11),AND($A56=11,I$39=11),AND($A56=25,I$39=12)),8,WEEKDAY(CONCATENATE($P56,"/",I$39,"/",$B$1),2)) -> 5 | Y56: =IF(OR(AND($A56=1,J$39=1),AND($A56=Titels!$O$12,J$39=Titels!$P$12),AND($A56=1,J$39=5),AND($A56=Titels!$O$14,J$39=Titels!$P$14),AND($A56=Titels!$O$15,J$39=Titels!$P$15),AND($A56=21,J$39=7),AND($A56=15,J$39=8),AND($A56=1,J$39=11),AND($A56=11,J$39=11),AND($A56=25,J$39=12)),8,WEEKDAY(CONCATENATE($P56,"/",J$39,"/",$B$1),2)) -> 1 | Z56: =IF(OR(AND($A56=1,K$39=1),AND($A56=Titels!$O$12,K$39=Titels!$P$12),AND($A56=1,K$39=5),AND($A56=Titels!$O$14,K$39=Titels!$P$14),AND($A56=Titels!$O$15,K$39=Titels!$P$15),AND($A56=21,K$39=7),AND($A56=15,K$39=8),AND($A56=1,K$39=11),AND($A56=11,K$39=11),AND($A56=25,K$39=12)),8,WEEKDAY(CONCATENATE($P56,"/",K$39,"/",$B$1),2)) -> 3 | AA56: =IF(OR(AND($A56=1,L$39=1),AND($A56=Titels!$O$12,L$39=Titels!$P$12),AND($A56=1,L$39=5),AND($A56=Titels!$O$14,L$39=Titels!$P$14),AND($A56=Titels!$O$15,L$39=Titels!$P$15),AND($A56=21,L$39=7),AND($A56=15,L$39=8),AND($A56=1,L$39=11),AND($A56=11,L$39=11),AND($A56=25,L$39=12)),8,WEEKDAY(CONCATENATE($P56,"/",L$39,"/",$B$1),2)) -> 6 | AB56: =IF(OR(AND($A56=1,M$39=1),AND($A56=Titels!$O$12,M$39=Titels!$P$12),AND($A56=1,M$39=5),AND($A56=Titels!$O$14,M$39=Titels!$P$14),AND($A56=Titels!$O$15,M$39=Titels!$P$15),AND($A56=21,M$39=7),AND($A56=15,M$39=8),AND($A56=1,M$39=11),AND($A56=11,M$39=11),AND($A56=25,M$39=12)),8,WEEKDAY(CONCATENATE($P56,"/",M$39,"/",$B$1),2)) -> 1
A57: 17 | B57: =IF(INDEX(Brandstoffacturen!$B$22:$B$29,GD!Q57)=0,0,(B19*Brandstoffacturen!$P$3+Brandstoffacturen!$G$3)*(1+INDEX(Brandstoffacturen!$F$3:$F$14,B$39))*(1-INDEX(Brandstoffacturen!$L$3:$L$14,B$39))*INDEX(Gegevens!$T$40:$T$49,GD!Q57)) -> 2669.82776 | C57: =IF(INDEX(Brandstoffacturen!$B$22:$B$29,GD!R57)=0,0,(C19*Brandstoffacturen!$P$3+Brandstoffacturen!$G$3)*(1+INDEX(Brandstoffacturen!$F$3:$F$14,C$39))*(1-INDEX(Brandstoffacturen!$L$3:$L$14,C$39))*INDEX(Gegevens!$T$40:$T$49,GD!R57)) -> 2410.245925 | D57: =IF(INDEX(Brandstoffacturen!$B$22:$B$29,GD!S57)=0,0,(D19*Brandstoffacturen!$P$3+Brandstoffacturen!$G$3)*(1+INDEX(Brandstoffacturen!$F$3:$F$14,D$39))*(1-INDEX(Brandstoffacturen!$L$3:$L$14,D$39))*INDEX(Gegevens!$T$40:$T$49,GD!S57)) -> 2962.476533 | E57: =IF(INDEX(Brandstoffacturen!$B$22:$B$29,GD!T57)=0,0,(E19*Brandstoffacturen!$P$3+Brandstoffacturen!$G$3)*(1+INDEX(Brandstoffacturen!$F$3:$F$14,E$39))*(1-INDEX(Brandstoffacturen!$L$3:$L$14,E$39))*INDEX(Gegevens!$T$40:$T$49,GD!T57)) -> 1699.054414 | F57: =IF(INDEX(Brandstoffacturen!$B$22:$B$29,GD!U57)=0,0,(F19*Brandstoffacturen!$P$3+Brandstoffacturen!$G$3)*(1+INDEX(Brandstoffacturen!$F$3:$F$14,F$39))*(1-INDEX(Brandstoffacturen!$L$3:$L$14,F$39))*INDEX(Gegevens!$T$40:$T$49,GD!U57)) -> 1866.885734 | G57: =IF(INDEX(Brandstoffacturen!$B$22:$B$29,GD!V57)=0,0,(G19*Brandstoffacturen!$P$3+Brandstoffacturen!$G$3)*(1+INDEX(Brandstoffacturen!$F$3:$F$14,G$39))*(1-INDEX(Brandstoffacturen!$L$3:$L$14,G$39))*INDEX(Gegevens!$T$40:$T$49,GD!V57)) -> 1423.423735 | H57: =IF(INDEX(Brandstoffacturen!$B$22:$B$29,GD!W57)=0,0,(H19*Brandstoffacturen!$P$3+Brandstoffacturen!$G$3)*(1+INDEX(Brandstoffacturen!$F$3:$F$14,H$39))*(1-INDEX(Brandstoffacturen!$L$3:$L$14,H$39))*INDEX(Gegevens!$T$40:$T$49,GD!W57)) -> 1444.565063 | I57: =IF(INDEX(Brandstoffacturen!$B$22:$B$29,GD!X57)=0,0,(I19*Brandstoffacturen!$P$3+Brandstoffacturen!$G$3)*(1+INDEX(Brandstoffacturen!$F$3:$F$14,I$39))*(1-INDEX(Brandstoffacturen!$L$3:$L$14,I$39))*INDEX(Gegevens!$T$40:$T$49,GD!X57)) -> 1622.792403 | J57: =IF(INDEX(Brandstoffacturen!$B$22:$B$29,GD!Y57)=0,0,(J19*Brandstoffacturen!$P$3+Brandstoffacturen!$G$3)*(1+INDEX(Brandstoffacturen!$F$3:$F$14,J$39))*(1-INDEX(Brandstoffacturen!$L$3:$L$14,J$39))*INDEX(Gegevens!$T$40:$T$49,GD!Y57)) -> 2128.945162 | K57: =IF(INDEX(Brandstoffacturen!$B$22:$B$29,GD!Z57)=0,0,(K19*Brandstoffacturen!$P$3+Brandstoffacturen!$G$3)*(1+INDEX(Brandstoffacturen!$F$3:$F$14,K$39))*(1-INDEX(Brandstoffacturen!$L$3:$L$14,K$39))*INDEX(Gegevens!$T$40:$T$49,GD!Z57)) -> 2506.081253 | L57: =IF(INDEX(Brandstoffacturen!$B$22:$B$29,GD!AA57)=0,0,(L19*Brandstoffacturen!$P$3+Brandstoffacturen!$G$3)*(1+INDEX(Brandstoffacturen!$F$3:$F$14,L$39))*(1-INDEX(Brandstoffacturen!$L$3:$L$14,L$39))*INDEX(Gegevens!$T$40:$T$49,GD!AA57)) -> 2987.4165 | M57: =IF(INDEX(Brandstoffacturen!$B$22:$B$29,GD!AB57)=0,0,(M19*Brandstoffacturen!$P$3+Brandstoffacturen!$G$3)*(1+INDEX(Brandstoffacturen!$F$3:$F$14,M$39))*(1-INDEX(Brandstoffacturen!$L$3:$L$14,M$39))*INDEX(Gegevens!$T$40:$T$49,GD!AB57)) -> 2087.607885 | P57: 17 | Q57: =IF(OR(AND($A57=1,B$39=1),AND($A57=Titels!$O$12,B$39=Titels!$P$12),AND($A57=1,B$39=5),AND($A57=Titels!$O$14,B$39=Titels!$P$14),AND($A57=Titels!$O$15,B$39=Titels!$P$15),AND($A57=21,B$39=7),AND($A57=15,B$39=8),AND($A57=1,B$39=11),AND($A57=11,B$39=11),AND($A57=25,B$39=12)),8,WEEKDAY(CONCATENATE($P57,"/",B$39,"/",$B$1),2)) -> 4 | R57: =IF(OR(AND($A57=1,C$39=1),AND($A57=Titels!$O$12,C$39=Titels!$P$12),AND($A57=1,C$39=5),AND($A57=Titels!$O$14,C$39=Titels!$P$14),AND($A57=Titels!$O$15,C$39=Titels!$P$15),AND($A57=21,C$39=7),AND($A57=15,C$39=8),AND($A57=1,C$39=11),AND($A57=11,C$39=11),AND($A57=25,C$39=12)),8,WEEKDAY(CONCATENATE($P57,"/",C$39,"/",$B$1),2)) -> 7 | S57: =IF(OR(AND($A57=1,D$39=1),AND($A57=Titels!$O$12,D$39=Titels!$P$12),AND($A57=1,D$39=5),AND($A57=Titels!$O$14,D$39=Titels!$P$14),AND($A57=Titels!$O$15,D$39=Titels!$P$15),AND($A57=21,D$39=7),AND($A57=15,D$39=8),AND($A57=1,D$39=11),AND($A57=11,D$39=11),AND($A57=25,D$39=12)),8,WEEKDAY(CONCATENATE($P57,"/",D$39,"/",$B$1),2)) -> 7 | T57: =IF(OR(AND($A57=1,E$39=1),AND($A57=Titels!$O$12,E$39=Titels!$P$12),AND($A57=1,E$39=5),AND($A57=Titels!$O$14,E$39=Titels!$P$14),AND($A57=Titels!$O$15,E$39=Titels!$P$15),AND($A57=21,E$39=7),AND($A57=15,E$39=8),AND($A57=1,E$39=11),AND($A57=11,E$39=11),AND($A57=25,E$39=12)),8,WEEKDAY(CONCATENATE($P57,"/",E$39,"/",$B$1),2)) -> 3 | U57: =IF(OR(AND($A57=1,F$39=1),AND($A57=Titels!$O$12,F$39=Titels!$P$12),AND($A57=1,F$39=5),AND($A57=Titels!$O$14,F$39=Titels!$P$14),AND($A57=Titels!$O$15,F$39=Titels!$P$15),AND($A57=21,F$39=7),AND($A57=15,F$39=8),AND($A57=1,F$39=11),AND($A57=11,F$39=11),AND($A57=25,F$39=12)),8,WEEKDAY(CONCATENATE($P57,"/",F$39,"/",$B$1),2)) -> 5 | V57: =IF(OR(AND($A57=1,G$39=1),AND($A57=Titels!$O$12,G$39=Titels!$P$12),AND($A57=1,G$39=5),AND($A57=Titels!$O$14,G$39=Titels!$P$14),AND($A57=Titels!$O$15,G$39=Titels!$P$15),AND($A57=21,G$39=7),AND($A57=15,G$39=8),AND($A57=1,G$39=11),AND($A57=11,G$39=11),AND($A57=25,G$39=12)),8,WEEKDAY(CONCATENATE($P57,"/",G$39,"/",$B$1),2)) -> 1 | W57: =IF(OR(AND($A57=1,H$39=1),AND($A57=Titels!$O$12,H$39=Titels!$P$12),AND($A57=1,H$39=5),AND($A57=Titels!$O$14,H$39=Titels!$P$14),AND($A57=Titels!$O$15,H$39=Titels!$P$15),AND($A57=21,H$39=7),AND($A57=15,H$39=8),AND($A57=1,H$39=11),AND($A57=11,H$39=11),AND($A57=25,H$39=12)),8,WEEKDAY(CONCATENATE($P57,"/",H$39,"/",$B$1),2)) -> 3 | X57: =IF(OR(AND($A57=1,I$39=1),AND($A57=Titels!$O$12,I$39=Titels!$P$12),AND($A57=1,I$39=5),AND($A57=Titels!$O$14,I$39=Titels!$P$14),AND($A57=Titels!$O$15,I$39=Titels!$P$15),AND($A57=21,I$39=7),AND($A57=15,I$39=8),AND($A57=1,I$39=11),AND($A57=11,I$39=11),AND($A57=25,I$39=12)),8,WEEKDAY(CONCATENATE($P57,"/",I$39,"/",$B$1),2)) -> 6 | Y57: =IF(OR(AND($A57=1,J$39=1),AND($A57=Titels!$O$12,J$39=Titels!$P$12),AND($A57=1,J$39=5),AND($A57=Titels!$O$14,J$39=Titels!$P$14),AND($A57=Titels!$O$15,J$39=Titels!$P$15),AND($A57=21,J$39=7),AND($A57=15,J$39=8),AND($A57=1,J$39=11),AND($A57=11,J$39=11),AND($A57=25,J$39=12)),8,WEEKDAY(CONCATENATE($P57,"/",J$39,"/",$B$1),2)) -> 2 | Z57: =IF(OR(AND($A57=1,K$39=1),AND($A57=Titels!$O$12,K$39=Titels!$P$12),AND($A57=1,K$39=5),AND($A57=Titels!$O$14,K$39=Titels!$P$14),AND($A57=Titels!$O$15,K$39=Titels!$P$15),AND($A57=21,K$39=7),AND($A57=15,K$39=8),AND($A57=1,K$39=11),AND($A57=11,K$39=11),AND($A57=25,K$39=12)),8,WEEKDAY(CONCATENATE($P57,"/",K$39,"/",$B$1),2)) -> 4 | AA57: =IF(OR(AND($A57=1,L$39=1),AND($A57=Titels!$O$12,L$39=Titels!$P$12),AND($A57=1,L$39=5),AND($A57=Titels!$O$14,L$39=Titels!$P$14),AND($A57=Titels!$O$15,L$39=Titels!$P$15),AND($A57=21,L$39=7),AND($A57=15,L$39=8),AND($A57=1,L$39=11),AND($A57=11,L$39=11),AND($A57=25,L$39=12)),8,WEEKDAY(CONCATENATE($P57,"/",L$39,"/",$B$1),2)) -> 7 | AB57: =IF(OR(AND($A57=1,M$39=1),AND($A57=Titels!$O$12,M$39=Titels!$P$12),AND($A57=1,M$39=5),AND($A57=Titels!$O$14,M$39=Titels!$P$14),AND($A57=Titels!$O$15,M$39=Titels!$P$15),AND($A57=21,M$39=7),AND($A57=15,M$39=8),AND($A57=1,M$39=11),AND($A57=11,M$39=11),AND($A57=25,M$39=12)),8,WEEKDAY(CONCATENATE($P57,"/",M$39,"/",$B$1),2)) -> 2
A58: 18 | B58: =IF(INDEX(Brandstoffacturen!$B$22:$B$29,GD!Q58)=0,0,(B20*Brandstoffacturen!$P$3+Brandstoffacturen!$G$3)*(1+INDEX(Brandstoffacturen!$F$3:$F$14,B$39))*(1-INDEX(Brandstoffacturen!$L$3:$L$14,B$39))*INDEX(Gegevens!$T$40:$T$49,GD!Q58)) -> 3012.977607 | C58: =IF(INDEX(Brandstoffacturen!$B$22:$B$29,GD!R58)=0,0,(C20*Brandstoffacturen!$P$3+Brandstoffacturen!$G$3)*(1+INDEX(Brandstoffacturen!$F$3:$F$14,C$39))*(1-INDEX(Brandstoffacturen!$L$3:$L$14,C$39))*INDEX(Gegevens!$T$40:$T$49,GD!R58)) -> 2493.230132 | D58: =IF(INDEX(Brandstoffacturen!$B$22:$B$29,GD!S58)=0,0,(D20*Brandstoffacturen!$P$3+Brandstoffacturen!$G$3)*(1+INDEX(Brandstoffacturen!$F$3:$F$14,D$39))*(1-INDEX(Brandstoffacturen!$L$3:$L$14,D$39))*INDEX(Gegevens!$T$40:$T$49,GD!S58)) -> 3182.541908 | E58: =IF(INDEX(Brandstoffacturen!$B$22:$B$29,GD!T58)=0,0,(E20*Brandstoffacturen!$P$3+Brandstoffacturen!$G$3)*(1+INDEX(Brandstoffacturen!$F$3:$F$14,E$39))*(1-INDEX(Brandstoffacturen!$L$3:$L$14,E$39))*INDEX(Gegevens!$T$40:$T$49,GD!T58)) -> 1410.333489 | F58: =IF(INDEX(Brandstoffacturen!$B$22:$B$29,GD!U58)=0,0,(F20*Brandstoffacturen!$P$3+Brandstoffacturen!$G$3)*(1+INDEX(Brandstoffacturen!$F$3:$F$14,F$39))*(1-INDEX(Brandstoffacturen!$L$3:$L$14,F$39))*INDEX(Gegevens!$T$40:$T$49,GD!U58)) -> 1599.248911 | G58: =IF(INDEX(Brandstoffacturen!$B$22:$B$29,GD!V58)=0,0,(G20*Brandstoffacturen!$P$3+Brandstoffacturen!$G$3)*(1+INDEX(Brandstoffacturen!$F$3:$F$14,G$39))*(1-INDEX(Brandstoffacturen!$L$3:$L$14,G$39))*INDEX(Gegevens!$T$40:$T$49,GD!V58)) -> 1423.423735 | H58: =IF(INDEX(Brandstoffacturen!$B$22:$B$29,GD!W58)=0,0,(H20*Brandstoffacturen!$P$3+Brandstoffacturen!$G$3)*(1+INDEX(Brandstoffacturen!$F$3:$F$14,H$39))*(1-INDEX(Brandstoffacturen!$L$3:$L$14,H$39))*INDEX(Gegevens!$T$40:$T$49,GD!W58)) -> 1444.565063 | I58: =IF(INDEX(Brandstoffacturen!$B$22:$B$29,GD!X58)=0,0,(I20*Brandstoffacturen!$P$3+Brandstoffacturen!$G$3)*(1+INDEX(Brandstoffacturen!$F$3:$F$14,I$39))*(1-INDEX(Brandstoffacturen!$L$3:$L$14,I$39))*INDEX(Gegevens!$T$40:$T$49,GD!X58)) -> 1622.792403 | J58: =IF(INDEX(Brandstoffacturen!$B$22:$B$29,GD!Y58)=0,0,(J20*Brandstoffacturen!$P$3+Brandstoffacturen!$G$3)*(1+INDEX(Brandstoffacturen!$F$3:$F$14,J$39))*(1-INDEX(Brandstoffacturen!$L$3:$L$14,J$39))*INDEX(Gegevens!$T$40:$T$49,GD!Y58)) -> 2422.938489 | K58: =IF(INDEX(Brandstoffacturen!$B$22:$B$29,GD!Z58)=0,0,(K20*Brandstoffacturen!$P$3+Brandstoffacturen!$G$3)*(1+INDEX(Brandstoffacturen!$F$3:$F$14,K$39))*(1-INDEX(Brandstoffacturen!$L$3:$L$14,K$39))*INDEX(Gegevens!$T$40:$T$49,GD!Z58)) -> 2549.212103 | L58: =IF(INDEX(Brandstoffacturen!$B$22:$B$29,GD!AA58)=0,0,(L20*Brandstoffacturen!$P$3+Brandstoffacturen!$G$3)*(1+INDEX(Brandstoffacturen!$F$3:$F$14,L$39))*(1-INDEX(Brandstoffacturen!$L$3:$L$14,L$39))*INDEX(Gegevens!$T$40:$T$49,GD!AA58)) -> 2896.306325 | M58: =IF(INDEX(Brandstoffacturen!$B$22:$B$29,GD!AB58)=0,0,(M20*Brandstoffacturen!$P$3+Brandstoffacturen!$G$3)*(1+INDEX(Brandstoffacturen!$F$3:$F$14,M$39))*(1-INDEX(Brandstoffacturen!$L$3:$L$14,M$39))*INDEX(Gegevens!$T$40:$T$49,GD!AB58)) -> 2493.47464 | P58: 18 | Q58: =IF(OR(AND($A58=1,B$39=1),AND($A58=Titels!$O$12,B$39=Titels!$P$12),AND($A58=1,B$39=5),AND($A58=Titels!$O$14,B$39=Titels!$P$14),AND($A58=Titels!$O$15,B$39=Titels!$P$15),AND($A58=21,B$39=7),AND($A58=15,B$39=8),AND($A58=1,B$39=11),AND($A58=11,B$39=11),AND($A58=25,B$39=12)),8,WEEKDAY(CONCATENATE($P58,"/",B$39,"/",$B$1),2)) -> 5 | R58: =IF(OR(AND($A58=1,C$39=1),AND($A58=Titels!$O$12,C$39=Titels!$P$12),AND($A58=1,C$39=5),AND($A58=Titels!$O$14,C$39=Titels!$P$14),AND($A58=Titels!$O$15,C$39=Titels!$P$15),AND($A58=21,C$39=7),AND($A58=15,C$39=8),AND($A58=1,C$39=11),AND($A58=11,C$39=11),AND($A58=25,C$39=12)),8,WEEKDAY(CONCATENATE($P58,"/",C$39,"/",$B$1),2)) -> 1 | S58: =IF(OR(AND($A58=1,D$39=1),AND($A58=Titels!$O$12,D$39=Titels!$P$12),AND($A58=1,D$39=5),AND($A58=Titels!$O$14,D$39=Titels!$P$14),AND($A58=Titels!$O$15,D$39=Titels!$P$15),AND($A58=21,D$39=7),AND($A58=15,D$39=8),AND($A58=1,D$39=11),AND($A58=11,D$39=11),AND($A58=25,D$39=12)),8,WEEKDAY(CONCATENATE($P58,"/",D$39,"/",$B$1),2)) -> 1 | T58: =IF(OR(AND($A58=1,E$39=1),AND($A58=Titels!$O$12,E$39=Titels!$P$12),AND($A58=1,E$39=5),AND($A58=Titels!$O$14,E$39=Titels!$P$14),AND($A58=Titels!$O$15,E$39=Titels!$P$15),AND($A58=21,E$39=7),AND($A58=15,E$39=8),AND($A58=1,E$39=11),AND($A58=11,E$39=11),AND($A58=25,E$39=12)),8,WEEKDAY(CONCATENATE($P58,"/",E$39,"/",$B$1),2)) -> 4 | U58: =IF(OR(AND($A58=1,F$39=1),AND($A58=Titels!$O$12,F$39=Titels!$P$12),AND($A58=1,F$39=5),AND($A58=Titels!$O$14,F$39=Titels!$P$14),AND($A58=Titels!$O$15,F$39=Titels!$P$15),AND($A58=21,F$39=7),AND($A58=15,F$39=8),AND($A58=1,F$39=11),AND($A58=11,F$39=11),AND($A58=25,F$39=12)),8,WEEKDAY(CONCATENATE($P58,"/",F$39,"/",$B$1),2)) -> 6 | V58: =IF(OR(AND($A58=1,G$39=1),AND($A58=Titels!$O$12,G$39=Titels!$P$12),AND($A58=1,G$39=5),AND($A58=Titels!$O$14,G$39=Titels!$P$14),AND($A58=Titels!$O$15,G$39=Titels!$P$15),AND($A58=21,G$39=7),AND($A58=15,G$39=8),AND($A58=1,G$39=11),AND($A58=11,G$39=11),AND($A58=25,G$39=12)),8,WEEKDAY(CONCATENATE($P58,"/",G$39,"/",$B$1),2)) -> 2 | W58: =IF(OR(AND($A58=1,H$39=1),AND($A58=Titels!$O$12,H$39=Titels!$P$12),AND($A58=1,H$39=5),AND($A58=Titels!$O$14,H$39=Titels!$P$14),AND($A58=Titels!$O$15,H$39=Titels!$P$15),AND($A58=21,H$39=7),AND($A58=15,H$39=8),AND($A58=1,H$39=11),AND($A58=11,H$39=11),AND($A58=25,H$39=12)),8,WEEKDAY(CONCATENATE($P58,"/",H$39,"/",$B$1),2)) -> 4 | X58: =IF(OR(AND($A58=1,I$39=1),AND($A58=Titels!$O$12,I$39=Titels!$P$12),AND($A58=1,I$39=5),AND($A58=Titels!$O$14,I$39=Titels!$P$14),AND($A58=Titels!$O$15,I$39=Titels!$P$15),AND($A58=21,I$39=7),AND($A58=15,I$39=8),AND($A58=1,I$39=11),AND($A58=11,I$39=11),AND($A58=25,I$39=12)),8,WEEKDAY(CONCATENATE($P58,"/",I$39,"/",$B$1),2)) -> 7 | Y58: =IF(OR(AND($A58=1,J$39=1),AND($A58=Titels!$O$12,J$39=Titels!$P$12),AND($A58=1,J$39=5),AND($A58=Titels!$O$14,J$39=Titels!$P$14),AND($A58=Titels!$O$15,J$39=Titels!$P$15),AND($A58=21,J$39=7),AND($A58=15,J$39=8),AND($A58=1,J$39=11),AND($A58=11,J$39=11),AND($A58=25,J$39=12)),8,WEEKDAY(CONCATENATE($P58,"/",J$39,"/",$B$1),2)) -> 3 | Z58: =IF(OR(AND($A58=1,K$39=1),AND($A58=Titels!$O$12,K$39=Titels!$P$12),AND($A58=1,K$39=5),AND($A58=Titels!$O$14,K$39=Titels!$P$14),AND($A58=Titels!$O$15,K$39=Titels!$P$15),AND($A58=21,K$39=7),AND($A58=15,K$39=8),AND($A58=1,K$39=11),AND($A58=11,K$39=11),AND($A58=25,K$39=12)),8,WEEKDAY(CONCATENATE($P58,"/",K$39,"/",$B$1),2)) -> 5 | AA58: =IF(OR(AND($A58=1,L$39=1),AND($A58=Titels!$O$12,L$39=Titels!$P$12),AND($A58=1,L$39=5),AND($A58=Titels!$O$14,L$39=Titels!$P$14),AND($A58=Titels!$O$15,L$39=Titels!$P$15),AND($A58=21,L$39=7),AND($A58=15,L$39=8),AND($A58=1,L$39=11),AND($A58=11,L$39=11),AND($A58=25,L$39=12)),8,WEEKDAY(CONCATENATE($P58,"/",L$39,"/",$B$1),2)) -> 1 | AB58: =IF(OR(AND($A58=1,M$39=1),AND($A58=Titels!$O$12,M$39=Titels!$P$12),AND($A58=1,M$39=5),AND($A58=Titels!$O$14,M$39=Titels!$P$14),AND($A58=Titels!$O$15,M$39=Titels!$P$15),AND($A58=21,M$39=7),AND($A58=15,M$39=8),AND($A58=1,M$39=11),AND($A58=11,M$39=11),AND($A58=25,M$39=12)),8,WEEKDAY(CONCATENATE($P58,"/",M$39,"/",$B$1),2)) -> 3
A59: 19 | B59: =IF(INDEX(Brandstoffacturen!$B$22:$B$29,GD!Q59)=0,0,(B21*Brandstoffacturen!$P$3+Brandstoffacturen!$G$3)*(1+INDEX(Brandstoffacturen!$F$3:$F$14,B$39))*(1-INDEX(Brandstoffacturen!$L$3:$L$14,B$39))*INDEX(Gegevens!$T$40:$T$49,GD!Q59)) -> 3091.411858 | C59: =IF(INDEX(Brandstoffacturen!$B$22:$B$29,GD!R59)=0,0,(C21*Brandstoffacturen!$P$3+Brandstoffacturen!$G$3)*(1+INDEX(Brandstoffacturen!$F$3:$F$14,C$39))*(1-INDEX(Brandstoffacturen!$L$3:$L$14,C$39))*INDEX(Gegevens!$T$40:$T$49,GD!R59)) -> 2718.47298 | D59: =IF(INDEX(Brandstoffacturen!$B$22:$B$29,GD!S59)=0,0,(D21*Brandstoffacturen!$P$3+Brandstoffacturen!$G$3)*(1+INDEX(Brandstoffacturen!$F$3:$F$14,D$39))*(1-INDEX(Brandstoffacturen!$L$3:$L$14,D$39))*INDEX(Gegevens!$T$40:$T$49,GD!S59)) -> 3011.37995 | E59: =IF(INDEX(Brandstoffacturen!$B$22:$B$29,GD!T59)=0,0,(E21*Brandstoffacturen!$P$3+Brandstoffacturen!$G$3)*(1+INDEX(Brandstoffacturen!$F$3:$F$14,E$39))*(1-INDEX(Brandstoffacturen!$L$3:$L$14,E$39))*INDEX(Gegevens!$T$40:$T$49,GD!T59)) -> 1410.333489 | F59: =IF(INDEX(Brandstoffacturen!$B$22:$B$29,GD!U59)=0,0,(F21*Brandstoffacturen!$P$3+Brandstoffacturen!$G$3)*(1+INDEX(Brandstoffacturen!$F$3:$F$14,F$39))*(1-INDEX(Brandstoffacturen!$L$3:$L$14,F$39))*INDEX(Gegevens!$T$40:$T$49,GD!U59)) -> 1608.807369 | G59: =IF(INDEX(Brandstoffacturen!$B$22:$B$29,GD!V59)=0,0,(G21*Brandstoffacturen!$P$3+Brandstoffacturen!$G$3)*(1+INDEX(Brandstoffacturen!$F$3:$F$14,G$39))*(1-INDEX(Brandstoffacturen!$L$3:$L$14,G$39))*INDEX(Gegevens!$T$40:$T$49,GD!V59)) -> 1423.423735 | H59: =IF(INDEX(Brandstoffacturen!$B$22:$B$29,GD!W59)=0,0,(H21*Brandstoffacturen!$P$3+Brandstoffacturen!$G$3)*(1+INDEX(Brandstoffacturen!$F$3:$F$14,H$39))*(1-INDEX(Brandstoffacturen!$L$3:$L$14,H$39))*INDEX(Gegevens!$T$40:$T$49,GD!W59)) -> 1444.565063 | I59: =IF(INDEX(Brandstoffacturen!$B$22:$B$29,GD!X59)=0,0,(I21*Brandstoffacturen!$P$3+Brandstoffacturen!$G$3)*(1+INDEX(Brandstoffacturen!$F$3:$F$14,I$39))*(1-INDEX(Brandstoffacturen!$L$3:$L$14,I$39))*INDEX(Gegevens!$T$40:$T$49,GD!X59)) -> 1622.792403 | J59: =IF(INDEX(Brandstoffacturen!$B$22:$B$29,GD!Y59)=0,0,(J21*Brandstoffacturen!$P$3+Brandstoffacturen!$G$3)*(1+INDEX(Brandstoffacturen!$F$3:$F$14,J$39))*(1-INDEX(Brandstoffacturen!$L$3:$L$14,J$39))*INDEX(Gegevens!$T$40:$T$49,GD!Y59)) -> 2449.665155 | K59: =IF(INDEX(Brandstoffacturen!$B$22:$B$29,GD!Z59)=0,0,(K21*Brandstoffacturen!$P$3+Brandstoffacturen!$G$3)*(1+INDEX(Brandstoffacturen!$F$3:$F$14,K$39))*(1-INDEX(Brandstoffacturen!$L$3:$L$14,K$39))*INDEX(Gegevens!$T$40:$T$49,GD!Z59)) -> 2736.112457 | L59: =IF(INDEX(Brandstoffacturen!$B$22:$B$29,GD!AA59)=0,0,(L21*Brandstoffacturen!$P$3+Brandstoffacturen!$G$3)*(1+INDEX(Brandstoffacturen!$F$3:$F$14,L$39))*(1-INDEX(Brandstoffacturen!$L$3:$L$14,L$39))*INDEX(Gegevens!$T$40:$T$49,GD!AA59)) -> 3124.081761 | M59: =IF(INDEX(Brandstoffacturen!$B$22:$B$29,GD!AB59)=0,0,(M21*Brandstoffacturen!$P$3+Brandstoffacturen!$G$3)*(1+INDEX(Brandstoffacturen!$F$3:$F$14,M$39))*(1-INDEX(Brandstoffacturen!$L$3:$L$14,M$39))*INDEX(Gegevens!$T$40:$T$49,GD!AB59)) -> 2010.822282 | P59: 19 | Q59: =IF(OR(AND($A59=1,B$39=1),AND($A59=Titels!$O$12,B$39=Titels!$P$12),AND($A59=1,B$39=5),AND($A59=Titels!$O$14,B$39=Titels!$P$14),AND($A59=Titels!$O$15,B$39=Titels!$P$15),AND($A59=21,B$39=7),AND($A59=15,B$39=8),AND($A59=1,B$39=11),AND($A59=11,B$39=11),AND($A59=25,B$39=12)),8,WEEKDAY(CONCATENATE($P59,"/",B$39,"/",$B$1),2)) -> 6 | R59: =IF(OR(AND($A59=1,C$39=1),AND($A59=Titels!$O$12,C$39=Titels!$P$12),AND($A59=1,C$39=5),AND($A59=Titels!$O$14,C$39=Titels!$P$14),AND($A59=Titels!$O$15,C$39=Titels!$P$15),AND($A59=21,C$39=7),AND($A59=15,C$39=8),AND($A59=1,C$39=11),AND($A59=11,C$39=11),AND($A59=25,C$39=12)),8,WEEKDAY(CONCATENATE($P59,"/",C$39,"/",$B$1),2)) -> 2 | S59: =IF(OR(AND($A59=1,D$39=1),AND($A59=Titels!$O$12,D$39=Titels!$P$12),AND($A59=1,D$39=5),AND($A59=Titels!$O$14,D$39=Titels!$P$14),AND($A59=Titels!$O$15,D$39=Titels!$P$15),AND($A59=21,D$39=7),AND($A59=15,D$39=8),AND($A59=1,D$39=11),AND($A59=11,D$39=11),AND($A59=25,D$39=12)),8,WEEKDAY(CONCATENATE($P59,"/",D$39,"/",$B$1),2)) -> 2 | T59: =IF(OR(AND($A59=1,E$39=1),AND($A59=Titels!$O$12,E$39=Titels!$P$12),AND($A59=1,E$39=5),AND($A59=Titels!$O$14,E$39=Titels!$P$14),AND($A59=Titels!$O$15,E$39=Titels!$P$15),AND($A59=21,E$39=7),AND($A59=15,E$39=8),AND($A59=1,E$39=11),AND($A59=11,E$39=11),AND($A59=25,E$39=12)),8,WEEKDAY(CONCATENATE($P59,"/",E$39,"/",$B$1),2)) -> 5 | U59: =IF(OR(AND($A59=1,F$39=1),AND($A59=Titels!$O$12,F$39=Titels!$P$12),AND($A59=1,F$39=5),AND($A59=Titels!$O$14,F$39=Titels!$P$14),AND($A59=Titels!$O$15,F$39=Titels!$P$15),AND($A59=21,F$39=7),AND($A59=15,F$39=8),AND($A59=1,F$39=11),AND($A59=11,F$39=11),AND($A59=25,F$39=12)),8,WEEKDAY(CONCATENATE($P59,"/",F$39,"/",$B$1),2)) -> 7 | V59: =IF(OR(AND($A59=1,G$39=1),AND($A59=Titels!$O$12,G$39=Titels!$P$12),AND($A59=1,G$39=5),AND($A59=Titels!$O$14,G$39=Titels!$P$14),AND($A59=Titels!$O$15,G$39=Titels!$P$15),AND($A59=21,G$39=7),AND($A59=15,G$39=8),AND($A59=1,G$39=11),AND($A59=11,G$39=11),AND($A59=25,G$39=12)),8,WEEKDAY(CONCATENATE($P59,"/",G$39,"/",$B$1),2)) -> 3 | W59: =IF(OR(AND($A59=1,H$39=1),AND($A59=Titels!$O$12,H$39=Titels!$P$12),AND($A59=1,H$39=5),AND($A59=Titels!$O$14,H$39=Titels!$P$14),AND($A59=Titels!$O$15,H$39=Titels!$P$15),AND($A59=21,H$39=7),AND($A59=15,H$39=8),AND($A59=1,H$39=11),AND($A59=11,H$39=11),AND($A59=25,H$39=12)),8,WEEKDAY(CONCATENATE($P59,"/",H$39,"/",$B$1),2)) -> 5 | X59: =IF(OR(AND($A59=1,I$39=1),AND($A59=Titels!$O$12,I$39=Titels!$P$12),AND($A59=1,I$39=5),AND($A59=Titels!$O$14,I$39=Titels!$P$14),AND($A59=Titels!$O$15,I$39=Titels!$P$15),AND($A59=21,I$39=7),AND($A59=15,I$39=8),AND($A59=1,I$39=11),AND($A59=11,I$39=11),AND($A59=25,I$39=12)),8,WEEKDAY(CONCATENATE($P59,"/",I$39,"/",$B$1),2)) -> 1 | Y59: =IF(OR(AND($A59=1,J$39=1),AND($A59=Titels!$O$12,J$39=Titels!$P$12),AND($A59=1,J$39=5),AND($A59=Titels!$O$14,J$39=Titels!$P$14),AND($A59=Titels!$O$15,J$39=Titels!$P$15),AND($A59=21,J$39=7),AND($A59=15,J$39=8),AND($A59=1,J$39=11),AND($A59=11,J$39=11),AND($A59=25,J$39=12)),8,WEEKDAY(CONCATENATE($P59,"/",J$39,"/",$B$1),2)) -> 4 | Z59: =IF(OR(AND($A59=1,K$39=1),AND($A59=Titels!$O$12,K$39=Titels!$P$12),AND($A59=1,K$39=5),AND($A59=Titels!$O$14,K$39=Titels!$P$14),AND($A59=Titels!$O$15,K$39=Titels!$P$15),AND($A59=21,K$39=7),AND($A59=15,K$39=8),AND($A59=1,K$39=11),AND($A59=11,K$39=11),AND($A59=25,K$39=12)),8,WEEKDAY(CONCATENATE($P59,"/",K$39,"/",$B$1),2)) -> 6 | AA59: =IF(OR(AND($A59=1,L$39=1),AND($A59=Titels!$O$12,L$39=Titels!$P$12),AND($A59=1,L$39=5),AND($A59=Titels!$O$14,L$39=Titels!$P$14),AND($A59=Titels!$O$15,L$39=Titels!$P$15),AND($A59=21,L$39=7),AND($A59=15,L$39=8),AND($A59=1,L$39=11),AND($A59=11,L$39=11),AND($A59=25,L$39=12)),8,WEEKDAY(CONCATENATE($P59,"/",L$39,"/",$B$1),2)) -> 2 | AB59: =IF(OR(AND($A59=1,M$39=1),AND($A59=Titels!$O$12,M$39=Titels!$P$12),AND($A59=1,M$39=5),AND($A59=Titels!$O$14,M$39=Titels!$P$14),AND($A59=Titels!$O$15,M$39=Titels!$P$15),AND($A59=21,M$39=7),AND($A59=15,M$39=8),AND($A59=1,M$39=11),AND($A59=11,M$39=11),AND($A59=25,M$39=12)),8,WEEKDAY(CONCATENATE($P59,"/",M$39,"/",$B$1),2)) -> 4
A60: 20 | B60: =IF(INDEX(Brandstoffacturen!$B$22:$B$29,GD!Q60)=0,0,(B22*Brandstoffacturen!$P$3+Brandstoffacturen!$G$3)*(1+INDEX(Brandstoffacturen!$F$3:$F$14,B$39))*(1-INDEX(Brandstoffacturen!$L$3:$L$14,B$39))*INDEX(Gegevens!$T$40:$T$49,GD!Q60)) -> 3179.65039 | C60: =IF(INDEX(Brandstoffacturen!$B$22:$B$29,GD!R60)=0,0,(C22*Brandstoffacturen!$P$3+Brandstoffacturen!$G$3)*(1+INDEX(Brandstoffacturen!$F$3:$F$14,C$39))*(1-INDEX(Brandstoffacturen!$L$3:$L$14,C$39))*INDEX(Gegevens!$T$40:$T$49,GD!R60)) -> 2765.892527 | D60: =IF(INDEX(Brandstoffacturen!$B$22:$B$29,GD!S60)=0,0,(D22*Brandstoffacturen!$P$3+Brandstoffacturen!$G$3)*(1+INDEX(Brandstoffacturen!$F$3:$F$14,D$39))*(1-INDEX(Brandstoffacturen!$L$3:$L$14,D$39))*INDEX(Gegevens!$T$40:$T$49,GD!S60)) -> 2632.37847 | E60: =IF(INDEX(Brandstoffacturen!$B$22:$B$29,GD!T60)=0,0,(E22*Brandstoffacturen!$P$3+Brandstoffacturen!$G$3)*(1+INDEX(Brandstoffacturen!$F$3:$F$14,E$39))*(1-INDEX(Brandstoffacturen!$L$3:$L$14,E$39))*INDEX(Gegevens!$T$40:$T$49,GD!T60)) -> 1410.333489 | F60: =IF(INDEX(Brandstoffacturen!$B$22:$B$29,GD!U60)=0,0,(F22*Brandstoffacturen!$P$3+Brandstoffacturen!$G$3)*(1+INDEX(Brandstoffacturen!$F$3:$F$14,F$39))*(1-INDEX(Brandstoffacturen!$L$3:$L$14,F$39))*INDEX(Gegevens!$T$40:$T$49,GD!U60)) -> 1847.768818 | G60: =IF(INDEX(Brandstoffacturen!$B$22:$B$29,GD!V60)=0,0,(G22*Brandstoffacturen!$P$3+Brandstoffacturen!$G$3)*(1+INDEX(Brandstoffacturen!$F$3:$F$14,G$39))*(1-INDEX(Brandstoffacturen!$L$3:$L$14,G$39))*INDEX(Gegevens!$T$40:$T$49,GD!V60)) -> 1423.423735 | H60: =IF(INDEX(Brandstoffacturen!$B$22:$B$29,GD!W60)=0,0,(H22*Brandstoffacturen!$P$3+Brandstoffacturen!$G$3)*(1+INDEX(Brandstoffacturen!$F$3:$F$14,H$39))*(1-INDEX(Brandstoffacturen!$L$3:$L$14,H$39))*INDEX(Gegevens!$T$40:$T$49,GD!W60)) -> 1444.565063 | I60: =IF(INDEX(Brandstoffacturen!$B$22:$B$29,GD!X60)=0,0,(I22*Brandstoffacturen!$P$3+Brandstoffacturen!$G$3)*(1+INDEX(Brandstoffacturen!$F$3:$F$14,I$39))*(1-INDEX(Brandstoffacturen!$L$3:$L$14,I$39))*INDEX(Gegevens!$T$40:$T$49,GD!X60)) -> 1622.792403 | J60: =IF(INDEX(Brandstoffacturen!$B$22:$B$29,GD!Y60)=0,0,(J22*Brandstoffacturen!$P$3+Brandstoffacturen!$G$3)*(1+INDEX(Brandstoffacturen!$F$3:$F$14,J$39))*(1-INDEX(Brandstoffacturen!$L$3:$L$14,J$39))*INDEX(Gegevens!$T$40:$T$49,GD!Y60)) -> 2275.941825 | K60: =IF(INDEX(Brandstoffacturen!$B$22:$B$29,GD!Z60)=0,0,(K22*Brandstoffacturen!$P$3+Brandstoffacturen!$G$3)*(1+INDEX(Brandstoffacturen!$F$3:$F$14,K$39))*(1-INDEX(Brandstoffacturen!$L$3:$L$14,K$39))*INDEX(Gegevens!$T$40:$T$49,GD!Z60)) -> 2879.88196 | L60: =IF(INDEX(Brandstoffacturen!$B$22:$B$29,GD!AA60)=0,0,(L22*Brandstoffacturen!$P$3+Brandstoffacturen!$G$3)*(1+INDEX(Brandstoffacturen!$F$3:$F$14,L$39))*(1-INDEX(Brandstoffacturen!$L$3:$L$14,L$39))*INDEX(Gegevens!$T$40:$T$49,GD!AA60)) -> 3317.690882 | M60: =IF(INDEX(Brandstoffacturen!$B$22:$B$29,GD!AB60)=0,0,(M22*Brandstoffacturen!$P$3+Brandstoffacturen!$G$3)*(1+INDEX(Brandstoffacturen!$F$3:$F$14,M$39))*(1-INDEX(Brandstoffacturen!$L$3:$L$14,M$39))*INDEX(Gegevens!$T$40:$T$49,GD!AB60)) -> 2164.393487 | P60: 20 | Q60: =IF(OR(AND($A60=1,B$39=1),AND($A60=Titels!$O$12,B$39=Titels!$P$12),AND($A60=1,B$39=5),AND($A60=Titels!$O$14,B$39=Titels!$P$14),AND($A60=Titels!$O$15,B$39=Titels!$P$15),AND($A60=21,B$39=7),AND($A60=15,B$39=8),AND($A60=1,B$39=11),AND($A60=11,B$39=11),AND($A60=25,B$39=12)),8,WEEKDAY(CONCATENATE($P60,"/",B$39,"/",$B$1),2)) -> 7 | R60: =IF(OR(AND($A60=1,C$39=1),AND($A60=Titels!$O$12,C$39=Titels!$P$12),AND($A60=1,C$39=5),AND($A60=Titels!$O$14,C$39=Titels!$P$14),AND($A60=Titels!$O$15,C$39=Titels!$P$15),AND($A60=21,C$39=7),AND($A60=15,C$39=8),AND($A60=1,C$39=11),AND($A60=11,C$39=11),AND($A60=25,C$39=12)),8,WEEKDAY(CONCATENATE($P60,"/",C$39,"/",$B$1),2)) -> 3 | S60: =IF(OR(AND($A60=1,D$39=1),AND($A60=Titels!$O$12,D$39=Titels!$P$12),AND($A60=1,D$39=5),AND($A60=Titels!$O$14,D$39=Titels!$P$14),AND($A60=Titels!$O$15,D$39=Titels!$P$15),AND($A60=21,D$39=7),AND($A60=15,D$39=8),AND($A60=1,D$39=11),AND($A60=11,D$39=11),AND($A60=25,D$39=12)),8,WEEKDAY(CONCATENATE($P60,"/",D$39,"/",$B$1),2)) -> 3 | T60: =IF(OR(AND($A60=1,E$39=1),AND($A60=Titels!$O$12,E$39=Titels!$P$12),AND($A60=1,E$39=5),AND($A60=Titels!$O$14,E$39=Titels!$P$14),AND($A60=Titels!$O$15,E$39=Titels!$P$15),AND($A60=21,E$39=7),AND($A60=15,E$39=8),AND($A60=1,E$39=11),AND($A60=11,E$39=11),AND($A60=25,E$39=12)),8,WEEKDAY(CONCATENATE($P60,"/",E$39,"/",$B$1),2)) -> 6 | U60: =IF(OR(AND($A60=1,F$39=1),AND($A60=Titels!$O$12,F$39=Titels!$P$12),AND($A60=1,F$39=5),AND($A60=Titels!$O$14,F$39=Titels!$P$14),AND($A60=Titels!$O$15,F$39=Titels!$P$15),AND($A60=21,F$39=7),AND($A60=15,F$39=8),AND($A60=1,F$39=11),AND($A60=11,F$39=11),AND($A60=25,F$39=12)),8,WEEKDAY(CONCATENATE($P60,"/",F$39,"/",$B$1),2)) -> 1 | V60: =IF(OR(AND($A60=1,G$39=1),AND($A60=Titels!$O$12,G$39=Titels!$P$12),AND($A60=1,G$39=5),AND($A60=Titels!$O$14,G$39=Titels!$P$14),AND($A60=Titels!$O$15,G$39=Titels!$P$15),AND($A60=21,G$39=7),AND($A60=15,G$39=8),AND($A60=1,G$39=11),AND($A60=11,G$39=11),AND($A60=25,G$39=12)),8,WEEKDAY(CONCATENATE($P60,"/",G$39,"/",$B$1),2)) -> 4 | W60: =IF(OR(AND($A60=1,H$39=1),AND($A60=Titels!$O$12,H$39=Titels!$P$12),AND($A60=1,H$39=5),AND($A60=Titels!$O$14,H$39=Titels!$P$14),AND($A60=Titels!$O$15,H$39=Titels!$P$15),AND($A60=21,H$39=7),AND($A60=15,H$39=8),AND($A60=1,H$39=11),AND($A60=11,H$39=11),AND($A60=25,H$39=12)),8,WEEKDAY(CONCATENATE($P60,"/",H$39,"/",$B$1),2)) -> 6 | X60: =IF(OR(AND($A60=1,I$39=1),AND($A60=Titels!$O$12,I$39=Titels!$P$12),AND($A60=1,I$39=5),AND($A60=Titels!$O$14,I$39=Titels!$P$14),AND($A60=Titels!$O$15,I$39=Titels!$P$15),AND($A60=21,I$39=7),AND($A60=15,I$39=8),AND($A60=1,I$39=11),AND($A60=11,I$39=11),AND($A60=25,I$39=12)),8,WEEKDAY(CONCATENATE($P60,"/",I$39,"/",$B$1),2)) -> 2 | Y60: =IF(OR(AND($A60=1,J$39=1),AND($A60=Titels!$O$12,J$39=Titels!$P$12),AND($A60=1,J$39=5),AND($A60=Titels!$O$14,J$39=Titels!$P$14),AND($A60=Titels!$O$15,J$39=Titels!$P$15),AND($A60=21,J$39=7),AND($A60=15,J$39=8),AND($A60=1,J$39=11),AND($A60=11,J$39=11),AND($A60=25,J$39=12)),8,WEEKDAY(CONCATENATE($P60,"/",J$39,"/",$B$1),2)) -> 5 | Z60: =IF(OR(AND($A60=1,K$39=1),AND($A60=Titels!$O$12,K$39=Titels!$P$12),AND($A60=1,K$39=5),AND($A60=Titels!$O$14,K$39=Titels!$P$14),AND($A60=Titels!$O$15,K$39=Titels!$P$15),AND($A60=21,K$39=7),AND($A60=15,K$39=8),AND($A60=1,K$39=11),AND($A60=11,K$39=11),AND($A60=25,K$39=12)),8,WEEKDAY(CONCATENATE($P60,"/",K$39,"/",$B$1),2)) -> 7 | AA60: =IF(OR(AND($A60=1,L$39=1),AND($A60=Titels!$O$12,L$39=Titels!$P$12),AND($A60=1,L$39=5),AND($A60=Titels!$O$14,L$39=Titels!$P$14),AND($A60=Titels!$O$15,L$39=Titels!$P$15),AND($A60=21,L$39=7),AND($A60=15,L$39=8),AND($A60=1,L$39=11),AND($A60=11,L$39=11),AND($A60=25,L$39=12)),8,WEEKDAY(CONCATENATE($P60,"/",L$39,"/",$B$1),2)) -> 3 | AB60: =IF(OR(AND($A60=1,M$39=1),AND($A60=Titels!$O$12,M$39=Titels!$P$12),AND($A60=1,M$39=5),AND($A60=Titels!$O$14,M$39=Titels!$P$14),AND($A60=Titels!$O$15,M$39=Titels!$P$15),AND($A60=21,M$39=7),AND($A60=15,M$39=8),AND($A60=1,M$39=11),AND($A60=11,M$39=11),AND($A60=25,M$39=12)),8,WEEKDAY(CONCATENATE($P60,"/",M$39,"/",$B$1),2)) -> 5
A61: 21 | B61: =IF(INDEX(Brandstoffacturen!$B$22:$B$29,GD!Q61)=0,0,(B23*Brandstoffacturen!$P$3+Brandstoffacturen!$G$3)*(1+INDEX(Brandstoffacturen!$F$3:$F$14,B$39))*(1-INDEX(Brandstoffacturen!$L$3:$L$14,B$39))*INDEX(Gegevens!$T$40:$T$49,GD!Q61)) -> 3228.671797 | C61: =IF(INDEX(Brandstoffacturen!$B$22:$B$29,GD!R61)=0,0,(C23*Brandstoffacturen!$P$3+Brandstoffacturen!$G$3)*(1+INDEX(Brandstoffacturen!$F$3:$F$14,C$39))*(1-INDEX(Brandstoffacturen!$L$3:$L$14,C$39))*INDEX(Gegevens!$T$40:$T$49,GD!R61)) -> 2516.939906 | D61: =IF(INDEX(Brandstoffacturen!$B$22:$B$29,GD!S61)=0,0,(D23*Brandstoffacturen!$P$3+Brandstoffacturen!$G$3)*(1+INDEX(Brandstoffacturen!$F$3:$F$14,D$39))*(1-INDEX(Brandstoffacturen!$L$3:$L$14,D$39))*INDEX(Gegevens!$T$40:$T$49,GD!S61)) -> 2559.023345 | E61: =IF(INDEX(Brandstoffacturen!$B$22:$B$29,GD!T61)=0,0,(E23*Brandstoffacturen!$P$3+Brandstoffacturen!$G$3)*(1+INDEX(Brandstoffacturen!$F$3:$F$14,E$39))*(1-INDEX(Brandstoffacturen!$L$3:$L$14,E$39))*INDEX(Gegevens!$T$40:$T$49,GD!T61)) -> 1410.333489 | F61: =IF(INDEX(Brandstoffacturen!$B$22:$B$29,GD!U61)=0,0,(F23*Brandstoffacturen!$P$3+Brandstoffacturen!$G$3)*(1+INDEX(Brandstoffacturen!$F$3:$F$14,F$39))*(1-INDEX(Brandstoffacturen!$L$3:$L$14,F$39))*INDEX(Gegevens!$T$40:$T$49,GD!U61)) -> 1704.391949 | G61: =IF(INDEX(Brandstoffacturen!$B$22:$B$29,GD!V61)=0,0,(G23*Brandstoffacturen!$P$3+Brandstoffacturen!$G$3)*(1+INDEX(Brandstoffacturen!$F$3:$F$14,G$39))*(1-INDEX(Brandstoffacturen!$L$3:$L$14,G$39))*INDEX(Gegevens!$T$40:$T$49,GD!V61)) -> 1423.423735 | H61: =IF(INDEX(Brandstoffacturen!$B$22:$B$29,GD!W61)=0,0,(H23*Brandstoffacturen!$P$3+Brandstoffacturen!$G$3)*(1+INDEX(Brandstoffacturen!$F$3:$F$14,H$39))*(1-INDEX(Brandstoffacturen!$L$3:$L$14,H$39))*INDEX(Gegevens!$T$40:$T$49,GD!W61)) -> 1444.565063 | I61: =IF(INDEX(Brandstoffacturen!$B$22:$B$29,GD!X61)=0,0,(I23*Brandstoffacturen!$P$3+Brandstoffacturen!$G$3)*(1+INDEX(Brandstoffacturen!$F$3:$F$14,I$39))*(1-INDEX(Brandstoffacturen!$L$3:$L$14,I$39))*INDEX(Gegevens!$T$40:$T$49,GD!X61)) -> 1622.792403 | J61: =IF(INDEX(Brandstoffacturen!$B$22:$B$29,GD!Y61)=0,0,(J23*Brandstoffacturen!$P$3+Brandstoffacturen!$G$3)*(1+INDEX(Brandstoffacturen!$F$3:$F$14,J$39))*(1-INDEX(Brandstoffacturen!$L$3:$L$14,J$39))*INDEX(Gegevens!$T$40:$T$49,GD!Y61)) -> 2088.855163 | K61: =IF(INDEX(Brandstoffacturen!$B$22:$B$29,GD!Z61)=0,0,(K23*Brandstoffacturen!$P$3+Brandstoffacturen!$G$3)*(1+INDEX(Brandstoffacturen!$F$3:$F$14,K$39))*(1-INDEX(Brandstoffacturen!$L$3:$L$14,K$39))*INDEX(Gegevens!$T$40:$T$49,GD!Z61)) -> 2750.489407 | L61: =IF(INDEX(Brandstoffacturen!$B$22:$B$29,GD!AA61)=0,0,(L23*Brandstoffacturen!$P$3+Brandstoffacturen!$G$3)*(1+INDEX(Brandstoffacturen!$F$3:$F$14,L$39))*(1-INDEX(Brandstoffacturen!$L$3:$L$14,L$39))*INDEX(Gegevens!$T$40:$T$49,GD!AA61)) -> 3249.358251 | M61: =IF(INDEX(Brandstoffacturen!$B$22:$B$29,GD!AB61)=0,0,(M23*Brandstoffacturen!$P$3+Brandstoffacturen!$G$3)*(1+INDEX(Brandstoffacturen!$F$3:$F$14,M$39))*(1-INDEX(Brandstoffacturen!$L$3:$L$14,M$39))*INDEX(Gegevens!$T$40:$T$49,GD!AB61)) -> 2537.352127 | P61: 21 | Q61: =IF(OR(AND($A61=1,B$39=1),AND($A61=Titels!$O$12,B$39=Titels!$P$12),AND($A61=1,B$39=5),AND($A61=Titels!$O$14,B$39=Titels!$P$14),AND($A61=Titels!$O$15,B$39=Titels!$P$15),AND($A61=21,B$39=7),AND($A61=15,B$39=8),AND($A61=1,B$39=11),AND($A61=11,B$39=11),AND($A61=25,B$39=12)),8,WEEKDAY(CONCATENATE($P61,"/",B$39,"/",$B$1),2)) -> 1 | R61: =IF(OR(AND($A61=1,C$39=1),AND($A61=Titels!$O$12,C$39=Titels!$P$12),AND($A61=1,C$39=5),AND($A61=Titels!$O$14,C$39=Titels!$P$14),AND($A61=Titels!$O$15,C$39=Titels!$P$15),AND($A61=21,C$39=7),AND($A61=15,C$39=8),AND($A61=1,C$39=11),AND($A61=11,C$39=11),AND($A61=25,C$39=12)),8,WEEKDAY(CONCATENATE($P61,"/",C$39,"/",$B$1),2)) -> 4 | S61: =IF(OR(AND($A61=1,D$39=1),AND($A61=Titels!$O$12,D$39=Titels!$P$12),AND($A61=1,D$39=5),AND($A61=Titels!$O$14,D$39=Titels!$P$14),AND($A61=Titels!$O$15,D$39=Titels!$P$15),AND($A61=21,D$39=7),AND($A61=15,D$39=8),AND($A61=1,D$39=11),AND($A61=11,D$39=11),AND($A61=25,D$39=12)),8,WEEKDAY(CONCATENATE($P61,"/",D$39,"/",$B$1),2)) -> 4 | T61: =IF(OR(AND($A61=1,E$39=1),AND($A61=Titels!$O$12,E$39=Titels!$P$12),AND($A61=1,E$39=5),AND($A61=Titels!$O$14,E$39=Titels!$P$14),AND($A61=Titels!$O$15,E$39=Titels!$P$15),AND($A61=21,E$39=7),AND($A61=15,E$39=8),AND($A61=1,E$39=11),AND($A61=11,E$39=11),AND($A61=25,E$39=12)),8,WEEKDAY(CONCATENATE($P61,"/",E$39,"/",$B$1),2)) -> 7 | U61: =IF(OR(AND($A61=1,F$39=1),AND($A61=Titels!$O$12,F$39=Titels!$P$12),AND($A61=1,F$39=5),AND($A61=Titels!$O$14,F$39=Titels!$P$14),AND($A61=Titels!$O$15,F$39=Titels!$P$15),AND($A61=21,F$39=7),AND($A61=15,F$39=8),AND($A61=1,F$39=11),AND($A61=11,F$39=11),AND($A61=25,F$39=12)),8,WEEKDAY(CONCATENATE($P61,"/",F$39,"/",$B$1),2)) -> 2 | V61: =IF(OR(AND($A61=1,G$39=1),AND($A61=Titels!$O$12,G$39=Titels!$P$12),AND($A61=1,G$39=5),AND($A61=Titels!$O$14,G$39=Titels!$P$14),AND($A61=Titels!$O$15,G$39=Titels!$P$15),AND($A61=21,G$39=7),AND($A61=15,G$39=8),AND($A61=1,G$39=11),AND($A61=11,G$39=11),AND($A61=25,G$39=12)),8,WEEKDAY(CONCATENATE($P61,"/",G$39,"/",$B$1),2)) -> 5 | W61: =IF(OR(AND($A61=1,H$39=1),AND($A61=Titels!$O$12,H$39=Titels!$P$12),AND($A61=1,H$39=5),AND($A61=Titels!$O$14,H$39=Titels!$P$14),AND($A61=Titels!$O$15,H$39=Titels!$P$15),AND($A61=21,H$39=7),AND($A61=15,H$39=8),AND($A61=1,H$39=11),AND($A61=11,H$39=11),AND($A61=25,H$39=12)),8,WEEKDAY(CONCATENATE($P61,"/",H$39,"/",$B$1),2)) -> 8 | X61: =IF(OR(AND($A61=1,I$39=1),AND($A61=Titels!$O$12,I$39=Titels!$P$12),AND($A61=1,I$39=5),AND($A61=Titels!$O$14,I$39=Titels!$P$14),AND($A61=Titels!$O$15,I$39=Titels!$P$15),AND($A61=21,I$39=7),AND($A61=15,I$39=8),AND($A61=1,I$39=11),AND($A61=11,I$39=11),AND($A61=25,I$39=12)),8,WEEKDAY(CONCATENATE($P61,"/",I$39,"/",$B$1),2)) -> 3 | Y61: =IF(OR(AND($A61=1,J$39=1),AND($A61=Titels!$O$12,J$39=Titels!$P$12),AND($A61=1,J$39=5),AND($A61=Titels!$O$14,J$39=Titels!$P$14),AND($A61=Titels!$O$15,J$39=Titels!$P$15),AND($A61=21,J$39=7),AND($A61=15,J$39=8),AND($A61=1,J$39=11),AND($A61=11,J$39=11),AND($A61=25,J$39=12)),8,WEEKDAY(CONCATENATE($P61,"/",J$39,"/",$B$1),2)) -> 6 | Z61: =IF(OR(AND($A61=1,K$39=1),AND($A61=Titels!$O$12,K$39=Titels!$P$12),AND($A61=1,K$39=5),AND($A61=Titels!$O$14,K$39=Titels!$P$14),AND($A61=Titels!$O$15,K$39=Titels!$P$15),AND($A61=21,K$39=7),AND($A61=15,K$39=8),AND($A61=1,K$39=11),AND($A61=11,K$39=11),AND($A61=25,K$39=12)),8,WEEKDAY(CONCATENATE($P61,"/",K$39,"/",$B$1),2)) -> 1 | AA61: =IF(OR(AND($A61=1,L$39=1),AND($A61=Titels!$O$12,L$39=Titels!$P$12),AND($A61=1,L$39=5),AND($A61=Titels!$O$14,L$39=Titels!$P$14),AND($A61=Titels!$O$15,L$39=Titels!$P$15),AND($A61=21,L$39=7),AND($A61=15,L$39=8),AND($A61=1,L$39=11),AND($A61=11,L$39=11),AND($A61=25,L$39=12)),8,WEEKDAY(CONCATENATE($P61,"/",L$39,"/",$B$1),2)) -> 4 | AB61: =IF(OR(AND($A61=1,M$39=1),AND($A61=Titels!$O$12,M$39=Titels!$P$12),AND($A61=1,M$39=5),AND($A61=Titels!$O$14,M$39=Titels!$P$14),AND($A61=Titels!$O$15,M$39=Titels!$P$15),AND($A61=21,M$39=7),AND($A61=15,M$39=8),AND($A61=1,M$39=11),AND($A61=11,M$39=11),AND($A61=25,M$39=12)),8,WEEKDAY(CONCATENATE($P61,"/",M$39,"/",$B$1),2)) -> 6
A62: 22 | B62: =IF(INDEX(Brandstoffacturen!$B$22:$B$29,GD!Q62)=0,0,(B24*Brandstoffacturen!$P$3+Brandstoffacturen!$G$3)*(1+INDEX(Brandstoffacturen!$F$3:$F$14,B$39))*(1-INDEX(Brandstoffacturen!$L$3:$L$14,B$39))*INDEX(Gegevens!$T$40:$T$49,GD!Q62)) -> 3160.041828 | C62: =IF(INDEX(Brandstoffacturen!$B$22:$B$29,GD!R62)=0,0,(C24*Brandstoffacturen!$P$3+Brandstoffacturen!$G$3)*(1+INDEX(Brandstoffacturen!$F$3:$F$14,C$39))*(1-INDEX(Brandstoffacturen!$L$3:$L$14,C$39))*INDEX(Gegevens!$T$40:$T$49,GD!R62)) -> 2623.633887 | D62: =IF(INDEX(Brandstoffacturen!$B$22:$B$29,GD!S62)=0,0,(D24*Brandstoffacturen!$P$3+Brandstoffacturen!$G$3)*(1+INDEX(Brandstoffacturen!$F$3:$F$14,D$39))*(1-INDEX(Brandstoffacturen!$L$3:$L$14,D$39))*INDEX(Gegevens!$T$40:$T$49,GD!S62)) -> 2326.732116 | E62: =IF(INDEX(Brandstoffacturen!$B$22:$B$29,GD!T62)=0,0,(E24*Brandstoffacturen!$P$3+Brandstoffacturen!$G$3)*(1+INDEX(Brandstoffacturen!$F$3:$F$14,E$39))*(1-INDEX(Brandstoffacturen!$L$3:$L$14,E$39))*INDEX(Gegevens!$T$40:$T$49,GD!T62)) -> 1410.333489 | F62: =IF(INDEX(Brandstoffacturen!$B$22:$B$29,GD!U62)=0,0,(F24*Brandstoffacturen!$P$3+Brandstoffacturen!$G$3)*(1+INDEX(Brandstoffacturen!$F$3:$F$14,F$39))*(1-INDEX(Brandstoffacturen!$L$3:$L$14,F$39))*INDEX(Gegevens!$T$40:$T$49,GD!U62)) -> 1589.690453 | G62: =IF(INDEX(Brandstoffacturen!$B$22:$B$29,GD!V62)=0,0,(G24*Brandstoffacturen!$P$3+Brandstoffacturen!$G$3)*(1+INDEX(Brandstoffacturen!$F$3:$F$14,G$39))*(1-INDEX(Brandstoffacturen!$L$3:$L$14,G$39))*INDEX(Gegevens!$T$40:$T$49,GD!V62)) -> 1423.423735 | H62: =IF(INDEX(Brandstoffacturen!$B$22:$B$29,GD!W62)=0,0,(H24*Brandstoffacturen!$P$3+Brandstoffacturen!$G$3)*(1+INDEX(Brandstoffacturen!$F$3:$F$14,H$39))*(1-INDEX(Brandstoffacturen!$L$3:$L$14,H$39))*INDEX(Gegevens!$T$40:$T$49,GD!W62)) -> 1444.565063 | I62: =IF(INDEX(Brandstoffacturen!$B$22:$B$29,GD!X62)=0,0,(I24*Brandstoffacturen!$P$3+Brandstoffacturen!$G$3)*(1+INDEX(Brandstoffacturen!$F$3:$F$14,I$39))*(1-INDEX(Brandstoffacturen!$L$3:$L$14,I$39))*INDEX(Gegevens!$T$40:$T$49,GD!X62)) -> 1622.792403 | J62: =IF(INDEX(Brandstoffacturen!$B$22:$B$29,GD!Y62)=0,0,(J24*Brandstoffacturen!$P$3+Brandstoffacturen!$G$3)*(1+INDEX(Brandstoffacturen!$F$3:$F$14,J$39))*(1-INDEX(Brandstoffacturen!$L$3:$L$14,J$39))*INDEX(Gegevens!$T$40:$T$49,GD!Y62)) -> 2088.855163 | K62: =IF(INDEX(Brandstoffacturen!$B$22:$B$29,GD!Z62)=0,0,(K24*Brandstoffacturen!$P$3+Brandstoffacturen!$G$3)*(1+INDEX(Brandstoffacturen!$F$3:$F$14,K$39))*(1-INDEX(Brandstoffacturen!$L$3:$L$14,K$39))*INDEX(Gegevens!$T$40:$T$49,GD!Z62)) -> 2678.604656 | L62: =IF(INDEX(Brandstoffacturen!$B$22:$B$29,GD!AA62)=0,0,(L24*Brandstoffacturen!$P$3+Brandstoffacturen!$G$3)*(1+INDEX(Brandstoffacturen!$F$3:$F$14,L$39))*(1-INDEX(Brandstoffacturen!$L$3:$L$14,L$39))*INDEX(Gegevens!$T$40:$T$49,GD!AA62)) -> 2634.364574 | M62: =IF(INDEX(Brandstoffacturen!$B$22:$B$29,GD!AB62)=0,0,(M24*Brandstoffacturen!$P$3+Brandstoffacturen!$G$3)*(1+INDEX(Brandstoffacturen!$F$3:$F$14,M$39))*(1-INDEX(Brandstoffacturen!$L$3:$L$14,M$39))*INDEX(Gegevens!$T$40:$T$49,GD!AB62)) -> 2515.413384 | P62: 22 | Q62: =IF(OR(AND($A62=1,B$39=1),AND($A62=Titels!$O$12,B$39=Titels!$P$12),AND($A62=1,B$39=5),AND($A62=Titels!$O$14,B$39=Titels!$P$14),AND($A62=Titels!$O$15,B$39=Titels!$P$15),AND($A62=21,B$39=7),AND($A62=15,B$39=8),AND($A62=1,B$39=11),AND($A62=11,B$39=11),AND($A62=25,B$39=12)),8,WEEKDAY(CONCATENATE($P62,"/",B$39,"/",$B$1),2)) -> 2 | R62: =IF(OR(AND($A62=1,C$39=1),AND($A62=Titels!$O$12,C$39=Titels!$P$12),AND($A62=1,C$39=5),AND($A62=Titels!$O$14,C$39=Titels!$P$14),AND($A62=Titels!$O$15,C$39=Titels!$P$15),AND($A62=21,C$39=7),AND($A62=15,C$39=8),AND($A62=1,C$39=11),AND($A62=11,C$39=11),AND($A62=25,C$39=12)),8,WEEKDAY(CONCATENATE($P62,"/",C$39,"/",$B$1),2)) -> 5 | S62: =IF(OR(AND($A62=1,D$39=1),AND($A62=Titels!$O$12,D$39=Titels!$P$12),AND($A62=1,D$39=5),AND($A62=Titels!$O$14,D$39=Titels!$P$14),AND($A62=Titels!$O$15,D$39=Titels!$P$15),AND($A62=21,D$39=7),AND($A62=15,D$39=8),AND($A62=1,D$39=11),AND($A62=11,D$39=11),AND($A62=25,D$39=12)),8,WEEKDAY(CONCATENATE($P62,"/",D$39,"/",$B$1),2)) -> 5 | T62: =IF(OR(AND($A62=1,E$39=1),AND($A62=Titels!$O$12,E$39=Titels!$P$12),AND($A62=1,E$39=5),AND($A62=Titels!$O$14,E$39=Titels!$P$14),AND($A62=Titels!$O$15,E$39=Titels!$P$15),AND($A62=21,E$39=7),AND($A62=15,E$39=8),AND($A62=1,E$39=11),AND($A62=11,E$39=11),AND($A62=25,E$39=12)),8,WEEKDAY(CONCATENATE($P62,"/",E$39,"/",$B$1),2)) -> 1 | U62: =IF(OR(AND($A62=1,F$39=1),AND($A62=Titels!$O$12,F$39=Titels!$P$12),AND($A62=1,F$39=5),AND($A62=Titels!$O$14,F$39=Titels!$P$14),AND($A62=Titels!$O$15,F$39=Titels!$P$15),AND($A62=21,F$39=7),AND($A62=15,F$39=8),AND($A62=1,F$39=11),AND($A62=11,F$39=11),AND($A62=25,F$39=12)),8,WEEKDAY(CONCATENATE($P62,"/",F$39,"/",$B$1),2)) -> 3 | V62: =IF(OR(AND($A62=1,G$39=1),AND($A62=Titels!$O$12,G$39=Titels!$P$12),AND($A62=1,G$39=5),AND($A62=Titels!$O$14,G$39=Titels!$P$14),AND($A62=Titels!$O$15,G$39=Titels!$P$15),AND($A62=21,G$39=7),AND($A62=15,G$39=8),AND($A62=1,G$39=11),AND($A62=11,G$39=11),AND($A62=25,G$39=12)),8,WEEKDAY(CONCATENATE($P62,"/",G$39,"/",$B$1),2)) -> 6 | W62: =IF(OR(AND($A62=1,H$39=1),AND($A62=Titels!$O$12,H$39=Titels!$P$12),AND($A62=1,H$39=5),AND($A62=Titels!$O$14,H$39=Titels!$P$14),AND($A62=Titels!$O$15,H$39=Titels!$P$15),AND($A62=21,H$39=7),AND($A62=15,H$39=8),AND($A62=1,H$39=11),AND($A62=11,H$39=11),AND($A62=25,H$39=12)),8,WEEKDAY(CONCATENATE($P62,"/",H$39,"/",$B$1),2)) -> 1 | X62: =IF(OR(AND($A62=1,I$39=1),AND($A62=Titels!$O$12,I$39=Titels!$P$12),AND($A62=1,I$39=5),AND($A62=Titels!$O$14,I$39=Titels!$P$14),AND($A62=Titels!$O$15,I$39=Titels!$P$15),AND($A62=21,I$39=7),AND($A62=15,I$39=8),AND($A62=1,I$39=11),AND($A62=11,I$39=11),AND($A62=25,I$39=12)),8,WEEKDAY(CONCATENATE($P62,"/",I$39,"/",$B$1),2)) -> 4 | Y62: =IF(OR(AND($A62=1,J$39=1),AND($A62=Titels!$O$12,J$39=Titels!$P$12),AND($A62=1,J$39=5),AND($A62=Titels!$O$14,J$39=Titels!$P$14),AND($A62=Titels!$O$15,J$39=Titels!$P$15),AND($A62=21,J$39=7),AND($A62=15,J$39=8),AND($A62=1,J$39=11),AND($A62=11,J$39=11),AND($A62=25,J$39=12)),8,WEEKDAY(CONCATENATE($P62,"/",J$39,"/",$B$1),2)) -> 7 | Z62: =IF(OR(AND($A62=1,K$39=1),AND($A62=Titels!$O$12,K$39=Titels!$P$12),AND($A62=1,K$39=5),AND($A62=Titels!$O$14,K$39=Titels!$P$14),AND($A62=Titels!$O$15,K$39=Titels!$P$15),AND($A62=21,K$39=7),AND($A62=15,K$39=8),AND($A62=1,K$39=11),AND($A62=11,K$39=11),AND($A62=25,K$39=12)),8,WEEKDAY(CONCATENATE($P62,"/",K$39,"/",$B$1),2)) -> 2 | AA62: =IF(OR(AND($A62=1,L$39=1),AND($A62=Titels!$O$12,L$39=Titels!$P$12),AND($A62=1,L$39=5),AND($A62=Titels!$O$14,L$39=Titels!$P$14),AND($A62=Titels!$O$15,L$39=Titels!$P$15),AND($A62=21,L$39=7),AND($A62=15,L$39=8),AND($A62=1,L$39=11),AND($A62=11,L$39=11),AND($A62=25,L$39=12)),8,WEEKDAY(CONCATENATE($P62,"/",L$39,"/",$B$1),2)) -> 5 | AB62: =IF(OR(AND($A62=1,M$39=1),AND($A62=Titels!$O$12,M$39=Titels!$P$12),AND($A62=1,M$39=5),AND($A62=Titels!$O$14,M$39=Titels!$P$14),AND($A62=Titels!$O$15,M$39=Titels!$P$15),AND($A62=21,M$39=7),AND($A62=15,M$39=8),AND($A62=1,M$39=11),AND($A62=11,M$39=11),AND($A62=25,M$39=12)),8,WEEKDAY(CONCATENATE($P62,"/",M$39,"/",$B$1),2)) -> 7
A63: 23 | B63: =IF(INDEX(Brandstoffacturen!$B$22:$B$29,GD!Q63)=0,0,(B25*Brandstoffacturen!$P$3+Brandstoffacturen!$G$3)*(1+INDEX(Brandstoffacturen!$F$3:$F$14,B$39))*(1-INDEX(Brandstoffacturen!$L$3:$L$14,B$39))*INDEX(Gegevens!$T$40:$T$49,GD!Q63)) -> 3081.607577 | C63: =IF(INDEX(Brandstoffacturen!$B$22:$B$29,GD!R63)=0,0,(C25*Brandstoffacturen!$P$3+Brandstoffacturen!$G$3)*(1+INDEX(Brandstoffacturen!$F$3:$F$14,C$39))*(1-INDEX(Brandstoffacturen!$L$3:$L$14,C$39))*INDEX(Gegevens!$T$40:$T$49,GD!R63)) -> 2671.053434 | D63: =IF(INDEX(Brandstoffacturen!$B$22:$B$29,GD!S63)=0,0,(D25*Brandstoffacturen!$P$3+Brandstoffacturen!$G$3)*(1+INDEX(Brandstoffacturen!$F$3:$F$14,D$39))*(1-INDEX(Brandstoffacturen!$L$3:$L$14,D$39))*INDEX(Gegevens!$T$40:$T$49,GD!S63)) -> 2632.37847 | E63: =IF(INDEX(Brandstoffacturen!$B$22:$B$29,GD!T63)=0,0,(E25*Brandstoffacturen!$P$3+Brandstoffacturen!$G$3)*(1+INDEX(Brandstoffacturen!$F$3:$F$14,E$39))*(1-INDEX(Brandstoffacturen!$L$3:$L$14,E$39))*INDEX(Gegevens!$T$40:$T$49,GD!T63)) -> 1410.333489 | F63: =IF(INDEX(Brandstoffacturen!$B$22:$B$29,GD!U63)=0,0,(F25*Brandstoffacturen!$P$3+Brandstoffacturen!$G$3)*(1+INDEX(Brandstoffacturen!$F$3:$F$14,F$39))*(1-INDEX(Brandstoffacturen!$L$3:$L$14,F$39))*INDEX(Gegevens!$T$40:$T$49,GD!U63)) -> 1494.105873 | G63: =IF(INDEX(Brandstoffacturen!$B$22:$B$29,GD!V63)=0,0,(G25*Brandstoffacturen!$P$3+Brandstoffacturen!$G$3)*(1+INDEX(Brandstoffacturen!$F$3:$F$14,G$39))*(1-INDEX(Brandstoffacturen!$L$3:$L$14,G$39))*INDEX(Gegevens!$T$40:$T$49,GD!V63)) -> 1423.423735 | H63: =IF(INDEX(Brandstoffacturen!$B$22:$B$29,GD!W63)=0,0,(H25*Brandstoffacturen!$P$3+Brandstoffacturen!$G$3)*(1+INDEX(Brandstoffacturen!$F$3:$F$14,H$39))*(1-INDEX(Brandstoffacturen!$L$3:$L$14,H$39))*INDEX(Gegevens!$T$40:$T$49,GD!W63)) -> 1444.565063 | I63: =IF(INDEX(Brandstoffacturen!$B$22:$B$29,GD!X63)=0,0,(I25*Brandstoffacturen!$P$3+Brandstoffacturen!$G$3)*(1+INDEX(Brandstoffacturen!$F$3:$F$14,I$39))*(1-INDEX(Brandstoffacturen!$L$3:$L$14,I$39))*INDEX(Gegevens!$T$40:$T$49,GD!X63)) -> 1622.792403 | J63: =IF(INDEX(Brandstoffacturen!$B$22:$B$29,GD!Y63)=0,0,(J25*Brandstoffacturen!$P$3+Brandstoffacturen!$G$3)*(1+INDEX(Brandstoffacturen!$F$3:$F$14,J$39))*(1-INDEX(Brandstoffacturen!$L$3:$L$14,J$39))*INDEX(Gegevens!$T$40:$T$49,GD!Y63)) -> 2088.855163 | K63: =IF(INDEX(Brandstoffacturen!$B$22:$B$29,GD!Z63)=0,0,(K25*Brandstoffacturen!$P$3+Brandstoffacturen!$G$3)*(1+INDEX(Brandstoffacturen!$F$3:$F$14,K$39))*(1-INDEX(Brandstoffacturen!$L$3:$L$14,K$39))*INDEX(Gegevens!$T$40:$T$49,GD!Z63)) -> 2491.704302 | L63: =IF(INDEX(Brandstoffacturen!$B$22:$B$29,GD!AA63)=0,0,(L25*Brandstoffacturen!$P$3+Brandstoffacturen!$G$3)*(1+INDEX(Brandstoffacturen!$F$3:$F$14,L$39))*(1-INDEX(Brandstoffacturen!$L$3:$L$14,L$39))*INDEX(Gegevens!$T$40:$T$49,GD!AA63)) -> 2714.085976 | M63: =IF(INDEX(Brandstoffacturen!$B$22:$B$29,GD!AB63)=0,0,(M25*Brandstoffacturen!$P$3+Brandstoffacturen!$G$3)*(1+INDEX(Brandstoffacturen!$F$3:$F$14,M$39))*(1-INDEX(Brandstoffacturen!$L$3:$L$14,M$39))*INDEX(Gegevens!$T$40:$T$49,GD!AB63)) -> 2537.352127 | P63: 23 | Q63: =IF(OR(AND($A63=1,B$39=1),AND($A63=Titels!$O$12,B$39=Titels!$P$12),AND($A63=1,B$39=5),AND($A63=Titels!$O$14,B$39=Titels!$P$14),AND($A63=Titels!$O$15,B$39=Titels!$P$15),AND($A63=21,B$39=7),AND($A63=15,B$39=8),AND($A63=1,B$39=11),AND($A63=11,B$39=11),AND($A63=25,B$39=12)),8,WEEKDAY(CONCATENATE($P63,"/",B$39,"/",$B$1),2)) -> 3 | R63: =IF(OR(AND($A63=1,C$39=1),AND($A63=Titels!$O$12,C$39=Titels!$P$12),AND($A63=1,C$39=5),AND($A63=Titels!$O$14,C$39=Titels!$P$14),AND($A63=Titels!$O$15,C$39=Titels!$P$15),AND($A63=21,C$39=7),AND($A63=15,C$39=8),AND($A63=1,C$39=11),AND($A63=11,C$39=11),AND($A63=25,C$39=12)),8,WEEKDAY(CONCATENATE($P63,"/",C$39,"/",$B$1),2)) -> 6 | S63: =IF(OR(AND($A63=1,D$39=1),AND($A63=Titels!$O$12,D$39=Titels!$P$12),AND($A63=1,D$39=5),AND($A63=Titels!$O$14,D$39=Titels!$P$14),AND($A63=Titels!$O$15,D$39=Titels!$P$15),AND($A63=21,D$39=7),AND($A63=15,D$39=8),AND($A63=1,D$39=11),AND($A63=11,D$39=11),AND($A63=25,D$39=12)),8,WEEKDAY(CONCATENATE($P63,"/",D$39,"/",$B$1),2)) -> 6 | T63: =IF(OR(AND($A63=1,E$39=1),AND($A63=Titels!$O$12,E$39=Titels!$P$12),AND($A63=1,E$39=5),AND($A63=Titels!$O$14,E$39=Titels!$P$14),AND($A63=Titels!$O$15,E$39=Titels!$P$15),AND($A63=21,E$39=7),AND($A63=15,E$39=8),AND($A63=1,E$39=11),AND($A63=11,E$39=11),AND($A63=25,E$39=12)),8,WEEKDAY(CONCATENATE($P63,"/",E$39,"/",$B$1),2)) -> 2 | U63: =IF(OR(AND($A63=1,F$39=1),AND($A63=Titels!$O$12,F$39=Titels!$P$12),AND($A63=1,F$39=5),AND($A63=Titels!$O$14,F$39=Titels!$P$14),AND($A63=Titels!$O$15,F$39=Titels!$P$15),AND($A63=21,F$39=7),AND($A63=15,F$39=8),AND($A63=1,F$39=11),AND($A63=11,F$39=11),AND($A63=25,F$39=12)),8,WEEKDAY(CONCATENATE($P63,"/",F$39,"/",$B$1),2)) -> 4 | V63: =IF(OR(AND($A63=1,G$39=1),AND($A63=Titels!$O$12,G$39=Titels!$P$12),AND($A63=1,G$39=5),AND($A63=Titels!$O$14,G$39=Titels!$P$14),AND($A63=Titels!$O$15,G$39=Titels!$P$15),AND($A63=21,G$39=7),AND($A63=15,G$39=8),AND($A63=1,G$39=11),AND($A63=11,G$39=11),AND($A63=25,G$39=12)),8,WEEKDAY(CONCATENATE($P63,"/",G$39,"/",$B$1),2)) -> 7 | W63: =IF(OR(AND($A63=1,H$39=1),AND($A63=Titels!$O$12,H$39=Titels!$P$12),AND($A63=1,H$39=5),AND($A63=Titels!$O$14,H$39=Titels!$P$14),AND($A63=Titels!$O$15,H$39=Titels!$P$15),AND($A63=21,H$39=7),AND($A63=15,H$39=8),AND($A63=1,H$39=11),AND($A63=11,H$39=11),AND($A63=25,H$39=12)),8,WEEKDAY(CONCATENATE($P63,"/",H$39,"/",$B$1),2)) -> 2 | X63: =IF(OR(AND($A63=1,I$39=1),AND($A63=Titels!$O$12,I$39=Titels!$P$12),AND($A63=1,I$39=5),AND($A63=Titels!$O$14,I$39=Titels!$P$14),AND($A63=Titels!$O$15,I$39=Titels!$P$15),AND($A63=21,I$39=7),AND($A63=15,I$39=8),AND($A63=1,I$39=11),AND($A63=11,I$39=11),AND($A63=25,I$39=12)),8,WEEKDAY(CONCATENATE($P63,"/",I$39,"/",$B$1),2)) -> 5 | Y63: =IF(OR(AND($A63=1,J$39=1),AND($A63=Titels!$O$12,J$39=Titels!$P$12),AND($A63=1,J$39=5),AND($A63=Titels!$O$14,J$39=Titels!$P$14),AND($A63=Titels!$O$15,J$39=Titels!$P$15),AND($A63=21,J$39=7),AND($A63=15,J$39=8),AND($A63=1,J$39=11),AND($A63=11,J$39=11),AND($A63=25,J$39=12)),8,WEEKDAY(CONCATENATE($P63,"/",J$39,"/",$B$1),2)) -> 1 | Z63: =IF(OR(AND($A63=1,K$39=1),AND($A63=Titels!$O$12,K$39=Titels!$P$12),AND($A63=1,K$39=5),AND($A63=Titels!$O$14,K$39=Titels!$P$14),AND($A63=Titels!$O$15,K$39=Titels!$P$15),AND($A63=21,K$39=7),AND($A63=15,K$39=8),AND($A63=1,K$39=11),AND($A63=11,K$39=11),AND($A63=25,K$39=12)),8,WEEKDAY(CONCATENATE($P63,"/",K$39,"/",$B$1),2)) -> 3 | AA63: =IF(OR(AND($A63=1,L$39=1),AND($A63=Titels!$O$12,L$39=Titels!$P$12),AND($A63=1,L$39=5),AND($A63=Titels!$O$14,L$39=Titels!$P$14),AND($A63=Titels!$O$15,L$39=Titels!$P$15),AND($A63=21,L$39=7),AND($A63=15,L$39=8),AND($A63=1,L$39=11),AND($A63=11,L$39=11),AND($A63=25,L$39=12)),8,WEEKDAY(CONCATENATE($P63,"/",L$39,"/",$B$1),2)) -> 6 | AB63: =IF(OR(AND($A63=1,M$39=1),AND($A63=Titels!$O$12,M$39=Titels!$P$12),AND($A63=1,M$39=5),AND($A63=Titels!$O$14,M$39=Titels!$P$14),AND($A63=Titels!$O$15,M$39=Titels!$P$15),AND($A63=21,M$39=7),AND($A63=15,M$39=8),AND($A63=1,M$39=11),AND($A63=11,M$39=11),AND($A63=25,M$39=12)),8,WEEKDAY(CONCATENATE($P63,"/",M$39,"/",$B$1),2)) -> 1
A64: 24 | B64: =IF(INDEX(Brandstoffacturen!$B$22:$B$29,GD!Q64)=0,0,(B26*Brandstoffacturen!$P$3+Brandstoffacturen!$G$3)*(1+INDEX(Brandstoffacturen!$F$3:$F$14,B$39))*(1-INDEX(Brandstoffacturen!$L$3:$L$14,B$39))*INDEX(Gegevens!$T$40:$T$49,GD!Q64)) -> 3052.194733 | C64: =IF(INDEX(Brandstoffacturen!$B$22:$B$29,GD!R64)=0,0,(C26*Brandstoffacturen!$P$3+Brandstoffacturen!$G$3)*(1+INDEX(Brandstoffacturen!$F$3:$F$14,C$39))*(1-INDEX(Brandstoffacturen!$L$3:$L$14,C$39))*INDEX(Gegevens!$T$40:$T$49,GD!R64)) -> 2623.633887 | D64: =IF(INDEX(Brandstoffacturen!$B$22:$B$29,GD!S64)=0,0,(D26*Brandstoffacturen!$P$3+Brandstoffacturen!$G$3)*(1+INDEX(Brandstoffacturen!$F$3:$F$14,D$39))*(1-INDEX(Brandstoffacturen!$L$3:$L$14,D$39))*INDEX(Gegevens!$T$40:$T$49,GD!S64)) -> 2779.088721 | E64: =IF(INDEX(Brandstoffacturen!$B$22:$B$29,GD!T64)=0,0,(E26*Brandstoffacturen!$P$3+Brandstoffacturen!$G$3)*(1+INDEX(Brandstoffacturen!$F$3:$F$14,E$39))*(1-INDEX(Brandstoffacturen!$L$3:$L$14,E$39))*INDEX(Gegevens!$T$40:$T$49,GD!T64)) -> 1410.333489 | F64: =IF(INDEX(Brandstoffacturen!$B$22:$B$29,GD!U64)=0,0,(F26*Brandstoffacturen!$P$3+Brandstoffacturen!$G$3)*(1+INDEX(Brandstoffacturen!$F$3:$F$14,F$39))*(1-INDEX(Brandstoffacturen!$L$3:$L$14,F$39))*INDEX(Gegevens!$T$40:$T$49,GD!U64)) -> 1494.105873 | G64: =IF(INDEX(Brandstoffacturen!$B$22:$B$29,GD!V64)=0,0,(G26*Brandstoffacturen!$P$3+Brandstoffacturen!$G$3)*(1+INDEX(Brandstoffacturen!$F$3:$F$14,G$39))*(1-INDEX(Brandstoffacturen!$L$3:$L$14,G$39))*INDEX(Gegevens!$T$40:$T$49,GD!V64)) -> 1423.423735 | H64: =IF(INDEX(Brandstoffacturen!$B$22:$B$29,GD!W64)=0,0,(H26*Brandstoffacturen!$P$3+Brandstoffacturen!$G$3)*(1+INDEX(Brandstoffacturen!$F$3:$F$14,H$39))*(1-INDEX(Brandstoffacturen!$L$3:$L$14,H$39))*INDEX(Gegevens!$T$40:$T$49,GD!W64)) -> 1444.565063 | I64: =IF(INDEX(Brandstoffacturen!$B$22:$B$29,GD!X64)=0,0,(I26*Brandstoffacturen!$P$3+Brandstoffacturen!$G$3)*(1+INDEX(Brandstoffacturen!$F$3:$F$14,I$39))*(1-INDEX(Brandstoffacturen!$L$3:$L$14,I$39))*INDEX(Gegevens!$T$40:$T$49,GD!X64)) -> 1622.792403 | J64: =IF(INDEX(Brandstoffacturen!$B$22:$B$29,GD!Y64)=0,0,(J26*Brandstoffacturen!$P$3+Brandstoffacturen!$G$3)*(1+INDEX(Brandstoffacturen!$F$3:$F$14,J$39))*(1-INDEX(Brandstoffacturen!$L$3:$L$14,J$39))*INDEX(Gegevens!$T$40:$T$49,GD!Y64)) -> 2088.855163 | K64: =IF(INDEX(Brandstoffacturen!$B$22:$B$29,GD!Z64)=0,0,(K26*Brandstoffacturen!$P$3+Brandstoffacturen!$G$3)*(1+INDEX(Brandstoffacturen!$F$3:$F$14,K$39))*(1-INDEX(Brandstoffacturen!$L$3:$L$14,K$39))*INDEX(Gegevens!$T$40:$T$49,GD!Z64)) -> 2247.296148 | L64: =IF(INDEX(Brandstoffacturen!$B$22:$B$29,GD!AA64)=0,0,(L26*Brandstoffacturen!$P$3+Brandstoffacturen!$G$3)*(1+INDEX(Brandstoffacturen!$F$3:$F$14,L$39))*(1-INDEX(Brandstoffacturen!$L$3:$L$14,L$39))*INDEX(Gegevens!$T$40:$T$49,GD!AA64)) -> 2645.753345 | M64: =IF(INDEX(Brandstoffacturen!$B$22:$B$29,GD!AB64)=0,0,(M26*Brandstoffacturen!$P$3+Brandstoffacturen!$G$3)*(1+INDEX(Brandstoffacturen!$F$3:$F$14,M$39))*(1-INDEX(Brandstoffacturen!$L$3:$L$14,M$39))*INDEX(Gegevens!$T$40:$T$49,GD!AB64)) -> 2416.689038 | P64: 24 | Q64: =IF(OR(AND($A64=1,B$39=1),AND($A64=Titels!$O$12,B$39=Titels!$P$12),AND($A64=1,B$39=5),AND($A64=Titels!$O$14,B$39=Titels!$P$14),AND($A64=Titels!$O$15,B$39=Titels!$P$15),AND($A64=21,B$39=7),AND($A64=15,B$39=8),AND($A64=1,B$39=11),AND($A64=11,B$39=11),AND($A64=25,B$39=12)),8,WEEKDAY(CONCATENATE($P64,"/",B$39,"/",$B$1),2)) -> 4 | R64: =IF(OR(AND($A64=1,C$39=1),AND($A64=Titels!$O$12,C$39=Titels!$P$12),AND($A64=1,C$39=5),AND($A64=Titels!$O$14,C$39=Titels!$P$14),AND($A64=Titels!$O$15,C$39=Titels!$P$15),AND($A64=21,C$39=7),AND($A64=15,C$39=8),AND($A64=1,C$39=11),AND($A64=11,C$39=11),AND($A64=25,C$39=12)),8,WEEKDAY(CONCATENATE($P64,"/",C$39,"/",$B$1),2)) -> 7 | S64: =IF(OR(AND($A64=1,D$39=1),AND($A64=Titels!$O$12,D$39=Titels!$P$12),AND($A64=1,D$39=5),AND($A64=Titels!$O$14,D$39=Titels!$P$14),AND($A64=Titels!$O$15,D$39=Titels!$P$15),AND($A64=21,D$39=7),AND($A64=15,D$39=8),AND($A64=1,D$39=11),AND($A64=11,D$39=11),AND($A64=25,D$39=12)),8,WEEKDAY(CONCATENATE($P64,"/",D$39,"/",$B$1),2)) -> 7 | T64: =IF(OR(AND($A64=1,E$39=1),AND($A64=Titels!$O$12,E$39=Titels!$P$12),AND($A64=1,E$39=5),AND($A64=Titels!$O$14,E$39=Titels!$P$14),AND($A64=Titels!$O$15,E$39=Titels!$P$15),AND($A64=21,E$39=7),AND($A64=15,E$39=8),AND($A64=1,E$39=11),AND($A64=11,E$39=11),AND($A64=25,E$39=12)),8,WEEKDAY(CONCATENATE($P64,"/",E$39,"/",$B$1),2)) -> 3 | U64: =IF(OR(AND($A64=1,F$39=1),AND($A64=Titels!$O$12,F$39=Titels!$P$12),AND($A64=1,F$39=5),AND($A64=Titels!$O$14,F$39=Titels!$P$14),AND($A64=Titels!$O$15,F$39=Titels!$P$15),AND($A64=21,F$39=7),AND($A64=15,F$39=8),AND($A64=1,F$39=11),AND($A64=11,F$39=11),AND($A64=25,F$39=12)),8,WEEKDAY(CONCATENATE($P64,"/",F$39,"/",$B$1),2)) -> 5 | V64: =IF(OR(AND($A64=1,G$39=1),AND($A64=Titels!$O$12,G$39=Titels!$P$12),AND($A64=1,G$39=5),AND($A64=Titels!$O$14,G$39=Titels!$P$14),AND($A64=Titels!$O$15,G$39=Titels!$P$15),AND($A64=21,G$39=7),AND($A64=15,G$39=8),AND($A64=1,G$39=11),AND($A64=11,G$39=11),AND($A64=25,G$39=12)),8,WEEKDAY(CONCATENATE($P64,"/",G$39,"/",$B$1),2)) -> 1 | W64: =IF(OR(AND($A64=1,H$39=1),AND($A64=Titels!$O$12,H$39=Titels!$P$12),AND($A64=1,H$39=5),AND($A64=Titels!$O$14,H$39=Titels!$P$14),AND($A64=Titels!$O$15,H$39=Titels!$P$15),AND($A64=21,H$39=7),AND($A64=15,H$39=8),AND($A64=1,H$39=11),AND($A64=11,H$39=11),AND($A64=25,H$39=12)),8,WEEKDAY(CONCATENATE($P64,"/",H$39,"/",$B$1),2)) -> 3 | X64: =IF(OR(AND($A64=1,I$39=1),AND($A64=Titels!$O$12,I$39=Titels!$P$12),AND($A64=1,I$39=5),AND($A64=Titels!$O$14,I$39=Titels!$P$14),AND($A64=Titels!$O$15,I$39=Titels!$P$15),AND($A64=21,I$39=7),AND($A64=15,I$39=8),AND($A64=1,I$39=11),AND($A64=11,I$39=11),AND($A64=25,I$39=12)),8,WEEKDAY(CONCATENATE($P64,"/",I$39,"/",$B$1),2)) -> 6 | Y64: =IF(OR(AND($A64=1,J$39=1),AND($A64=Titels!$O$12,J$39=Titels!$P$12),AND($A64=1,J$39=5),AND($A64=Titels!$O$14,J$39=Titels!$P$14),AND($A64=Titels!$O$15,J$39=Titels!$P$15),AND($A64=21,J$39=7),AND($A64=15,J$39=8),AND($A64=1,J$39=11),AND($A64=11,J$39=11),AND($A64=25,J$39=12)),8,WEEKDAY(CONCATENATE($P64,"/",J$39,"/",$B$1),2)) -> 2 | Z64: =IF(OR(AND($A64=1,K$39=1),AND($A64=Titels!$O$12,K$39=Titels!$P$12),AND($A64=1,K$39=5),AND($A64=Titels!$O$14,K$39=Titels!$P$14),AND($A64=Titels!$O$15,K$39=Titels!$P$15),AND($A64=21,K$39=7),AND($A64=15,K$39=8),AND($A64=1,K$39=11),AND($A64=11,K$39=11),AND($A64=25,K$39=12)),8,WEEKDAY(CONCATENATE($P64,"/",K$39,"/",$B$1),2)) -> 4 | AA64: =IF(OR(AND($A64=1,L$39=1),AND($A64=Titels!$O$12,L$39=Titels!$P$12),AND($A64=1,L$39=5),AND($A64=Titels!$O$14,L$39=Titels!$P$14),AND($A64=Titels!$O$15,L$39=Titels!$P$15),AND($A64=21,L$39=7),AND($A64=15,L$39=8),AND($A64=1,L$39=11),AND($A64=11,L$39=11),AND($A64=25,L$39=12)),8,WEEKDAY(CONCATENATE($P64,"/",L$39,"/",$B$1),2)) -> 7 | AB64: =IF(OR(AND($A64=1,M$39=1),AND($A64=Titels!$O$12,M$39=Titels!$P$12),AND($A64=1,M$39=5),AND($A64=Titels!$O$14,M$39=Titels!$P$14),AND($A64=Titels!$O$15,M$39=Titels!$P$15),AND($A64=21,M$39=7),AND($A64=15,M$39=8),AND($A64=1,M$39=11),AND($A64=11,M$39=11),AND($A64=25,M$39=12)),8,WEEKDAY(CONCATENATE($P64,"/",M$39,"/",$B$1),2)) -> 2
